Workbook

Sheet Instrucciones
B3: CALIFICACIÓN DE LAS COMPETENCIAS CLAVE Y DE LAS MATERIAS 2º_BACH_HUMANIDADES Y CIENCIAS SOCIALES
B6: INSTRUCCIONES 1. INCORPORAR LOS CRITERIOS DE CALIFICACIÓN DE LAS COMPETENCIAS CLAVE BOTÓN: "INCORPORAR LOS CRITERIOS DE CALIFICACIÓN DE LAS COMPETENCIAS CLAVE." Para introducir los criterios de calificación de las competencias clave hay que seleccionar una opción en cada uno de los siguientes campos: -Pesos de los criterios de evaluación en el cálculo de la calificación de los descriptores operativos. -Pesos de los descriptores operativos en el cálculo de la calificación de las competencias clave. Si se considera, se puede bloquear la información introducida pulsado en el botón "PROTEGIDA" e introduciendo una contaseña. En caso de querer desbloquear la página se debe pulsar en el botón "DESPROTEGIDA" e introducir la contraseña marcada. 2. INCORPORAR EL NOMBRE DE LOS ALUMNOS QUE COMPONEN EL GRUPO. BOTÓN: "INCORPORAR EL LISTADO DE ALUMNOS" Introducir el nombre de todos los alumnos que componen el grupo-clase. Marcar las materias de opción que cursa cada alumno, inlcuidas las materias pendientes de primer curso de bachillerato. Pulsando sobre el botón "informe" en cada alumnno se visualiza de forma individualizada la composición de las calificaciones de las materias y de las competencias clave a partir de las notas de los criterios de evaluación. Además, se incorporan dos botones para facilitar el trabajo colaborativo a través de TEAMS o Onedrive. El procedimiento es el siguiente: 1º Se pulsa el botón superior de esta sección TEAMS/Onedrive; 2º Una vez guardado el archivo, se comparte con las citadas aplicaciones; 3º Los docentes incorporan las céntésimas de redondeo de su materia en la pestaña "Redondeo" y las notas de los criterios de evaluación en la pestaña correspondiente a su materia; 4º Se descarga el archivo y se pulsa en el segundo botón de esta sección TEAMS/Onedrive para normalizar su funcionamiento y poder visualizar toda la información que esta herramienta ofrece. 3. INCORPORAR LAS CALIFICACIONES DE LOS CRITERIOS DE EVALUACIÓN DE LAS MATERIAS CURSADAS POR EL ALUMNO. BOTÓN: "INCORPORAR LA CALIFICACIÓN POR MATERIAS DE LOS CRITERIOS DE EVALUACIÓN " Seleccionar la materia. En la pestaña de destino introducir los pesos (ponderaciones) de cada criterio de evaluación (es decir, los criterios de calificación de la materia) y las calificaciones de los criterios de evaluación para los alumnos que cursen la materia o, en su caso, la calificación de la materia. 4. OBSERVAR LAS NOTAS DE LAS COMPETENCIAS CLAVE DE LOS ALUMNOS. BOTÓN: "VISUALIZAR LAS NOTAS DE LAS COMPETENCIAS CLAVE" Permite observar las notas de las competencias clave de cada alumno en función de los criterios de calificación de las competencias clave introducidos. Además, desde la pantalla de destino se puede generar un documento para exportar las notas de las competencias clave a STILUS. Para ello, previamente es necesario introducir las centésimas de redondeo de las notas de las competencias clave en la celda creada al efecto. 5. OBSERVAR LAS NOTAS DE LAS MATERIAS DE LOS ALUMNOS. BOTÓN: "VISUALIZAR LAS NOTAS DE LAS MATERIAS" Permite observar las notas de las materias de cada alumno, en función de los criterios de calificación de la materia introducidos. Además, desde la pantalla de destino se puede generar un documento para exportar las notas de las materias a STILUS.

Sheet Criterios de calificacion CClav
D4: CRITERIOS DE CALIFICACIÓN DE LAS COMPETENCIAS CLAVE
D6: Pesos de los criterios de evaluación en el cálculo de la calificación de los descriptores operativos
E8: MEDIA SIMPLE. Se aplica un criterio común para el cálculo de la calificación de todos los descriptores. Todos los criterios de evaluación pesan (ponderan) los mismo en la calificaión de los descriptores operativos.
E10: MEDIA PONDERADA POR CARGA HORARIA. Se aplica un criterio común para el cálculo de la calificación de todos los descriptores. El peso de los criterios de evaluación se determina en función de la carga horaria de la materia. (RECOMENDADO)
E12: LIBRE. Se aplica un criterio común para el cálculo de la calificación de todos los descriptores. El peso de cada criterio de evaluación en la calificación de los descriptores se determina por el centro.
E14: LIBRE DIFERENCIADO POR DESCRIPTORES. Se aplica un criterio diferenciado para el cálculo de la calificación de cada descriptor. El peso de cada criterio de evaluación en la calificación de cada descriptor se determina por el centro.
D16: Pesos de los descriptores operativos en el cálculo de la calificación de las competencias clave
E18: MEDIA PONDERADA. El peso de los descriptores operativos en el cálculo de la calificación de la competencia clave se determina en proporción al número de vinculaciones de cada descriptor operativo con los criterios de evaluación (RECOMENDADO)
E20: LIBRE. El peso (ponderación) de los descriptores operativos en el cálculo de la calificación de la competencia clave se determina por el centro.

Sheet Peso criterios carga horaria
F2: Mismo peso todos los descriptores
F3: Sí
E4: CALIFICACIÓN | F4: PESO TODOS
B5: Empresa y Diseño de Modelos de Negocio | C5: Comp. Esp. 1 | D5: Criterio Evaluación 1.1 | F5: 4
D6: Criterio Evaluación 1.2 | F6: 4
C7: Comp. Esp. 2 | D7: Criterio Evaluación 2.1 | F7: 4
D8: Criterio Evaluación 2.2 | F8: 4
D9: Criterio Evaluación 2.3 | F9: 4
C10: Comp. Esp. 3 | D10: Criterio Evaluación 3.1 | F10: 4
D11: Criterio Evaluación 3.2 | F11: 4
D12: Criterio Evaluación 3.3 | F12: 4
D13: Criterio Evaluación 3.4 | F13: 4
C14: Comp. Esp. 4 | D14: Criterio Evaluación 4.1 | F14: 4
D15: Criterio Evaluación 4.2 | F15: 4
D16: Criterio Evaluación 4.3 | F16: 4
C17: Comp. Esp. 5 | D17: Criterio Evaluación 5.1 | F17: 4
D18: Criterio Evaluación 5.2 | F18: 4
D19: Criterio Evaluación 5.3 | F19: 4
D20: Criterio Evaluación 5.4 | F20: 4
B21: Fundamentos de Administración y Gestión | C21: Comp. Esp. 1 | D21: Criterio Evaluación 1.1 | F21: 4
D22: Criterio Evaluación 1.2 | F22: 4
D23: Criterio Evaluación 1.3 | F23: 4
D24: Criterio Evaluación 1.4 | F24: 4
C25: Comp. Esp. 2 | D25: Criterio Evaluación 2.1 | F25: 4
D26: Criterio Evaluación 2.2 | F26: 4
D27: Criterio Evaluación 2.3 | F27: 4
D28: Criterio Evaluación 2.4 | F28: 4
C29: Comp. Esp. 3 | D29: Criterio Evaluación 3.1 | F29: 4
D30: Criterio Evaluación 3.2 | F30: 4
D31: Criterio Evaluación 3.3 | F31: 4
D32: Criterio Evaluación 3.4 | F32: 4
C33: Comp. Esp. 4 | D33: Criterio Evaluación 4.1 | F33: 4
D34: Criterio Evaluación 4.2 | F34: 4
D35: Criterio Evaluación 4.3 | F35: 4
D36: Criterio Evaluación 4.4 | F36: 4
C37: Comp. Esp. 5 | D37: Criterio Evaluación 5.1 | F37: 4
D38: Criterio Evaluación 5.2 | F38: 4
D39: Criterio Evaluación 5.3 | F39: 4
D40: Criterio Evaluación 5.4 | F40: 4
C41: Comp. Esp. 6 | D41: Criterio Evaluación 6.1 | F41: 4
D42: Criterio Evaluación 6.2 | F42: 4
D43: Criterio Evaluación 6.3 | F43: 4
D44: Criterio Evaluación 6.4 | F44: 4
B45: Geografía | C45: Comp. Esp. 1 | D45: Criterio Evaluación 1.1 | F45: 4
D46: Criterio Evaluación 1.2 | F46: 4
C47: Comp. Esp. 2 | D47: Criterio Evaluación 2.1 | F47: 4
D48: Criterio Evaluación 2.2 | F48: 4
C49: Comp. Esp. 3 | D49: Criterio Evaluación 3.1 | F49: 4
D50: Criterio Evaluación 3.2 | F50: 4
C51: Comp. Esp. 4 | D51: Criterio Evaluación 4.1 | F51: 4
D52: Criterio Evaluación 4.2 | F52: 4
C53: Comp. Esp. 5 | D53: Criterio Evaluación 5.1 | F53: 4
D54: Criterio Evaluación 5.2 | F54: 4
C55: Comp. Esp. 6 | D55: Criterio Evaluación 6.1 | F55: 4
D56: Criterio Evaluación 6.2 | F56: 4
C57: Comp. Esp. 7 | D57: Criterio Evaluación 7.1 | F57: 4
B58: Griego II | C58: Comp. Esp. 1 | D58: Criterio Evaluación 1.1 | F58: 4
D59: Criterio Evaluación 1.2 | F59: 4
D60: Criterio Evaluación 1.3 | F60: 4
D61: Criterio Evaluación 1.4 | F61: 4
D62: Criterio Evaluación 1.5 | F62: 4
C63: Comp. Esp. 2 | D63: Criterio Evaluación 2.1 | F63: 4
D64: Criterio Evaluación 2.2 | F64: 4
D65: Criterio Evaluación 2.3 | F65: 4
D66: Criterio Evaluación 2.4 | F66: 4
C67: Comp. Esp. 3 | D67: Criterio Evaluación 3.1 | F67: 4
D68: Criterio Evaluación 3.2 | F68: 4
D69: Criterio Evaluación 3.3 | F69: 4
D70: Criterio Evaluación 3.4 | F70: 4
C71: Comp. Esp. 4 | D71: Criterio Evaluación 4.1 | F71: 4
D72: Criterio Evaluación 4.2 | F72: 4
D73: Criterio Evaluación 4.3 | F73: 4
D74: Criterio Evaluación 4.4 | F74: 4
C75: Comp. Esp. 5 | D75: Criterio Evaluación 5.1 | F75: 4
D76: Criterio Evaluación 5.2 | F76: 4
D77: Criterio Evaluación 5.3 | F77: 4
B78: Historia de España | C78: Comp. Esp. 1 | D78: Criterio Evaluación 1.1 | F78: 4
D79: Criterio Evaluación 1.2 | F79: 4
C80: Comp. Esp. 2 | D80: Criterio Evaluación 2.1 | F80: 4
D81: Criterio Evaluación 2.2 | F81: 4
C82: Comp. Esp. 3 | D82: Criterio Evaluación 3.1 | F82: 4
D83: Criterio Evaluación 3.2 | F83: 4
C84: Comp. Esp. 4 | D84: Criterio Evaluación 4.1 | F84: 4
D85: Criterio Evaluación 4.2 | F85: 4
D86: Criterio Evaluación 4.3 | F86: 4
C87: Comp. Esp. 5 | D87: Criterio Evaluación 5.1 | F87: 4
D88: Criterio Evaluación 5.2 | F88: 4
D89: Criterio Evaluación 5.3 | F89: 4
C90: Comp. Esp. 6 | D90: Criterio Evaluación 6.1 | F90: 4
D91: Criterio Evaluación 6.2 | F91: 4
C92: Comp. Esp. 7 | D92: Criterio Evaluación 7.1 | F92: 4
D93: Criterio Evaluación 7.2 | F93: 4
C94: Comp. Esp. 8 | D94: Criterio Evaluación 8.1 | F94: 4
B95: Historia de la Filosofía | C95: Comp. Esp. 1 | D95: Criterio Evaluación 1.1 | F95: 3
D96: Criterio Evaluación 1.2 | F96: 3
C97: Comp. Esp. 2 | D97: Criterio Evaluación 2.1 | F97: 3
D98: Criterio Evaluación 2.2 | F98: 3
C99: Comp. Esp. 3 | D99: Criterio Evaluación 3.1 | F99: 3
D100: Criterio Evaluación 3.2 | F100: 3
C101: Comp. Esp. 4 | D101: Criterio Evaluación 4.1 | F101: 3
D102: Criterio Evaluación 4.2 | F102: 3
C103: Comp. Esp. 5 | D103: Criterio Evaluación 5.1 | F103: 3
D104: Criterio Evaluación 5.2 | F104: 3
C105: Comp. Esp. 6 | D105: Criterio Evaluación 6.1 | F105: 3
C106: Comp. Esp. 7 | D106: Criterio Evaluación 7.1 | F106: 3
D107: Criterio Evaluación 7.2 | F107: 3
B108: Historia de la Música y de la Danza | C108: Comp. Esp. 1 | D108: Criterio Evaluación 1.1 | F108: 4
D109: Criterio Evaluación 1.2 | F109: 4
D110: Criterio Evaluación 1.3 | F110: 4
D111: Criterio Evaluación 1.4 | F111: 4
C112: Comp. Esp. 2 | D112: Criterio Evaluación 2.1 | F112: 4
D113: Criterio Evaluación 2.2 | F113: 4
D114: Criterio Evaluación 2.3 | F114: 4
D115: Criterio Evaluación 2.4 | F115: 4
C116: Comp. Esp. 3 | D116: Criterio Evaluación 3.1 | F116: 4
D117: Criterio Evaluación 3.2 | F117: 4
D118: Criterio Evaluación 3.3 | F118: 4
D119: Criterio Evaluación 3.4 | F119: 4
C120: Comp. Esp. 4 | D120: Criterio Evaluación 4.1 | F120: 4
D121: Criterio Evaluación 4.2 | F121: 4
D122: Criterio Evaluación 4.3 | F122: 4
D123: Criterio Evaluación 4.4 | F123: 4
D124: Criterio Evaluación 4.5 | F124: 4
C125: Comp. Esp. 5 | D125: Criterio Evaluación 5.1 | F125: 4
D126: Criterio Evaluación 5.2 | F126: 4
D127: Criterio Evaluación 5.3 | F127: 4
B128: Historia del Arte | C128: Comp. Esp. 1 | D128: Criterio Evaluación 1.1 | F128: 4
C129: Comp. Esp. 2 | D129: Criterio Evaluación 2.1 | F129: 4
C130: Comp. Esp. 3 | D130: Criterio Evaluación 3.1 | F130: 4
C131: Comp. Esp. 4 | D131: Criterio Evaluación 4.1 | F131: 4
D132: Criterio Evaluación 4.2 | F132: 4
C133: Comp. Esp. 5 | D133: Criterio Evaluación 5.1 | F133: 4
D134: Criterio Evaluación 5.2 | F134: 4
C135: Comp. Esp. 6 | D135: Criterio Evaluación 6.1 | F135: 4
D136: Criterio Evaluación 6.2 | F136: 4
C137: Comp. Esp. 7 | D137: Criterio Evaluación 7.1 | F137: 4
C138: Comp. Esp. 8 | D138: Criterio Evaluación 8.1 | F138: 4
D139: Criterio Evaluación 8.2 | F139: 4
B140: Latín II | C140: Comp. Esp. 1 | D140: Criterio Evaluación 1.1 | F140: 4
D141: Criterio Evaluación 1.2 | F141: 4
D142: Criterio Evaluación 1.3 | F142: 4
D143: Criterio Evaluación 1.4 | F143: 4
D144: Criterio Evaluación 1.5 | F144: 4
C145: Comp. Esp. 2 | D145: Criterio Evaluación 2.1 | F145: 4
D146: Criterio Evaluación 2.2 | F146: 4
D147: Criterio Evaluación 2.3 | F147: 4
D148: Criterio Evaluación 2.4 | F148: 4
D149: Criterio Evaluación 2.5 | F149: 4
D150: Criterio Evaluación 2.6 | F150: 4
C151: Comp. Esp. 3 | D151: Criterio Evaluación 3.1 | F151: 4
D152: Criterio Evaluación 3.2 | F152: 4
D153: Criterio Evaluación 3.3 | F153: 4
D154: Criterio Evaluación 3.4 | F154: 4
C155: Comp. Esp. 4 | D155: Criterio Evaluación 4.1 | F155: 4
D156: Criterio Evaluación 4.2 | F156: 4
D157: Criterio Evaluación 4.3 | F157: 4
D158: Criterio Evaluación 4.4 | F158: 4
D159: Criterio Evaluación 4.5 | F159: 4
C160: Comp. Esp. 5 | D160: Criterio Evaluación 5.1 | F160: 4
D161: Criterio Evaluación 5.2 | F161: 4
D162: Criterio Evaluación 5.3 | F162: 4
B163: Lengua Castellana y Literatura II | C163: Comp. Esp. 1 | D163: Criterio Evaluación 1.1 | F163: 4
D164: Criterio Evaluación 1.2 | F164: 4
C165: Comp. Esp. 2 | D165: Criterio Evaluación 2.1 | F165: 4
D166: Criterio Evaluación 2.2 | F166: 4
C167: Comp. Esp. 3 | D167: Criterio Evaluación 3.1 | F167: 4
D168: Criterio Evaluación 3.2 | F168: 4
C169: Comp. Esp. 4 | D169: Criterio Evaluación 4.1 | F169: 4
D170: Criterio Evaluación 4.2 | F170: 4
C171: Comp. Esp. 5 | D171: Criterio Evaluación 5.1 | F171: 4
D172: Criterio Evaluación 5.2 | F172: 4
C173: Comp. Esp. 6 | D173: Criterio Evaluación 6.1 | F173: 4
D174: Criterio Evaluación 6.2 | F174: 4
C175: Comp. Esp. 7 | D175: Criterio Evaluación 7.1 | F175: 4
D176: Criterio Evaluación 7.2 | F176: 4
D177: Criterio Evaluación 7.3 | F177: 4
D178: Criterio Evaluación 7.4 | F178: 4
C179: Comp. Esp. 8 | D179: Criterio Evaluación 8.1 | F179: 4
D180: Criterio Evaluación 8.2 | F180: 4
D181: Criterio Evaluación 8.3 | F181: 4
C182: Comp. Esp. 9 | D182: Criterio Evaluación 9.1 | F182: 4
D183: Criterio Evaluación 9.2 | F183: 4
D184: Criterio Evaluación 9.3 | F184: 4
C185: Comp. Esp. 10 | D185: Criterio Evaluación 10.1 | F185: 4
D186: Criterio Evaluación 10.2 | F186: 4
B187: Lengua Extranjera II | C187: Comp. Esp. 1 | D187: Criterio Evaluación 1.1 | F187: 3
D188: Criterio Evaluación 1.2 | F188: 3
D189: Criterio Evaluación 1.3 | F189: 3
D190: Criterio Evaluación 1.4 | F190: 3
D191: Criterio Evaluación 1.5 | F191: 3
C192: Comp. Esp. 2 | D192: Criterio Evaluación 2.1 | F192: 3
D193: Criterio Evaluación 2.2 | F193: 3
D194: Criterio Evaluación 2.3 | F194: 3
D195: Criterio Evaluación 2.4 | F195: 3
C196: Comp. Esp. 3 | D196: Criterio Evaluación 3.1 | F196: 3
D197: Criterio Evaluación 3.2 | F197: 3
C198: Comp. Esp. 4 | D198: Criterio Evaluación 4.1 | F198: 3
D199: Criterio Evaluación 4.2 | F199: 3
C200: Comp. Esp. 5 | D200: Criterio Evaluación 5.1 | F200: 3
D201: Criterio Evaluación 5.2 | F201: 3
... 474 more rows

Sheet Peso criterios libre
E4: CALIFICACIÓN | F4: PESO | G4: PORCENTAJE | H4: POR. AJUSTA
A5: MATERIAS DE 2º DE BACHILLERATO | B5: Empresa y Diseño de Modelos de Negocio | C5: Comp. Esp. 1 | D5: Criterio Evaluación 1.1 | F5: 1 | G5: =F5/SUM($F$5:$F$354) -> 0.002857142857 | H5: =IF(E5="-","",G5/H$682) -> 
D6: Criterio Evaluación 1.2 | F6: 1 | G6: 0.002857142857
C7: Comp. Esp. 2 | D7: Criterio Evaluación 2.1 | F7: 1 | G7: 0.002857142857
D8: Criterio Evaluación 2.2 | F8: 1 | G8: 0.002857142857
D9: Criterio Evaluación 2.3 | F9: 1 | G9: 0.002857142857
C10: Comp. Esp. 3 | D10: Criterio Evaluación 3.1 | F10: 1 | G10: 0.002857142857
D11: Criterio Evaluación 3.2 | F11: 1 | G11: 0.002857142857
D12: Criterio Evaluación 3.3 | F12: 1 | G12: 0.002857142857
D13: Criterio Evaluación 3.4 | F13: 1 | G13: 0.002857142857
C14: Comp. Esp. 4 | D14: Criterio Evaluación 4.1 | E14: 1 | F14: 1 | G14: 0.002857142857
D15: Criterio Evaluación 4.2 | E15: 1 | F15: 1 | G15: 0.002857142857
D16: Criterio Evaluación 4.3 | E16: 1 | F16: 1 | G16: 0.002857142857
C17: Comp. Esp. 5 | D17: Criterio Evaluación 5.1 | F17: 1 | G17: 0.002857142857
D18: Criterio Evaluación 5.2 | F18: 1 | G18: 0.002857142857
D19: Criterio Evaluación 5.3 | F19: 1 | G19: 0.002857142857
D20: Criterio Evaluación 5.4 | F20: 1 | G20: 0.002857142857
B21: Fundamentos de Administración y Gestión | C21: Comp. Esp. 1 | D21: Criterio Evaluación 1.1 | F21: 1 | G21: 0.002857142857
D22: Criterio Evaluación 1.2 | F22: 1 | G22: 0.002857142857
D23: Criterio Evaluación 1.3 | F23: 1 | G23: 0.002857142857
D24: Criterio Evaluación 1.4 | F24: 1 | G24: 0.002857142857
C25: Comp. Esp. 2 | D25: Criterio Evaluación 2.1 | F25: 1 | G25: 0.002857142857
D26: Criterio Evaluación 2.2 | F26: 1 | G26: 0.002857142857
D27: Criterio Evaluación 2.3 | F27: 1 | G27: 0.002857142857
D28: Criterio Evaluación 2.4 | F28: 1 | G28: 0.002857142857
C29: Comp. Esp. 3 | D29: Criterio Evaluación 3.1 | F29: 1 | G29: 0.002857142857
D30: Criterio Evaluación 3.2 | F30: 1 | G30: 0.002857142857
D31: Criterio Evaluación 3.3 | F31: 1 | G31: 0.002857142857
D32: Criterio Evaluación 3.4 | F32: 1 | G32: 0.002857142857
C33: Comp. Esp. 4 | D33: Criterio Evaluación 4.1 | F33: 1 | G33: 0.002857142857
D34: Criterio Evaluación 4.2 | F34: 1 | G34: 0.002857142857
D35: Criterio Evaluación 4.3 | F35: 1 | G35: 0.002857142857
D36: Criterio Evaluación 4.4 | F36: 1 | G36: 0.002857142857
C37: Comp. Esp. 5 | D37: Criterio Evaluación 5.1 | E37: 1 | F37: 1 | G37: 0.002857142857
D38: Criterio Evaluación 5.2 | E38: 1 | F38: 1 | G38: 0.002857142857
D39: Criterio Evaluación 5.3 | E39: 1 | F39: 1 | G39: 0.002857142857
D40: Criterio Evaluación 5.4 | E40: 1 | F40: 1 | G40: 0.002857142857
C41: Comp. Esp. 6 | D41: Criterio Evaluación 6.1 | F41: 1 | G41: 0.002857142857
D42: Criterio Evaluación 6.2 | F42: 1 | G42: 0.002857142857
D43: Criterio Evaluación 6.3 | F43: 1 | G43: 0.002857142857
D44: Criterio Evaluación 6.4 | F44: 1 | G44: 0.002857142857
B45: Geografía | C45: Comp. Esp. 1 | D45: Criterio Evaluación 1.1 | E45: 1 | F45: 1 | G45: 0.002857142857
D46: Criterio Evaluación 1.2 | E46: 1 | F46: 1 | G46: 0.002857142857
C47: Comp. Esp. 2 | D47: Criterio Evaluación 2.1 | F47: 1 | G47: 0.002857142857
D48: Criterio Evaluación 2.2 | F48: 1 | G48: 0.002857142857
C49: Comp. Esp. 3 | D49: Criterio Evaluación 3.1 | F49: 1 | G49: 0.002857142857
D50: Criterio Evaluación 3.2 | F50: 1 | G50: 0.002857142857
C51: Comp. Esp. 4 | D51: Criterio Evaluación 4.1 | F51: 1 | G51: 0.002857142857
D52: Criterio Evaluación 4.2 | E52: 1 | F52: 1 | G52: 0.002857142857
C53: Comp. Esp. 5 | D53: Criterio Evaluación 5.1 | F53: 1 | G53: 0.002857142857
D54: Criterio Evaluación 5.2 | F54: 1 | G54: 0.002857142857
C55: Comp. Esp. 6 | D55: Criterio Evaluación 6.1 | F55: 1 | G55: 0.002857142857
D56: Criterio Evaluación 6.2 | F56: 1 | G56: 0.002857142857
C57: Comp. Esp. 7 | D57: Criterio Evaluación 7.1 | F57: 1 | G57: 0.002857142857
B58: Griego II | C58: Comp. Esp. 1 | D58: Criterio Evaluación 1.1 | E58: 1 | F58: 1 | G58: 0.002857142857
D59: Criterio Evaluación 1.2 | E59: 1 | F59: 1 | G59: 0.002857142857
D60: Criterio Evaluación 1.3 | E60: 1 | F60: 1 | G60: 0.002857142857
D61: Criterio Evaluación 1.4 | E61: 1 | F61: 1 | G61: 0.002857142857
D62: Criterio Evaluación 1.5 | F62: 1 | G62: 0.002857142857
C63: Comp. Esp. 2 | D63: Criterio Evaluación 2.1 | E63: 1 | F63: 1 | G63: 0.002857142857
D64: Criterio Evaluación 2.2 | E64: 1 | F64: 1 | G64: 0.002857142857
D65: Criterio Evaluación 2.3 | F65: 1 | G65: 0.002857142857
D66: Criterio Evaluación 2.4 | F66: 1 | G66: 0.002857142857
C67: Comp. Esp. 3 | D67: Criterio Evaluación 3.1 | E67: 1 | F67: 1 | G67: 0.002857142857
D68: Criterio Evaluación 3.2 | E68: 1 | F68: 1 | G68: 0.002857142857
D69: Criterio Evaluación 3.3 | E69: 1 | F69: 1 | G69: =F69/SUM($F$5:$F$354) -> 0.002857142857 | H69: =IF(E69="-","",G69/H$682) -> 
D70: Criterio Evaluación 3.4 | E70: 1 | F70: 1 | G70: 0.002857142857
C71: Comp. Esp. 4 | D71: Criterio Evaluación 4.1 | F71: 1 | G71: 0.002857142857
D72: Criterio Evaluación 4.2 | F72: 1 | G72: 0.002857142857
D73: Criterio Evaluación 4.3 | F73: 1 | G73: 0.002857142857
D74: Criterio Evaluación 4.4 | F74: 1 | G74: 0.002857142857
C75: Comp. Esp. 5 | D75: Criterio Evaluación 5.1 | F75: 1 | G75: 0.002857142857
D76: Criterio Evaluación 5.2 | F76: 1 | G76: 0.002857142857
D77: Criterio Evaluación 5.3 | F77: 1 | G77: 0.002857142857
B78: Historia de España | C78: Comp. Esp. 1 | D78: Criterio Evaluación 1.1 | F78: 1 | G78: 0.002857142857
D79: Criterio Evaluación 1.2 | F79: 1 | G79: 0.002857142857
C80: Comp. Esp. 2 | D80: Criterio Evaluación 2.1 | F80: 1 | G80: 0.002857142857
D81: Criterio Evaluación 2.2 | F81: 1 | G81: 0.002857142857
C82: Comp. Esp. 3 | D82: Criterio Evaluación 3.1 | F82: 1 | G82: 0.002857142857
D83: Criterio Evaluación 3.2 | F83: 1 | G83: 0.002857142857
C84: Comp. Esp. 4 | D84: Criterio Evaluación 4.1 | E84: 1 | F84: 1 | G84: 0.002857142857
D85: Criterio Evaluación 4.2 | F85: 1 | G85: 0.002857142857
D86: Criterio Evaluación 4.3 | F86: 1 | G86: 0.002857142857
C87: Comp. Esp. 5 | D87: Criterio Evaluación 5.1 | E87: 1 | F87: 1 | G87: 0.002857142857
D88: Criterio Evaluación 5.2 | E88: 1 | F88: 1 | G88: 0.002857142857
D89: Criterio Evaluación 5.3 | F89: 1 | G89: 0.002857142857
C90: Comp. Esp. 6 | D90: Criterio Evaluación 6.1 | E90: 1 | F90: 1 | G90: 0.002857142857
D91: Criterio Evaluación 6.2 | E91: 1 | F91: 1 | G91: 0.002857142857
C92: Comp. Esp. 7 | D92: Criterio Evaluación 7.1 | F92: 1 | G92: 0.002857142857
D93: Criterio Evaluación 7.2 | F93: 1 | G93: 0.002857142857
C94: Comp. Esp. 8 | D94: Criterio Evaluación 8.1 | E94: 1 | F94: 1 | G94: 0.002857142857
B95: Historia de la Filosofía | C95: Comp. Esp. 1 | D95: Criterio Evaluación 1.1 | F95: 1 | G95: 0.002857142857
D96: Criterio Evaluación 1.2 | E96: 1 | F96: 1 | G96: 0.002857142857
C97: Comp. Esp. 2 | D97: Criterio Evaluación 2.1 | E97: 1 | F97: 1 | G97: 0.002857142857
D98: Criterio Evaluación 2.2 | E98: 1 | F98: 1 | G98: 0.002857142857
C99: Comp. Esp. 3 | D99: Criterio Evaluación 3.1 | F99: 1 | G99: 0.002857142857
D100: Criterio Evaluación 3.2 | F100: 1 | G100: 0.002857142857
C101: Comp. Esp. 4 | D101: Criterio Evaluación 4.1 | F101: 1 | G101: 0.002857142857
D102: Criterio Evaluación 4.2 | F102: 1 | G102: 0.002857142857
C103: Comp. Esp. 5 | D103: Criterio Evaluación 5.1 | F103: 1 | G103: 0.002857142857
D104: Criterio Evaluación 5.2 | F104: 1 | G104: 0.002857142857
C105: Comp. Esp. 6 | D105: Criterio Evaluación 6.1 | F105: 1 | G105: 0.002857142857
C106: Comp. Esp. 7 | D106: Criterio Evaluación 7.1 | F106: 1 | G106: 0.002857142857
D107: Criterio Evaluación 7.2 | F107: 1 | G107: 0.002857142857
B108: Historia de la Música y de la Danza | C108: Comp. Esp. 1 | D108: Criterio Evaluación 1.1 | E108: 1 | F108: 1 | G108: 0.002857142857
D109: Criterio Evaluación 1.2 | F109: 1 | G109: 0.002857142857
D110: Criterio Evaluación 1.3 | F110: 1 | G110: 0.002857142857
D111: Criterio Evaluación 1.4 | F111: 1 | G111: 0.002857142857
C112: Comp. Esp. 2 | D112: Criterio Evaluación 2.1 | F112: 1 | G112: 0.002857142857
D113: Criterio Evaluación 2.2 | F113: 1 | G113: 0.002857142857
D114: Criterio Evaluación 2.3 | F114: 1 | G114: 0.002857142857
D115: Criterio Evaluación 2.4 | F115: 1 | G115: 0.002857142857
C116: Comp. Esp. 3 | D116: Criterio Evaluación 3.1 | F116: 1 | G116: 0.002857142857
D117: Criterio Evaluación 3.2 | F117: 1 | G117: 0.002857142857
D118: Criterio Evaluación 3.3 | F118: 1 | G118: 0.002857142857
D119: Criterio Evaluación 3.4 | F119: 1 | G119: 0.002857142857
C120: Comp. Esp. 4 | D120: Criterio Evaluación 4.1 | F120: 1 | G120: 0.002857142857
D121: Criterio Evaluación 4.2 | F121: 1 | G121: 0.002857142857
D122: Criterio Evaluación 4.3 | F122: 1 | G122: 0.002857142857
D123: Criterio Evaluación 4.4 | F123: 1 | G123: 0.002857142857
D124: Criterio Evaluación 4.5 | F124: 1 | G124: 0.002857142857
C125: Comp. Esp. 5 | D125: Criterio Evaluación 5.1 | E125: 1 | F125: 1 | G125: 0.002857142857
D126: Criterio Evaluación 5.2 | E126: 1 | F126: 1 | G126: 0.002857142857
D127: Criterio Evaluación 5.3 | E127: 1 | F127: 1 | G127: 0.002857142857
B128: Historia del Arte | C128: Comp. Esp. 1 | D128: Criterio Evaluación 1.1 | E128: 1 | F128: 1 | G128: 0.002857142857
C129: Comp. Esp. 2 | D129: Criterio Evaluación 2.1 | E129: 1 | F129: 1 | G129: 0.002857142857
C130: Comp. Esp. 3 | D130: Criterio Evaluación 3.1 | E130: 1 | F130: 1 | G130: 0.002857142857
C131: Comp. Esp. 4 | D131: Criterio Evaluación 4.1 | E131: 1 | F131: 1 | G131: 0.002857142857
D132: Criterio Evaluación 4.2 | F132: 1 | G132: 0.002857142857
C133: Comp. Esp. 5 | D133: Criterio Evaluación 5.1 | E133: 1 | F133: 1 | G133: =F133/SUM($F$5:$F$354) -> 0.002857142857 | H133: =IF(E133="-","",G133/H$682) -> 
D134: Criterio Evaluación 5.2 | F134: 1 | G134: 0.002857142857
C135: Comp. Esp. 6 | D135: Criterio Evaluación 6.1 | F135: 1 | G135: 0.002857142857
D136: Criterio Evaluación 6.2 | E136: 1 | F136: 1 | G136: 0.002857142857
C137: Comp. Esp. 7 | D137: Criterio Evaluación 7.1 | F137: 1 | G137: 0.002857142857
C138: Comp. Esp. 8 | D138: Criterio Evaluación 8.1 | F138: 1 | G138: 0.002857142857
D139: Criterio Evaluación 8.2 | F139: 1 | G139: 0.002857142857
B140: Latín II | C140: Comp. Esp. 1 | D140: Criterio Evaluación 1.1 | E140: 1 | F140: 1 | G140: 0.002857142857
D141: Criterio Evaluación 1.2 | E141: 1 | F141: 1 | G141: 0.002857142857
D142: Criterio Evaluación 1.3 | E142: 1 | F142: 1 | G142: 0.002857142857
D143: Criterio Evaluación 1.4 | E143: 1 | F143: 1 | G143: 0.002857142857
D144: Criterio Evaluación 1.5 | F144: 1 | G144: 0.002857142857
C145: Comp. Esp. 2 | D145: Criterio Evaluación 2.1 | F145: 1 | G145: 0.002857142857
D146: Criterio Evaluación 2.2 | E146: 1 | F146: 1 | G146: 0.002857142857
D147: Criterio Evaluación 2.3 | F147: 1 | G147: 0.002857142857
D148: Criterio Evaluación 2.4 | E148: 1 | F148: 1 | G148: 0.002857142857
D149: Criterio Evaluación 2.5 | E149: 1 | F149: 1 | G149: 0.002857142857
D150: Criterio Evaluación 2.6 | F150: 1 | G150: 0.002857142857
C151: Comp. Esp. 3 | D151: Criterio Evaluación 3.1 | E151: 1 | F151: 1 | G151: 0.002857142857
D152: Criterio Evaluación 3.2 | E152: 1 | F152: 1 | G152: 0.002857142857
D153: Criterio Evaluación 3.3 | E153: 1 | F153: 1 | G153: 0.002857142857
D154: Criterio Evaluación 3.4 | E154: 1 | F154: 1 | G154: 0.002857142857
C155: Comp. Esp. 4 | D155: Criterio Evaluación 4.1 | F155: 1 | G155: 0.002857142857
D156: Criterio Evaluación 4.2 | F156: 1 | G156: 0.002857142857
D157: Criterio Evaluación 4.3 | F157: 1 | G157: 0.002857142857
D158: Criterio Evaluación 4.4 | F158: 1 | G158: 0.002857142857
D159: Criterio Evaluación 4.5 | F159: 1 | G159: 0.002857142857
C160: Comp. Esp. 5 | D160: Criterio Evaluación 5.1 | F160: 1 | G160: 0.002857142857
D161: Criterio Evaluación 5.2 | F161: 1 | G161: 0.002857142857
D162: Criterio Evaluación 5.3 | F162: 1 | G162: 0.002857142857
B163: Lengua Castellana y Literatura II | C163: Comp. Esp. 1 | D163: Criterio Evaluación 1.1 | F163: 1 | G163: 0.002857142857
D164: Criterio Evaluación 1.2 | E164: 1 | F164: 1 | G164: 0.002857142857
C165: Comp. Esp. 2 | D165: Criterio Evaluación 2.1 | F165: 1 | G165: 0.002857142857
D166: Criterio Evaluación 2.2 | E166: 1 | F166: 1 | G166: 0.002857142857
C167: Comp. Esp. 3 | D167: Criterio Evaluación 3.1 | E167: 1 | F167: 1 | G167: 0.002857142857
D168: Criterio Evaluación 3.2 | E168: 1 | F168: 1 | G168: 0.002857142857
C169: Comp. Esp. 4 | D169: Criterio Evaluación 4.1 | F169: 1 | G169: 0.002857142857
D170: Criterio Evaluación 4.2 | F170: 1 | G170: 0.002857142857
C171: Comp. Esp. 5 | D171: Criterio Evaluación 5.1 | E171: 1 | F171: 1 | G171: 0.002857142857
D172: Criterio Evaluación 5.2 | E172: 1 | F172: 1 | G172: 0.002857142857
C173: Comp. Esp. 6 | D173: Criterio Evaluación 6.1 | E173: 1 | F173: 1 | G173: 0.002857142857
D174: Criterio Evaluación 6.2 | F174: 1 | G174: 0.002857142857
C175: Comp. Esp. 7 | D175: Criterio Evaluación 7.1 | F175: 1 | G175: 0.002857142857
D176: Criterio Evaluación 7.2 | E176: 1 | F176: 1 | G176: 0.002857142857
D177: Criterio Evaluación 7.3 | F177: 1 | G177: 0.002857142857
D178: Criterio Evaluación 7.4 | E178: 1 | F178: 1 | G178: 0.002857142857
C179: Comp. Esp. 8 | D179: Criterio Evaluación 8.1 | E179: 1 | F179: 1 | G179: 0.002857142857
D180: Criterio Evaluación 8.2 | E180: 1 | F180: 1 | G180: 0.002857142857
D181: Criterio Evaluación 8.3 | E181: 1 | F181: 1 | G181: 0.002857142857
C182: Comp. Esp. 9 | D182: Criterio Evaluación 9.1 | E182: 1 | F182: 1 | G182: 0.002857142857
D183: Criterio Evaluación 9.2 | E183: 1 | F183: 1 | G183: 0.002857142857
D184: Criterio Evaluación 9.3 | E184: 1 | F184: 1 | G184: 0.002857142857
C185: Comp. Esp. 10 | D185: Criterio Evaluación 10.1 | E185: 1 | F185: 1 | G185: 0.002857142857
D186: Criterio Evaluación 10.2 | E186: 1 | F186: 1 | G186: 0.002857142857
B187: Lengua Extranjera II | C187: Comp. Esp. 1 | D187: Criterio Evaluación 1.1 | F187: 1 | G187: 0.002857142857
D188: Criterio Evaluación 1.2 | F188: 1 | G188: 0.002857142857
D189: Criterio Evaluación 1.3 | F189: 1 | G189: 0.002857142857
D190: Criterio Evaluación 1.4 | F190: 1 | G190: 0.002857142857
D191: Criterio Evaluación 1.5 | F191: 1 | G191: 0.002857142857
C192: Comp. Esp. 2 | D192: Criterio Evaluación 2.1 | E192: 1 | F192: 1 | G192: 0.002857142857
D193: Criterio Evaluación 2.2 | E193: 1 | F193: 1 | G193: 0.002857142857
D194: Criterio Evaluación 2.3 | E194: 1 | F194: 1 | G194: 0.002857142857
D195: Criterio Evaluación 2.4 | E195: 1 | F195: 1 | G195: 0.002857142857
C196: Comp. Esp. 3 | D196: Criterio Evaluación 3.1 | E196: 1 | F196: 1 | G196: 0.002857142857
D197: Criterio Evaluación 3.2 | E197: 1 | F197: 1 | G197: =F197/SUM($F$5:$F$354) -> 0.002857142857 | H197: =IF(E197="-","",G197/H$682) -> 
C198: Comp. Esp. 4 | D198: Criterio Evaluación 4.1 | E198: 1 | F198: 1 | G198: 0.002857142857
D199: Criterio Evaluación 4.2 | E199: 1 | F199: 1 | G199: 0.002857142857
C200: Comp. Esp. 5 | D200: Criterio Evaluación 5.1 | F200: 1 | G200: 0.002857142857
D201: Criterio Evaluación 5.2 | E201: 1 | F201: 1 | G201: 0.002857142857
D202: Criterio Evaluación 5.3 | F202: 1 | G202: 0.002857142857
C203: Comp. Esp. 6 | D203: Criterio Evaluación 6.1 | F203: 1 | G203: 0.002857142857
... 472 more rows

Sheet Peso descrip. libre
E2: Competencia en Comunicación Lingüística | Y2: Competencia Plurilingüe | AK2: Competencia Matemática y Competencia en Ciencia, Tecnología e Ingeniería | BE2: Competencia Digital | BY2: Competencia Personal, Social y de Aprender a Aprender | DA2: Competencia Ciudadana | DQ2: Competencia Emprendedora | EC2: Competencia en Conciencia y Expresión Culturales
E3: CCL 1 | I3: CCL 2 | M3: CCL 3 | Q3: CCL 4 | U3: CCL 5 | Y3: CP 1 | AC3: CP 2 | AG3: CP 3 | AK3: STEM 1 | AO3: STEM 2 | AS3: STEM 3 | AW3: STEM 4 | BA3: STEM 5 | BE3: CD 1 | BI3: CD 2 | BM3: CD 3 | BQ3: CD 4 | BU3: CD 5 | BY3: CPSAA 1.1 | CC3: CPSAA 1.2 | CG3: CPSAA 2 | CK3: CPSAA 3.1 | CO3: CPSAA 3.2 | CS3: CPSAA 4 | CW3: CPSAA 5 | DA3: CC 1 | DE3: CC 2 | DI3: CC 3 | DM3: CC 4 | DQ3: CE 1 | DU3: CE 2 | DY3: CE 3 | EC3: CCEC 1 | EG3: CCEC 2 | EK3: CCEC 3.1 | EO3: CCEC 3.2 | ES3: CCEC 4.1 | EW3: CCEC 4.2
B5: NO | C5: PESO DESCRIPTORES | E5: 1 | I5: 1 | M5: 1 | Q5: 1 | U5: 1 | Y5: 1 | AC5: 1 | AG5: 1 | AK5: 1 | AO5: 1 | AS5: 1 | AW5: 1 | BA5: 1 | BE5: 1 | BI5: 1 | BM5: 1 | BQ5: 1 | BU5: 1 | BY5: 1 | CC5: 1 | CG5: 1 | CK5: 1 | CO5: 1 | CS5: 1 | CW5: 1 | DA5: 1 | DE5: 1 | DI5: 1 | DM5: 1 | DQ5: 1 | DU5: 1 | DY5: 1 | EC5: 1 | EG5: 1 | EK5: 1 | EO5: 1 | ES5: 1 | EW5: 1
C6: PORCENTAJES | E6: =E5/SUM($E5:$U5) -> 0.2 | I6: =I5/SUM($E5:$U5) -> 0.2 | M6: =M5/SUM($E5:$U5) -> 0.2 | Q6: =Q5/SUM($E5:$U5) -> 0.2 | U6: =U5/SUM($E5:$U5) -> 0.2 | Y6: =Y5/SUM($Y5:$AG5) -> 0.3333333333 | AC6: =AC5/SUM($Y5:$AG5) -> 0.3333333333 | AG6: 0.3333333333 | AK6: =AK5/SUM($AK5:$BA5) -> 0.2 | AO6: =AO5/SUM($AK5:$BA5) -> 0.2 | AS6: 0.2 | AW6: 0.2 | BA6: 0.2 | BE6: =BE5/SUM($BE5:$BU5) -> 0.2 | BI6: =BI5/SUM($BE5:$BU5) -> 0.2 | BM6: 0.2 | BQ6: 0.2 | BU6: 0.2 | BY6: =BY5/SUM($BY5:$CW5) -> 0.1428571429 | CC6: =CC5/SUM($BY5:$CW5) -> 0.1428571429 | CG6: 0.1428571429 | CK6: =CK5/SUM($BY5:$CW5) -> 0.1428571429 | CO6: =CO5/SUM($BY5:$CW5) -> 0.1428571429 | CS6: 0.1428571429 | CW6: 0.1428571429 | DA6: =DA5/SUM($DA5:$DM5) -> 0.25 | DE6: =DE5/SUM($DA5:$DM5) -> 0.25 | DI6: 0.25 | DM6: 0.25 | DQ6: =DQ5/SUM($DQ5:$DY5) -> 0.3333333333 | DU6: =DU5/SUM($DQ5:$DY5) -> 0.3333333333 | DY6: 0.3333333333 | EC6: =EC5/SUM($EC5:$EW5) -> 0.1666666667 | EG6: =EG5/SUM($EC5:$EW5) -> 0.1666666667 | EK6: =EK5/SUM($EC5:$EW5) -> 0.1666666667 | EO6: =EO5/SUM($EC5:$EW5) -> 0.1666666667 | ES6: 0.1666666667 | EW6: 0.1666666667

Sheet Peso descrip. vinculaciones
E2: Competencia en Comunicación Lingüística | Y2: Competencia Plurilingüe | AK2: Competencia Matemática y Competencia en Ciencia, Tecnología e Ingeniería | BE2: Competencia Digital | BY2: Competencia Personal, Social y de Aprender a Aprender | DA2: Competencia Ciudadana | DQ2: Competencia Emprendedora | EC2: Competencia en Conciencia y Expresión Culturales
E3: CCL 1 | I3: CCL 2 | M3: CCL 3 | Q3: CCL 4 | U3: CCL 5 | Y3: CP 1 | AC3: CP 2 | AG3: CP 3 | AK3: STEM 1 | AO3: STEM 2 | AS3: STEM 3 | AW3: STEM 4 | BA3: STEM 5 | BE3: CD 1 | BI3: CD 2 | BM3: CD 3 | BQ3: CD 4 | BU3: CD 5 | BY3: CPSAA 1.1 | CC3: CPSAA 1.2 | CG3: CPSAA 2 | CK3: CPSAA 3.1 | CO3: CPSAA 3.2 | CS3: CPSAA 4 | CW3: CPSAA 5 | DA3: CC 1 | DE3: CC 2 | DI3: CC 3 | DM3: CC 4 | DQ3: CE 1 | DU3: CE 2 | DY3: CE 3 | EC3: CCEC 1 | EG3: CCEC 2 | EK3: CCEC 3.1 | EO3: CCEC 3.2 | ES3: CCEC 4.1 | EW3: CCEC 4.2
B5: NO | C5: PESO DESCRIPTORES | E5: 0.3051094891 | I5: 0.2423357664 | M5: 0.2131386861 | Q5: 0.100729927 | U5: 0.1386861314 | Y5: 0.23046875 | AC5: 0.46484375 | AG5: 0.3046875 | AK5: 0.3917525773 | AO5: 0.2680412371 | AS5: 0.1082474227 | AW5: 0.1443298969 | BA5: 0.08762886598 | BE5: 0.2838137472 | BI5: 0.266075388 | BM5: 0.3414634146 | BQ5: 0.05321507761 | BU5: 0.05543237251 | BY5: 0.1696750903 | CC5: 0.1046931408 | CG5: 0.04693140794 | CK5: 0.178700361 | CO5: 0.06137184116 | CS5: 0.2599277978 | CW5: 0.178700361 | DA5: 0.2675736961 | DE5: 0.2154195011 | DI5: 0.3945578231 | DM5: 0.1224489796 | DQ5: 0.3866666667 | DU5: 0.1777777778 | DY5: 0.4355555556 | EC5: 0.345844504 | EG5: 0.1608579088 | EK5: 0.1233243968 | EO5: 0.1689008043 | ES5: 0.08310991957 | EW5: 0.1179624665
C6: PORCENTAJES | E6: =E5/SUM($E5:$U5) -> 0.3051094891 | I6: =I5/SUM($E5:$U5) -> 0.2423357664 | M6: =M5/SUM($E5:$U5) -> 0.2131386861 | Q6: =Q5/SUM($E5:$U5) -> 0.100729927 | U6: =U5/SUM($E5:$U5) -> 0.1386861314 | Y6: =Y5/SUM($Y5:$AG5) -> 0.23046875 | AC6: =AC5/SUM($Y5:$AG5) -> 0.46484375 | AG6: 0.3046875 | AK6: =AK5/SUM($AK5:$BA5) -> 0.3917525773 | AO6: =AO5/SUM($AK5:$BA5) -> 0.2680412371 | AS6: 0.1082474227 | AW6: 0.1443298969 | BA6: 0.08762886598 | BE6: =BE5/SUM($BE5:$BU5) -> 0.2838137472 | BI6: =BI5/SUM($BE5:$BU5) -> 0.266075388 | BM6: 0.3414634146 | BQ6: 0.05321507761 | BU6: 0.05543237251 | BY6: =BY5/SUM($BY5:$CW5) -> 0.1696750903 | CC6: =CC5/SUM($BY5:$CW5) -> 0.1046931408 | CG6: 0.04693140794 | CK6: =CK5/SUM($BY5:$CW5) -> 0.178700361 | CO6: =CO5/SUM($BY5:$CW5) -> 0.06137184116 | CS6: 0.2599277978 | CW6: 0.178700361 | DA6: =DA5/SUM($DA5:$DM5) -> 0.2675736961 | DE6: =DE5/SUM($DA5:$DM5) -> 0.2154195011 | DI6: 0.3945578231 | DM6: 0.1224489796 | DQ6: =DQ5/SUM($DQ5:$DY5) -> 0.3866666667 | DU6: =DU5/SUM($DQ5:$DY5) -> 0.1777777778 | DY6: 0.4355555556 | EC6: =EC5/SUM($EC5:$EW5) -> 0.345844504 | EG6: =EG5/SUM($EC5:$EW5) -> 0.1608579088 | EK6: =EK5/SUM($EC5:$EW5) -> 0.1233243968 | EO6: =EO5/SUM($EC5:$EW5) -> 0.1689008043 | ES6: 0.08310991957 | EW6: 0.1179624665

Sheet Alumnos
C3: LISTADO DE ALUMNOS | F3: MATERIAS 2º BACHILLERATO | U3: MATERIAS PENDIENTES DE 1º BACHILLERATO | AN3: TEAMS / Onedrive
C4: Informe | D4: Grupo 2º _____ | E4: ID Matrícula | F4: LATÍN II | G4: MAT CCSS II | H4: EMP y DMN | I4: GEOGRAFÍA | J4: GRIEGO II | K4: Hª DEL ARTE | L4: FAG | M4: HªMD | N4: PSICOLOGÍA | O4: 2ª LEX | T4: TIC II | U4: ED. FÍSICA | V4: FILOSOFÍA | W4: LENGUAC yL | X4: LEX | Y4: LATÍN I | Z4: MAT CSS I | AA4: ECONOMÍA | AB4: GRIEGO I | AC4: Hª M COMP | AD4: LIU | AE4: CCIENT | AF4: RELIGIÓN | AG4: 2ª LEX | AL4: TIC I
O5: ALE | P5: FRA | Q5: ING | R5: ITA | S5: POR | AG5: ALE | AH5: FRA | AI5: ING | AJ5: ITA | AK5: POR
D6: Nombre_Alumno_1 | E6: 000_1 | F6: x | G6: x | H6: x | L6: x | U6: x | Z6: x | AA6: x | AE6: x
C7: 2 | D7: Nombre_Alumno_2 | E7: 000_2 | G7: x | H7: x | I7: x | N7: x | Z7: x | AA7: x | AB7: x | AF7: x
C8: 3 | D8: Nombre_Alumno_3 | E8: 000_3 | H8: x | I8: x | J8: x | S8: x | AA8: x | AB8: x | AC8: x | AK8: x
C9: 4 | D9: Nombre_Alumno_4 | E9: 000_4 | I9: x | J9: x | T9: x | AB9: x | AC9: x | AD9: x | AL9: x
C11: 6
C12: 7
C13: 8
C14: 9
C15: 10
C16: 11
C17: 12
C18: 13
C19: 14
C20: 15
C21: 16
C22: 17
C23: 18
C24: 19
C25: 20
C26: 21
C27: 22
C28: 23
C29: 24
C30: 25
C31: 26
C32: 27
C33: 28
C34: 29
C35: 30
C36: 31
C37: 32
C38: 33
C39: 34
C40: 35
D41: TOTAL MATRICULADOS | F41: =COUNTA(F6:F40) -> 1 | G41: 2 | H41: 3 | I41: 3 | J41: 2 | K41: 0 | L41: 1 | M41: 0 | N41: 1 | O41: 0 | P41: 0 | Q41: 0 | R41: 0 | S41: 1 | T41: 1 | U41: 1 | V41: 0 | W41: 0 | X41: 0 | Y41: 0 | Z41: 2 | AA41: 3 | AB41: 3 | AC41: 2 | AD41: 1 | AE41: 1 | AF41: 1 | AG41: 0 | AH41: 0 | AI41: 0 | AJ41: 0 | AK41: 1 | AL41: 1

Sheet Redondeo
AP2: EXPORTACIÓN NOTAS COMPETENCIAS A STILUS
C3: CALIFICACIÓN DE MATERIAS | AP3: 1º_Introduce para cada materia las centésimas a partir de las que se realizará un redondeo al alza (valor entre 1 y 100):
C4: CENTÉSIMAS REDONDEO
C5: 90 | D5: 90 | E5: 90 | F5: 90 | G5: 90 | H5: 90 | I5: 90 | J5: 90 | K5: 90 | L5: 90 | M5: 90 | N5: 90 | O5: 90 | P5: 90 | Q5: 90 | R5: 90 | S5: 90 | T5: 90 | U5: 90 | V5: 90 | W5: 90 | X5: 90 | Y5: 90 | Z5: 90 | AA5: 90 | AB5: 90 | AC5: 90 | AD5: 90 | AE5: 90 | AF5: 90 | AG5: 90 | AH5: 90 | AI5: 90 | AJ5: 90 | AK5: 90 | AL5: 90 | AM5: 90 | AP5: Ejemplo: si se marca 85, desde el 4,85 (inclusive) se redondeará a 5, Si se marca 100, el 4,99 e inferiores se redondearán a 4
C6: 2º BACHILLERATO | V6: 1º BACHILLERATO PENDIENTES
B7: =TRANSPOSE('Calificación materias'!B5:AK42) -> 0 | C7: Historia de España | D7: Historia de la Filosofía | E7: Lengua Castellana y Literatura II | F7: Lengua Extranjera II | G7: Latín II | H7: Matemáticas aplicadas a CCSS II | I7: Empresa y DMN | J7: Geografía | K7: Griego II | L7: Historia del Arte | M7: FAG | N7: Historia de la Música y de la D. | O7: Psicología | P7: Segunda LEX_ALE II | Q7: Segunda LEX_FRA II | R7: Segunda LEX_ING II | S7: Segunda LEX_ITA II | T7: Segunda LEX_POR II | U7: TIC II | V7: Educación Física | W7: Filosofía | X7: Lengua Castellana y Literatura I | Y7: Lengua Extranjera I | Z7: Latín I | AA7: Matemáticas aplicadas a CCSS I | AB7: Economía | AC7: Griego I | AD7: Hª del Mundo Con. | AE7: Literatura Universal | AF7: Cultura Científica | AG7: Religión | AH7: Segunda LEX_ALE I | AI7: Segunda LEX_FRA I | AJ7: Segunda LEX_ING I | AK7: Segunda LEX_ITA I | AL7: Segunda LEX_POR I | AM7: TIC I | AP7: 2º_Pulsa el siguiente botón:
B8: Nombre_Alumno_1
B9: Nombre_Alumno_2
B10: Nombre_Alumno_3
B11: Nombre_Alumno_4

Sheet Materias
C2: MATERIAS DE 2º BACH_HUMANIDADES Y CCSS
C16: MATERIAS PENDIENTES DE 1º BACH_HUMANIDADES Y CCSS

Sheet 2LEX
C2: MATERIAS DE 2º BACH_HUMANIDADES Y CCSS

Sheet 2LEX (1)
C2: MATERIAS PENDIENTES DE 1º BACH_HUMANIDADES Y CCSS

Sheet Calif. de crit.
E2: =IF(Alumnos!D6="","",Alumnos!D6) -> Nombre_Alumno_1 | F2: =IF(Alumnos!D7="","",Alumnos!D7) -> Nombre_Alumno_2 | G2: =IF(Alumnos!D8="","",Alumnos!D8) -> Nombre_Alumno_3 | H2: =IF(Alumnos!D9="","",Alumnos!D9) -> Nombre_Alumno_4 | I2: =IF(Alumnos!D10="","",Alumnos!D10) ->  | J2: =IF(Alumnos!D11="","",Alumnos!D11) ->  | K2: =IF(Alumnos!D12="","",Alumnos!D12) ->  | L2: =IF(Alumnos!D13="","",Alumnos!D13) ->  | M2: =IF(Alumnos!D14="","",Alumnos!D14) ->  | N2: =IF(Alumnos!D15="","",Alumnos!D15) ->  | O2: =IF(Alumnos!D16="","",Alumnos!D16) ->  | P2: =IF(Alumnos!D17="","",Alumnos!D17) ->  | Q2: =IF(Alumnos!D18="","",Alumnos!D18) ->  | R2: =IF(Alumnos!D19="","",Alumnos!D19) ->  | S2: =IF(Alumnos!D20="","",Alumnos!D20) ->  | T2: =IF(Alumnos!D21="","",Alumnos!D21) ->  | U2: =IF(Alumnos!D22="","",Alumnos!D22) ->  | V2: =IF(Alumnos!D23="","",Alumnos!D23) ->  | W2: =IF(Alumnos!D24="","",Alumnos!D24) ->  | X2: =IF(Alumnos!D25="","",Alumnos!D25) ->  | Y2: =IF(Alumnos!D26="","",Alumnos!D26) ->  | Z2: =IF(Alumnos!D27="","",Alumnos!D27) ->  | AA2: =IF(Alumnos!D28="","",Alumnos!D28) ->  | AB2: =IF(Alumnos!D29="","",Alumnos!D29) ->  | AC2: =IF(Alumnos!D30="","",Alumnos!D30) ->  | AD2: =IF(Alumnos!D31="","",Alumnos!D31) ->  | AE2: =IF(Alumnos!D32="","",Alumnos!D32) ->  | AF2: =IF(Alumnos!D33="","",Alumnos!D33) ->  | AG2: =IF(Alumnos!D34="","",Alumnos!D34) ->  | AH2: =IF(Alumnos!D35="","",Alumnos!D35) ->  | AI2: =IF(Alumnos!D36="","",Alumnos!D36) ->  | AJ2: =IF(Alumnos!D37="","",Alumnos!D37) ->  | AK2: =IF(Alumnos!D38="","",Alumnos!D38) ->  | AL2: =IF(Alumnos!D39="","",Alumnos!D39) ->  | AM2: =IF(Alumnos!D40="","",Alumnos!D40) -> 
B3: Empresa y Diseño de Modelos de Negocio | C3: Comp. Esp. 1 | D3: Criterio Evaluación 1.1 | E3: =IF(EDMN!H4="","",EDMN!H4) ->  | F3: =IF(EDMN!I4="","",EDMN!I4) ->  | G3: =IF(EDMN!J4="","",EDMN!J4) ->  | H3: =IF(EDMN!K4="","",EDMN!K4) ->  | I3: =IF(EDMN!L4="","",EDMN!L4) ->  | J3: =IF(EDMN!M4="","",EDMN!M4) ->  | K3: =IF(EDMN!N4="","",EDMN!N4) ->  | L3: =IF(EDMN!O4="","",EDMN!O4) ->  | M3: =IF(EDMN!P4="","",EDMN!P4) ->  | N3: =IF(EDMN!Q4="","",EDMN!Q4) ->  | O3: =IF(EDMN!R4="","",EDMN!R4) ->  | P3: =IF(EDMN!S4="","",EDMN!S4) ->  | Q3: =IF(EDMN!T4="","",EDMN!T4) ->  | R3: =IF(EDMN!U4="","",EDMN!U4) ->  | S3: =IF(EDMN!V4="","",EDMN!V4) ->  | T3: =IF(EDMN!W4="","",EDMN!W4) ->  | U3: =IF(EDMN!X4="","",EDMN!X4) ->  | V3: =IF(EDMN!Y4="","",EDMN!Y4) ->  | W3: =IF(EDMN!Z4="","",EDMN!Z4) ->  | X3: =IF(EDMN!AA4="","",EDMN!AA4) ->  | Y3: =IF(EDMN!AB4="","",EDMN!AB4) ->  | Z3: =IF(EDMN!AC4="","",EDMN!AC4) ->  | AA3: =IF(EDMN!AD4="","",EDMN!AD4) ->  | AB3: =IF(EDMN!AE4="","",EDMN!AE4) ->  | AC3: =IF(EDMN!AF4="","",EDMN!AF4) ->  | AD3: =IF(EDMN!AG4="","",EDMN!AG4) ->  | AE3: =IF(EDMN!AH4="","",EDMN!AH4) ->  | AF3: =IF(EDMN!AI4="","",EDMN!AI4) ->  | AG3: =IF(EDMN!AJ4="","",EDMN!AJ4) ->  | AH3: =IF(EDMN!AK4="","",EDMN!AK4) ->  | AI3: =IF(EDMN!AL4="","",EDMN!AL4) ->  | AJ3: =IF(EDMN!AM4="","",EDMN!AM4) ->  | AK3: =IF(EDMN!AN4="","",EDMN!AN4) ->  | AL3: =IF(EDMN!AO4="","",EDMN!AO4) ->  | AM3: =IF(EDMN!AP4="","",EDMN!AP4) -> 
D4: Criterio Evaluación 1.2 | E4: =IF(EDMN!H5="","",EDMN!H5) ->  | F4: =IF(EDMN!I5="","",EDMN!I5) ->  | G4: =IF(EDMN!J5="","",EDMN!J5) ->  | H4: =IF(EDMN!K5="","",EDMN!K5) ->  | I4: =IF(EDMN!L5="","",EDMN!L5) ->  | J4: =IF(EDMN!M5="","",EDMN!M5) ->  | K4: =IF(EDMN!N5="","",EDMN!N5) ->  | L4: =IF(EDMN!O5="","",EDMN!O5) ->  | M4: =IF(EDMN!P5="","",EDMN!P5) ->  | N4: =IF(EDMN!Q5="","",EDMN!Q5) ->  | O4: =IF(EDMN!R5="","",EDMN!R5) ->  | P4: =IF(EDMN!S5="","",EDMN!S5) ->  | Q4: =IF(EDMN!T5="","",EDMN!T5) ->  | R4: =IF(EDMN!U5="","",EDMN!U5) ->  | S4: =IF(EDMN!V5="","",EDMN!V5) ->  | T4: =IF(EDMN!W5="","",EDMN!W5) ->  | U4: =IF(EDMN!X5="","",EDMN!X5) ->  | V4: =IF(EDMN!Y5="","",EDMN!Y5) ->  | W4: =IF(EDMN!Z5="","",EDMN!Z5) ->  | X4: =IF(EDMN!AA5="","",EDMN!AA5) ->  | Y4: =IF(EDMN!AB5="","",EDMN!AB5) ->  | Z4: =IF(EDMN!AC5="","",EDMN!AC5) ->  | AA4: =IF(EDMN!AD5="","",EDMN!AD5) ->  | AB4: =IF(EDMN!AE5="","",EDMN!AE5) ->  | AC4: =IF(EDMN!AF5="","",EDMN!AF5) ->  | AD4: =IF(EDMN!AG5="","",EDMN!AG5) ->  | AE4: =IF(EDMN!AH5="","",EDMN!AH5) ->  | AF4: =IF(EDMN!AI5="","",EDMN!AI5) ->  | AG4: =IF(EDMN!AJ5="","",EDMN!AJ5) ->  | AH4: =IF(EDMN!AK5="","",EDMN!AK5) ->  | AI4: =IF(EDMN!AL5="","",EDMN!AL5) ->  | AJ4: =IF(EDMN!AM5="","",EDMN!AM5) ->  | AK4: =IF(EDMN!AN5="","",EDMN!AN5) ->  | AL4: =IF(EDMN!AO5="","",EDMN!AO5) ->  | AM4: =IF(EDMN!AP5="","",EDMN!AP5) -> 
C5: Comp. Esp. 2 | D5: Criterio Evaluación 2.1 | E5: =IF(EDMN!H6="","",EDMN!H6) ->  | F5: =IF(EDMN!I6="","",EDMN!I6) ->  | G5: =IF(EDMN!J6="","",EDMN!J6) ->  | H5: =IF(EDMN!K6="","",EDMN!K6) ->  | I5: =IF(EDMN!L6="","",EDMN!L6) ->  | J5: =IF(EDMN!M6="","",EDMN!M6) ->  | K5: =IF(EDMN!N6="","",EDMN!N6) ->  | L5: =IF(EDMN!O6="","",EDMN!O6) ->  | M5: =IF(EDMN!P6="","",EDMN!P6) ->  | N5: =IF(EDMN!Q6="","",EDMN!Q6) ->  | O5: =IF(EDMN!R6="","",EDMN!R6) ->  | P5: =IF(EDMN!S6="","",EDMN!S6) ->  | Q5: =IF(EDMN!T6="","",EDMN!T6) ->  | R5: =IF(EDMN!U6="","",EDMN!U6) ->  | S5: =IF(EDMN!V6="","",EDMN!V6) ->  | T5: =IF(EDMN!W6="","",EDMN!W6) ->  | U5: =IF(EDMN!X6="","",EDMN!X6) ->  | V5: =IF(EDMN!Y6="","",EDMN!Y6) ->  | W5: =IF(EDMN!Z6="","",EDMN!Z6) ->  | X5: =IF(EDMN!AA6="","",EDMN!AA6) ->  | Y5: =IF(EDMN!AB6="","",EDMN!AB6) ->  | Z5: =IF(EDMN!AC6="","",EDMN!AC6) ->  | AA5: =IF(EDMN!AD6="","",EDMN!AD6) ->  | AB5: =IF(EDMN!AE6="","",EDMN!AE6) ->  | AC5: =IF(EDMN!AF6="","",EDMN!AF6) ->  | AD5: =IF(EDMN!AG6="","",EDMN!AG6) ->  | AE5: =IF(EDMN!AH6="","",EDMN!AH6) ->  | AF5: =IF(EDMN!AI6="","",EDMN!AI6) ->  | AG5: =IF(EDMN!AJ6="","",EDMN!AJ6) ->  | AH5: =IF(EDMN!AK6="","",EDMN!AK6) ->  | AI5: =IF(EDMN!AL6="","",EDMN!AL6) ->  | AJ5: =IF(EDMN!AM6="","",EDMN!AM6) ->  | AK5: =IF(EDMN!AN6="","",EDMN!AN6) ->  | AL5: =IF(EDMN!AO6="","",EDMN!AO6) ->  | AM5: =IF(EDMN!AP6="","",EDMN!AP6) -> 
D6: Criterio Evaluación 2.2 | E6: =IF(EDMN!H7="","",EDMN!H7) ->  | F6: =IF(EDMN!I7="","",EDMN!I7) ->  | G6: =IF(EDMN!J7="","",EDMN!J7) ->  | H6: =IF(EDMN!K7="","",EDMN!K7) ->  | I6: =IF(EDMN!L7="","",EDMN!L7) ->  | J6: =IF(EDMN!M7="","",EDMN!M7) ->  | K6: =IF(EDMN!N7="","",EDMN!N7) ->  | L6: =IF(EDMN!O7="","",EDMN!O7) ->  | M6: =IF(EDMN!P7="","",EDMN!P7) ->  | N6: =IF(EDMN!Q7="","",EDMN!Q7) ->  | O6: =IF(EDMN!R7="","",EDMN!R7) ->  | P6: =IF(EDMN!S7="","",EDMN!S7) ->  | Q6: =IF(EDMN!T7="","",EDMN!T7) ->  | R6: =IF(EDMN!U7="","",EDMN!U7) ->  | S6: =IF(EDMN!V7="","",EDMN!V7) ->  | T6: =IF(EDMN!W7="","",EDMN!W7) ->  | U6: =IF(EDMN!X7="","",EDMN!X7) ->  | V6: =IF(EDMN!Y7="","",EDMN!Y7) ->  | W6: =IF(EDMN!Z7="","",EDMN!Z7) ->  | X6: =IF(EDMN!AA7="","",EDMN!AA7) ->  | Y6: =IF(EDMN!AB7="","",EDMN!AB7) ->  | Z6: =IF(EDMN!AC7="","",EDMN!AC7) ->  | AA6: =IF(EDMN!AD7="","",EDMN!AD7) ->  | AB6: =IF(EDMN!AE7="","",EDMN!AE7) ->  | AC6: =IF(EDMN!AF7="","",EDMN!AF7) ->  | AD6: =IF(EDMN!AG7="","",EDMN!AG7) ->  | AE6: =IF(EDMN!AH7="","",EDMN!AH7) ->  | AF6: =IF(EDMN!AI7="","",EDMN!AI7) ->  | AG6: =IF(EDMN!AJ7="","",EDMN!AJ7) ->  | AH6: =IF(EDMN!AK7="","",EDMN!AK7) ->  | AI6: =IF(EDMN!AL7="","",EDMN!AL7) ->  | AJ6: =IF(EDMN!AM7="","",EDMN!AM7) ->  | AK6: =IF(EDMN!AN7="","",EDMN!AN7) ->  | AL6: =IF(EDMN!AO7="","",EDMN!AO7) ->  | AM6: =IF(EDMN!AP7="","",EDMN!AP7) -> 
D7: Criterio Evaluación 2.3 | E7: =IF(EDMN!H8="","",EDMN!H8) ->  | F7: =IF(EDMN!I8="","",EDMN!I8) ->  | G7: =IF(EDMN!J8="","",EDMN!J8) ->  | H7: =IF(EDMN!K8="","",EDMN!K8) ->  | I7: =IF(EDMN!L8="","",EDMN!L8) ->  | J7: =IF(EDMN!M8="","",EDMN!M8) ->  | K7: =IF(EDMN!N8="","",EDMN!N8) ->  | L7: =IF(EDMN!O8="","",EDMN!O8) ->  | M7: =IF(EDMN!P8="","",EDMN!P8) ->  | N7: =IF(EDMN!Q8="","",EDMN!Q8) ->  | O7: =IF(EDMN!R8="","",EDMN!R8) ->  | P7: =IF(EDMN!S8="","",EDMN!S8) ->  | Q7: =IF(EDMN!T8="","",EDMN!T8) ->  | R7: =IF(EDMN!U8="","",EDMN!U8) ->  | S7: =IF(EDMN!V8="","",EDMN!V8) ->  | T7: =IF(EDMN!W8="","",EDMN!W8) ->  | U7: =IF(EDMN!X8="","",EDMN!X8) ->  | V7: =IF(EDMN!Y8="","",EDMN!Y8) ->  | W7: =IF(EDMN!Z8="","",EDMN!Z8) ->  | X7: =IF(EDMN!AA8="","",EDMN!AA8) ->  | Y7: =IF(EDMN!AB8="","",EDMN!AB8) ->  | Z7: =IF(EDMN!AC8="","",EDMN!AC8) ->  | AA7: =IF(EDMN!AD8="","",EDMN!AD8) ->  | AB7: =IF(EDMN!AE8="","",EDMN!AE8) ->  | AC7: =IF(EDMN!AF8="","",EDMN!AF8) ->  | AD7: =IF(EDMN!AG8="","",EDMN!AG8) ->  | AE7: =IF(EDMN!AH8="","",EDMN!AH8) ->  | AF7: =IF(EDMN!AI8="","",EDMN!AI8) ->  | AG7: =IF(EDMN!AJ8="","",EDMN!AJ8) ->  | AH7: =IF(EDMN!AK8="","",EDMN!AK8) ->  | AI7: =IF(EDMN!AL8="","",EDMN!AL8) ->  | AJ7: =IF(EDMN!AM8="","",EDMN!AM8) ->  | AK7: =IF(EDMN!AN8="","",EDMN!AN8) ->  | AL7: =IF(EDMN!AO8="","",EDMN!AO8) ->  | AM7: =IF(EDMN!AP8="","",EDMN!AP8) -> 
C8: Comp. Esp. 3 | D8: Criterio Evaluación 3.1 | E8: =IF(EDMN!H9="","",EDMN!H9) ->  | F8: =IF(EDMN!I9="","",EDMN!I9) ->  | G8: =IF(EDMN!J9="","",EDMN!J9) ->  | H8: =IF(EDMN!K9="","",EDMN!K9) ->  | I8: =IF(EDMN!L9="","",EDMN!L9) ->  | J8: =IF(EDMN!M9="","",EDMN!M9) ->  | K8: =IF(EDMN!N9="","",EDMN!N9) ->  | L8: =IF(EDMN!O9="","",EDMN!O9) ->  | M8: =IF(EDMN!P9="","",EDMN!P9) ->  | N8: =IF(EDMN!Q9="","",EDMN!Q9) ->  | O8: =IF(EDMN!R9="","",EDMN!R9) ->  | P8: =IF(EDMN!S9="","",EDMN!S9) ->  | Q8: =IF(EDMN!T9="","",EDMN!T9) ->  | R8: =IF(EDMN!U9="","",EDMN!U9) ->  | S8: =IF(EDMN!V9="","",EDMN!V9) ->  | T8: =IF(EDMN!W9="","",EDMN!W9) ->  | U8: =IF(EDMN!X9="","",EDMN!X9) ->  | V8: =IF(EDMN!Y9="","",EDMN!Y9) ->  | W8: =IF(EDMN!Z9="","",EDMN!Z9) ->  | X8: =IF(EDMN!AA9="","",EDMN!AA9) ->  | Y8: =IF(EDMN!AB9="","",EDMN!AB9) ->  | Z8: =IF(EDMN!AC9="","",EDMN!AC9) ->  | AA8: =IF(EDMN!AD9="","",EDMN!AD9) ->  | AB8: =IF(EDMN!AE9="","",EDMN!AE9) ->  | AC8: =IF(EDMN!AF9="","",EDMN!AF9) ->  | AD8: =IF(EDMN!AG9="","",EDMN!AG9) ->  | AE8: =IF(EDMN!AH9="","",EDMN!AH9) ->  | AF8: =IF(EDMN!AI9="","",EDMN!AI9) ->  | AG8: =IF(EDMN!AJ9="","",EDMN!AJ9) ->  | AH8: =IF(EDMN!AK9="","",EDMN!AK9) ->  | AI8: =IF(EDMN!AL9="","",EDMN!AL9) ->  | AJ8: =IF(EDMN!AM9="","",EDMN!AM9) ->  | AK8: =IF(EDMN!AN9="","",EDMN!AN9) ->  | AL8: =IF(EDMN!AO9="","",EDMN!AO9) ->  | AM8: =IF(EDMN!AP9="","",EDMN!AP9) -> 
D9: Criterio Evaluación 3.2 | E9: =IF(EDMN!H10="","",EDMN!H10) ->  | F9: =IF(EDMN!I10="","",EDMN!I10) ->  | G9: =IF(EDMN!J10="","",EDMN!J10) ->  | H9: =IF(EDMN!K10="","",EDMN!K10) ->  | I9: =IF(EDMN!L10="","",EDMN!L10) ->  | J9: =IF(EDMN!M10="","",EDMN!M10) ->  | K9: =IF(EDMN!N10="","",EDMN!N10) ->  | L9: =IF(EDMN!O10="","",EDMN!O10) ->  | M9: =IF(EDMN!P10="","",EDMN!P10) ->  | N9: =IF(EDMN!Q10="","",EDMN!Q10) ->  | O9: =IF(EDMN!R10="","",EDMN!R10) ->  | P9: =IF(EDMN!S10="","",EDMN!S10) ->  | Q9: =IF(EDMN!T10="","",EDMN!T10) ->  | R9: =IF(EDMN!U10="","",EDMN!U10) ->  | S9: =IF(EDMN!V10="","",EDMN!V10) ->  | T9: =IF(EDMN!W10="","",EDMN!W10) ->  | U9: =IF(EDMN!X10="","",EDMN!X10) ->  | V9: =IF(EDMN!Y10="","",EDMN!Y10) ->  | W9: =IF(EDMN!Z10="","",EDMN!Z10) ->  | X9: =IF(EDMN!AA10="","",EDMN!AA10) ->  | Y9: =IF(EDMN!AB10="","",EDMN!AB10) ->  | Z9: =IF(EDMN!AC10="","",EDMN!AC10) ->  | AA9: =IF(EDMN!AD10="","",EDMN!AD10) ->  | AB9: =IF(EDMN!AE10="","",EDMN!AE10) ->  | AC9: =IF(EDMN!AF10="","",EDMN!AF10) ->  | AD9: =IF(EDMN!AG10="","",EDMN!AG10) ->  | AE9: =IF(EDMN!AH10="","",EDMN!AH10) ->  | AF9: =IF(EDMN!AI10="","",EDMN!AI10) ->  | AG9: =IF(EDMN!AJ10="","",EDMN!AJ10) ->  | AH9: =IF(EDMN!AK10="","",EDMN!AK10) ->  | AI9: =IF(EDMN!AL10="","",EDMN!AL10) ->  | AJ9: =IF(EDMN!AM10="","",EDMN!AM10) ->  | AK9: =IF(EDMN!AN10="","",EDMN!AN10) ->  | AL9: =IF(EDMN!AO10="","",EDMN!AO10) ->  | AM9: =IF(EDMN!AP10="","",EDMN!AP10) -> 
D10: Criterio Evaluación 3.3 | E10: =IF(EDMN!H11="","",EDMN!H11) ->  | F10: =IF(EDMN!I11="","",EDMN!I11) ->  | G10: =IF(EDMN!J11="","",EDMN!J11) ->  | H10: =IF(EDMN!K11="","",EDMN!K11) ->  | I10: =IF(EDMN!L11="","",EDMN!L11) ->  | J10: =IF(EDMN!M11="","",EDMN!M11) ->  | K10: =IF(EDMN!N11="","",EDMN!N11) ->  | L10: =IF(EDMN!O11="","",EDMN!O11) ->  | M10: =IF(EDMN!P11="","",EDMN!P11) ->  | N10: =IF(EDMN!Q11="","",EDMN!Q11) ->  | O10: =IF(EDMN!R11="","",EDMN!R11) ->  | P10: =IF(EDMN!S11="","",EDMN!S11) ->  | Q10: =IF(EDMN!T11="","",EDMN!T11) ->  | R10: =IF(EDMN!U11="","",EDMN!U11) ->  | S10: =IF(EDMN!V11="","",EDMN!V11) ->  | T10: =IF(EDMN!W11="","",EDMN!W11) ->  | U10: =IF(EDMN!X11="","",EDMN!X11) ->  | V10: =IF(EDMN!Y11="","",EDMN!Y11) ->  | W10: =IF(EDMN!Z11="","",EDMN!Z11) ->  | X10: =IF(EDMN!AA11="","",EDMN!AA11) ->  | Y10: =IF(EDMN!AB11="","",EDMN!AB11) ->  | Z10: =IF(EDMN!AC11="","",EDMN!AC11) ->  | AA10: =IF(EDMN!AD11="","",EDMN!AD11) ->  | AB10: =IF(EDMN!AE11="","",EDMN!AE11) ->  | AC10: =IF(EDMN!AF11="","",EDMN!AF11) ->  | AD10: =IF(EDMN!AG11="","",EDMN!AG11) ->  | AE10: =IF(EDMN!AH11="","",EDMN!AH11) ->  | AF10: =IF(EDMN!AI11="","",EDMN!AI11) ->  | AG10: =IF(EDMN!AJ11="","",EDMN!AJ11) ->  | AH10: =IF(EDMN!AK11="","",EDMN!AK11) ->  | AI10: =IF(EDMN!AL11="","",EDMN!AL11) ->  | AJ10: =IF(EDMN!AM11="","",EDMN!AM11) ->  | AK10: =IF(EDMN!AN11="","",EDMN!AN11) ->  | AL10: =IF(EDMN!AO11="","",EDMN!AO11) ->  | AM10: =IF(EDMN!AP11="","",EDMN!AP11) -> 
D11: Criterio Evaluación 3.4 | E11: =IF(EDMN!H12="","",EDMN!H12) ->  | F11: =IF(EDMN!I12="","",EDMN!I12) ->  | G11: =IF(EDMN!J12="","",EDMN!J12) ->  | H11: =IF(EDMN!K12="","",EDMN!K12) ->  | I11: =IF(EDMN!L12="","",EDMN!L12) ->  | J11: =IF(EDMN!M12="","",EDMN!M12) ->  | K11: =IF(EDMN!N12="","",EDMN!N12) ->  | L11: =IF(EDMN!O12="","",EDMN!O12) ->  | M11: =IF(EDMN!P12="","",EDMN!P12) ->  | N11: =IF(EDMN!Q12="","",EDMN!Q12) ->  | O11: =IF(EDMN!R12="","",EDMN!R12) ->  | P11: =IF(EDMN!S12="","",EDMN!S12) ->  | Q11: =IF(EDMN!T12="","",EDMN!T12) ->  | R11: =IF(EDMN!U12="","",EDMN!U12) ->  | S11: =IF(EDMN!V12="","",EDMN!V12) ->  | T11: =IF(EDMN!W12="","",EDMN!W12) ->  | U11: =IF(EDMN!X12="","",EDMN!X12) ->  | V11: =IF(EDMN!Y12="","",EDMN!Y12) ->  | W11: =IF(EDMN!Z12="","",EDMN!Z12) ->  | X11: =IF(EDMN!AA12="","",EDMN!AA12) ->  | Y11: =IF(EDMN!AB12="","",EDMN!AB12) ->  | Z11: =IF(EDMN!AC12="","",EDMN!AC12) ->  | AA11: =IF(EDMN!AD12="","",EDMN!AD12) ->  | AB11: =IF(EDMN!AE12="","",EDMN!AE12) ->  | AC11: =IF(EDMN!AF12="","",EDMN!AF12) ->  | AD11: =IF(EDMN!AG12="","",EDMN!AG12) ->  | AE11: =IF(EDMN!AH12="","",EDMN!AH12) ->  | AF11: =IF(EDMN!AI12="","",EDMN!AI12) ->  | AG11: =IF(EDMN!AJ12="","",EDMN!AJ12) ->  | AH11: =IF(EDMN!AK12="","",EDMN!AK12) ->  | AI11: =IF(EDMN!AL12="","",EDMN!AL12) ->  | AJ11: =IF(EDMN!AM12="","",EDMN!AM12) ->  | AK11: =IF(EDMN!AN12="","",EDMN!AN12) ->  | AL11: =IF(EDMN!AO12="","",EDMN!AO12) ->  | AM11: =IF(EDMN!AP12="","",EDMN!AP12) -> 
C12: Comp. Esp. 4 | D12: Criterio Evaluación 4.1 | E12: =IF(EDMN!H13="","",EDMN!H13) ->  | F12: =IF(EDMN!I13="","",EDMN!I13) ->  | G12: =IF(EDMN!J13="","",EDMN!J13) ->  | H12: =IF(EDMN!K13="","",EDMN!K13) ->  | I12: =IF(EDMN!L13="","",EDMN!L13) ->  | J12: =IF(EDMN!M13="","",EDMN!M13) ->  | K12: =IF(EDMN!N13="","",EDMN!N13) ->  | L12: =IF(EDMN!O13="","",EDMN!O13) ->  | M12: =IF(EDMN!P13="","",EDMN!P13) ->  | N12: =IF(EDMN!Q13="","",EDMN!Q13) ->  | O12: =IF(EDMN!R13="","",EDMN!R13) ->  | P12: =IF(EDMN!S13="","",EDMN!S13) ->  | Q12: =IF(EDMN!T13="","",EDMN!T13) ->  | R12: =IF(EDMN!U13="","",EDMN!U13) ->  | S12: =IF(EDMN!V13="","",EDMN!V13) ->  | T12: =IF(EDMN!W13="","",EDMN!W13) ->  | U12: =IF(EDMN!X13="","",EDMN!X13) ->  | V12: =IF(EDMN!Y13="","",EDMN!Y13) ->  | W12: =IF(EDMN!Z13="","",EDMN!Z13) ->  | X12: =IF(EDMN!AA13="","",EDMN!AA13) ->  | Y12: =IF(EDMN!AB13="","",EDMN!AB13) ->  | Z12: =IF(EDMN!AC13="","",EDMN!AC13) ->  | AA12: =IF(EDMN!AD13="","",EDMN!AD13) ->  | AB12: =IF(EDMN!AE13="","",EDMN!AE13) ->  | AC12: =IF(EDMN!AF13="","",EDMN!AF13) ->  | AD12: =IF(EDMN!AG13="","",EDMN!AG13) ->  | AE12: =IF(EDMN!AH13="","",EDMN!AH13) ->  | AF12: =IF(EDMN!AI13="","",EDMN!AI13) ->  | AG12: =IF(EDMN!AJ13="","",EDMN!AJ13) ->  | AH12: =IF(EDMN!AK13="","",EDMN!AK13) ->  | AI12: =IF(EDMN!AL13="","",EDMN!AL13) ->  | AJ12: =IF(EDMN!AM13="","",EDMN!AM13) ->  | AK12: =IF(EDMN!AN13="","",EDMN!AN13) ->  | AL12: =IF(EDMN!AO13="","",EDMN!AO13) ->  | AM12: =IF(EDMN!AP13="","",EDMN!AP13) -> 
D13: Criterio Evaluación 4.2 | E13: =IF(EDMN!H14="","",EDMN!H14) ->  | F13: =IF(EDMN!I14="","",EDMN!I14) ->  | G13: =IF(EDMN!J14="","",EDMN!J14) ->  | H13: =IF(EDMN!K14="","",EDMN!K14) ->  | I13: =IF(EDMN!L14="","",EDMN!L14) ->  | J13: =IF(EDMN!M14="","",EDMN!M14) ->  | K13: =IF(EDMN!N14="","",EDMN!N14) ->  | L13: =IF(EDMN!O14="","",EDMN!O14) ->  | M13: =IF(EDMN!P14="","",EDMN!P14) ->  | N13: =IF(EDMN!Q14="","",EDMN!Q14) ->  | O13: =IF(EDMN!R14="","",EDMN!R14) ->  | P13: =IF(EDMN!S14="","",EDMN!S14) ->  | Q13: =IF(EDMN!T14="","",EDMN!T14) ->  | R13: =IF(EDMN!U14="","",EDMN!U14) ->  | S13: =IF(EDMN!V14="","",EDMN!V14) ->  | T13: =IF(EDMN!W14="","",EDMN!W14) ->  | U13: =IF(EDMN!X14="","",EDMN!X14) ->  | V13: =IF(EDMN!Y14="","",EDMN!Y14) ->  | W13: =IF(EDMN!Z14="","",EDMN!Z14) ->  | X13: =IF(EDMN!AA14="","",EDMN!AA14) ->  | Y13: =IF(EDMN!AB14="","",EDMN!AB14) ->  | Z13: =IF(EDMN!AC14="","",EDMN!AC14) ->  | AA13: =IF(EDMN!AD14="","",EDMN!AD14) ->  | AB13: =IF(EDMN!AE14="","",EDMN!AE14) ->  | AC13: =IF(EDMN!AF14="","",EDMN!AF14) ->  | AD13: =IF(EDMN!AG14="","",EDMN!AG14) ->  | AE13: =IF(EDMN!AH14="","",EDMN!AH14) ->  | AF13: =IF(EDMN!AI14="","",EDMN!AI14) ->  | AG13: =IF(EDMN!AJ14="","",EDMN!AJ14) ->  | AH13: =IF(EDMN!AK14="","",EDMN!AK14) ->  | AI13: =IF(EDMN!AL14="","",EDMN!AL14) ->  | AJ13: =IF(EDMN!AM14="","",EDMN!AM14) ->  | AK13: =IF(EDMN!AN14="","",EDMN!AN14) ->  | AL13: =IF(EDMN!AO14="","",EDMN!AO14) ->  | AM13: =IF(EDMN!AP14="","",EDMN!AP14) -> 
D14: Criterio Evaluación 4.3 | E14: =IF(EDMN!H15="","",EDMN!H15) ->  | F14: =IF(EDMN!I15="","",EDMN!I15) ->  | G14: =IF(EDMN!J15="","",EDMN!J15) ->  | H14: =IF(EDMN!K15="","",EDMN!K15) ->  | I14: =IF(EDMN!L15="","",EDMN!L15) ->  | J14: =IF(EDMN!M15="","",EDMN!M15) ->  | K14: =IF(EDMN!N15="","",EDMN!N15) ->  | L14: =IF(EDMN!O15="","",EDMN!O15) ->  | M14: =IF(EDMN!P15="","",EDMN!P15) ->  | N14: =IF(EDMN!Q15="","",EDMN!Q15) ->  | O14: =IF(EDMN!R15="","",EDMN!R15) ->  | P14: =IF(EDMN!S15="","",EDMN!S15) ->  | Q14: =IF(EDMN!T15="","",EDMN!T15) ->  | R14: =IF(EDMN!U15="","",EDMN!U15) ->  | S14: =IF(EDMN!V15="","",EDMN!V15) ->  | T14: =IF(EDMN!W15="","",EDMN!W15) ->  | U14: =IF(EDMN!X15="","",EDMN!X15) ->  | V14: =IF(EDMN!Y15="","",EDMN!Y15) ->  | W14: =IF(EDMN!Z15="","",EDMN!Z15) ->  | X14: =IF(EDMN!AA15="","",EDMN!AA15) ->  | Y14: =IF(EDMN!AB15="","",EDMN!AB15) ->  | Z14: =IF(EDMN!AC15="","",EDMN!AC15) ->  | AA14: =IF(EDMN!AD15="","",EDMN!AD15) ->  | AB14: =IF(EDMN!AE15="","",EDMN!AE15) ->  | AC14: =IF(EDMN!AF15="","",EDMN!AF15) ->  | AD14: =IF(EDMN!AG15="","",EDMN!AG15) ->  | AE14: =IF(EDMN!AH15="","",EDMN!AH15) ->  | AF14: =IF(EDMN!AI15="","",EDMN!AI15) ->  | AG14: =IF(EDMN!AJ15="","",EDMN!AJ15) ->  | AH14: =IF(EDMN!AK15="","",EDMN!AK15) ->  | AI14: =IF(EDMN!AL15="","",EDMN!AL15) ->  | AJ14: =IF(EDMN!AM15="","",EDMN!AM15) ->  | AK14: =IF(EDMN!AN15="","",EDMN!AN15) ->  | AL14: =IF(EDMN!AO15="","",EDMN!AO15) ->  | AM14: =IF(EDMN!AP15="","",EDMN!AP15) -> 
C15: Comp. Esp. 5 | D15: Criterio Evaluación 5.1 | E15: =IF(EDMN!H16="","",EDMN!H16) ->  | F15: =IF(EDMN!I16="","",EDMN!I16) ->  | G15: =IF(EDMN!J16="","",EDMN!J16) ->  | H15: =IF(EDMN!K16="","",EDMN!K16) ->  | I15: =IF(EDMN!L16="","",EDMN!L16) ->  | J15: =IF(EDMN!M16="","",EDMN!M16) ->  | K15: =IF(EDMN!N16="","",EDMN!N16) ->  | L15: =IF(EDMN!O16="","",EDMN!O16) ->  | M15: =IF(EDMN!P16="","",EDMN!P16) ->  | N15: =IF(EDMN!Q16="","",EDMN!Q16) ->  | O15: =IF(EDMN!R16="","",EDMN!R16) ->  | P15: =IF(EDMN!S16="","",EDMN!S16) ->  | Q15: =IF(EDMN!T16="","",EDMN!T16) ->  | R15: =IF(EDMN!U16="","",EDMN!U16) ->  | S15: =IF(EDMN!V16="","",EDMN!V16) ->  | T15: =IF(EDMN!W16="","",EDMN!W16) ->  | U15: =IF(EDMN!X16="","",EDMN!X16) ->  | V15: =IF(EDMN!Y16="","",EDMN!Y16) ->  | W15: =IF(EDMN!Z16="","",EDMN!Z16) ->  | X15: =IF(EDMN!AA16="","",EDMN!AA16) ->  | Y15: =IF(EDMN!AB16="","",EDMN!AB16) ->  | Z15: =IF(EDMN!AC16="","",EDMN!AC16) ->  | AA15: =IF(EDMN!AD16="","",EDMN!AD16) ->  | AB15: =IF(EDMN!AE16="","",EDMN!AE16) ->  | AC15: =IF(EDMN!AF16="","",EDMN!AF16) ->  | AD15: =IF(EDMN!AG16="","",EDMN!AG16) ->  | AE15: =IF(EDMN!AH16="","",EDMN!AH16) ->  | AF15: =IF(EDMN!AI16="","",EDMN!AI16) ->  | AG15: =IF(EDMN!AJ16="","",EDMN!AJ16) ->  | AH15: =IF(EDMN!AK16="","",EDMN!AK16) ->  | AI15: =IF(EDMN!AL16="","",EDMN!AL16) ->  | AJ15: =IF(EDMN!AM16="","",EDMN!AM16) ->  | AK15: =IF(EDMN!AN16="","",EDMN!AN16) ->  | AL15: =IF(EDMN!AO16="","",EDMN!AO16) ->  | AM15: =IF(EDMN!AP16="","",EDMN!AP16) -> 
D16: Criterio Evaluación 5.2 | E16: =IF(EDMN!H17="","",EDMN!H17) ->  | F16: =IF(EDMN!I17="","",EDMN!I17) ->  | G16: =IF(EDMN!J17="","",EDMN!J17) ->  | H16: =IF(EDMN!K17="","",EDMN!K17) ->  | I16: =IF(EDMN!L17="","",EDMN!L17) ->  | J16: =IF(EDMN!M17="","",EDMN!M17) ->  | K16: =IF(EDMN!N17="","",EDMN!N17) ->  | L16: =IF(EDMN!O17="","",EDMN!O17) ->  | M16: =IF(EDMN!P17="","",EDMN!P17) ->  | N16: =IF(EDMN!Q17="","",EDMN!Q17) ->  | O16: =IF(EDMN!R17="","",EDMN!R17) ->  | P16: =IF(EDMN!S17="","",EDMN!S17) ->  | Q16: =IF(EDMN!T17="","",EDMN!T17) ->  | R16: =IF(EDMN!U17="","",EDMN!U17) ->  | S16: =IF(EDMN!V17="","",EDMN!V17) ->  | T16: =IF(EDMN!W17="","",EDMN!W17) ->  | U16: =IF(EDMN!X17="","",EDMN!X17) ->  | V16: =IF(EDMN!Y17="","",EDMN!Y17) ->  | W16: =IF(EDMN!Z17="","",EDMN!Z17) ->  | X16: =IF(EDMN!AA17="","",EDMN!AA17) ->  | Y16: =IF(EDMN!AB17="","",EDMN!AB17) ->  | Z16: =IF(EDMN!AC17="","",EDMN!AC17) ->  | AA16: =IF(EDMN!AD17="","",EDMN!AD17) ->  | AB16: =IF(EDMN!AE17="","",EDMN!AE17) ->  | AC16: =IF(EDMN!AF17="","",EDMN!AF17) ->  | AD16: =IF(EDMN!AG17="","",EDMN!AG17) ->  | AE16: =IF(EDMN!AH17="","",EDMN!AH17) ->  | AF16: =IF(EDMN!AI17="","",EDMN!AI17) ->  | AG16: =IF(EDMN!AJ17="","",EDMN!AJ17) ->  | AH16: =IF(EDMN!AK17="","",EDMN!AK17) ->  | AI16: =IF(EDMN!AL17="","",EDMN!AL17) ->  | AJ16: =IF(EDMN!AM17="","",EDMN!AM17) ->  | AK16: =IF(EDMN!AN17="","",EDMN!AN17) ->  | AL16: =IF(EDMN!AO17="","",EDMN!AO17) ->  | AM16: =IF(EDMN!AP17="","",EDMN!AP17) -> 
D17: Criterio Evaluación 5.3 | E17: =IF(EDMN!H18="","",EDMN!H18) ->  | F17: =IF(EDMN!I18="","",EDMN!I18) ->  | G17: =IF(EDMN!J18="","",EDMN!J18) ->  | H17: =IF(EDMN!K18="","",EDMN!K18) ->  | I17: =IF(EDMN!L18="","",EDMN!L18) ->  | J17: =IF(EDMN!M18="","",EDMN!M18) ->  | K17: =IF(EDMN!N18="","",EDMN!N18) ->  | L17: =IF(EDMN!O18="","",EDMN!O18) ->  | M17: =IF(EDMN!P18="","",EDMN!P18) ->  | N17: =IF(EDMN!Q18="","",EDMN!Q18) ->  | O17: =IF(EDMN!R18="","",EDMN!R18) ->  | P17: =IF(EDMN!S18="","",EDMN!S18) ->  | Q17: =IF(EDMN!T18="","",EDMN!T18) ->  | R17: =IF(EDMN!U18="","",EDMN!U18) ->  | S17: =IF(EDMN!V18="","",EDMN!V18) ->  | T17: =IF(EDMN!W18="","",EDMN!W18) ->  | U17: =IF(EDMN!X18="","",EDMN!X18) ->  | V17: =IF(EDMN!Y18="","",EDMN!Y18) ->  | W17: =IF(EDMN!Z18="","",EDMN!Z18) ->  | X17: =IF(EDMN!AA18="","",EDMN!AA18) ->  | Y17: =IF(EDMN!AB18="","",EDMN!AB18) ->  | Z17: =IF(EDMN!AC18="","",EDMN!AC18) ->  | AA17: =IF(EDMN!AD18="","",EDMN!AD18) ->  | AB17: =IF(EDMN!AE18="","",EDMN!AE18) ->  | AC17: =IF(EDMN!AF18="","",EDMN!AF18) ->  | AD17: =IF(EDMN!AG18="","",EDMN!AG18) ->  | AE17: =IF(EDMN!AH18="","",EDMN!AH18) ->  | AF17: =IF(EDMN!AI18="","",EDMN!AI18) ->  | AG17: =IF(EDMN!AJ18="","",EDMN!AJ18) ->  | AH17: =IF(EDMN!AK18="","",EDMN!AK18) ->  | AI17: =IF(EDMN!AL18="","",EDMN!AL18) ->  | AJ17: =IF(EDMN!AM18="","",EDMN!AM18) ->  | AK17: =IF(EDMN!AN18="","",EDMN!AN18) ->  | AL17: =IF(EDMN!AO18="","",EDMN!AO18) ->  | AM17: =IF(EDMN!AP18="","",EDMN!AP18) -> 
D18: Criterio Evaluación 5.4 | E18: =IF(EDMN!H19="","",EDMN!H19) ->  | F18: =IF(EDMN!I19="","",EDMN!I19) ->  | G18: =IF(EDMN!J19="","",EDMN!J19) ->  | H18: =IF(EDMN!K19="","",EDMN!K19) ->  | I18: =IF(EDMN!L19="","",EDMN!L19) ->  | J18: =IF(EDMN!M19="","",EDMN!M19) ->  | K18: =IF(EDMN!N19="","",EDMN!N19) ->  | L18: =IF(EDMN!O19="","",EDMN!O19) ->  | M18: =IF(EDMN!P19="","",EDMN!P19) ->  | N18: =IF(EDMN!Q19="","",EDMN!Q19) ->  | O18: =IF(EDMN!R19="","",EDMN!R19) ->  | P18: =IF(EDMN!S19="","",EDMN!S19) ->  | Q18: =IF(EDMN!T19="","",EDMN!T19) ->  | R18: =IF(EDMN!U19="","",EDMN!U19) ->  | S18: =IF(EDMN!V19="","",EDMN!V19) ->  | T18: =IF(EDMN!W19="","",EDMN!W19) ->  | U18: =IF(EDMN!X19="","",EDMN!X19) ->  | V18: =IF(EDMN!Y19="","",EDMN!Y19) ->  | W18: =IF(EDMN!Z19="","",EDMN!Z19) ->  | X18: =IF(EDMN!AA19="","",EDMN!AA19) ->  | Y18: =IF(EDMN!AB19="","",EDMN!AB19) ->  | Z18: =IF(EDMN!AC19="","",EDMN!AC19) ->  | AA18: =IF(EDMN!AD19="","",EDMN!AD19) ->  | AB18: =IF(EDMN!AE19="","",EDMN!AE19) ->  | AC18: =IF(EDMN!AF19="","",EDMN!AF19) ->  | AD18: =IF(EDMN!AG19="","",EDMN!AG19) ->  | AE18: =IF(EDMN!AH19="","",EDMN!AH19) ->  | AF18: =IF(EDMN!AI19="","",EDMN!AI19) ->  | AG18: =IF(EDMN!AJ19="","",EDMN!AJ19) ->  | AH18: =IF(EDMN!AK19="","",EDMN!AK19) ->  | AI18: =IF(EDMN!AL19="","",EDMN!AL19) ->  | AJ18: =IF(EDMN!AM19="","",EDMN!AM19) ->  | AK18: =IF(EDMN!AN19="","",EDMN!AN19) ->  | AL18: =IF(EDMN!AO19="","",EDMN!AO19) ->  | AM18: =IF(EDMN!AP19="","",EDMN!AP19) -> 
B19: Fundamentos de Administración y Gestión | C19: Comp. Esp. 1 | D19: Criterio Evaluación 1.1 | E19: =IF(FAG!H4="","",FAG!H4) ->  | F19: =IF(FAG!I4="","",FAG!I4) ->  | G19: =IF(FAG!J4="","",FAG!J4) ->  | H19: =IF(FAG!K4="","",FAG!K4) ->  | I19: =IF(FAG!L4="","",FAG!L4) ->  | J19: =IF(FAG!M4="","",FAG!M4) ->  | K19: =IF(FAG!N4="","",FAG!N4) ->  | L19: =IF(FAG!O4="","",FAG!O4) ->  | M19: =IF(FAG!P4="","",FAG!P4) ->  | N19: =IF(FAG!Q4="","",FAG!Q4) ->  | O19: =IF(FAG!R4="","",FAG!R4) ->  | P19: =IF(FAG!S4="","",FAG!S4) ->  | Q19: =IF(FAG!T4="","",FAG!T4) ->  | R19: =IF(FAG!U4="","",FAG!U4) ->  | S19: =IF(FAG!V4="","",FAG!V4) ->  | T19: =IF(FAG!W4="","",FAG!W4) ->  | U19: =IF(FAG!X4="","",FAG!X4) ->  | V19: =IF(FAG!Y4="","",FAG!Y4) ->  | W19: =IF(FAG!Z4="","",FAG!Z4) ->  | X19: =IF(FAG!AA4="","",FAG!AA4) ->  | Y19: =IF(FAG!AB4="","",FAG!AB4) ->  | Z19: =IF(FAG!AC4="","",FAG!AC4) ->  | AA19: =IF(FAG!AD4="","",FAG!AD4) ->  | AB19: =IF(FAG!AE4="","",FAG!AE4) ->  | AC19: =IF(FAG!AF4="","",FAG!AF4) ->  | AD19: =IF(FAG!AG4="","",FAG!AG4) ->  | AE19: =IF(FAG!AH4="","",FAG!AH4) ->  | AF19: =IF(FAG!AI4="","",FAG!AI4) ->  | AG19: =IF(FAG!AJ4="","",FAG!AJ4) ->  | AH19: =IF(FAG!AK4="","",FAG!AK4) ->  | AI19: =IF(FAG!AL4="","",FAG!AL4) ->  | AJ19: =IF(FAG!AM4="","",FAG!AM4) ->  | AK19: =IF(FAG!AN4="","",FAG!AN4) ->  | AL19: =IF(FAG!AO4="","",FAG!AO4) ->  | AM19: =IF(FAG!AP4="","",FAG!AP4) -> 
D20: Criterio Evaluación 1.2 | E20: =IF(FAG!H5="","",FAG!H5) ->  | F20: =IF(FAG!I5="","",FAG!I5) ->  | G20: =IF(FAG!J5="","",FAG!J5) ->  | H20: =IF(FAG!K5="","",FAG!K5) ->  | I20: =IF(FAG!L5="","",FAG!L5) ->  | J20: =IF(FAG!M5="","",FAG!M5) ->  | K20: =IF(FAG!N5="","",FAG!N5) ->  | L20: =IF(FAG!O5="","",FAG!O5) ->  | M20: =IF(FAG!P5="","",FAG!P5) ->  | N20: =IF(FAG!Q5="","",FAG!Q5) ->  | O20: =IF(FAG!R5="","",FAG!R5) ->  | P20: =IF(FAG!S5="","",FAG!S5) ->  | Q20: =IF(FAG!T5="","",FAG!T5) ->  | R20: =IF(FAG!U5="","",FAG!U5) ->  | S20: =IF(FAG!V5="","",FAG!V5) ->  | T20: =IF(FAG!W5="","",FAG!W5) ->  | U20: =IF(FAG!X5="","",FAG!X5) ->  | V20: =IF(FAG!Y5="","",FAG!Y5) ->  | W20: =IF(FAG!Z5="","",FAG!Z5) ->  | X20: =IF(FAG!AA5="","",FAG!AA5) ->  | Y20: =IF(FAG!AB5="","",FAG!AB5) ->  | Z20: =IF(FAG!AC5="","",FAG!AC5) ->  | AA20: =IF(FAG!AD5="","",FAG!AD5) ->  | AB20: =IF(FAG!AE5="","",FAG!AE5) ->  | AC20: =IF(FAG!AF5="","",FAG!AF5) ->  | AD20: =IF(FAG!AG5="","",FAG!AG5) ->  | AE20: =IF(FAG!AH5="","",FAG!AH5) ->  | AF20: =IF(FAG!AI5="","",FAG!AI5) ->  | AG20: =IF(FAG!AJ5="","",FAG!AJ5) ->  | AH20: =IF(FAG!AK5="","",FAG!AK5) ->  | AI20: =IF(FAG!AL5="","",FAG!AL5) ->  | AJ20: =IF(FAG!AM5="","",FAG!AM5) ->  | AK20: =IF(FAG!AN5="","",FAG!AN5) ->  | AL20: =IF(FAG!AO5="","",FAG!AO5) ->  | AM20: =IF(FAG!AP5="","",FAG!AP5) -> 
D21: Criterio Evaluación 1.3 | E21: =IF(FAG!H6="","",FAG!H6) ->  | F21: =IF(FAG!I6="","",FAG!I6) ->  | G21: =IF(FAG!J6="","",FAG!J6) ->  | H21: =IF(FAG!K6="","",FAG!K6) ->  | I21: =IF(FAG!L6="","",FAG!L6) ->  | J21: =IF(FAG!M6="","",FAG!M6) ->  | K21: =IF(FAG!N6="","",FAG!N6) ->  | L21: =IF(FAG!O6="","",FAG!O6) ->  | M21: =IF(FAG!P6="","",FAG!P6) ->  | N21: =IF(FAG!Q6="","",FAG!Q6) ->  | O21: =IF(FAG!R6="","",FAG!R6) ->  | P21: =IF(FAG!S6="","",FAG!S6) ->  | Q21: =IF(FAG!T6="","",FAG!T6) ->  | R21: =IF(FAG!U6="","",FAG!U6) ->  | S21: =IF(FAG!V6="","",FAG!V6) ->  | T21: =IF(FAG!W6="","",FAG!W6) ->  | U21: =IF(FAG!X6="","",FAG!X6) ->  | V21: =IF(FAG!Y6="","",FAG!Y6) ->  | W21: =IF(FAG!Z6="","",FAG!Z6) ->  | X21: =IF(FAG!AA6="","",FAG!AA6) ->  | Y21: =IF(FAG!AB6="","",FAG!AB6) ->  | Z21: =IF(FAG!AC6="","",FAG!AC6) ->  | AA21: =IF(FAG!AD6="","",FAG!AD6) ->  | AB21: =IF(FAG!AE6="","",FAG!AE6) ->  | AC21: =IF(FAG!AF6="","",FAG!AF6) ->  | AD21: =IF(FAG!AG6="","",FAG!AG6) ->  | AE21: =IF(FAG!AH6="","",FAG!AH6) ->  | AF21: =IF(FAG!AI6="","",FAG!AI6) ->  | AG21: =IF(FAG!AJ6="","",FAG!AJ6) ->  | AH21: =IF(FAG!AK6="","",FAG!AK6) ->  | AI21: =IF(FAG!AL6="","",FAG!AL6) ->  | AJ21: =IF(FAG!AM6="","",FAG!AM6) ->  | AK21: =IF(FAG!AN6="","",FAG!AN6) ->  | AL21: =IF(FAG!AO6="","",FAG!AO6) ->  | AM21: =IF(FAG!AP6="","",FAG!AP6) -> 
D22: Criterio Evaluación 1.4 | E22: =IF(FAG!H7="","",FAG!H7) ->  | F22: =IF(FAG!I7="","",FAG!I7) ->  | G22: =IF(FAG!J7="","",FAG!J7) ->  | H22: =IF(FAG!K7="","",FAG!K7) ->  | I22: =IF(FAG!L7="","",FAG!L7) ->  | J22: =IF(FAG!M7="","",FAG!M7) ->  | K22: =IF(FAG!N7="","",FAG!N7) ->  | L22: =IF(FAG!O7="","",FAG!O7) ->  | M22: =IF(FAG!P7="","",FAG!P7) ->  | N22: =IF(FAG!Q7="","",FAG!Q7) ->  | O22: =IF(FAG!R7="","",FAG!R7) ->  | P22: =IF(FAG!S7="","",FAG!S7) ->  | Q22: =IF(FAG!T7="","",FAG!T7) ->  | R22: =IF(FAG!U7="","",FAG!U7) ->  | S22: =IF(FAG!V7="","",FAG!V7) ->  | T22: =IF(FAG!W7="","",FAG!W7) ->  | U22: =IF(FAG!X7="","",FAG!X7) ->  | V22: =IF(FAG!Y7="","",FAG!Y7) ->  | W22: =IF(FAG!Z7="","",FAG!Z7) ->  | X22: =IF(FAG!AA7="","",FAG!AA7) ->  | Y22: =IF(FAG!AB7="","",FAG!AB7) ->  | Z22: =IF(FAG!AC7="","",FAG!AC7) ->  | AA22: =IF(FAG!AD7="","",FAG!AD7) ->  | AB22: =IF(FAG!AE7="","",FAG!AE7) ->  | AC22: =IF(FAG!AF7="","",FAG!AF7) ->  | AD22: =IF(FAG!AG7="","",FAG!AG7) ->  | AE22: =IF(FAG!AH7="","",FAG!AH7) ->  | AF22: =IF(FAG!AI7="","",FAG!AI7) ->  | AG22: =IF(FAG!AJ7="","",FAG!AJ7) ->  | AH22: =IF(FAG!AK7="","",FAG!AK7) ->  | AI22: =IF(FAG!AL7="","",FAG!AL7) ->  | AJ22: =IF(FAG!AM7="","",FAG!AM7) ->  | AK22: =IF(FAG!AN7="","",FAG!AN7) ->  | AL22: =IF(FAG!AO7="","",FAG!AO7) ->  | AM22: =IF(FAG!AP7="","",FAG!AP7) -> 
C23: Comp. Esp. 2 | D23: Criterio Evaluación 2.1 | E23: =IF(FAG!H8="","",FAG!H8) ->  | F23: =IF(FAG!I8="","",FAG!I8) ->  | G23: =IF(FAG!J8="","",FAG!J8) ->  | H23: =IF(FAG!K8="","",FAG!K8) ->  | I23: =IF(FAG!L8="","",FAG!L8) ->  | J23: =IF(FAG!M8="","",FAG!M8) ->  | K23: =IF(FAG!N8="","",FAG!N8) ->  | L23: =IF(FAG!O8="","",FAG!O8) ->  | M23: =IF(FAG!P8="","",FAG!P8) ->  | N23: =IF(FAG!Q8="","",FAG!Q8) ->  | O23: =IF(FAG!R8="","",FAG!R8) ->  | P23: =IF(FAG!S8="","",FAG!S8) ->  | Q23: =IF(FAG!T8="","",FAG!T8) ->  | R23: =IF(FAG!U8="","",FAG!U8) ->  | S23: =IF(FAG!V8="","",FAG!V8) ->  | T23: =IF(FAG!W8="","",FAG!W8) ->  | U23: =IF(FAG!X8="","",FAG!X8) ->  | V23: =IF(FAG!Y8="","",FAG!Y8) ->  | W23: =IF(FAG!Z8="","",FAG!Z8) ->  | X23: =IF(FAG!AA8="","",FAG!AA8) ->  | Y23: =IF(FAG!AB8="","",FAG!AB8) ->  | Z23: =IF(FAG!AC8="","",FAG!AC8) ->  | AA23: =IF(FAG!AD8="","",FAG!AD8) ->  | AB23: =IF(FAG!AE8="","",FAG!AE8) ->  | AC23: =IF(FAG!AF8="","",FAG!AF8) ->  | AD23: =IF(FAG!AG8="","",FAG!AG8) ->  | AE23: =IF(FAG!AH8="","",FAG!AH8) ->  | AF23: =IF(FAG!AI8="","",FAG!AI8) ->  | AG23: =IF(FAG!AJ8="","",FAG!AJ8) ->  | AH23: =IF(FAG!AK8="","",FAG!AK8) ->  | AI23: =IF(FAG!AL8="","",FAG!AL8) ->  | AJ23: =IF(FAG!AM8="","",FAG!AM8) ->  | AK23: =IF(FAG!AN8="","",FAG!AN8) ->  | AL23: =IF(FAG!AO8="","",FAG!AO8) ->  | AM23: =IF(FAG!AP8="","",FAG!AP8) -> 
D24: Criterio Evaluación 2.2 | E24: =IF(FAG!H9="","",FAG!H9) ->  | F24: =IF(FAG!I9="","",FAG!I9) ->  | G24: =IF(FAG!J9="","",FAG!J9) ->  | H24: =IF(FAG!K9="","",FAG!K9) ->  | I24: =IF(FAG!L9="","",FAG!L9) ->  | J24: =IF(FAG!M9="","",FAG!M9) ->  | K24: =IF(FAG!N9="","",FAG!N9) ->  | L24: =IF(FAG!O9="","",FAG!O9) ->  | M24: =IF(FAG!P9="","",FAG!P9) ->  | N24: =IF(FAG!Q9="","",FAG!Q9) ->  | O24: =IF(FAG!R9="","",FAG!R9) ->  | P24: =IF(FAG!S9="","",FAG!S9) ->  | Q24: =IF(FAG!T9="","",FAG!T9) ->  | R24: =IF(FAG!U9="","",FAG!U9) ->  | S24: =IF(FAG!V9="","",FAG!V9) ->  | T24: =IF(FAG!W9="","",FAG!W9) ->  | U24: =IF(FAG!X9="","",FAG!X9) ->  | V24: =IF(FAG!Y9="","",FAG!Y9) ->  | W24: =IF(FAG!Z9="","",FAG!Z9) ->  | X24: =IF(FAG!AA9="","",FAG!AA9) ->  | Y24: =IF(FAG!AB9="","",FAG!AB9) ->  | Z24: =IF(FAG!AC9="","",FAG!AC9) ->  | AA24: =IF(FAG!AD9="","",FAG!AD9) ->  | AB24: =IF(FAG!AE9="","",FAG!AE9) ->  | AC24: =IF(FAG!AF9="","",FAG!AF9) ->  | AD24: =IF(FAG!AG9="","",FAG!AG9) ->  | AE24: =IF(FAG!AH9="","",FAG!AH9) ->  | AF24: =IF(FAG!AI9="","",FAG!AI9) ->  | AG24: =IF(FAG!AJ9="","",FAG!AJ9) ->  | AH24: =IF(FAG!AK9="","",FAG!AK9) ->  | AI24: =IF(FAG!AL9="","",FAG!AL9) ->  | AJ24: =IF(FAG!AM9="","",FAG!AM9) ->  | AK24: =IF(FAG!AN9="","",FAG!AN9) ->  | AL24: =IF(FAG!AO9="","",FAG!AO9) ->  | AM24: =IF(FAG!AP9="","",FAG!AP9) -> 
D25: Criterio Evaluación 2.3 | E25: =IF(FAG!H10="","",FAG!H10) ->  | F25: =IF(FAG!I10="","",FAG!I10) ->  | G25: =IF(FAG!J10="","",FAG!J10) ->  | H25: =IF(FAG!K10="","",FAG!K10) ->  | I25: =IF(FAG!L10="","",FAG!L10) ->  | J25: =IF(FAG!M10="","",FAG!M10) ->  | K25: =IF(FAG!N10="","",FAG!N10) ->  | L25: =IF(FAG!O10="","",FAG!O10) ->  | M25: =IF(FAG!P10="","",FAG!P10) ->  | N25: =IF(FAG!Q10="","",FAG!Q10) ->  | O25: =IF(FAG!R10="","",FAG!R10) ->  | P25: =IF(FAG!S10="","",FAG!S10) ->  | Q25: =IF(FAG!T10="","",FAG!T10) ->  | R25: =IF(FAG!U10="","",FAG!U10) ->  | S25: =IF(FAG!V10="","",FAG!V10) ->  | T25: =IF(FAG!W10="","",FAG!W10) ->  | U25: =IF(FAG!X10="","",FAG!X10) ->  | V25: =IF(FAG!Y10="","",FAG!Y10) ->  | W25: =IF(FAG!Z10="","",FAG!Z10) ->  | X25: =IF(FAG!AA10="","",FAG!AA10) ->  | Y25: =IF(FAG!AB10="","",FAG!AB10) ->  | Z25: =IF(FAG!AC10="","",FAG!AC10) ->  | AA25: =IF(FAG!AD10="","",FAG!AD10) ->  | AB25: =IF(FAG!AE10="","",FAG!AE10) ->  | AC25: =IF(FAG!AF10="","",FAG!AF10) ->  | AD25: =IF(FAG!AG10="","",FAG!AG10) ->  | AE25: =IF(FAG!AH10="","",FAG!AH10) ->  | AF25: =IF(FAG!AI10="","",FAG!AI10) ->  | AG25: =IF(FAG!AJ10="","",FAG!AJ10) ->  | AH25: =IF(FAG!AK10="","",FAG!AK10) ->  | AI25: =IF(FAG!AL10="","",FAG!AL10) ->  | AJ25: =IF(FAG!AM10="","",FAG!AM10) ->  | AK25: =IF(FAG!AN10="","",FAG!AN10) ->  | AL25: =IF(FAG!AO10="","",FAG!AO10) ->  | AM25: =IF(FAG!AP10="","",FAG!AP10) -> 
D26: Criterio Evaluación 2.4 | E26: =IF(FAG!H11="","",FAG!H11) ->  | F26: =IF(FAG!I11="","",FAG!I11) ->  | G26: =IF(FAG!J11="","",FAG!J11) ->  | H26: =IF(FAG!K11="","",FAG!K11) ->  | I26: =IF(FAG!L11="","",FAG!L11) ->  | J26: =IF(FAG!M11="","",FAG!M11) ->  | K26: =IF(FAG!N11="","",FAG!N11) ->  | L26: =IF(FAG!O11="","",FAG!O11) ->  | M26: =IF(FAG!P11="","",FAG!P11) ->  | N26: =IF(FAG!Q11="","",FAG!Q11) ->  | O26: =IF(FAG!R11="","",FAG!R11) ->  | P26: =IF(FAG!S11="","",FAG!S11) ->  | Q26: =IF(FAG!T11="","",FAG!T11) ->  | R26: =IF(FAG!U11="","",FAG!U11) ->  | S26: =IF(FAG!V11="","",FAG!V11) ->  | T26: =IF(FAG!W11="","",FAG!W11) ->  | U26: =IF(FAG!X11="","",FAG!X11) ->  | V26: =IF(FAG!Y11="","",FAG!Y11) ->  | W26: =IF(FAG!Z11="","",FAG!Z11) ->  | X26: =IF(FAG!AA11="","",FAG!AA11) ->  | Y26: =IF(FAG!AB11="","",FAG!AB11) ->  | Z26: =IF(FAG!AC11="","",FAG!AC11) ->  | AA26: =IF(FAG!AD11="","",FAG!AD11) ->  | AB26: =IF(FAG!AE11="","",FAG!AE11) ->  | AC26: =IF(FAG!AF11="","",FAG!AF11) ->  | AD26: =IF(FAG!AG11="","",FAG!AG11) ->  | AE26: =IF(FAG!AH11="","",FAG!AH11) ->  | AF26: =IF(FAG!AI11="","",FAG!AI11) ->  | AG26: =IF(FAG!AJ11="","",FAG!AJ11) ->  | AH26: =IF(FAG!AK11="","",FAG!AK11) ->  | AI26: =IF(FAG!AL11="","",FAG!AL11) ->  | AJ26: =IF(FAG!AM11="","",FAG!AM11) ->  | AK26: =IF(FAG!AN11="","",FAG!AN11) ->  | AL26: =IF(FAG!AO11="","",FAG!AO11) ->  | AM26: =IF(FAG!AP11="","",FAG!AP11) -> 
C27: Comp. Esp. 3 | D27: Criterio Evaluación 3.1 | E27: =IF(FAG!H12="","",FAG!H12) ->  | F27: =IF(FAG!I12="","",FAG!I12) ->  | G27: =IF(FAG!J12="","",FAG!J12) ->  | H27: =IF(FAG!K12="","",FAG!K12) ->  | I27: =IF(FAG!L12="","",FAG!L12) ->  | J27: =IF(FAG!M12="","",FAG!M12) ->  | K27: =IF(FAG!N12="","",FAG!N12) ->  | L27: =IF(FAG!O12="","",FAG!O12) ->  | M27: =IF(FAG!P12="","",FAG!P12) ->  | N27: =IF(FAG!Q12="","",FAG!Q12) ->  | O27: =IF(FAG!R12="","",FAG!R12) ->  | P27: =IF(FAG!S12="","",FAG!S12) ->  | Q27: =IF(FAG!T12="","",FAG!T12) ->  | R27: =IF(FAG!U12="","",FAG!U12) ->  | S27: =IF(FAG!V12="","",FAG!V12) ->  | T27: =IF(FAG!W12="","",FAG!W12) ->  | U27: =IF(FAG!X12="","",FAG!X12) ->  | V27: =IF(FAG!Y12="","",FAG!Y12) ->  | W27: =IF(FAG!Z12="","",FAG!Z12) ->  | X27: =IF(FAG!AA12="","",FAG!AA12) ->  | Y27: =IF(FAG!AB12="","",FAG!AB12) ->  | Z27: =IF(FAG!AC12="","",FAG!AC12) ->  | AA27: =IF(FAG!AD12="","",FAG!AD12) ->  | AB27: =IF(FAG!AE12="","",FAG!AE12) ->  | AC27: =IF(FAG!AF12="","",FAG!AF12) ->  | AD27: =IF(FAG!AG12="","",FAG!AG12) ->  | AE27: =IF(FAG!AH12="","",FAG!AH12) ->  | AF27: =IF(FAG!AI12="","",FAG!AI12) ->  | AG27: =IF(FAG!AJ12="","",FAG!AJ12) ->  | AH27: =IF(FAG!AK12="","",FAG!AK12) ->  | AI27: =IF(FAG!AL12="","",FAG!AL12) ->  | AJ27: =IF(FAG!AM12="","",FAG!AM12) ->  | AK27: =IF(FAG!AN12="","",FAG!AN12) ->  | AL27: =IF(FAG!AO12="","",FAG!AO12) ->  | AM27: =IF(FAG!AP12="","",FAG!AP12) -> 
D28: Criterio Evaluación 3.2 | E28: =IF(FAG!H13="","",FAG!H13) ->  | F28: =IF(FAG!I13="","",FAG!I13) ->  | G28: =IF(FAG!J13="","",FAG!J13) ->  | H28: =IF(FAG!K13="","",FAG!K13) ->  | I28: =IF(FAG!L13="","",FAG!L13) ->  | J28: =IF(FAG!M13="","",FAG!M13) ->  | K28: =IF(FAG!N13="","",FAG!N13) ->  | L28: =IF(FAG!O13="","",FAG!O13) ->  | M28: =IF(FAG!P13="","",FAG!P13) ->  | N28: =IF(FAG!Q13="","",FAG!Q13) ->  | O28: =IF(FAG!R13="","",FAG!R13) ->  | P28: =IF(FAG!S13="","",FAG!S13) ->  | Q28: =IF(FAG!T13="","",FAG!T13) ->  | R28: =IF(FAG!U13="","",FAG!U13) ->  | S28: =IF(FAG!V13="","",FAG!V13) ->  | T28: =IF(FAG!W13="","",FAG!W13) ->  | U28: =IF(FAG!X13="","",FAG!X13) ->  | V28: =IF(FAG!Y13="","",FAG!Y13) ->  | W28: =IF(FAG!Z13="","",FAG!Z13) ->  | X28: =IF(FAG!AA13="","",FAG!AA13) ->  | Y28: =IF(FAG!AB13="","",FAG!AB13) ->  | Z28: =IF(FAG!AC13="","",FAG!AC13) ->  | AA28: =IF(FAG!AD13="","",FAG!AD13) ->  | AB28: =IF(FAG!AE13="","",FAG!AE13) ->  | AC28: =IF(FAG!AF13="","",FAG!AF13) ->  | AD28: =IF(FAG!AG13="","",FAG!AG13) ->  | AE28: =IF(FAG!AH13="","",FAG!AH13) ->  | AF28: =IF(FAG!AI13="","",FAG!AI13) ->  | AG28: =IF(FAG!AJ13="","",FAG!AJ13) ->  | AH28: =IF(FAG!AK13="","",FAG!AK13) ->  | AI28: =IF(FAG!AL13="","",FAG!AL13) ->  | AJ28: =IF(FAG!AM13="","",FAG!AM13) ->  | AK28: =IF(FAG!AN13="","",FAG!AN13) ->  | AL28: =IF(FAG!AO13="","",FAG!AO13) ->  | AM28: =IF(FAG!AP13="","",FAG!AP13) -> 
D29: Criterio Evaluación 3.3 | E29: =IF(FAG!H14="","",FAG!H14) ->  | F29: =IF(FAG!I14="","",FAG!I14) ->  | G29: =IF(FAG!J14="","",FAG!J14) ->  | H29: =IF(FAG!K14="","",FAG!K14) ->  | I29: =IF(FAG!L14="","",FAG!L14) ->  | J29: =IF(FAG!M14="","",FAG!M14) ->  | K29: =IF(FAG!N14="","",FAG!N14) ->  | L29: =IF(FAG!O14="","",FAG!O14) ->  | M29: =IF(FAG!P14="","",FAG!P14) ->  | N29: =IF(FAG!Q14="","",FAG!Q14) ->  | O29: =IF(FAG!R14="","",FAG!R14) ->  | P29: =IF(FAG!S14="","",FAG!S14) ->  | Q29: =IF(FAG!T14="","",FAG!T14) ->  | R29: =IF(FAG!U14="","",FAG!U14) ->  | S29: =IF(FAG!V14="","",FAG!V14) ->  | T29: =IF(FAG!W14="","",FAG!W14) ->  | U29: =IF(FAG!X14="","",FAG!X14) ->  | V29: =IF(FAG!Y14="","",FAG!Y14) ->  | W29: =IF(FAG!Z14="","",FAG!Z14) ->  | X29: =IF(FAG!AA14="","",FAG!AA14) ->  | Y29: =IF(FAG!AB14="","",FAG!AB14) ->  | Z29: =IF(FAG!AC14="","",FAG!AC14) ->  | AA29: =IF(FAG!AD14="","",FAG!AD14) ->  | AB29: =IF(FAG!AE14="","",FAG!AE14) ->  | AC29: =IF(FAG!AF14="","",FAG!AF14) ->  | AD29: =IF(FAG!AG14="","",FAG!AG14) ->  | AE29: =IF(FAG!AH14="","",FAG!AH14) ->  | AF29: =IF(FAG!AI14="","",FAG!AI14) ->  | AG29: =IF(FAG!AJ14="","",FAG!AJ14) ->  | AH29: =IF(FAG!AK14="","",FAG!AK14) ->  | AI29: =IF(FAG!AL14="","",FAG!AL14) ->  | AJ29: =IF(FAG!AM14="","",FAG!AM14) ->  | AK29: =IF(FAG!AN14="","",FAG!AN14) ->  | AL29: =IF(FAG!AO14="","",FAG!AO14) ->  | AM29: =IF(FAG!AP14="","",FAG!AP14) -> 
D30: Criterio Evaluación 3.4 | E30: =IF(FAG!H15="","",FAG!H15) ->  | F30: =IF(FAG!I15="","",FAG!I15) ->  | G30: =IF(FAG!J15="","",FAG!J15) ->  | H30: =IF(FAG!K15="","",FAG!K15) ->  | I30: =IF(FAG!L15="","",FAG!L15) ->  | J30: =IF(FAG!M15="","",FAG!M15) ->  | K30: =IF(FAG!N15="","",FAG!N15) ->  | L30: =IF(FAG!O15="","",FAG!O15) ->  | M30: =IF(FAG!P15="","",FAG!P15) ->  | N30: =IF(FAG!Q15="","",FAG!Q15) ->  | O30: =IF(FAG!R15="","",FAG!R15) ->  | P30: =IF(FAG!S15="","",FAG!S15) ->  | Q30: =IF(FAG!T15="","",FAG!T15) ->  | R30: =IF(FAG!U15="","",FAG!U15) ->  | S30: =IF(FAG!V15="","",FAG!V15) ->  | T30: =IF(FAG!W15="","",FAG!W15) ->  | U30: =IF(FAG!X15="","",FAG!X15) ->  | V30: =IF(FAG!Y15="","",FAG!Y15) ->  | W30: =IF(FAG!Z15="","",FAG!Z15) ->  | X30: =IF(FAG!AA15="","",FAG!AA15) ->  | Y30: =IF(FAG!AB15="","",FAG!AB15) ->  | Z30: =IF(FAG!AC15="","",FAG!AC15) ->  | AA30: =IF(FAG!AD15="","",FAG!AD15) ->  | AB30: =IF(FAG!AE15="","",FAG!AE15) ->  | AC30: =IF(FAG!AF15="","",FAG!AF15) ->  | AD30: =IF(FAG!AG15="","",FAG!AG15) ->  | AE30: =IF(FAG!AH15="","",FAG!AH15) ->  | AF30: =IF(FAG!AI15="","",FAG!AI15) ->  | AG30: =IF(FAG!AJ15="","",FAG!AJ15) ->  | AH30: =IF(FAG!AK15="","",FAG!AK15) ->  | AI30: =IF(FAG!AL15="","",FAG!AL15) ->  | AJ30: =IF(FAG!AM15="","",FAG!AM15) ->  | AK30: =IF(FAG!AN15="","",FAG!AN15) ->  | AL30: =IF(FAG!AO15="","",FAG!AO15) ->  | AM30: =IF(FAG!AP15="","",FAG!AP15) -> 
C31: Comp. Esp. 4 | D31: Criterio Evaluación 4.1 | E31: =IF(FAG!H16="","",FAG!H16) ->  | F31: =IF(FAG!I16="","",FAG!I16) ->  | G31: =IF(FAG!J16="","",FAG!J16) ->  | H31: =IF(FAG!K16="","",FAG!K16) ->  | I31: =IF(FAG!L16="","",FAG!L16) ->  | J31: =IF(FAG!M16="","",FAG!M16) ->  | K31: =IF(FAG!N16="","",FAG!N16) ->  | L31: =IF(FAG!O16="","",FAG!O16) ->  | M31: =IF(FAG!P16="","",FAG!P16) ->  | N31: =IF(FAG!Q16="","",FAG!Q16) ->  | O31: =IF(FAG!R16="","",FAG!R16) ->  | P31: =IF(FAG!S16="","",FAG!S16) ->  | Q31: =IF(FAG!T16="","",FAG!T16) ->  | R31: =IF(FAG!U16="","",FAG!U16) ->  | S31: =IF(FAG!V16="","",FAG!V16) ->  | T31: =IF(FAG!W16="","",FAG!W16) ->  | U31: =IF(FAG!X16="","",FAG!X16) ->  | V31: =IF(FAG!Y16="","",FAG!Y16) ->  | W31: =IF(FAG!Z16="","",FAG!Z16) ->  | X31: =IF(FAG!AA16="","",FAG!AA16) ->  | Y31: =IF(FAG!AB16="","",FAG!AB16) ->  | Z31: =IF(FAG!AC16="","",FAG!AC16) ->  | AA31: =IF(FAG!AD16="","",FAG!AD16) ->  | AB31: =IF(FAG!AE16="","",FAG!AE16) ->  | AC31: =IF(FAG!AF16="","",FAG!AF16) ->  | AD31: =IF(FAG!AG16="","",FAG!AG16) ->  | AE31: =IF(FAG!AH16="","",FAG!AH16) ->  | AF31: =IF(FAG!AI16="","",FAG!AI16) ->  | AG31: =IF(FAG!AJ16="","",FAG!AJ16) ->  | AH31: =IF(FAG!AK16="","",FAG!AK16) ->  | AI31: =IF(FAG!AL16="","",FAG!AL16) ->  | AJ31: =IF(FAG!AM16="","",FAG!AM16) ->  | AK31: =IF(FAG!AN16="","",FAG!AN16) ->  | AL31: =IF(FAG!AO16="","",FAG!AO16) ->  | AM31: =IF(FAG!AP16="","",FAG!AP16) -> 
D32: Criterio Evaluación 4.2 | E32: =IF(FAG!H17="","",FAG!H17) ->  | F32: =IF(FAG!I17="","",FAG!I17) ->  | G32: =IF(FAG!J17="","",FAG!J17) ->  | H32: =IF(FAG!K17="","",FAG!K17) ->  | I32: =IF(FAG!L17="","",FAG!L17) ->  | J32: =IF(FAG!M17="","",FAG!M17) ->  | K32: =IF(FAG!N17="","",FAG!N17) ->  | L32: =IF(FAG!O17="","",FAG!O17) ->  | M32: =IF(FAG!P17="","",FAG!P17) ->  | N32: =IF(FAG!Q17="","",FAG!Q17) ->  | O32: =IF(FAG!R17="","",FAG!R17) ->  | P32: =IF(FAG!S17="","",FAG!S17) ->  | Q32: =IF(FAG!T17="","",FAG!T17) ->  | R32: =IF(FAG!U17="","",FAG!U17) ->  | S32: =IF(FAG!V17="","",FAG!V17) ->  | T32: =IF(FAG!W17="","",FAG!W17) ->  | U32: =IF(FAG!X17="","",FAG!X17) ->  | V32: =IF(FAG!Y17="","",FAG!Y17) ->  | W32: =IF(FAG!Z17="","",FAG!Z17) ->  | X32: =IF(FAG!AA17="","",FAG!AA17) ->  | Y32: =IF(FAG!AB17="","",FAG!AB17) ->  | Z32: =IF(FAG!AC17="","",FAG!AC17) ->  | AA32: =IF(FAG!AD17="","",FAG!AD17) ->  | AB32: =IF(FAG!AE17="","",FAG!AE17) ->  | AC32: =IF(FAG!AF17="","",FAG!AF17) ->  | AD32: =IF(FAG!AG17="","",FAG!AG17) ->  | AE32: =IF(FAG!AH17="","",FAG!AH17) ->  | AF32: =IF(FAG!AI17="","",FAG!AI17) ->  | AG32: =IF(FAG!AJ17="","",FAG!AJ17) ->  | AH32: =IF(FAG!AK17="","",FAG!AK17) ->  | AI32: =IF(FAG!AL17="","",FAG!AL17) ->  | AJ32: =IF(FAG!AM17="","",FAG!AM17) ->  | AK32: =IF(FAG!AN17="","",FAG!AN17) ->  | AL32: =IF(FAG!AO17="","",FAG!AO17) ->  | AM32: =IF(FAG!AP17="","",FAG!AP17) -> 
D33: Criterio Evaluación 4.3 | E33: =IF(FAG!H18="","",FAG!H18) ->  | F33: =IF(FAG!I18="","",FAG!I18) ->  | G33: =IF(FAG!J18="","",FAG!J18) ->  | H33: =IF(FAG!K18="","",FAG!K18) ->  | I33: =IF(FAG!L18="","",FAG!L18) ->  | J33: =IF(FAG!M18="","",FAG!M18) ->  | K33: =IF(FAG!N18="","",FAG!N18) ->  | L33: =IF(FAG!O18="","",FAG!O18) ->  | M33: =IF(FAG!P18="","",FAG!P18) ->  | N33: =IF(FAG!Q18="","",FAG!Q18) ->  | O33: =IF(FAG!R18="","",FAG!R18) ->  | P33: =IF(FAG!S18="","",FAG!S18) ->  | Q33: =IF(FAG!T18="","",FAG!T18) ->  | R33: =IF(FAG!U18="","",FAG!U18) ->  | S33: =IF(FAG!V18="","",FAG!V18) ->  | T33: =IF(FAG!W18="","",FAG!W18) ->  | U33: =IF(FAG!X18="","",FAG!X18) ->  | V33: =IF(FAG!Y18="","",FAG!Y18) ->  | W33: =IF(FAG!Z18="","",FAG!Z18) ->  | X33: =IF(FAG!AA18="","",FAG!AA18) ->  | Y33: =IF(FAG!AB18="","",FAG!AB18) ->  | Z33: =IF(FAG!AC18="","",FAG!AC18) ->  | AA33: =IF(FAG!AD18="","",FAG!AD18) ->  | AB33: =IF(FAG!AE18="","",FAG!AE18) ->  | AC33: =IF(FAG!AF18="","",FAG!AF18) ->  | AD33: =IF(FAG!AG18="","",FAG!AG18) ->  | AE33: =IF(FAG!AH18="","",FAG!AH18) ->  | AF33: =IF(FAG!AI18="","",FAG!AI18) ->  | AG33: =IF(FAG!AJ18="","",FAG!AJ18) ->  | AH33: =IF(FAG!AK18="","",FAG!AK18) ->  | AI33: =IF(FAG!AL18="","",FAG!AL18) ->  | AJ33: =IF(FAG!AM18="","",FAG!AM18) ->  | AK33: =IF(FAG!AN18="","",FAG!AN18) ->  | AL33: =IF(FAG!AO18="","",FAG!AO18) ->  | AM33: =IF(FAG!AP18="","",FAG!AP18) -> 
D34: Criterio Evaluación 4.4 | E34: =IF(FAG!H19="","",FAG!H19) ->  | F34: =IF(FAG!I19="","",FAG!I19) ->  | G34: =IF(FAG!J19="","",FAG!J19) ->  | H34: =IF(FAG!K19="","",FAG!K19) ->  | I34: =IF(FAG!L19="","",FAG!L19) ->  | J34: =IF(FAG!M19="","",FAG!M19) ->  | K34: =IF(FAG!N19="","",FAG!N19) ->  | L34: =IF(FAG!O19="","",FAG!O19) ->  | M34: =IF(FAG!P19="","",FAG!P19) ->  | N34: =IF(FAG!Q19="","",FAG!Q19) ->  | O34: =IF(FAG!R19="","",FAG!R19) ->  | P34: =IF(FAG!S19="","",FAG!S19) ->  | Q34: =IF(FAG!T19="","",FAG!T19) ->  | R34: =IF(FAG!U19="","",FAG!U19) ->  | S34: =IF(FAG!V19="","",FAG!V19) ->  | T34: =IF(FAG!W19="","",FAG!W19) ->  | U34: =IF(FAG!X19="","",FAG!X19) ->  | V34: =IF(FAG!Y19="","",FAG!Y19) ->  | W34: =IF(FAG!Z19="","",FAG!Z19) ->  | X34: =IF(FAG!AA19="","",FAG!AA19) ->  | Y34: =IF(FAG!AB19="","",FAG!AB19) ->  | Z34: =IF(FAG!AC19="","",FAG!AC19) ->  | AA34: =IF(FAG!AD19="","",FAG!AD19) ->  | AB34: =IF(FAG!AE19="","",FAG!AE19) ->  | AC34: =IF(FAG!AF19="","",FAG!AF19) ->  | AD34: =IF(FAG!AG19="","",FAG!AG19) ->  | AE34: =IF(FAG!AH19="","",FAG!AH19) ->  | AF34: =IF(FAG!AI19="","",FAG!AI19) ->  | AG34: =IF(FAG!AJ19="","",FAG!AJ19) ->  | AH34: =IF(FAG!AK19="","",FAG!AK19) ->  | AI34: =IF(FAG!AL19="","",FAG!AL19) ->  | AJ34: =IF(FAG!AM19="","",FAG!AM19) ->  | AK34: =IF(FAG!AN19="","",FAG!AN19) ->  | AL34: =IF(FAG!AO19="","",FAG!AO19) ->  | AM34: =IF(FAG!AP19="","",FAG!AP19) -> 
C35: Comp. Esp. 5 | D35: Criterio Evaluación 5.1 | E35: =IF(FAG!H20="","",FAG!H20) ->  | F35: =IF(FAG!I20="","",FAG!I20) ->  | G35: =IF(FAG!J20="","",FAG!J20) ->  | H35: =IF(FAG!K20="","",FAG!K20) ->  | I35: =IF(FAG!L20="","",FAG!L20) ->  | J35: =IF(FAG!M20="","",FAG!M20) ->  | K35: =IF(FAG!N20="","",FAG!N20) ->  | L35: =IF(FAG!O20="","",FAG!O20) ->  | M35: =IF(FAG!P20="","",FAG!P20) ->  | N35: =IF(FAG!Q20="","",FAG!Q20) ->  | O35: =IF(FAG!R20="","",FAG!R20) ->  | P35: =IF(FAG!S20="","",FAG!S20) ->  | Q35: =IF(FAG!T20="","",FAG!T20) ->  | R35: =IF(FAG!U20="","",FAG!U20) ->  | S35: =IF(FAG!V20="","",FAG!V20) ->  | T35: =IF(FAG!W20="","",FAG!W20) ->  | U35: =IF(FAG!X20="","",FAG!X20) ->  | V35: =IF(FAG!Y20="","",FAG!Y20) ->  | W35: =IF(FAG!Z20="","",FAG!Z20) ->  | X35: =IF(FAG!AA20="","",FAG!AA20) ->  | Y35: =IF(FAG!AB20="","",FAG!AB20) ->  | Z35: =IF(FAG!AC20="","",FAG!AC20) ->  | AA35: =IF(FAG!AD20="","",FAG!AD20) ->  | AB35: =IF(FAG!AE20="","",FAG!AE20) ->  | AC35: =IF(FAG!AF20="","",FAG!AF20) ->  | AD35: =IF(FAG!AG20="","",FAG!AG20) ->  | AE35: =IF(FAG!AH20="","",FAG!AH20) ->  | AF35: =IF(FAG!AI20="","",FAG!AI20) ->  | AG35: =IF(FAG!AJ20="","",FAG!AJ20) ->  | AH35: =IF(FAG!AK20="","",FAG!AK20) ->  | AI35: =IF(FAG!AL20="","",FAG!AL20) ->  | AJ35: =IF(FAG!AM20="","",FAG!AM20) ->  | AK35: =IF(FAG!AN20="","",FAG!AN20) ->  | AL35: =IF(FAG!AO20="","",FAG!AO20) ->  | AM35: =IF(FAG!AP20="","",FAG!AP20) -> 
D36: Criterio Evaluación 5.2 | E36: =IF(FAG!H21="","",FAG!H21) ->  | F36: =IF(FAG!I21="","",FAG!I21) ->  | G36: =IF(FAG!J21="","",FAG!J21) ->  | H36: =IF(FAG!K21="","",FAG!K21) ->  | I36: =IF(FAG!L21="","",FAG!L21) ->  | J36: =IF(FAG!M21="","",FAG!M21) ->  | K36: =IF(FAG!N21="","",FAG!N21) ->  | L36: =IF(FAG!O21="","",FAG!O21) ->  | M36: =IF(FAG!P21="","",FAG!P21) ->  | N36: =IF(FAG!Q21="","",FAG!Q21) ->  | O36: =IF(FAG!R21="","",FAG!R21) ->  | P36: =IF(FAG!S21="","",FAG!S21) ->  | Q36: =IF(FAG!T21="","",FAG!T21) ->  | R36: =IF(FAG!U21="","",FAG!U21) ->  | S36: =IF(FAG!V21="","",FAG!V21) ->  | T36: =IF(FAG!W21="","",FAG!W21) ->  | U36: =IF(FAG!X21="","",FAG!X21) ->  | V36: =IF(FAG!Y21="","",FAG!Y21) ->  | W36: =IF(FAG!Z21="","",FAG!Z21) ->  | X36: =IF(FAG!AA21="","",FAG!AA21) ->  | Y36: =IF(FAG!AB21="","",FAG!AB21) ->  | Z36: =IF(FAG!AC21="","",FAG!AC21) ->  | AA36: =IF(FAG!AD21="","",FAG!AD21) ->  | AB36: =IF(FAG!AE21="","",FAG!AE21) ->  | AC36: =IF(FAG!AF21="","",FAG!AF21) ->  | AD36: =IF(FAG!AG21="","",FAG!AG21) ->  | AE36: =IF(FAG!AH21="","",FAG!AH21) ->  | AF36: =IF(FAG!AI21="","",FAG!AI21) ->  | AG36: =IF(FAG!AJ21="","",FAG!AJ21) ->  | AH36: =IF(FAG!AK21="","",FAG!AK21) ->  | AI36: =IF(FAG!AL21="","",FAG!AL21) ->  | AJ36: =IF(FAG!AM21="","",FAG!AM21) ->  | AK36: =IF(FAG!AN21="","",FAG!AN21) ->  | AL36: =IF(FAG!AO21="","",FAG!AO21) ->  | AM36: =IF(FAG!AP21="","",FAG!AP21) -> 
D37: Criterio Evaluación 5.3 | E37: =IF(FAG!H22="","",FAG!H22) ->  | F37: =IF(FAG!I22="","",FAG!I22) ->  | G37: =IF(FAG!J22="","",FAG!J22) ->  | H37: =IF(FAG!K22="","",FAG!K22) ->  | I37: =IF(FAG!L22="","",FAG!L22) ->  | J37: =IF(FAG!M22="","",FAG!M22) ->  | K37: =IF(FAG!N22="","",FAG!N22) ->  | L37: =IF(FAG!O22="","",FAG!O22) ->  | M37: =IF(FAG!P22="","",FAG!P22) ->  | N37: =IF(FAG!Q22="","",FAG!Q22) ->  | O37: =IF(FAG!R22="","",FAG!R22) ->  | P37: =IF(FAG!S22="","",FAG!S22) ->  | Q37: =IF(FAG!T22="","",FAG!T22) ->  | R37: =IF(FAG!U22="","",FAG!U22) ->  | S37: =IF(FAG!V22="","",FAG!V22) ->  | T37: =IF(FAG!W22="","",FAG!W22) ->  | U37: =IF(FAG!X22="","",FAG!X22) ->  | V37: =IF(FAG!Y22="","",FAG!Y22) ->  | W37: =IF(FAG!Z22="","",FAG!Z22) ->  | X37: =IF(FAG!AA22="","",FAG!AA22) ->  | Y37: =IF(FAG!AB22="","",FAG!AB22) ->  | Z37: =IF(FAG!AC22="","",FAG!AC22) ->  | AA37: =IF(FAG!AD22="","",FAG!AD22) ->  | AB37: =IF(FAG!AE22="","",FAG!AE22) ->  | AC37: =IF(FAG!AF22="","",FAG!AF22) ->  | AD37: =IF(FAG!AG22="","",FAG!AG22) ->  | AE37: =IF(FAG!AH22="","",FAG!AH22) ->  | AF37: =IF(FAG!AI22="","",FAG!AI22) ->  | AG37: =IF(FAG!AJ22="","",FAG!AJ22) ->  | AH37: =IF(FAG!AK22="","",FAG!AK22) ->  | AI37: =IF(FAG!AL22="","",FAG!AL22) ->  | AJ37: =IF(FAG!AM22="","",FAG!AM22) ->  | AK37: =IF(FAG!AN22="","",FAG!AN22) ->  | AL37: =IF(FAG!AO22="","",FAG!AO22) ->  | AM37: =IF(FAG!AP22="","",FAG!AP22) -> 
D38: Criterio Evaluación 5.4 | E38: =IF(FAG!H23="","",FAG!H23) ->  | F38: =IF(FAG!I23="","",FAG!I23) ->  | G38: =IF(FAG!J23="","",FAG!J23) ->  | H38: =IF(FAG!K23="","",FAG!K23) ->  | I38: =IF(FAG!L23="","",FAG!L23) ->  | J38: =IF(FAG!M23="","",FAG!M23) ->  | K38: =IF(FAG!N23="","",FAG!N23) ->  | L38: =IF(FAG!O23="","",FAG!O23) ->  | M38: =IF(FAG!P23="","",FAG!P23) ->  | N38: =IF(FAG!Q23="","",FAG!Q23) ->  | O38: =IF(FAG!R23="","",FAG!R23) ->  | P38: =IF(FAG!S23="","",FAG!S23) ->  | Q38: =IF(FAG!T23="","",FAG!T23) ->  | R38: =IF(FAG!U23="","",FAG!U23) ->  | S38: =IF(FAG!V23="","",FAG!V23) ->  | T38: =IF(FAG!W23="","",FAG!W23) ->  | U38: =IF(FAG!X23="","",FAG!X23) ->  | V38: =IF(FAG!Y23="","",FAG!Y23) ->  | W38: =IF(FAG!Z23="","",FAG!Z23) ->  | X38: =IF(FAG!AA23="","",FAG!AA23) ->  | Y38: =IF(FAG!AB23="","",FAG!AB23) ->  | Z38: =IF(FAG!AC23="","",FAG!AC23) ->  | AA38: =IF(FAG!AD23="","",FAG!AD23) ->  | AB38: =IF(FAG!AE23="","",FAG!AE23) ->  | AC38: =IF(FAG!AF23="","",FAG!AF23) ->  | AD38: =IF(FAG!AG23="","",FAG!AG23) ->  | AE38: =IF(FAG!AH23="","",FAG!AH23) ->  | AF38: =IF(FAG!AI23="","",FAG!AI23) ->  | AG38: =IF(FAG!AJ23="","",FAG!AJ23) ->  | AH38: =IF(FAG!AK23="","",FAG!AK23) ->  | AI38: =IF(FAG!AL23="","",FAG!AL23) ->  | AJ38: =IF(FAG!AM23="","",FAG!AM23) ->  | AK38: =IF(FAG!AN23="","",FAG!AN23) ->  | AL38: =IF(FAG!AO23="","",FAG!AO23) ->  | AM38: =IF(FAG!AP23="","",FAG!AP23) -> 
C39: Comp. Esp. 6 | D39: Criterio Evaluación 6.1 | E39: =IF(FAG!H24="","",FAG!H24) ->  | F39: =IF(FAG!I24="","",FAG!I24) ->  | G39: =IF(FAG!J24="","",FAG!J24) ->  | H39: =IF(FAG!K24="","",FAG!K24) ->  | I39: =IF(FAG!L24="","",FAG!L24) ->  | J39: =IF(FAG!M24="","",FAG!M24) ->  | K39: =IF(FAG!N24="","",FAG!N24) ->  | L39: =IF(FAG!O24="","",FAG!O24) ->  | M39: =IF(FAG!P24="","",FAG!P24) ->  | N39: =IF(FAG!Q24="","",FAG!Q24) ->  | O39: =IF(FAG!R24="","",FAG!R24) ->  | P39: =IF(FAG!S24="","",FAG!S24) ->  | Q39: =IF(FAG!T24="","",FAG!T24) ->  | R39: =IF(FAG!U24="","",FAG!U24) ->  | S39: =IF(FAG!V24="","",FAG!V24) ->  | T39: =IF(FAG!W24="","",FAG!W24) ->  | U39: =IF(FAG!X24="","",FAG!X24) ->  | V39: =IF(FAG!Y24="","",FAG!Y24) ->  | W39: =IF(FAG!Z24="","",FAG!Z24) ->  | X39: =IF(FAG!AA24="","",FAG!AA24) ->  | Y39: =IF(FAG!AB24="","",FAG!AB24) ->  | Z39: =IF(FAG!AC24="","",FAG!AC24) ->  | AA39: =IF(FAG!AD24="","",FAG!AD24) ->  | AB39: =IF(FAG!AE24="","",FAG!AE24) ->  | AC39: =IF(FAG!AF24="","",FAG!AF24) ->  | AD39: =IF(FAG!AG24="","",FAG!AG24) ->  | AE39: =IF(FAG!AH24="","",FAG!AH24) ->  | AF39: =IF(FAG!AI24="","",FAG!AI24) ->  | AG39: =IF(FAG!AJ24="","",FAG!AJ24) ->  | AH39: =IF(FAG!AK24="","",FAG!AK24) ->  | AI39: =IF(FAG!AL24="","",FAG!AL24) ->  | AJ39: =IF(FAG!AM24="","",FAG!AM24) ->  | AK39: =IF(FAG!AN24="","",FAG!AN24) ->  | AL39: =IF(FAG!AO24="","",FAG!AO24) ->  | AM39: =IF(FAG!AP24="","",FAG!AP24) -> 
D40: Criterio Evaluación 6.2 | E40: =IF(FAG!H25="","",FAG!H25) ->  | F40: =IF(FAG!I25="","",FAG!I25) ->  | G40: =IF(FAG!J25="","",FAG!J25) ->  | H40: =IF(FAG!K25="","",FAG!K25) ->  | I40: =IF(FAG!L25="","",FAG!L25) ->  | J40: =IF(FAG!M25="","",FAG!M25) ->  | K40: =IF(FAG!N25="","",FAG!N25) ->  | L40: =IF(FAG!O25="","",FAG!O25) ->  | M40: =IF(FAG!P25="","",FAG!P25) ->  | N40: =IF(FAG!Q25="","",FAG!Q25) ->  | O40: =IF(FAG!R25="","",FAG!R25) ->  | P40: =IF(FAG!S25="","",FAG!S25) ->  | Q40: =IF(FAG!T25="","",FAG!T25) ->  | R40: =IF(FAG!U25="","",FAG!U25) ->  | S40: =IF(FAG!V25="","",FAG!V25) ->  | T40: =IF(FAG!W25="","",FAG!W25) ->  | U40: =IF(FAG!X25="","",FAG!X25) ->  | V40: =IF(FAG!Y25="","",FAG!Y25) ->  | W40: =IF(FAG!Z25="","",FAG!Z25) ->  | X40: =IF(FAG!AA25="","",FAG!AA25) ->  | Y40: =IF(FAG!AB25="","",FAG!AB25) ->  | Z40: =IF(FAG!AC25="","",FAG!AC25) ->  | AA40: =IF(FAG!AD25="","",FAG!AD25) ->  | AB40: =IF(FAG!AE25="","",FAG!AE25) ->  | AC40: =IF(FAG!AF25="","",FAG!AF25) ->  | AD40: =IF(FAG!AG25="","",FAG!AG25) ->  | AE40: =IF(FAG!AH25="","",FAG!AH25) ->  | AF40: =IF(FAG!AI25="","",FAG!AI25) ->  | AG40: =IF(FAG!AJ25="","",FAG!AJ25) ->  | AH40: =IF(FAG!AK25="","",FAG!AK25) ->  | AI40: =IF(FAG!AL25="","",FAG!AL25) ->  | AJ40: =IF(FAG!AM25="","",FAG!AM25) ->  | AK40: =IF(FAG!AN25="","",FAG!AN25) ->  | AL40: =IF(FAG!AO25="","",FAG!AO25) ->  | AM40: =IF(FAG!AP25="","",FAG!AP25) -> 
D41: Criterio Evaluación 6.3 | E41: =IF(FAG!H26="","",FAG!H26) ->  | F41: =IF(FAG!I26="","",FAG!I26) ->  | G41: =IF(FAG!J26="","",FAG!J26) ->  | H41: =IF(FAG!K26="","",FAG!K26) ->  | I41: =IF(FAG!L26="","",FAG!L26) ->  | J41: =IF(FAG!M26="","",FAG!M26) ->  | K41: =IF(FAG!N26="","",FAG!N26) ->  | L41: =IF(FAG!O26="","",FAG!O26) ->  | M41: =IF(FAG!P26="","",FAG!P26) ->  | N41: =IF(FAG!Q26="","",FAG!Q26) ->  | O41: =IF(FAG!R26="","",FAG!R26) ->  | P41: =IF(FAG!S26="","",FAG!S26) ->  | Q41: =IF(FAG!T26="","",FAG!T26) ->  | R41: =IF(FAG!U26="","",FAG!U26) ->  | S41: =IF(FAG!V26="","",FAG!V26) ->  | T41: =IF(FAG!W26="","",FAG!W26) ->  | U41: =IF(FAG!X26="","",FAG!X26) ->  | V41: =IF(FAG!Y26="","",FAG!Y26) ->  | W41: =IF(FAG!Z26="","",FAG!Z26) ->  | X41: =IF(FAG!AA26="","",FAG!AA26) ->  | Y41: =IF(FAG!AB26="","",FAG!AB26) ->  | Z41: =IF(FAG!AC26="","",FAG!AC26) ->  | AA41: =IF(FAG!AD26="","",FAG!AD26) ->  | AB41: =IF(FAG!AE26="","",FAG!AE26) ->  | AC41: =IF(FAG!AF26="","",FAG!AF26) ->  | AD41: =IF(FAG!AG26="","",FAG!AG26) ->  | AE41: =IF(FAG!AH26="","",FAG!AH26) ->  | AF41: =IF(FAG!AI26="","",FAG!AI26) ->  | AG41: =IF(FAG!AJ26="","",FAG!AJ26) ->  | AH41: =IF(FAG!AK26="","",FAG!AK26) ->  | AI41: =IF(FAG!AL26="","",FAG!AL26) ->  | AJ41: =IF(FAG!AM26="","",FAG!AM26) ->  | AK41: =IF(FAG!AN26="","",FAG!AN26) ->  | AL41: =IF(FAG!AO26="","",FAG!AO26) ->  | AM41: =IF(FAG!AP26="","",FAG!AP26) -> 
D42: Criterio Evaluación 6.4 | E42: =IF(FAG!H27="","",FAG!H27) ->  | F42: =IF(FAG!I27="","",FAG!I27) ->  | G42: =IF(FAG!J27="","",FAG!J27) ->  | H42: =IF(FAG!K27="","",FAG!K27) ->  | I42: =IF(FAG!L27="","",FAG!L27) ->  | J42: =IF(FAG!M27="","",FAG!M27) ->  | K42: =IF(FAG!N27="","",FAG!N27) ->  | L42: =IF(FAG!O27="","",FAG!O27) ->  | M42: =IF(FAG!P27="","",FAG!P27) ->  | N42: =IF(FAG!Q27="","",FAG!Q27) ->  | O42: =IF(FAG!R27="","",FAG!R27) ->  | P42: =IF(FAG!S27="","",FAG!S27) ->  | Q42: =IF(FAG!T27="","",FAG!T27) ->  | R42: =IF(FAG!U27="","",FAG!U27) ->  | S42: =IF(FAG!V27="","",FAG!V27) ->  | T42: =IF(FAG!W27="","",FAG!W27) ->  | U42: =IF(FAG!X27="","",FAG!X27) ->  | V42: =IF(FAG!Y27="","",FAG!Y27) ->  | W42: =IF(FAG!Z27="","",FAG!Z27) ->  | X42: =IF(FAG!AA27="","",FAG!AA27) ->  | Y42: =IF(FAG!AB27="","",FAG!AB27) ->  | Z42: =IF(FAG!AC27="","",FAG!AC27) ->  | AA42: =IF(FAG!AD27="","",FAG!AD27) ->  | AB42: =IF(FAG!AE27="","",FAG!AE27) ->  | AC42: =IF(FAG!AF27="","",FAG!AF27) ->  | AD42: =IF(FAG!AG27="","",FAG!AG27) ->  | AE42: =IF(FAG!AH27="","",FAG!AH27) ->  | AF42: =IF(FAG!AI27="","",FAG!AI27) ->  | AG42: =IF(FAG!AJ27="","",FAG!AJ27) ->  | AH42: =IF(FAG!AK27="","",FAG!AK27) ->  | AI42: =IF(FAG!AL27="","",FAG!AL27) ->  | AJ42: =IF(FAG!AM27="","",FAG!AM27) ->  | AK42: =IF(FAG!AN27="","",FAG!AN27) ->  | AL42: =IF(FAG!AO27="","",FAG!AO27) ->  | AM42: =IF(FAG!AP27="","",FAG!AP27) -> 
B43: Geografía | C43: Comp. Esp. 1 | D43: Criterio Evaluación 1.1 | E43: =IF(Geografia!H4="","",Geografia!H4) ->  | F43: =IF(Geografia!I4="","",Geografia!I4) ->  | G43: =IF(Geografia!J4="","",Geografia!J4) ->  | H43: =IF(Geografia!K4="","",Geografia!K4) ->  | I43: =IF(Geografia!L4="","",Geografia!L4) ->  | J43: =IF(Geografia!M4="","",Geografia!M4) ->  | K43: =IF(Geografia!N4="","",Geografia!N4) ->  | L43: =IF(Geografia!O4="","",Geografia!O4) ->  | M43: =IF(Geografia!P4="","",Geografia!P4) ->  | N43: =IF(Geografia!Q4="","",Geografia!Q4) ->  | O43: =IF(Geografia!R4="","",Geografia!R4) ->  | P43: =IF(Geografia!S4="","",Geografia!S4) ->  | Q43: =IF(Geografia!T4="","",Geografia!T4) ->  | R43: =IF(Geografia!U4="","",Geografia!U4) ->  | S43: =IF(Geografia!V4="","",Geografia!V4) ->  | T43: =IF(Geografia!W4="","",Geografia!W4) ->  | U43: =IF(Geografia!X4="","",Geografia!X4) ->  | V43: =IF(Geografia!Y4="","",Geografia!Y4) ->  | W43: =IF(Geografia!Z4="","",Geografia!Z4) ->  | X43: =IF(Geografia!AA4="","",Geografia!AA4) ->  | Y43: =IF(Geografia!AB4="","",Geografia!AB4) ->  | Z43: =IF(Geografia!AC4="","",Geografia!AC4) ->  | AA43: =IF(Geografia!AD4="","",Geografia!AD4) ->  | AB43: =IF(Geografia!AE4="","",Geografia!AE4) ->  | AC43: =IF(Geografia!AF4="","",Geografia!AF4) ->  | AD43: =IF(Geografia!AG4="","",Geografia!AG4) ->  | AE43: =IF(Geografia!AH4="","",Geografia!AH4) ->  | AF43: =IF(Geografia!AI4="","",Geografia!AI4) ->  | AG43: =IF(Geografia!AJ4="","",Geografia!AJ4) ->  | AH43: =IF(Geografia!AK4="","",Geografia!AK4) ->  | AI43: =IF(Geografia!AL4="","",Geografia!AL4) ->  | AJ43: =IF(Geografia!AM4="","",Geografia!AM4) ->  | AK43: =IF(Geografia!AN4="","",Geografia!AN4) ->  | AL43: =IF(Geografia!AO4="","",Geografia!AO4) ->  | AM43: =IF(Geografia!AP4="","",Geografia!AP4) -> 
D44: Criterio Evaluación 1.2 | E44: =IF(Geografia!H5="","",Geografia!H5) ->  | F44: =IF(Geografia!I5="","",Geografia!I5) ->  | G44: =IF(Geografia!J5="","",Geografia!J5) ->  | H44: =IF(Geografia!K5="","",Geografia!K5) ->  | I44: =IF(Geografia!L5="","",Geografia!L5) ->  | J44: =IF(Geografia!M5="","",Geografia!M5) ->  | K44: =IF(Geografia!N5="","",Geografia!N5) ->  | L44: =IF(Geografia!O5="","",Geografia!O5) ->  | M44: =IF(Geografia!P5="","",Geografia!P5) ->  | N44: =IF(Geografia!Q5="","",Geografia!Q5) ->  | O44: =IF(Geografia!R5="","",Geografia!R5) ->  | P44: =IF(Geografia!S5="","",Geografia!S5) ->  | Q44: =IF(Geografia!T5="","",Geografia!T5) ->  | R44: =IF(Geografia!U5="","",Geografia!U5) ->  | S44: =IF(Geografia!V5="","",Geografia!V5) ->  | T44: =IF(Geografia!W5="","",Geografia!W5) ->  | U44: =IF(Geografia!X5="","",Geografia!X5) ->  | V44: =IF(Geografia!Y5="","",Geografia!Y5) ->  | W44: =IF(Geografia!Z5="","",Geografia!Z5) ->  | X44: =IF(Geografia!AA5="","",Geografia!AA5) ->  | Y44: =IF(Geografia!AB5="","",Geografia!AB5) ->  | Z44: =IF(Geografia!AC5="","",Geografia!AC5) ->  | AA44: =IF(Geografia!AD5="","",Geografia!AD5) ->  | AB44: =IF(Geografia!AE5="","",Geografia!AE5) ->  | AC44: =IF(Geografia!AF5="","",Geografia!AF5) ->  | AD44: =IF(Geografia!AG5="","",Geografia!AG5) ->  | AE44: =IF(Geografia!AH5="","",Geografia!AH5) ->  | AF44: =IF(Geografia!AI5="","",Geografia!AI5) ->  | AG44: =IF(Geografia!AJ5="","",Geografia!AJ5) ->  | AH44: =IF(Geografia!AK5="","",Geografia!AK5) ->  | AI44: =IF(Geografia!AL5="","",Geografia!AL5) ->  | AJ44: =IF(Geografia!AM5="","",Geografia!AM5) ->  | AK44: =IF(Geografia!AN5="","",Geografia!AN5) ->  | AL44: =IF(Geografia!AO5="","",Geografia!AO5) ->  | AM44: =IF(Geografia!AP5="","",Geografia!AP5) -> 
C45: Comp. Esp. 2 | D45: Criterio Evaluación 2.1 | E45: =IF(Geografia!H6="","",Geografia!H6) ->  | F45: =IF(Geografia!I6="","",Geografia!I6) ->  | G45: =IF(Geografia!J6="","",Geografia!J6) ->  | H45: =IF(Geografia!K6="","",Geografia!K6) ->  | I45: =IF(Geografia!L6="","",Geografia!L6) ->  | J45: =IF(Geografia!M6="","",Geografia!M6) ->  | K45: =IF(Geografia!N6="","",Geografia!N6) ->  | L45: =IF(Geografia!O6="","",Geografia!O6) ->  | M45: =IF(Geografia!P6="","",Geografia!P6) ->  | N45: =IF(Geografia!Q6="","",Geografia!Q6) ->  | O45: =IF(Geografia!R6="","",Geografia!R6) ->  | P45: =IF(Geografia!S6="","",Geografia!S6) ->  | Q45: =IF(Geografia!T6="","",Geografia!T6) ->  | R45: =IF(Geografia!U6="","",Geografia!U6) ->  | S45: =IF(Geografia!V6="","",Geografia!V6) ->  | T45: =IF(Geografia!W6="","",Geografia!W6) ->  | U45: =IF(Geografia!X6="","",Geografia!X6) ->  | V45: =IF(Geografia!Y6="","",Geografia!Y6) ->  | W45: =IF(Geografia!Z6="","",Geografia!Z6) ->  | X45: =IF(Geografia!AA6="","",Geografia!AA6) ->  | Y45: =IF(Geografia!AB6="","",Geografia!AB6) ->  | Z45: =IF(Geografia!AC6="","",Geografia!AC6) ->  | AA45: =IF(Geografia!AD6="","",Geografia!AD6) ->  | AB45: =IF(Geografia!AE6="","",Geografia!AE6) ->  | AC45: =IF(Geografia!AF6="","",Geografia!AF6) ->  | AD45: =IF(Geografia!AG6="","",Geografia!AG6) ->  | AE45: =IF(Geografia!AH6="","",Geografia!AH6) ->  | AF45: =IF(Geografia!AI6="","",Geografia!AI6) ->  | AG45: =IF(Geografia!AJ6="","",Geografia!AJ6) ->  | AH45: =IF(Geografia!AK6="","",Geografia!AK6) ->  | AI45: =IF(Geografia!AL6="","",Geografia!AL6) ->  | AJ45: =IF(Geografia!AM6="","",Geografia!AM6) ->  | AK45: =IF(Geografia!AN6="","",Geografia!AN6) ->  | AL45: =IF(Geografia!AO6="","",Geografia!AO6) ->  | AM45: =IF(Geografia!AP6="","",Geografia!AP6) -> 
D46: Criterio Evaluación 2.2 | E46: =IF(Geografia!H7="","",Geografia!H7) ->  | F46: =IF(Geografia!I7="","",Geografia!I7) ->  | G46: =IF(Geografia!J7="","",Geografia!J7) ->  | H46: =IF(Geografia!K7="","",Geografia!K7) ->  | I46: =IF(Geografia!L7="","",Geografia!L7) ->  | J46: =IF(Geografia!M7="","",Geografia!M7) ->  | K46: =IF(Geografia!N7="","",Geografia!N7) ->  | L46: =IF(Geografia!O7="","",Geografia!O7) ->  | M46: =IF(Geografia!P7="","",Geografia!P7) ->  | N46: =IF(Geografia!Q7="","",Geografia!Q7) ->  | O46: =IF(Geografia!R7="","",Geografia!R7) ->  | P46: =IF(Geografia!S7="","",Geografia!S7) ->  | Q46: =IF(Geografia!T7="","",Geografia!T7) ->  | R46: =IF(Geografia!U7="","",Geografia!U7) ->  | S46: =IF(Geografia!V7="","",Geografia!V7) ->  | T46: =IF(Geografia!W7="","",Geografia!W7) ->  | U46: =IF(Geografia!X7="","",Geografia!X7) ->  | V46: =IF(Geografia!Y7="","",Geografia!Y7) ->  | W46: =IF(Geografia!Z7="","",Geografia!Z7) ->  | X46: =IF(Geografia!AA7="","",Geografia!AA7) ->  | Y46: =IF(Geografia!AB7="","",Geografia!AB7) ->  | Z46: =IF(Geografia!AC7="","",Geografia!AC7) ->  | AA46: =IF(Geografia!AD7="","",Geografia!AD7) ->  | AB46: =IF(Geografia!AE7="","",Geografia!AE7) ->  | AC46: =IF(Geografia!AF7="","",Geografia!AF7) ->  | AD46: =IF(Geografia!AG7="","",Geografia!AG7) ->  | AE46: =IF(Geografia!AH7="","",Geografia!AH7) ->  | AF46: =IF(Geografia!AI7="","",Geografia!AI7) ->  | AG46: =IF(Geografia!AJ7="","",Geografia!AJ7) ->  | AH46: =IF(Geografia!AK7="","",Geografia!AK7) ->  | AI46: =IF(Geografia!AL7="","",Geografia!AL7) ->  | AJ46: =IF(Geografia!AM7="","",Geografia!AM7) ->  | AK46: =IF(Geografia!AN7="","",Geografia!AN7) ->  | AL46: =IF(Geografia!AO7="","",Geografia!AO7) ->  | AM46: =IF(Geografia!AP7="","",Geografia!AP7) -> 
C47: Comp. Esp. 3 | D47: Criterio Evaluación 3.1 | E47: =IF(Geografia!H8="","",Geografia!H8) ->  | F47: =IF(Geografia!I8="","",Geografia!I8) ->  | G47: =IF(Geografia!J8="","",Geografia!J8) ->  | H47: =IF(Geografia!K8="","",Geografia!K8) ->  | I47: =IF(Geografia!L8="","",Geografia!L8) ->  | J47: =IF(Geografia!M8="","",Geografia!M8) ->  | K47: =IF(Geografia!N8="","",Geografia!N8) ->  | L47: =IF(Geografia!O8="","",Geografia!O8) ->  | M47: =IF(Geografia!P8="","",Geografia!P8) ->  | N47: =IF(Geografia!Q8="","",Geografia!Q8) ->  | O47: =IF(Geografia!R8="","",Geografia!R8) ->  | P47: =IF(Geografia!S8="","",Geografia!S8) ->  | Q47: =IF(Geografia!T8="","",Geografia!T8) ->  | R47: =IF(Geografia!U8="","",Geografia!U8) ->  | S47: =IF(Geografia!V8="","",Geografia!V8) ->  | T47: =IF(Geografia!W8="","",Geografia!W8) ->  | U47: =IF(Geografia!X8="","",Geografia!X8) ->  | V47: =IF(Geografia!Y8="","",Geografia!Y8) ->  | W47: =IF(Geografia!Z8="","",Geografia!Z8) ->  | X47: =IF(Geografia!AA8="","",Geografia!AA8) ->  | Y47: =IF(Geografia!AB8="","",Geografia!AB8) ->  | Z47: =IF(Geografia!AC8="","",Geografia!AC8) ->  | AA47: =IF(Geografia!AD8="","",Geografia!AD8) ->  | AB47: =IF(Geografia!AE8="","",Geografia!AE8) ->  | AC47: =IF(Geografia!AF8="","",Geografia!AF8) ->  | AD47: =IF(Geografia!AG8="","",Geografia!AG8) ->  | AE47: =IF(Geografia!AH8="","",Geografia!AH8) ->  | AF47: =IF(Geografia!AI8="","",Geografia!AI8) ->  | AG47: =IF(Geografia!AJ8="","",Geografia!AJ8) ->  | AH47: =IF(Geografia!AK8="","",Geografia!AK8) ->  | AI47: =IF(Geografia!AL8="","",Geografia!AL8) ->  | AJ47: =IF(Geografia!AM8="","",Geografia!AM8) ->  | AK47: =IF(Geografia!AN8="","",Geografia!AN8) ->  | AL47: =IF(Geografia!AO8="","",Geografia!AO8) ->  | AM47: =IF(Geografia!AP8="","",Geografia!AP8) -> 
D48: Criterio Evaluación 3.2 | E48: =IF(Geografia!H9="","",Geografia!H9) ->  | F48: =IF(Geografia!I9="","",Geografia!I9) ->  | G48: =IF(Geografia!J9="","",Geografia!J9) ->  | H48: =IF(Geografia!K9="","",Geografia!K9) ->  | I48: =IF(Geografia!L9="","",Geografia!L9) ->  | J48: =IF(Geografia!M9="","",Geografia!M9) ->  | K48: =IF(Geografia!N9="","",Geografia!N9) ->  | L48: =IF(Geografia!O9="","",Geografia!O9) ->  | M48: =IF(Geografia!P9="","",Geografia!P9) ->  | N48: =IF(Geografia!Q9="","",Geografia!Q9) ->  | O48: =IF(Geografia!R9="","",Geografia!R9) ->  | P48: =IF(Geografia!S9="","",Geografia!S9) ->  | Q48: =IF(Geografia!T9="","",Geografia!T9) ->  | R48: =IF(Geografia!U9="","",Geografia!U9) ->  | S48: =IF(Geografia!V9="","",Geografia!V9) ->  | T48: =IF(Geografia!W9="","",Geografia!W9) ->  | U48: =IF(Geografia!X9="","",Geografia!X9) ->  | V48: =IF(Geografia!Y9="","",Geografia!Y9) ->  | W48: =IF(Geografia!Z9="","",Geografia!Z9) ->  | X48: =IF(Geografia!AA9="","",Geografia!AA9) ->  | Y48: =IF(Geografia!AB9="","",Geografia!AB9) ->  | Z48: =IF(Geografia!AC9="","",Geografia!AC9) ->  | AA48: =IF(Geografia!AD9="","",Geografia!AD9) ->  | AB48: =IF(Geografia!AE9="","",Geografia!AE9) ->  | AC48: =IF(Geografia!AF9="","",Geografia!AF9) ->  | AD48: =IF(Geografia!AG9="","",Geografia!AG9) ->  | AE48: =IF(Geografia!AH9="","",Geografia!AH9) ->  | AF48: =IF(Geografia!AI9="","",Geografia!AI9) ->  | AG48: =IF(Geografia!AJ9="","",Geografia!AJ9) ->  | AH48: =IF(Geografia!AK9="","",Geografia!AK9) ->  | AI48: =IF(Geografia!AL9="","",Geografia!AL9) ->  | AJ48: =IF(Geografia!AM9="","",Geografia!AM9) ->  | AK48: =IF(Geografia!AN9="","",Geografia!AN9) ->  | AL48: =IF(Geografia!AO9="","",Geografia!AO9) ->  | AM48: =IF(Geografia!AP9="","",Geografia!AP9) -> 
C49: Comp. Esp. 4 | D49: Criterio Evaluación 4.1 | E49: =IF(Geografia!H10="","",Geografia!H10) ->  | F49: =IF(Geografia!I10="","",Geografia!I10) ->  | G49: =IF(Geografia!J10="","",Geografia!J10) ->  | H49: =IF(Geografia!K10="","",Geografia!K10) ->  | I49: =IF(Geografia!L10="","",Geografia!L10) ->  | J49: =IF(Geografia!M10="","",Geografia!M10) ->  | K49: =IF(Geografia!N10="","",Geografia!N10) ->  | L49: =IF(Geografia!O10="","",Geografia!O10) ->  | M49: =IF(Geografia!P10="","",Geografia!P10) ->  | N49: =IF(Geografia!Q10="","",Geografia!Q10) ->  | O49: =IF(Geografia!R10="","",Geografia!R10) ->  | P49: =IF(Geografia!S10="","",Geografia!S10) ->  | Q49: =IF(Geografia!T10="","",Geografia!T10) ->  | R49: =IF(Geografia!U10="","",Geografia!U10) ->  | S49: =IF(Geografia!V10="","",Geografia!V10) ->  | T49: =IF(Geografia!W10="","",Geografia!W10) ->  | U49: =IF(Geografia!X10="","",Geografia!X10) ->  | V49: =IF(Geografia!Y10="","",Geografia!Y10) ->  | W49: =IF(Geografia!Z10="","",Geografia!Z10) ->  | X49: =IF(Geografia!AA10="","",Geografia!AA10) ->  | Y49: =IF(Geografia!AB10="","",Geografia!AB10) ->  | Z49: =IF(Geografia!AC10="","",Geografia!AC10) ->  | AA49: =IF(Geografia!AD10="","",Geografia!AD10) ->  | AB49: =IF(Geografia!AE10="","",Geografia!AE10) ->  | AC49: =IF(Geografia!AF10="","",Geografia!AF10) ->  | AD49: =IF(Geografia!AG10="","",Geografia!AG10) ->  | AE49: =IF(Geografia!AH10="","",Geografia!AH10) ->  | AF49: =IF(Geografia!AI10="","",Geografia!AI10) ->  | AG49: =IF(Geografia!AJ10="","",Geografia!AJ10) ->  | AH49: =IF(Geografia!AK10="","",Geografia!AK10) ->  | AI49: =IF(Geografia!AL10="","",Geografia!AL10) ->  | AJ49: =IF(Geografia!AM10="","",Geografia!AM10) ->  | AK49: =IF(Geografia!AN10="","",Geografia!AN10) ->  | AL49: =IF(Geografia!AO10="","",Geografia!AO10) ->  | AM49: =IF(Geografia!AP10="","",Geografia!AP10) -> 
D50: Criterio Evaluación 4.2 | E50: =IF(Geografia!H11="","",Geografia!H11) ->  | F50: =IF(Geografia!I11="","",Geografia!I11) ->  | G50: =IF(Geografia!J11="","",Geografia!J11) ->  | H50: =IF(Geografia!K11="","",Geografia!K11) ->  | I50: =IF(Geografia!L11="","",Geografia!L11) ->  | J50: =IF(Geografia!M11="","",Geografia!M11) ->  | K50: =IF(Geografia!N11="","",Geografia!N11) ->  | L50: =IF(Geografia!O11="","",Geografia!O11) ->  | M50: =IF(Geografia!P11="","",Geografia!P11) ->  | N50: =IF(Geografia!Q11="","",Geografia!Q11) ->  | O50: =IF(Geografia!R11="","",Geografia!R11) ->  | P50: =IF(Geografia!S11="","",Geografia!S11) ->  | Q50: =IF(Geografia!T11="","",Geografia!T11) ->  | R50: =IF(Geografia!U11="","",Geografia!U11) ->  | S50: =IF(Geografia!V11="","",Geografia!V11) ->  | T50: =IF(Geografia!W11="","",Geografia!W11) ->  | U50: =IF(Geografia!X11="","",Geografia!X11) ->  | V50: =IF(Geografia!Y11="","",Geografia!Y11) ->  | W50: =IF(Geografia!Z11="","",Geografia!Z11) ->  | X50: =IF(Geografia!AA11="","",Geografia!AA11) ->  | Y50: =IF(Geografia!AB11="","",Geografia!AB11) ->  | Z50: =IF(Geografia!AC11="","",Geografia!AC11) ->  | AA50: =IF(Geografia!AD11="","",Geografia!AD11) ->  | AB50: =IF(Geografia!AE11="","",Geografia!AE11) ->  | AC50: =IF(Geografia!AF11="","",Geografia!AF11) ->  | AD50: =IF(Geografia!AG11="","",Geografia!AG11) ->  | AE50: =IF(Geografia!AH11="","",Geografia!AH11) ->  | AF50: =IF(Geografia!AI11="","",Geografia!AI11) ->  | AG50: =IF(Geografia!AJ11="","",Geografia!AJ11) ->  | AH50: =IF(Geografia!AK11="","",Geografia!AK11) ->  | AI50: =IF(Geografia!AL11="","",Geografia!AL11) ->  | AJ50: =IF(Geografia!AM11="","",Geografia!AM11) ->  | AK50: =IF(Geografia!AN11="","",Geografia!AN11) ->  | AL50: =IF(Geografia!AO11="","",Geografia!AO11) ->  | AM50: =IF(Geografia!AP11="","",Geografia!AP11) -> 
C51: Comp. Esp. 5 | D51: Criterio Evaluación 5.1 | E51: =IF(Geografia!H12="","",Geografia!H12) ->  | F51: =IF(Geografia!I12="","",Geografia!I12) ->  | G51: =IF(Geografia!J12="","",Geografia!J12) ->  | H51: =IF(Geografia!K12="","",Geografia!K12) ->  | I51: =IF(Geografia!L12="","",Geografia!L12) ->  | J51: =IF(Geografia!M12="","",Geografia!M12) ->  | K51: =IF(Geografia!N12="","",Geografia!N12) ->  | L51: =IF(Geografia!O12="","",Geografia!O12) ->  | M51: =IF(Geografia!P12="","",Geografia!P12) ->  | N51: =IF(Geografia!Q12="","",Geografia!Q12) ->  | O51: =IF(Geografia!R12="","",Geografia!R12) ->  | P51: =IF(Geografia!S12="","",Geografia!S12) ->  | Q51: =IF(Geografia!T12="","",Geografia!T12) ->  | R51: =IF(Geografia!U12="","",Geografia!U12) ->  | S51: =IF(Geografia!V12="","",Geografia!V12) ->  | T51: =IF(Geografia!W12="","",Geografia!W12) ->  | U51: =IF(Geografia!X12="","",Geografia!X12) ->  | V51: =IF(Geografia!Y12="","",Geografia!Y12) ->  | W51: =IF(Geografia!Z12="","",Geografia!Z12) ->  | X51: =IF(Geografia!AA12="","",Geografia!AA12) ->  | Y51: =IF(Geografia!AB12="","",Geografia!AB12) ->  | Z51: =IF(Geografia!AC12="","",Geografia!AC12) ->  | AA51: =IF(Geografia!AD12="","",Geografia!AD12) ->  | AB51: =IF(Geografia!AE12="","",Geografia!AE12) ->  | AC51: =IF(Geografia!AF12="","",Geografia!AF12) ->  | AD51: =IF(Geografia!AG12="","",Geografia!AG12) ->  | AE51: =IF(Geografia!AH12="","",Geografia!AH12) ->  | AF51: =IF(Geografia!AI12="","",Geografia!AI12) ->  | AG51: =IF(Geografia!AJ12="","",Geografia!AJ12) ->  | AH51: =IF(Geografia!AK12="","",Geografia!AK12) ->  | AI51: =IF(Geografia!AL12="","",Geografia!AL12) ->  | AJ51: =IF(Geografia!AM12="","",Geografia!AM12) ->  | AK51: =IF(Geografia!AN12="","",Geografia!AN12) ->  | AL51: =IF(Geografia!AO12="","",Geografia!AO12) ->  | AM51: =IF(Geografia!AP12="","",Geografia!AP12) -> 
D52: Criterio Evaluación 5.2 | E52: =IF(Geografia!H13="","",Geografia!H13) ->  | F52: =IF(Geografia!I13="","",Geografia!I13) ->  | G52: =IF(Geografia!J13="","",Geografia!J13) ->  | H52: =IF(Geografia!K13="","",Geografia!K13) ->  | I52: =IF(Geografia!L13="","",Geografia!L13) ->  | J52: =IF(Geografia!M13="","",Geografia!M13) ->  | K52: =IF(Geografia!N13="","",Geografia!N13) ->  | L52: =IF(Geografia!O13="","",Geografia!O13) ->  | M52: =IF(Geografia!P13="","",Geografia!P13) ->  | N52: =IF(Geografia!Q13="","",Geografia!Q13) ->  | O52: =IF(Geografia!R13="","",Geografia!R13) ->  | P52: =IF(Geografia!S13="","",Geografia!S13) ->  | Q52: =IF(Geografia!T13="","",Geografia!T13) ->  | R52: =IF(Geografia!U13="","",Geografia!U13) ->  | S52: =IF(Geografia!V13="","",Geografia!V13) ->  | T52: =IF(Geografia!W13="","",Geografia!W13) ->  | U52: =IF(Geografia!X13="","",Geografia!X13) ->  | V52: =IF(Geografia!Y13="","",Geografia!Y13) ->  | W52: =IF(Geografia!Z13="","",Geografia!Z13) ->  | X52: =IF(Geografia!AA13="","",Geografia!AA13) ->  | Y52: =IF(Geografia!AB13="","",Geografia!AB13) ->  | Z52: =IF(Geografia!AC13="","",Geografia!AC13) ->  | AA52: =IF(Geografia!AD13="","",Geografia!AD13) ->  | AB52: =IF(Geografia!AE13="","",Geografia!AE13) ->  | AC52: =IF(Geografia!AF13="","",Geografia!AF13) ->  | AD52: =IF(Geografia!AG13="","",Geografia!AG13) ->  | AE52: =IF(Geografia!AH13="","",Geografia!AH13) ->  | AF52: =IF(Geografia!AI13="","",Geografia!AI13) ->  | AG52: =IF(Geografia!AJ13="","",Geografia!AJ13) ->  | AH52: =IF(Geografia!AK13="","",Geografia!AK13) ->  | AI52: =IF(Geografia!AL13="","",Geografia!AL13) ->  | AJ52: =IF(Geografia!AM13="","",Geografia!AM13) ->  | AK52: =IF(Geografia!AN13="","",Geografia!AN13) ->  | AL52: =IF(Geografia!AO13="","",Geografia!AO13) ->  | AM52: =IF(Geografia!AP13="","",Geografia!AP13) -> 
C53: Comp. Esp. 6 | D53: Criterio Evaluación 6.1 | E53: =IF(Geografia!H14="","",Geografia!H14) ->  | F53: =IF(Geografia!I14="","",Geografia!I14) ->  | G53: =IF(Geografia!J14="","",Geografia!J14) ->  | H53: =IF(Geografia!K14="","",Geografia!K14) ->  | I53: =IF(Geografia!L14="","",Geografia!L14) ->  | J53: =IF(Geografia!M14="","",Geografia!M14) ->  | K53: =IF(Geografia!N14="","",Geografia!N14) ->  | L53: =IF(Geografia!O14="","",Geografia!O14) ->  | M53: =IF(Geografia!P14="","",Geografia!P14) ->  | N53: =IF(Geografia!Q14="","",Geografia!Q14) ->  | O53: =IF(Geografia!R14="","",Geografia!R14) ->  | P53: =IF(Geografia!S14="","",Geografia!S14) ->  | Q53: =IF(Geografia!T14="","",Geografia!T14) ->  | R53: =IF(Geografia!U14="","",Geografia!U14) ->  | S53: =IF(Geografia!V14="","",Geografia!V14) ->  | T53: =IF(Geografia!W14="","",Geografia!W14) ->  | U53: =IF(Geografia!X14="","",Geografia!X14) ->  | V53: =IF(Geografia!Y14="","",Geografia!Y14) ->  | W53: =IF(Geografia!Z14="","",Geografia!Z14) ->  | X53: =IF(Geografia!AA14="","",Geografia!AA14) ->  | Y53: =IF(Geografia!AB14="","",Geografia!AB14) ->  | Z53: =IF(Geografia!AC14="","",Geografia!AC14) ->  | AA53: =IF(Geografia!AD14="","",Geografia!AD14) ->  | AB53: =IF(Geografia!AE14="","",Geografia!AE14) ->  | AC53: =IF(Geografia!AF14="","",Geografia!AF14) ->  | AD53: =IF(Geografia!AG14="","",Geografia!AG14) ->  | AE53: =IF(Geografia!AH14="","",Geografia!AH14) ->  | AF53: =IF(Geografia!AI14="","",Geografia!AI14) ->  | AG53: =IF(Geografia!AJ14="","",Geografia!AJ14) ->  | AH53: =IF(Geografia!AK14="","",Geografia!AK14) ->  | AI53: =IF(Geografia!AL14="","",Geografia!AL14) ->  | AJ53: =IF(Geografia!AM14="","",Geografia!AM14) ->  | AK53: =IF(Geografia!AN14="","",Geografia!AN14) ->  | AL53: =IF(Geografia!AO14="","",Geografia!AO14) ->  | AM53: =IF(Geografia!AP14="","",Geografia!AP14) -> 
D54: Criterio Evaluación 6.2 | E54: =IF(Geografia!H15="","",Geografia!H15) ->  | F54: =IF(Geografia!I15="","",Geografia!I15) ->  | G54: =IF(Geografia!J15="","",Geografia!J15) ->  | H54: =IF(Geografia!K15="","",Geografia!K15) ->  | I54: =IF(Geografia!L15="","",Geografia!L15) ->  | J54: =IF(Geografia!M15="","",Geografia!M15) ->  | K54: =IF(Geografia!N15="","",Geografia!N15) ->  | L54: =IF(Geografia!O15="","",Geografia!O15) ->  | M54: =IF(Geografia!P15="","",Geografia!P15) ->  | N54: =IF(Geografia!Q15="","",Geografia!Q15) ->  | O54: =IF(Geografia!R15="","",Geografia!R15) ->  | P54: =IF(Geografia!S15="","",Geografia!S15) ->  | Q54: =IF(Geografia!T15="","",Geografia!T15) ->  | R54: =IF(Geografia!U15="","",Geografia!U15) ->  | S54: =IF(Geografia!V15="","",Geografia!V15) ->  | T54: =IF(Geografia!W15="","",Geografia!W15) ->  | U54: =IF(Geografia!X15="","",Geografia!X15) ->  | V54: =IF(Geografia!Y15="","",Geografia!Y15) ->  | W54: =IF(Geografia!Z15="","",Geografia!Z15) ->  | X54: =IF(Geografia!AA15="","",Geografia!AA15) ->  | Y54: =IF(Geografia!AB15="","",Geografia!AB15) ->  | Z54: =IF(Geografia!AC15="","",Geografia!AC15) ->  | AA54: =IF(Geografia!AD15="","",Geografia!AD15) ->  | AB54: =IF(Geografia!AE15="","",Geografia!AE15) ->  | AC54: =IF(Geografia!AF15="","",Geografia!AF15) ->  | AD54: =IF(Geografia!AG15="","",Geografia!AG15) ->  | AE54: =IF(Geografia!AH15="","",Geografia!AH15) ->  | AF54: =IF(Geografia!AI15="","",Geografia!AI15) ->  | AG54: =IF(Geografia!AJ15="","",Geografia!AJ15) ->  | AH54: =IF(Geografia!AK15="","",Geografia!AK15) ->  | AI54: =IF(Geografia!AL15="","",Geografia!AL15) ->  | AJ54: =IF(Geografia!AM15="","",Geografia!AM15) ->  | AK54: =IF(Geografia!AN15="","",Geografia!AN15) ->  | AL54: =IF(Geografia!AO15="","",Geografia!AO15) ->  | AM54: =IF(Geografia!AP15="","",Geografia!AP15) -> 
C55: Comp. Esp. 7 | D55: Criterio Evaluación 7.1 | E55: =IF(Geografia!H16="","",Geografia!H16) ->  | F55: =IF(Geografia!I16="","",Geografia!I16) ->  | G55: =IF(Geografia!J16="","",Geografia!J16) ->  | H55: =IF(Geografia!K16="","",Geografia!K16) ->  | I55: =IF(Geografia!L16="","",Geografia!L16) ->  | J55: =IF(Geografia!M16="","",Geografia!M16) ->  | K55: =IF(Geografia!N16="","",Geografia!N16) ->  | L55: =IF(Geografia!O16="","",Geografia!O16) ->  | M55: =IF(Geografia!P16="","",Geografia!P16) ->  | N55: =IF(Geografia!Q16="","",Geografia!Q16) ->  | O55: =IF(Geografia!R16="","",Geografia!R16) ->  | P55: =IF(Geografia!S16="","",Geografia!S16) ->  | Q55: =IF(Geografia!T16="","",Geografia!T16) ->  | R55: =IF(Geografia!U16="","",Geografia!U16) ->  | S55: =IF(Geografia!V16="","",Geografia!V16) ->  | T55: =IF(Geografia!W16="","",Geografia!W16) ->  | U55: =IF(Geografia!X16="","",Geografia!X16) ->  | V55: =IF(Geografia!Y16="","",Geografia!Y16) ->  | W55: =IF(Geografia!Z16="","",Geografia!Z16) ->  | X55: =IF(Geografia!AA16="","",Geografia!AA16) ->  | Y55: =IF(Geografia!AB16="","",Geografia!AB16) ->  | Z55: =IF(Geografia!AC16="","",Geografia!AC16) ->  | AA55: =IF(Geografia!AD16="","",Geografia!AD16) ->  | AB55: =IF(Geografia!AE16="","",Geografia!AE16) ->  | AC55: =IF(Geografia!AF16="","",Geografia!AF16) ->  | AD55: =IF(Geografia!AG16="","",Geografia!AG16) ->  | AE55: =IF(Geografia!AH16="","",Geografia!AH16) ->  | AF55: =IF(Geografia!AI16="","",Geografia!AI16) ->  | AG55: =IF(Geografia!AJ16="","",Geografia!AJ16) ->  | AH55: =IF(Geografia!AK16="","",Geografia!AK16) ->  | AI55: =IF(Geografia!AL16="","",Geografia!AL16) ->  | AJ55: =IF(Geografia!AM16="","",Geografia!AM16) ->  | AK55: =IF(Geografia!AN16="","",Geografia!AN16) ->  | AL55: =IF(Geografia!AO16="","",Geografia!AO16) ->  | AM55: =IF(Geografia!AP16="","",Geografia!AP16) -> 
B56: Griego II | C56: Comp. Esp. 1 | D56: Criterio Evaluación 1.1 | E56: =IF(Griego!H4="","",Griego!H4) ->  | F56: =IF(Griego!I4="","",Griego!I4) ->  | G56: =IF(Griego!J4="","",Griego!J4) ->  | H56: =IF(Griego!K4="","",Griego!K4) ->  | I56: =IF(Griego!L4="","",Griego!L4) ->  | J56: =IF(Griego!M4="","",Griego!M4) ->  | K56: =IF(Griego!N4="","",Griego!N4) ->  | L56: =IF(Griego!O4="","",Griego!O4) ->  | M56: =IF(Griego!P4="","",Griego!P4) ->  | N56: =IF(Griego!Q4="","",Griego!Q4) ->  | O56: =IF(Griego!R4="","",Griego!R4) ->  | P56: =IF(Griego!S4="","",Griego!S4) ->  | Q56: =IF(Griego!T4="","",Griego!T4) ->  | R56: =IF(Griego!U4="","",Griego!U4) ->  | S56: =IF(Griego!V4="","",Griego!V4) ->  | T56: =IF(Griego!W4="","",Griego!W4) ->  | U56: =IF(Griego!X4="","",Griego!X4) ->  | V56: =IF(Griego!Y4="","",Griego!Y4) ->  | W56: =IF(Griego!Z4="","",Griego!Z4) ->  | X56: =IF(Griego!AA4="","",Griego!AA4) ->  | Y56: =IF(Griego!AB4="","",Griego!AB4) ->  | Z56: =IF(Griego!AC4="","",Griego!AC4) ->  | AA56: =IF(Griego!AD4="","",Griego!AD4) ->  | AB56: =IF(Griego!AE4="","",Griego!AE4) ->  | AC56: =IF(Griego!AF4="","",Griego!AF4) ->  | AD56: =IF(Griego!AG4="","",Griego!AG4) ->  | AE56: =IF(Griego!AH4="","",Griego!AH4) ->  | AF56: =IF(Griego!AI4="","",Griego!AI4) ->  | AG56: =IF(Griego!AJ4="","",Griego!AJ4) ->  | AH56: =IF(Griego!AK4="","",Griego!AK4) ->  | AI56: =IF(Griego!AL4="","",Griego!AL4) ->  | AJ56: =IF(Griego!AM4="","",Griego!AM4) ->  | AK56: =IF(Griego!AN4="","",Griego!AN4) ->  | AL56: =IF(Griego!AO4="","",Griego!AO4) ->  | AM56: =IF(Griego!AP4="","",Griego!AP4) -> 
D57: Criterio Evaluación 1.2 | E57: =IF(Griego!H5="","",Griego!H5) ->  | F57: =IF(Griego!I5="","",Griego!I5) ->  | G57: =IF(Griego!J5="","",Griego!J5) ->  | H57: =IF(Griego!K5="","",Griego!K5) ->  | I57: =IF(Griego!L5="","",Griego!L5) ->  | J57: =IF(Griego!M5="","",Griego!M5) ->  | K57: =IF(Griego!N5="","",Griego!N5) ->  | L57: =IF(Griego!O5="","",Griego!O5) ->  | M57: =IF(Griego!P5="","",Griego!P5) ->  | N57: =IF(Griego!Q5="","",Griego!Q5) ->  | O57: =IF(Griego!R5="","",Griego!R5) ->  | P57: =IF(Griego!S5="","",Griego!S5) ->  | Q57: =IF(Griego!T5="","",Griego!T5) ->  | R57: =IF(Griego!U5="","",Griego!U5) ->  | S57: =IF(Griego!V5="","",Griego!V5) ->  | T57: =IF(Griego!W5="","",Griego!W5) ->  | U57: =IF(Griego!X5="","",Griego!X5) ->  | V57: =IF(Griego!Y5="","",Griego!Y5) ->  | W57: =IF(Griego!Z5="","",Griego!Z5) ->  | X57: =IF(Griego!AA5="","",Griego!AA5) ->  | Y57: =IF(Griego!AB5="","",Griego!AB5) ->  | Z57: =IF(Griego!AC5="","",Griego!AC5) ->  | AA57: =IF(Griego!AD5="","",Griego!AD5) ->  | AB57: =IF(Griego!AE5="","",Griego!AE5) ->  | AC57: =IF(Griego!AF5="","",Griego!AF5) ->  | AD57: =IF(Griego!AG5="","",Griego!AG5) ->  | AE57: =IF(Griego!AH5="","",Griego!AH5) ->  | AF57: =IF(Griego!AI5="","",Griego!AI5) ->  | AG57: =IF(Griego!AJ5="","",Griego!AJ5) ->  | AH57: =IF(Griego!AK5="","",Griego!AK5) ->  | AI57: =IF(Griego!AL5="","",Griego!AL5) ->  | AJ57: =IF(Griego!AM5="","",Griego!AM5) ->  | AK57: =IF(Griego!AN5="","",Griego!AN5) ->  | AL57: =IF(Griego!AO5="","",Griego!AO5) ->  | AM57: =IF(Griego!AP5="","",Griego!AP5) -> 
D58: Criterio Evaluación 1.3 | E58: =IF(Griego!H6="","",Griego!H6) ->  | F58: =IF(Griego!I6="","",Griego!I6) ->  | G58: =IF(Griego!J6="","",Griego!J6) ->  | H58: =IF(Griego!K6="","",Griego!K6) ->  | I58: =IF(Griego!L6="","",Griego!L6) ->  | J58: =IF(Griego!M6="","",Griego!M6) ->  | K58: =IF(Griego!N6="","",Griego!N6) ->  | L58: =IF(Griego!O6="","",Griego!O6) ->  | M58: =IF(Griego!P6="","",Griego!P6) ->  | N58: =IF(Griego!Q6="","",Griego!Q6) ->  | O58: =IF(Griego!R6="","",Griego!R6) ->  | P58: =IF(Griego!S6="","",Griego!S6) ->  | Q58: =IF(Griego!T6="","",Griego!T6) ->  | R58: =IF(Griego!U6="","",Griego!U6) ->  | S58: =IF(Griego!V6="","",Griego!V6) ->  | T58: =IF(Griego!W6="","",Griego!W6) ->  | U58: =IF(Griego!X6="","",Griego!X6) ->  | V58: =IF(Griego!Y6="","",Griego!Y6) ->  | W58: =IF(Griego!Z6="","",Griego!Z6) ->  | X58: =IF(Griego!AA6="","",Griego!AA6) ->  | Y58: =IF(Griego!AB6="","",Griego!AB6) ->  | Z58: =IF(Griego!AC6="","",Griego!AC6) ->  | AA58: =IF(Griego!AD6="","",Griego!AD6) ->  | AB58: =IF(Griego!AE6="","",Griego!AE6) ->  | AC58: =IF(Griego!AF6="","",Griego!AF6) ->  | AD58: =IF(Griego!AG6="","",Griego!AG6) ->  | AE58: =IF(Griego!AH6="","",Griego!AH6) ->  | AF58: =IF(Griego!AI6="","",Griego!AI6) ->  | AG58: =IF(Griego!AJ6="","",Griego!AJ6) ->  | AH58: =IF(Griego!AK6="","",Griego!AK6) ->  | AI58: =IF(Griego!AL6="","",Griego!AL6) ->  | AJ58: =IF(Griego!AM6="","",Griego!AM6) ->  | AK58: =IF(Griego!AN6="","",Griego!AN6) ->  | AL58: =IF(Griego!AO6="","",Griego!AO6) ->  | AM58: =IF(Griego!AP6="","",Griego!AP6) -> 
D59: Criterio Evaluación 1.4 | E59: =IF(Griego!H7="","",Griego!H7) ->  | F59: =IF(Griego!I7="","",Griego!I7) ->  | G59: =IF(Griego!J7="","",Griego!J7) ->  | H59: =IF(Griego!K7="","",Griego!K7) ->  | I59: =IF(Griego!L7="","",Griego!L7) ->  | J59: =IF(Griego!M7="","",Griego!M7) ->  | K59: =IF(Griego!N7="","",Griego!N7) ->  | L59: =IF(Griego!O7="","",Griego!O7) ->  | M59: =IF(Griego!P7="","",Griego!P7) ->  | N59: =IF(Griego!Q7="","",Griego!Q7) ->  | O59: =IF(Griego!R7="","",Griego!R7) ->  | P59: =IF(Griego!S7="","",Griego!S7) ->  | Q59: =IF(Griego!T7="","",Griego!T7) ->  | R59: =IF(Griego!U7="","",Griego!U7) ->  | S59: =IF(Griego!V7="","",Griego!V7) ->  | T59: =IF(Griego!W7="","",Griego!W7) ->  | U59: =IF(Griego!X7="","",Griego!X7) ->  | V59: =IF(Griego!Y7="","",Griego!Y7) ->  | W59: =IF(Griego!Z7="","",Griego!Z7) ->  | X59: =IF(Griego!AA7="","",Griego!AA7) ->  | Y59: =IF(Griego!AB7="","",Griego!AB7) ->  | Z59: =IF(Griego!AC7="","",Griego!AC7) ->  | AA59: =IF(Griego!AD7="","",Griego!AD7) ->  | AB59: =IF(Griego!AE7="","",Griego!AE7) ->  | AC59: =IF(Griego!AF7="","",Griego!AF7) ->  | AD59: =IF(Griego!AG7="","",Griego!AG7) ->  | AE59: =IF(Griego!AH7="","",Griego!AH7) ->  | AF59: =IF(Griego!AI7="","",Griego!AI7) ->  | AG59: =IF(Griego!AJ7="","",Griego!AJ7) ->  | AH59: =IF(Griego!AK7="","",Griego!AK7) ->  | AI59: =IF(Griego!AL7="","",Griego!AL7) ->  | AJ59: =IF(Griego!AM7="","",Griego!AM7) ->  | AK59: =IF(Griego!AN7="","",Griego!AN7) ->  | AL59: =IF(Griego!AO7="","",Griego!AO7) ->  | AM59: =IF(Griego!AP7="","",Griego!AP7) -> 
D60: Criterio Evaluación 1.5 | E60: =IF(Griego!H8="","",Griego!H8) ->  | F60: =IF(Griego!I8="","",Griego!I8) ->  | G60: =IF(Griego!J8="","",Griego!J8) ->  | H60: =IF(Griego!K8="","",Griego!K8) ->  | I60: =IF(Griego!L8="","",Griego!L8) ->  | J60: =IF(Griego!M8="","",Griego!M8) ->  | K60: =IF(Griego!N8="","",Griego!N8) ->  | L60: =IF(Griego!O8="","",Griego!O8) ->  | M60: =IF(Griego!P8="","",Griego!P8) ->  | N60: =IF(Griego!Q8="","",Griego!Q8) ->  | O60: =IF(Griego!R8="","",Griego!R8) ->  | P60: =IF(Griego!S8="","",Griego!S8) ->  | Q60: =IF(Griego!T8="","",Griego!T8) ->  | R60: =IF(Griego!U8="","",Griego!U8) ->  | S60: =IF(Griego!V8="","",Griego!V8) ->  | T60: =IF(Griego!W8="","",Griego!W8) ->  | U60: =IF(Griego!X8="","",Griego!X8) ->  | V60: =IF(Griego!Y8="","",Griego!Y8) ->  | W60: =IF(Griego!Z8="","",Griego!Z8) ->  | X60: =IF(Griego!AA8="","",Griego!AA8) ->  | Y60: =IF(Griego!AB8="","",Griego!AB8) ->  | Z60: =IF(Griego!AC8="","",Griego!AC8) ->  | AA60: =IF(Griego!AD8="","",Griego!AD8) ->  | AB60: =IF(Griego!AE8="","",Griego!AE8) ->  | AC60: =IF(Griego!AF8="","",Griego!AF8) ->  | AD60: =IF(Griego!AG8="","",Griego!AG8) ->  | AE60: =IF(Griego!AH8="","",Griego!AH8) ->  | AF60: =IF(Griego!AI8="","",Griego!AI8) ->  | AG60: =IF(Griego!AJ8="","",Griego!AJ8) ->  | AH60: =IF(Griego!AK8="","",Griego!AK8) ->  | AI60: =IF(Griego!AL8="","",Griego!AL8) ->  | AJ60: =IF(Griego!AM8="","",Griego!AM8) ->  | AK60: =IF(Griego!AN8="","",Griego!AN8) ->  | AL60: =IF(Griego!AO8="","",Griego!AO8) ->  | AM60: =IF(Griego!AP8="","",Griego!AP8) -> 
C61: Comp. Esp. 2 | D61: Criterio Evaluación 2.1 | E61: =IF(Griego!H9="","",Griego!H9) ->  | F61: =IF(Griego!I9="","",Griego!I9) ->  | G61: =IF(Griego!J9="","",Griego!J9) ->  | H61: =IF(Griego!K9="","",Griego!K9) ->  | I61: =IF(Griego!L9="","",Griego!L9) ->  | J61: =IF(Griego!M9="","",Griego!M9) ->  | K61: =IF(Griego!N9="","",Griego!N9) ->  | L61: =IF(Griego!O9="","",Griego!O9) ->  | M61: =IF(Griego!P9="","",Griego!P9) ->  | N61: =IF(Griego!Q9="","",Griego!Q9) ->  | O61: =IF(Griego!R9="","",Griego!R9) ->  | P61: =IF(Griego!S9="","",Griego!S9) ->  | Q61: =IF(Griego!T9="","",Griego!T9) ->  | R61: =IF(Griego!U9="","",Griego!U9) ->  | S61: =IF(Griego!V9="","",Griego!V9) ->  | T61: =IF(Griego!W9="","",Griego!W9) ->  | U61: =IF(Griego!X9="","",Griego!X9) ->  | V61: =IF(Griego!Y9="","",Griego!Y9) ->  | W61: =IF(Griego!Z9="","",Griego!Z9) ->  | X61: =IF(Griego!AA9="","",Griego!AA9) ->  | Y61: =IF(Griego!AB9="","",Griego!AB9) ->  | Z61: =IF(Griego!AC9="","",Griego!AC9) ->  | AA61: =IF(Griego!AD9="","",Griego!AD9) ->  | AB61: =IF(Griego!AE9="","",Griego!AE9) ->  | AC61: =IF(Griego!AF9="","",Griego!AF9) ->  | AD61: =IF(Griego!AG9="","",Griego!AG9) ->  | AE61: =IF(Griego!AH9="","",Griego!AH9) ->  | AF61: =IF(Griego!AI9="","",Griego!AI9) ->  | AG61: =IF(Griego!AJ9="","",Griego!AJ9) ->  | AH61: =IF(Griego!AK9="","",Griego!AK9) ->  | AI61: =IF(Griego!AL9="","",Griego!AL9) ->  | AJ61: =IF(Griego!AM9="","",Griego!AM9) ->  | AK61: =IF(Griego!AN9="","",Griego!AN9) ->  | AL61: =IF(Griego!AO9="","",Griego!AO9) ->  | AM61: =IF(Griego!AP9="","",Griego!AP9) -> 
D62: Criterio Evaluación 2.2 | E62: =IF(Griego!H10="","",Griego!H10) ->  | F62: =IF(Griego!I10="","",Griego!I10) ->  | G62: =IF(Griego!J10="","",Griego!J10) ->  | H62: =IF(Griego!K10="","",Griego!K10) ->  | I62: =IF(Griego!L10="","",Griego!L10) ->  | J62: =IF(Griego!M10="","",Griego!M10) ->  | K62: =IF(Griego!N10="","",Griego!N10) ->  | L62: =IF(Griego!O10="","",Griego!O10) ->  | M62: =IF(Griego!P10="","",Griego!P10) ->  | N62: =IF(Griego!Q10="","",Griego!Q10) ->  | O62: =IF(Griego!R10="","",Griego!R10) ->  | P62: =IF(Griego!S10="","",Griego!S10) ->  | Q62: =IF(Griego!T10="","",Griego!T10) ->  | R62: =IF(Griego!U10="","",Griego!U10) ->  | S62: =IF(Griego!V10="","",Griego!V10) ->  | T62: =IF(Griego!W10="","",Griego!W10) ->  | U62: =IF(Griego!X10="","",Griego!X10) ->  | V62: =IF(Griego!Y10="","",Griego!Y10) ->  | W62: =IF(Griego!Z10="","",Griego!Z10) ->  | X62: =IF(Griego!AA10="","",Griego!AA10) ->  | Y62: =IF(Griego!AB10="","",Griego!AB10) ->  | Z62: =IF(Griego!AC10="","",Griego!AC10) ->  | AA62: =IF(Griego!AD10="","",Griego!AD10) ->  | AB62: =IF(Griego!AE10="","",Griego!AE10) ->  | AC62: =IF(Griego!AF10="","",Griego!AF10) ->  | AD62: =IF(Griego!AG10="","",Griego!AG10) ->  | AE62: =IF(Griego!AH10="","",Griego!AH10) ->  | AF62: =IF(Griego!AI10="","",Griego!AI10) ->  | AG62: =IF(Griego!AJ10="","",Griego!AJ10) ->  | AH62: =IF(Griego!AK10="","",Griego!AK10) ->  | AI62: =IF(Griego!AL10="","",Griego!AL10) ->  | AJ62: =IF(Griego!AM10="","",Griego!AM10) ->  | AK62: =IF(Griego!AN10="","",Griego!AN10) ->  | AL62: =IF(Griego!AO10="","",Griego!AO10) ->  | AM62: =IF(Griego!AP10="","",Griego!AP10) -> 
D63: Criterio Evaluación 2.3 | E63: =IF(Griego!H11="","",Griego!H11) ->  | F63: =IF(Griego!I11="","",Griego!I11) ->  | G63: =IF(Griego!J11="","",Griego!J11) ->  | H63: =IF(Griego!K11="","",Griego!K11) ->  | I63: =IF(Griego!L11="","",Griego!L11) ->  | J63: =IF(Griego!M11="","",Griego!M11) ->  | K63: =IF(Griego!N11="","",Griego!N11) ->  | L63: =IF(Griego!O11="","",Griego!O11) ->  | M63: =IF(Griego!P11="","",Griego!P11) ->  | N63: =IF(Griego!Q11="","",Griego!Q11) ->  | O63: =IF(Griego!R11="","",Griego!R11) ->  | P63: =IF(Griego!S11="","",Griego!S11) ->  | Q63: =IF(Griego!T11="","",Griego!T11) ->  | R63: =IF(Griego!U11="","",Griego!U11) ->  | S63: =IF(Griego!V11="","",Griego!V11) ->  | T63: =IF(Griego!W11="","",Griego!W11) ->  | U63: =IF(Griego!X11="","",Griego!X11) ->  | V63: =IF(Griego!Y11="","",Griego!Y11) ->  | W63: =IF(Griego!Z11="","",Griego!Z11) ->  | X63: =IF(Griego!AA11="","",Griego!AA11) ->  | Y63: =IF(Griego!AB11="","",Griego!AB11) ->  | Z63: =IF(Griego!AC11="","",Griego!AC11) ->  | AA63: =IF(Griego!AD11="","",Griego!AD11) ->  | AB63: =IF(Griego!AE11="","",Griego!AE11) ->  | AC63: =IF(Griego!AF11="","",Griego!AF11) ->  | AD63: =IF(Griego!AG11="","",Griego!AG11) ->  | AE63: =IF(Griego!AH11="","",Griego!AH11) ->  | AF63: =IF(Griego!AI11="","",Griego!AI11) ->  | AG63: =IF(Griego!AJ11="","",Griego!AJ11) ->  | AH63: =IF(Griego!AK11="","",Griego!AK11) ->  | AI63: =IF(Griego!AL11="","",Griego!AL11) ->  | AJ63: =IF(Griego!AM11="","",Griego!AM11) ->  | AK63: =IF(Griego!AN11="","",Griego!AN11) ->  | AL63: =IF(Griego!AO11="","",Griego!AO11) ->  | AM63: =IF(Griego!AP11="","",Griego!AP11) -> 
D64: Criterio Evaluación 2.4 | E64: =IF(Griego!H12="","",Griego!H12) ->  | F64: =IF(Griego!I12="","",Griego!I12) ->  | G64: =IF(Griego!J12="","",Griego!J12) ->  | H64: =IF(Griego!K12="","",Griego!K12) ->  | I64: =IF(Griego!L12="","",Griego!L12) ->  | J64: =IF(Griego!M12="","",Griego!M12) ->  | K64: =IF(Griego!N12="","",Griego!N12) ->  | L64: =IF(Griego!O12="","",Griego!O12) ->  | M64: =IF(Griego!P12="","",Griego!P12) ->  | N64: =IF(Griego!Q12="","",Griego!Q12) ->  | O64: =IF(Griego!R12="","",Griego!R12) ->  | P64: =IF(Griego!S12="","",Griego!S12) ->  | Q64: =IF(Griego!T12="","",Griego!T12) ->  | R64: =IF(Griego!U12="","",Griego!U12) ->  | S64: =IF(Griego!V12="","",Griego!V12) ->  | T64: =IF(Griego!W12="","",Griego!W12) ->  | U64: =IF(Griego!X12="","",Griego!X12) ->  | V64: =IF(Griego!Y12="","",Griego!Y12) ->  | W64: =IF(Griego!Z12="","",Griego!Z12) ->  | X64: =IF(Griego!AA12="","",Griego!AA12) ->  | Y64: =IF(Griego!AB12="","",Griego!AB12) ->  | Z64: =IF(Griego!AC12="","",Griego!AC12) ->  | AA64: =IF(Griego!AD12="","",Griego!AD12) ->  | AB64: =IF(Griego!AE12="","",Griego!AE12) ->  | AC64: =IF(Griego!AF12="","",Griego!AF12) ->  | AD64: =IF(Griego!AG12="","",Griego!AG12) ->  | AE64: =IF(Griego!AH12="","",Griego!AH12) ->  | AF64: =IF(Griego!AI12="","",Griego!AI12) ->  | AG64: =IF(Griego!AJ12="","",Griego!AJ12) ->  | AH64: =IF(Griego!AK12="","",Griego!AK12) ->  | AI64: =IF(Griego!AL12="","",Griego!AL12) ->  | AJ64: =IF(Griego!AM12="","",Griego!AM12) ->  | AK64: =IF(Griego!AN12="","",Griego!AN12) ->  | AL64: =IF(Griego!AO12="","",Griego!AO12) ->  | AM64: =IF(Griego!AP12="","",Griego!AP12) -> 
C65: Comp. Esp. 3 | D65: Criterio Evaluación 3.1 | E65: =IF(Griego!H13="","",Griego!H13) ->  | F65: =IF(Griego!I13="","",Griego!I13) ->  | G65: =IF(Griego!J13="","",Griego!J13) ->  | H65: =IF(Griego!K13="","",Griego!K13) ->  | I65: =IF(Griego!L13="","",Griego!L13) ->  | J65: =IF(Griego!M13="","",Griego!M13) ->  | K65: =IF(Griego!N13="","",Griego!N13) ->  | L65: =IF(Griego!O13="","",Griego!O13) ->  | M65: =IF(Griego!P13="","",Griego!P13) ->  | N65: =IF(Griego!Q13="","",Griego!Q13) ->  | O65: =IF(Griego!R13="","",Griego!R13) ->  | P65: =IF(Griego!S13="","",Griego!S13) ->  | Q65: =IF(Griego!T13="","",Griego!T13) ->  | R65: =IF(Griego!U13="","",Griego!U13) ->  | S65: =IF(Griego!V13="","",Griego!V13) ->  | T65: =IF(Griego!W13="","",Griego!W13) ->  | U65: =IF(Griego!X13="","",Griego!X13) ->  | V65: =IF(Griego!Y13="","",Griego!Y13) ->  | W65: =IF(Griego!Z13="","",Griego!Z13) ->  | X65: =IF(Griego!AA13="","",Griego!AA13) ->  | Y65: =IF(Griego!AB13="","",Griego!AB13) ->  | Z65: =IF(Griego!AC13="","",Griego!AC13) ->  | AA65: =IF(Griego!AD13="","",Griego!AD13) ->  | AB65: =IF(Griego!AE13="","",Griego!AE13) ->  | AC65: =IF(Griego!AF13="","",Griego!AF13) ->  | AD65: =IF(Griego!AG13="","",Griego!AG13) ->  | AE65: =IF(Griego!AH13="","",Griego!AH13) ->  | AF65: =IF(Griego!AI13="","",Griego!AI13) ->  | AG65: =IF(Griego!AJ13="","",Griego!AJ13) ->  | AH65: =IF(Griego!AK13="","",Griego!AK13) ->  | AI65: =IF(Griego!AL13="","",Griego!AL13) ->  | AJ65: =IF(Griego!AM13="","",Griego!AM13) ->  | AK65: =IF(Griego!AN13="","",Griego!AN13) ->  | AL65: =IF(Griego!AO13="","",Griego!AO13) ->  | AM65: =IF(Griego!AP13="","",Griego!AP13) -> 
D66: Criterio Evaluación 3.2 | E66: =IF(Griego!H14="","",Griego!H14) ->  | F66: =IF(Griego!I14="","",Griego!I14) ->  | G66: =IF(Griego!J14="","",Griego!J14) ->  | H66: =IF(Griego!K14="","",Griego!K14) ->  | I66: =IF(Griego!L14="","",Griego!L14) ->  | J66: =IF(Griego!M14="","",Griego!M14) ->  | K66: =IF(Griego!N14="","",Griego!N14) ->  | L66: =IF(Griego!O14="","",Griego!O14) ->  | M66: =IF(Griego!P14="","",Griego!P14) ->  | N66: =IF(Griego!Q14="","",Griego!Q14) ->  | O66: =IF(Griego!R14="","",Griego!R14) ->  | P66: =IF(Griego!S14="","",Griego!S14) ->  | Q66: =IF(Griego!T14="","",Griego!T14) ->  | R66: =IF(Griego!U14="","",Griego!U14) ->  | S66: =IF(Griego!V14="","",Griego!V14) ->  | T66: =IF(Griego!W14="","",Griego!W14) ->  | U66: =IF(Griego!X14="","",Griego!X14) ->  | V66: =IF(Griego!Y14="","",Griego!Y14) ->  | W66: =IF(Griego!Z14="","",Griego!Z14) ->  | X66: =IF(Griego!AA14="","",Griego!AA14) ->  | Y66: =IF(Griego!AB14="","",Griego!AB14) ->  | Z66: =IF(Griego!AC14="","",Griego!AC14) ->  | AA66: =IF(Griego!AD14="","",Griego!AD14) ->  | AB66: =IF(Griego!AE14="","",Griego!AE14) ->  | AC66: =IF(Griego!AF14="","",Griego!AF14) ->  | AD66: =IF(Griego!AG14="","",Griego!AG14) ->  | AE66: =IF(Griego!AH14="","",Griego!AH14) ->  | AF66: =IF(Griego!AI14="","",Griego!AI14) ->  | AG66: =IF(Griego!AJ14="","",Griego!AJ14) ->  | AH66: =IF(Griego!AK14="","",Griego!AK14) ->  | AI66: =IF(Griego!AL14="","",Griego!AL14) ->  | AJ66: =IF(Griego!AM14="","",Griego!AM14) ->  | AK66: =IF(Griego!AN14="","",Griego!AN14) ->  | AL66: =IF(Griego!AO14="","",Griego!AO14) ->  | AM66: =IF(Griego!AP14="","",Griego!AP14) -> 
D67: Criterio Evaluación 3.3 | E67: =IF(Griego!H15="","",Griego!H15) ->  | F67: =IF(Griego!I15="","",Griego!I15) ->  | G67: =IF(Griego!J15="","",Griego!J15) ->  | H67: =IF(Griego!K15="","",Griego!K15) ->  | I67: =IF(Griego!L15="","",Griego!L15) ->  | J67: =IF(Griego!M15="","",Griego!M15) ->  | K67: =IF(Griego!N15="","",Griego!N15) ->  | L67: =IF(Griego!O15="","",Griego!O15) ->  | M67: =IF(Griego!P15="","",Griego!P15) ->  | N67: =IF(Griego!Q15="","",Griego!Q15) ->  | O67: =IF(Griego!R15="","",Griego!R15) ->  | P67: =IF(Griego!S15="","",Griego!S15) ->  | Q67: =IF(Griego!T15="","",Griego!T15) ->  | R67: =IF(Griego!U15="","",Griego!U15) ->  | S67: =IF(Griego!V15="","",Griego!V15) ->  | T67: =IF(Griego!W15="","",Griego!W15) ->  | U67: =IF(Griego!X15="","",Griego!X15) ->  | V67: =IF(Griego!Y15="","",Griego!Y15) ->  | W67: =IF(Griego!Z15="","",Griego!Z15) ->  | X67: =IF(Griego!AA15="","",Griego!AA15) ->  | Y67: =IF(Griego!AB15="","",Griego!AB15) ->  | Z67: =IF(Griego!AC15="","",Griego!AC15) ->  | AA67: =IF(Griego!AD15="","",Griego!AD15) ->  | AB67: =IF(Griego!AE15="","",Griego!AE15) ->  | AC67: =IF(Griego!AF15="","",Griego!AF15) ->  | AD67: =IF(Griego!AG15="","",Griego!AG15) ->  | AE67: =IF(Griego!AH15="","",Griego!AH15) ->  | AF67: =IF(Griego!AI15="","",Griego!AI15) ->  | AG67: =IF(Griego!AJ15="","",Griego!AJ15) ->  | AH67: =IF(Griego!AK15="","",Griego!AK15) ->  | AI67: =IF(Griego!AL15="","",Griego!AL15) ->  | AJ67: =IF(Griego!AM15="","",Griego!AM15) ->  | AK67: =IF(Griego!AN15="","",Griego!AN15) ->  | AL67: =IF(Griego!AO15="","",Griego!AO15) ->  | AM67: =IF(Griego!AP15="","",Griego!AP15) -> 
D68: Criterio Evaluación 3.4 | E68: =IF(Griego!H16="","",Griego!H16) ->  | F68: =IF(Griego!I16="","",Griego!I16) ->  | G68: =IF(Griego!J16="","",Griego!J16) ->  | H68: =IF(Griego!K16="","",Griego!K16) ->  | I68: =IF(Griego!L16="","",Griego!L16) ->  | J68: =IF(Griego!M16="","",Griego!M16) ->  | K68: =IF(Griego!N16="","",Griego!N16) ->  | L68: =IF(Griego!O16="","",Griego!O16) ->  | M68: =IF(Griego!P16="","",Griego!P16) ->  | N68: =IF(Griego!Q16="","",Griego!Q16) ->  | O68: =IF(Griego!R16="","",Griego!R16) ->  | P68: =IF(Griego!S16="","",Griego!S16) ->  | Q68: =IF(Griego!T16="","",Griego!T16) ->  | R68: =IF(Griego!U16="","",Griego!U16) ->  | S68: =IF(Griego!V16="","",Griego!V16) ->  | T68: =IF(Griego!W16="","",Griego!W16) ->  | U68: =IF(Griego!X16="","",Griego!X16) ->  | V68: =IF(Griego!Y16="","",Griego!Y16) ->  | W68: =IF(Griego!Z16="","",Griego!Z16) ->  | X68: =IF(Griego!AA16="","",Griego!AA16) ->  | Y68: =IF(Griego!AB16="","",Griego!AB16) ->  | Z68: =IF(Griego!AC16="","",Griego!AC16) ->  | AA68: =IF(Griego!AD16="","",Griego!AD16) ->  | AB68: =IF(Griego!AE16="","",Griego!AE16) ->  | AC68: =IF(Griego!AF16="","",Griego!AF16) ->  | AD68: =IF(Griego!AG16="","",Griego!AG16) ->  | AE68: =IF(Griego!AH16="","",Griego!AH16) ->  | AF68: =IF(Griego!AI16="","",Griego!AI16) ->  | AG68: =IF(Griego!AJ16="","",Griego!AJ16) ->  | AH68: =IF(Griego!AK16="","",Griego!AK16) ->  | AI68: =IF(Griego!AL16="","",Griego!AL16) ->  | AJ68: =IF(Griego!AM16="","",Griego!AM16) ->  | AK68: =IF(Griego!AN16="","",Griego!AN16) ->  | AL68: =IF(Griego!AO16="","",Griego!AO16) ->  | AM68: =IF(Griego!AP16="","",Griego!AP16) -> 
C69: Comp. Esp. 4 | D69: Criterio Evaluación 4.1 | E69: =IF(Griego!H17="","",Griego!H17) ->  | F69: =IF(Griego!I17="","",Griego!I17) ->  | G69: =IF(Griego!J17="","",Griego!J17) ->  | H69: =IF(Griego!K17="","",Griego!K17) ->  | I69: =IF(Griego!L17="","",Griego!L17) ->  | J69: =IF(Griego!M17="","",Griego!M17) ->  | K69: =IF(Griego!N17="","",Griego!N17) ->  | L69: =IF(Griego!O17="","",Griego!O17) ->  | M69: =IF(Griego!P17="","",Griego!P17) ->  | N69: =IF(Griego!Q17="","",Griego!Q17) ->  | O69: =IF(Griego!R17="","",Griego!R17) ->  | P69: =IF(Griego!S17="","",Griego!S17) ->  | Q69: =IF(Griego!T17="","",Griego!T17) ->  | R69: =IF(Griego!U17="","",Griego!U17) ->  | S69: =IF(Griego!V17="","",Griego!V17) ->  | T69: =IF(Griego!W17="","",Griego!W17) ->  | U69: =IF(Griego!X17="","",Griego!X17) ->  | V69: =IF(Griego!Y17="","",Griego!Y17) ->  | W69: =IF(Griego!Z17="","",Griego!Z17) ->  | X69: =IF(Griego!AA17="","",Griego!AA17) ->  | Y69: =IF(Griego!AB17="","",Griego!AB17) ->  | Z69: =IF(Griego!AC17="","",Griego!AC17) ->  | AA69: =IF(Griego!AD17="","",Griego!AD17) ->  | AB69: =IF(Griego!AE17="","",Griego!AE17) ->  | AC69: =IF(Griego!AF17="","",Griego!AF17) ->  | AD69: =IF(Griego!AG17="","",Griego!AG17) ->  | AE69: =IF(Griego!AH17="","",Griego!AH17) ->  | AF69: =IF(Griego!AI17="","",Griego!AI17) ->  | AG69: =IF(Griego!AJ17="","",Griego!AJ17) ->  | AH69: =IF(Griego!AK17="","",Griego!AK17) ->  | AI69: =IF(Griego!AL17="","",Griego!AL17) ->  | AJ69: =IF(Griego!AM17="","",Griego!AM17) ->  | AK69: =IF(Griego!AN17="","",Griego!AN17) ->  | AL69: =IF(Griego!AO17="","",Griego!AO17) ->  | AM69: =IF(Griego!AP17="","",Griego!AP17) -> 
D70: Criterio Evaluación 4.2 | E70: =IF(Griego!H18="","",Griego!H18) ->  | F70: =IF(Griego!I18="","",Griego!I18) ->  | G70: =IF(Griego!J18="","",Griego!J18) ->  | H70: =IF(Griego!K18="","",Griego!K18) ->  | I70: =IF(Griego!L18="","",Griego!L18) ->  | J70: =IF(Griego!M18="","",Griego!M18) ->  | K70: =IF(Griego!N18="","",Griego!N18) ->  | L70: =IF(Griego!O18="","",Griego!O18) ->  | M70: =IF(Griego!P18="","",Griego!P18) ->  | N70: =IF(Griego!Q18="","",Griego!Q18) ->  | O70: =IF(Griego!R18="","",Griego!R18) ->  | P70: =IF(Griego!S18="","",Griego!S18) ->  | Q70: =IF(Griego!T18="","",Griego!T18) ->  | R70: =IF(Griego!U18="","",Griego!U18) ->  | S70: =IF(Griego!V18="","",Griego!V18) ->  | T70: =IF(Griego!W18="","",Griego!W18) ->  | U70: =IF(Griego!X18="","",Griego!X18) ->  | V70: =IF(Griego!Y18="","",Griego!Y18) ->  | W70: =IF(Griego!Z18="","",Griego!Z18) ->  | X70: =IF(Griego!AA18="","",Griego!AA18) ->  | Y70: =IF(Griego!AB18="","",Griego!AB18) ->  | Z70: =IF(Griego!AC18="","",Griego!AC18) ->  | AA70: =IF(Griego!AD18="","",Griego!AD18) ->  | AB70: =IF(Griego!AE18="","",Griego!AE18) ->  | AC70: =IF(Griego!AF18="","",Griego!AF18) ->  | AD70: =IF(Griego!AG18="","",Griego!AG18) ->  | AE70: =IF(Griego!AH18="","",Griego!AH18) ->  | AF70: =IF(Griego!AI18="","",Griego!AI18) ->  | AG70: =IF(Griego!AJ18="","",Griego!AJ18) ->  | AH70: =IF(Griego!AK18="","",Griego!AK18) ->  | AI70: =IF(Griego!AL18="","",Griego!AL18) ->  | AJ70: =IF(Griego!AM18="","",Griego!AM18) ->  | AK70: =IF(Griego!AN18="","",Griego!AN18) ->  | AL70: =IF(Griego!AO18="","",Griego!AO18) ->  | AM70: =IF(Griego!AP18="","",Griego!AP18) -> 
D71: Criterio Evaluación 4.3 | E71: =IF(Griego!H19="","",Griego!H19) ->  | F71: =IF(Griego!I19="","",Griego!I19) ->  | G71: =IF(Griego!J19="","",Griego!J19) ->  | H71: =IF(Griego!K19="","",Griego!K19) ->  | I71: =IF(Griego!L19="","",Griego!L19) ->  | J71: =IF(Griego!M19="","",Griego!M19) ->  | K71: =IF(Griego!N19="","",Griego!N19) ->  | L71: =IF(Griego!O19="","",Griego!O19) ->  | M71: =IF(Griego!P19="","",Griego!P19) ->  | N71: =IF(Griego!Q19="","",Griego!Q19) ->  | O71: =IF(Griego!R19="","",Griego!R19) ->  | P71: =IF(Griego!S19="","",Griego!S19) ->  | Q71: =IF(Griego!T19="","",Griego!T19) ->  | R71: =IF(Griego!U19="","",Griego!U19) ->  | S71: =IF(Griego!V19="","",Griego!V19) ->  | T71: =IF(Griego!W19="","",Griego!W19) ->  | U71: =IF(Griego!X19="","",Griego!X19) ->  | V71: =IF(Griego!Y19="","",Griego!Y19) ->  | W71: =IF(Griego!Z19="","",Griego!Z19) ->  | X71: =IF(Griego!AA19="","",Griego!AA19) ->  | Y71: =IF(Griego!AB19="","",Griego!AB19) ->  | Z71: =IF(Griego!AC19="","",Griego!AC19) ->  | AA71: =IF(Griego!AD19="","",Griego!AD19) ->  | AB71: =IF(Griego!AE19="","",Griego!AE19) ->  | AC71: =IF(Griego!AF19="","",Griego!AF19) ->  | AD71: =IF(Griego!AG19="","",Griego!AG19) ->  | AE71: =IF(Griego!AH19="","",Griego!AH19) ->  | AF71: =IF(Griego!AI19="","",Griego!AI19) ->  | AG71: =IF(Griego!AJ19="","",Griego!AJ19) ->  | AH71: =IF(Griego!AK19="","",Griego!AK19) ->  | AI71: =IF(Griego!AL19="","",Griego!AL19) ->  | AJ71: =IF(Griego!AM19="","",Griego!AM19) ->  | AK71: =IF(Griego!AN19="","",Griego!AN19) ->  | AL71: =IF(Griego!AO19="","",Griego!AO19) ->  | AM71: =IF(Griego!AP19="","",Griego!AP19) -> 
D72: Criterio Evaluación 4.4 | E72: =IF(Griego!H20="","",Griego!H20) ->  | F72: =IF(Griego!I20="","",Griego!I20) ->  | G72: =IF(Griego!J20="","",Griego!J20) ->  | H72: =IF(Griego!K20="","",Griego!K20) ->  | I72: =IF(Griego!L20="","",Griego!L20) ->  | J72: =IF(Griego!M20="","",Griego!M20) ->  | K72: =IF(Griego!N20="","",Griego!N20) ->  | L72: =IF(Griego!O20="","",Griego!O20) ->  | M72: =IF(Griego!P20="","",Griego!P20) ->  | N72: =IF(Griego!Q20="","",Griego!Q20) ->  | O72: =IF(Griego!R20="","",Griego!R20) ->  | P72: =IF(Griego!S20="","",Griego!S20) ->  | Q72: =IF(Griego!T20="","",Griego!T20) ->  | R72: =IF(Griego!U20="","",Griego!U20) ->  | S72: =IF(Griego!V20="","",Griego!V20) ->  | T72: =IF(Griego!W20="","",Griego!W20) ->  | U72: =IF(Griego!X20="","",Griego!X20) ->  | V72: =IF(Griego!Y20="","",Griego!Y20) ->  | W72: =IF(Griego!Z20="","",Griego!Z20) ->  | X72: =IF(Griego!AA20="","",Griego!AA20) ->  | Y72: =IF(Griego!AB20="","",Griego!AB20) ->  | Z72: =IF(Griego!AC20="","",Griego!AC20) ->  | AA72: =IF(Griego!AD20="","",Griego!AD20) ->  | AB72: =IF(Griego!AE20="","",Griego!AE20) ->  | AC72: =IF(Griego!AF20="","",Griego!AF20) ->  | AD72: =IF(Griego!AG20="","",Griego!AG20) ->  | AE72: =IF(Griego!AH20="","",Griego!AH20) ->  | AF72: =IF(Griego!AI20="","",Griego!AI20) ->  | AG72: =IF(Griego!AJ20="","",Griego!AJ20) ->  | AH72: =IF(Griego!AK20="","",Griego!AK20) ->  | AI72: =IF(Griego!AL20="","",Griego!AL20) ->  | AJ72: =IF(Griego!AM20="","",Griego!AM20) ->  | AK72: =IF(Griego!AN20="","",Griego!AN20) ->  | AL72: =IF(Griego!AO20="","",Griego!AO20) ->  | AM72: =IF(Griego!AP20="","",Griego!AP20) -> 
C73: Comp. Esp. 5 | D73: Criterio Evaluación 5.1 | E73: =IF(Griego!H21="","",Griego!H21) ->  | F73: =IF(Griego!I21="","",Griego!I21) ->  | G73: =IF(Griego!J21="","",Griego!J21) ->  | H73: =IF(Griego!K21="","",Griego!K21) ->  | I73: =IF(Griego!L21="","",Griego!L21) ->  | J73: =IF(Griego!M21="","",Griego!M21) ->  | K73: =IF(Griego!N21="","",Griego!N21) ->  | L73: =IF(Griego!O21="","",Griego!O21) ->  | M73: =IF(Griego!P21="","",Griego!P21) ->  | N73: =IF(Griego!Q21="","",Griego!Q21) ->  | O73: =IF(Griego!R21="","",Griego!R21) ->  | P73: =IF(Griego!S21="","",Griego!S21) ->  | Q73: =IF(Griego!T21="","",Griego!T21) ->  | R73: =IF(Griego!U21="","",Griego!U21) ->  | S73: =IF(Griego!V21="","",Griego!V21) ->  | T73: =IF(Griego!W21="","",Griego!W21) ->  | U73: =IF(Griego!X21="","",Griego!X21) ->  | V73: =IF(Griego!Y21="","",Griego!Y21) ->  | W73: =IF(Griego!Z21="","",Griego!Z21) ->  | X73: =IF(Griego!AA21="","",Griego!AA21) ->  | Y73: =IF(Griego!AB21="","",Griego!AB21) ->  | Z73: =IF(Griego!AC21="","",Griego!AC21) ->  | AA73: =IF(Griego!AD21="","",Griego!AD21) ->  | AB73: =IF(Griego!AE21="","",Griego!AE21) ->  | AC73: =IF(Griego!AF21="","",Griego!AF21) ->  | AD73: =IF(Griego!AG21="","",Griego!AG21) ->  | AE73: =IF(Griego!AH21="","",Griego!AH21) ->  | AF73: =IF(Griego!AI21="","",Griego!AI21) ->  | AG73: =IF(Griego!AJ21="","",Griego!AJ21) ->  | AH73: =IF(Griego!AK21="","",Griego!AK21) ->  | AI73: =IF(Griego!AL21="","",Griego!AL21) ->  | AJ73: =IF(Griego!AM21="","",Griego!AM21) ->  | AK73: =IF(Griego!AN21="","",Griego!AN21) ->  | AL73: =IF(Griego!AO21="","",Griego!AO21) ->  | AM73: =IF(Griego!AP21="","",Griego!AP21) -> 
D74: Criterio Evaluación 5.2 | E74: =IF(Griego!H22="","",Griego!H22) ->  | F74: =IF(Griego!I22="","",Griego!I22) ->  | G74: =IF(Griego!J22="","",Griego!J22) ->  | H74: =IF(Griego!K22="","",Griego!K22) ->  | I74: =IF(Griego!L22="","",Griego!L22) ->  | J74: =IF(Griego!M22="","",Griego!M22) ->  | K74: =IF(Griego!N22="","",Griego!N22) ->  | L74: =IF(Griego!O22="","",Griego!O22) ->  | M74: =IF(Griego!P22="","",Griego!P22) ->  | N74: =IF(Griego!Q22="","",Griego!Q22) ->  | O74: =IF(Griego!R22="","",Griego!R22) ->  | P74: =IF(Griego!S22="","",Griego!S22) ->  | Q74: =IF(Griego!T22="","",Griego!T22) ->  | R74: =IF(Griego!U22="","",Griego!U22) ->  | S74: =IF(Griego!V22="","",Griego!V22) ->  | T74: =IF(Griego!W22="","",Griego!W22) ->  | U74: =IF(Griego!X22="","",Griego!X22) ->  | V74: =IF(Griego!Y22="","",Griego!Y22) ->  | W74: =IF(Griego!Z22="","",Griego!Z22) ->  | X74: =IF(Griego!AA22="","",Griego!AA22) ->  | Y74: =IF(Griego!AB22="","",Griego!AB22) ->  | Z74: =IF(Griego!AC22="","",Griego!AC22) ->  | AA74: =IF(Griego!AD22="","",Griego!AD22) ->  | AB74: =IF(Griego!AE22="","",Griego!AE22) ->  | AC74: =IF(Griego!AF22="","",Griego!AF22) ->  | AD74: =IF(Griego!AG22="","",Griego!AG22) ->  | AE74: =IF(Griego!AH22="","",Griego!AH22) ->  | AF74: =IF(Griego!AI22="","",Griego!AI22) ->  | AG74: =IF(Griego!AJ22="","",Griego!AJ22) ->  | AH74: =IF(Griego!AK22="","",Griego!AK22) ->  | AI74: =IF(Griego!AL22="","",Griego!AL22) ->  | AJ74: =IF(Griego!AM22="","",Griego!AM22) ->  | AK74: =IF(Griego!AN22="","",Griego!AN22) ->  | AL74: =IF(Griego!AO22="","",Griego!AO22) ->  | AM74: =IF(Griego!AP22="","",Griego!AP22) -> 
D75: Criterio Evaluación 5.3 | E75: =IF(Griego!H23="","",Griego!H23) ->  | F75: =IF(Griego!I23="","",Griego!I23) ->  | G75: =IF(Griego!J23="","",Griego!J23) ->  | H75: =IF(Griego!K23="","",Griego!K23) ->  | I75: =IF(Griego!L23="","",Griego!L23) ->  | J75: =IF(Griego!M23="","",Griego!M23) ->  | K75: =IF(Griego!N23="","",Griego!N23) ->  | L75: =IF(Griego!O23="","",Griego!O23) ->  | M75: =IF(Griego!P23="","",Griego!P23) ->  | N75: =IF(Griego!Q23="","",Griego!Q23) ->  | O75: =IF(Griego!R23="","",Griego!R23) ->  | P75: =IF(Griego!S23="","",Griego!S23) ->  | Q75: =IF(Griego!T23="","",Griego!T23) ->  | R75: =IF(Griego!U23="","",Griego!U23) ->  | S75: =IF(Griego!V23="","",Griego!V23) ->  | T75: =IF(Griego!W23="","",Griego!W23) ->  | U75: =IF(Griego!X23="","",Griego!X23) ->  | V75: =IF(Griego!Y23="","",Griego!Y23) ->  | W75: =IF(Griego!Z23="","",Griego!Z23) ->  | X75: =IF(Griego!AA23="","",Griego!AA23) ->  | Y75: =IF(Griego!AB23="","",Griego!AB23) ->  | Z75: =IF(Griego!AC23="","",Griego!AC23) ->  | AA75: =IF(Griego!AD23="","",Griego!AD23) ->  | AB75: =IF(Griego!AE23="","",Griego!AE23) ->  | AC75: =IF(Griego!AF23="","",Griego!AF23) ->  | AD75: =IF(Griego!AG23="","",Griego!AG23) ->  | AE75: =IF(Griego!AH23="","",Griego!AH23) ->  | AF75: =IF(Griego!AI23="","",Griego!AI23) ->  | AG75: =IF(Griego!AJ23="","",Griego!AJ23) ->  | AH75: =IF(Griego!AK23="","",Griego!AK23) ->  | AI75: =IF(Griego!AL23="","",Griego!AL23) ->  | AJ75: =IF(Griego!AM23="","",Griego!AM23) ->  | AK75: =IF(Griego!AN23="","",Griego!AN23) ->  | AL75: =IF(Griego!AO23="","",Griego!AO23) ->  | AM75: =IF(Griego!AP23="","",Griego!AP23) -> 
B76: Historia de España | C76: Comp. Esp. 1 | D76: Criterio Evaluación 1.1 | E76: =IF(HE!H4="","",HE!H4) ->  | F76: =IF(HE!I4="","",HE!I4) ->  | G76: =IF(HE!J4="","",HE!J4) ->  | H76: =IF(HE!K4="","",HE!K4) ->  | I76: =IF(HE!L4="","",HE!L4) ->  | J76: =IF(HE!M4="","",HE!M4) ->  | K76: =IF(HE!N4="","",HE!N4) ->  | L76: =IF(HE!O4="","",HE!O4) ->  | M76: =IF(HE!P4="","",HE!P4) ->  | N76: =IF(HE!Q4="","",HE!Q4) ->  | O76: =IF(HE!R4="","",HE!R4) ->  | P76: =IF(HE!S4="","",HE!S4) ->  | Q76: =IF(HE!T4="","",HE!T4) ->  | R76: =IF(HE!U4="","",HE!U4) ->  | S76: =IF(HE!V4="","",HE!V4) ->  | T76: =IF(HE!W4="","",HE!W4) ->  | U76: =IF(HE!X4="","",HE!X4) ->  | V76: =IF(HE!Y4="","",HE!Y4) ->  | W76: =IF(HE!Z4="","",HE!Z4) ->  | X76: =IF(HE!AA4="","",HE!AA4) ->  | Y76: =IF(HE!AB4="","",HE!AB4) ->  | Z76: =IF(HE!AC4="","",HE!AC4) ->  | AA76: =IF(HE!AD4="","",HE!AD4) ->  | AB76: =IF(HE!AE4="","",HE!AE4) ->  | AC76: =IF(HE!AF4="","",HE!AF4) ->  | AD76: =IF(HE!AG4="","",HE!AG4) ->  | AE76: =IF(HE!AH4="","",HE!AH4) ->  | AF76: =IF(HE!AI4="","",HE!AI4) ->  | AG76: =IF(HE!AJ4="","",HE!AJ4) ->  | AH76: =IF(HE!AK4="","",HE!AK4) ->  | AI76: =IF(HE!AL4="","",HE!AL4) ->  | AJ76: =IF(HE!AM4="","",HE!AM4) ->  | AK76: =IF(HE!AN4="","",HE!AN4) ->  | AL76: =IF(HE!AO4="","",HE!AO4) ->  | AM76: =IF(HE!AP4="","",HE!AP4) -> 
D77: Criterio Evaluación 1.2 | E77: =IF(HE!H5="","",HE!H5) ->  | F77: =IF(HE!I5="","",HE!I5) ->  | G77: =IF(HE!J5="","",HE!J5) ->  | H77: =IF(HE!K5="","",HE!K5) ->  | I77: =IF(HE!L5="","",HE!L5) ->  | J77: =IF(HE!M5="","",HE!M5) ->  | K77: =IF(HE!N5="","",HE!N5) ->  | L77: =IF(HE!O5="","",HE!O5) ->  | M77: =IF(HE!P5="","",HE!P5) ->  | N77: =IF(HE!Q5="","",HE!Q5) ->  | O77: =IF(HE!R5="","",HE!R5) ->  | P77: =IF(HE!S5="","",HE!S5) ->  | Q77: =IF(HE!T5="","",HE!T5) ->  | R77: =IF(HE!U5="","",HE!U5) ->  | S77: =IF(HE!V5="","",HE!V5) ->  | T77: =IF(HE!W5="","",HE!W5) ->  | U77: =IF(HE!X5="","",HE!X5) ->  | V77: =IF(HE!Y5="","",HE!Y5) ->  | W77: =IF(HE!Z5="","",HE!Z5) ->  | X77: =IF(HE!AA5="","",HE!AA5) ->  | Y77: =IF(HE!AB5="","",HE!AB5) ->  | Z77: =IF(HE!AC5="","",HE!AC5) ->  | AA77: =IF(HE!AD5="","",HE!AD5) ->  | AB77: =IF(HE!AE5="","",HE!AE5) ->  | AC77: =IF(HE!AF5="","",HE!AF5) ->  | AD77: =IF(HE!AG5="","",HE!AG5) ->  | AE77: =IF(HE!AH5="","",HE!AH5) ->  | AF77: =IF(HE!AI5="","",HE!AI5) ->  | AG77: =IF(HE!AJ5="","",HE!AJ5) ->  | AH77: =IF(HE!AK5="","",HE!AK5) ->  | AI77: =IF(HE!AL5="","",HE!AL5) ->  | AJ77: =IF(HE!AM5="","",HE!AM5) ->  | AK77: =IF(HE!AN5="","",HE!AN5) ->  | AL77: =IF(HE!AO5="","",HE!AO5) ->  | AM77: =IF(HE!AP5="","",HE!AP5) -> 
C78: Comp. Esp. 2 | D78: Criterio Evaluación 2.1 | E78: =IF(HE!H6="","",HE!H6) ->  | F78: =IF(HE!I6="","",HE!I6) ->  | G78: =IF(HE!J6="","",HE!J6) ->  | H78: =IF(HE!K6="","",HE!K6) ->  | I78: =IF(HE!L6="","",HE!L6) ->  | J78: =IF(HE!M6="","",HE!M6) ->  | K78: =IF(HE!N6="","",HE!N6) ->  | L78: =IF(HE!O6="","",HE!O6) ->  | M78: =IF(HE!P6="","",HE!P6) ->  | N78: =IF(HE!Q6="","",HE!Q6) ->  | O78: =IF(HE!R6="","",HE!R6) ->  | P78: =IF(HE!S6="","",HE!S6) ->  | Q78: =IF(HE!T6="","",HE!T6) ->  | R78: =IF(HE!U6="","",HE!U6) ->  | S78: =IF(HE!V6="","",HE!V6) ->  | T78: =IF(HE!W6="","",HE!W6) ->  | U78: =IF(HE!X6="","",HE!X6) ->  | V78: =IF(HE!Y6="","",HE!Y6) ->  | W78: =IF(HE!Z6="","",HE!Z6) ->  | X78: =IF(HE!AA6="","",HE!AA6) ->  | Y78: =IF(HE!AB6="","",HE!AB6) ->  | Z78: =IF(HE!AC6="","",HE!AC6) ->  | AA78: =IF(HE!AD6="","",HE!AD6) ->  | AB78: =IF(HE!AE6="","",HE!AE6) ->  | AC78: =IF(HE!AF6="","",HE!AF6) ->  | AD78: =IF(HE!AG6="","",HE!AG6) ->  | AE78: =IF(HE!AH6="","",HE!AH6) ->  | AF78: =IF(HE!AI6="","",HE!AI6) ->  | AG78: =IF(HE!AJ6="","",HE!AJ6) ->  | AH78: =IF(HE!AK6="","",HE!AK6) ->  | AI78: =IF(HE!AL6="","",HE!AL6) ->  | AJ78: =IF(HE!AM6="","",HE!AM6) ->  | AK78: =IF(HE!AN6="","",HE!AN6) ->  | AL78: =IF(HE!AO6="","",HE!AO6) ->  | AM78: =IF(HE!AP6="","",HE!AP6) -> 
D79: Criterio Evaluación 2.2 | E79: =IF(HE!H7="","",HE!H7) ->  | F79: =IF(HE!I7="","",HE!I7) ->  | G79: =IF(HE!J7="","",HE!J7) ->  | H79: =IF(HE!K7="","",HE!K7) ->  | I79: =IF(HE!L7="","",HE!L7) ->  | J79: =IF(HE!M7="","",HE!M7) ->  | K79: =IF(HE!N7="","",HE!N7) ->  | L79: =IF(HE!O7="","",HE!O7) ->  | M79: =IF(HE!P7="","",HE!P7) ->  | N79: =IF(HE!Q7="","",HE!Q7) ->  | O79: =IF(HE!R7="","",HE!R7) ->  | P79: =IF(HE!S7="","",HE!S7) ->  | Q79: =IF(HE!T7="","",HE!T7) ->  | R79: =IF(HE!U7="","",HE!U7) ->  | S79: =IF(HE!V7="","",HE!V7) ->  | T79: =IF(HE!W7="","",HE!W7) ->  | U79: =IF(HE!X7="","",HE!X7) ->  | V79: =IF(HE!Y7="","",HE!Y7) ->  | W79: =IF(HE!Z7="","",HE!Z7) ->  | X79: =IF(HE!AA7="","",HE!AA7) ->  | Y79: =IF(HE!AB7="","",HE!AB7) ->  | Z79: =IF(HE!AC7="","",HE!AC7) ->  | AA79: =IF(HE!AD7="","",HE!AD7) ->  | AB79: =IF(HE!AE7="","",HE!AE7) ->  | AC79: =IF(HE!AF7="","",HE!AF7) ->  | AD79: =IF(HE!AG7="","",HE!AG7) ->  | AE79: =IF(HE!AH7="","",HE!AH7) ->  | AF79: =IF(HE!AI7="","",HE!AI7) ->  | AG79: =IF(HE!AJ7="","",HE!AJ7) ->  | AH79: =IF(HE!AK7="","",HE!AK7) ->  | AI79: =IF(HE!AL7="","",HE!AL7) ->  | AJ79: =IF(HE!AM7="","",HE!AM7) ->  | AK79: =IF(HE!AN7="","",HE!AN7) ->  | AL79: =IF(HE!AO7="","",HE!AO7) ->  | AM79: =IF(HE!AP7="","",HE!AP7) -> 
C80: Comp. Esp. 3 | D80: Criterio Evaluación 3.1 | E80: =IF(HE!H8="","",HE!H8) ->  | F80: =IF(HE!I8="","",HE!I8) ->  | G80: =IF(HE!J8="","",HE!J8) ->  | H80: =IF(HE!K8="","",HE!K8) ->  | I80: =IF(HE!L8="","",HE!L8) ->  | J80: =IF(HE!M8="","",HE!M8) ->  | K80: =IF(HE!N8="","",HE!N8) ->  | L80: =IF(HE!O8="","",HE!O8) ->  | M80: =IF(HE!P8="","",HE!P8) ->  | N80: =IF(HE!Q8="","",HE!Q8) ->  | O80: =IF(HE!R8="","",HE!R8) ->  | P80: =IF(HE!S8="","",HE!S8) ->  | Q80: =IF(HE!T8="","",HE!T8) ->  | R80: =IF(HE!U8="","",HE!U8) ->  | S80: =IF(HE!V8="","",HE!V8) ->  | T80: =IF(HE!W8="","",HE!W8) ->  | U80: =IF(HE!X8="","",HE!X8) ->  | V80: =IF(HE!Y8="","",HE!Y8) ->  | W80: =IF(HE!Z8="","",HE!Z8) ->  | X80: =IF(HE!AA8="","",HE!AA8) ->  | Y80: =IF(HE!AB8="","",HE!AB8) ->  | Z80: =IF(HE!AC8="","",HE!AC8) ->  | AA80: =IF(HE!AD8="","",HE!AD8) ->  | AB80: =IF(HE!AE8="","",HE!AE8) ->  | AC80: =IF(HE!AF8="","",HE!AF8) ->  | AD80: =IF(HE!AG8="","",HE!AG8) ->  | AE80: =IF(HE!AH8="","",HE!AH8) ->  | AF80: =IF(HE!AI8="","",HE!AI8) ->  | AG80: =IF(HE!AJ8="","",HE!AJ8) ->  | AH80: =IF(HE!AK8="","",HE!AK8) ->  | AI80: =IF(HE!AL8="","",HE!AL8) ->  | AJ80: =IF(HE!AM8="","",HE!AM8) ->  | AK80: =IF(HE!AN8="","",HE!AN8) ->  | AL80: =IF(HE!AO8="","",HE!AO8) ->  | AM80: =IF(HE!AP8="","",HE!AP8) -> 
D81: Criterio Evaluación 3.2 | E81: =IF(HE!H9="","",HE!H9) ->  | F81: =IF(HE!I9="","",HE!I9) ->  | G81: =IF(HE!J9="","",HE!J9) ->  | H81: =IF(HE!K9="","",HE!K9) ->  | I81: =IF(HE!L9="","",HE!L9) ->  | J81: =IF(HE!M9="","",HE!M9) ->  | K81: =IF(HE!N9="","",HE!N9) ->  | L81: =IF(HE!O9="","",HE!O9) ->  | M81: =IF(HE!P9="","",HE!P9) ->  | N81: =IF(HE!Q9="","",HE!Q9) ->  | O81: =IF(HE!R9="","",HE!R9) ->  | P81: =IF(HE!S9="","",HE!S9) ->  | Q81: =IF(HE!T9="","",HE!T9) ->  | R81: =IF(HE!U9="","",HE!U9) ->  | S81: =IF(HE!V9="","",HE!V9) ->  | T81: =IF(HE!W9="","",HE!W9) ->  | U81: =IF(HE!X9="","",HE!X9) ->  | V81: =IF(HE!Y9="","",HE!Y9) ->  | W81: =IF(HE!Z9="","",HE!Z9) ->  | X81: =IF(HE!AA9="","",HE!AA9) ->  | Y81: =IF(HE!AB9="","",HE!AB9) ->  | Z81: =IF(HE!AC9="","",HE!AC9) ->  | AA81: =IF(HE!AD9="","",HE!AD9) ->  | AB81: =IF(HE!AE9="","",HE!AE9) ->  | AC81: =IF(HE!AF9="","",HE!AF9) ->  | AD81: =IF(HE!AG9="","",HE!AG9) ->  | AE81: =IF(HE!AH9="","",HE!AH9) ->  | AF81: =IF(HE!AI9="","",HE!AI9) ->  | AG81: =IF(HE!AJ9="","",HE!AJ9) ->  | AH81: =IF(HE!AK9="","",HE!AK9) ->  | AI81: =IF(HE!AL9="","",HE!AL9) ->  | AJ81: =IF(HE!AM9="","",HE!AM9) ->  | AK81: =IF(HE!AN9="","",HE!AN9) ->  | AL81: =IF(HE!AO9="","",HE!AO9) ->  | AM81: =IF(HE!AP9="","",HE!AP9) -> 
C82: Comp. Esp. 4 | D82: Criterio Evaluación 4.1 | E82: =IF(HE!H10="","",HE!H10) ->  | F82: =IF(HE!I10="","",HE!I10) ->  | G82: =IF(HE!J10="","",HE!J10) ->  | H82: =IF(HE!K10="","",HE!K10) ->  | I82: =IF(HE!L10="","",HE!L10) ->  | J82: =IF(HE!M10="","",HE!M10) ->  | K82: =IF(HE!N10="","",HE!N10) ->  | L82: =IF(HE!O10="","",HE!O10) ->  | M82: =IF(HE!P10="","",HE!P10) ->  | N82: =IF(HE!Q10="","",HE!Q10) ->  | O82: =IF(HE!R10="","",HE!R10) ->  | P82: =IF(HE!S10="","",HE!S10) ->  | Q82: =IF(HE!T10="","",HE!T10) ->  | R82: =IF(HE!U10="","",HE!U10) ->  | S82: =IF(HE!V10="","",HE!V10) ->  | T82: =IF(HE!W10="","",HE!W10) ->  | U82: =IF(HE!X10="","",HE!X10) ->  | V82: =IF(HE!Y10="","",HE!Y10) ->  | W82: =IF(HE!Z10="","",HE!Z10) ->  | X82: =IF(HE!AA10="","",HE!AA10) ->  | Y82: =IF(HE!AB10="","",HE!AB10) ->  | Z82: =IF(HE!AC10="","",HE!AC10) ->  | AA82: =IF(HE!AD10="","",HE!AD10) ->  | AB82: =IF(HE!AE10="","",HE!AE10) ->  | AC82: =IF(HE!AF10="","",HE!AF10) ->  | AD82: =IF(HE!AG10="","",HE!AG10) ->  | AE82: =IF(HE!AH10="","",HE!AH10) ->  | AF82: =IF(HE!AI10="","",HE!AI10) ->  | AG82: =IF(HE!AJ10="","",HE!AJ10) ->  | AH82: =IF(HE!AK10="","",HE!AK10) ->  | AI82: =IF(HE!AL10="","",HE!AL10) ->  | AJ82: =IF(HE!AM10="","",HE!AM10) ->  | AK82: =IF(HE!AN10="","",HE!AN10) ->  | AL82: =IF(HE!AO10="","",HE!AO10) ->  | AM82: =IF(HE!AP10="","",HE!AP10) -> 
D83: Criterio Evaluación 4.2 | E83: =IF(HE!H11="","",HE!H11) ->  | F83: =IF(HE!I11="","",HE!I11) ->  | G83: =IF(HE!J11="","",HE!J11) ->  | H83: =IF(HE!K11="","",HE!K11) ->  | I83: =IF(HE!L11="","",HE!L11) ->  | J83: =IF(HE!M11="","",HE!M11) ->  | K83: =IF(HE!N11="","",HE!N11) ->  | L83: =IF(HE!O11="","",HE!O11) ->  | M83: =IF(HE!P11="","",HE!P11) ->  | N83: =IF(HE!Q11="","",HE!Q11) ->  | O83: =IF(HE!R11="","",HE!R11) ->  | P83: =IF(HE!S11="","",HE!S11) ->  | Q83: =IF(HE!T11="","",HE!T11) ->  | R83: =IF(HE!U11="","",HE!U11) ->  | S83: =IF(HE!V11="","",HE!V11) ->  | T83: =IF(HE!W11="","",HE!W11) ->  | U83: =IF(HE!X11="","",HE!X11) ->  | V83: =IF(HE!Y11="","",HE!Y11) ->  | W83: =IF(HE!Z11="","",HE!Z11) ->  | X83: =IF(HE!AA11="","",HE!AA11) ->  | Y83: =IF(HE!AB11="","",HE!AB11) ->  | Z83: =IF(HE!AC11="","",HE!AC11) ->  | AA83: =IF(HE!AD11="","",HE!AD11) ->  | AB83: =IF(HE!AE11="","",HE!AE11) ->  | AC83: =IF(HE!AF11="","",HE!AF11) ->  | AD83: =IF(HE!AG11="","",HE!AG11) ->  | AE83: =IF(HE!AH11="","",HE!AH11) ->  | AF83: =IF(HE!AI11="","",HE!AI11) ->  | AG83: =IF(HE!AJ11="","",HE!AJ11) ->  | AH83: =IF(HE!AK11="","",HE!AK11) ->  | AI83: =IF(HE!AL11="","",HE!AL11) ->  | AJ83: =IF(HE!AM11="","",HE!AM11) ->  | AK83: =IF(HE!AN11="","",HE!AN11) ->  | AL83: =IF(HE!AO11="","",HE!AO11) ->  | AM83: =IF(HE!AP11="","",HE!AP11) -> 
D84: Criterio Evaluación 4.3 | E84: =IF(HE!H12="","",HE!H12) ->  | F84: =IF(HE!I12="","",HE!I12) ->  | G84: =IF(HE!J12="","",HE!J12) ->  | H84: =IF(HE!K12="","",HE!K12) ->  | I84: =IF(HE!L12="","",HE!L12) ->  | J84: =IF(HE!M12="","",HE!M12) ->  | K84: =IF(HE!N12="","",HE!N12) ->  | L84: =IF(HE!O12="","",HE!O12) ->  | M84: =IF(HE!P12="","",HE!P12) ->  | N84: =IF(HE!Q12="","",HE!Q12) ->  | O84: =IF(HE!R12="","",HE!R12) ->  | P84: =IF(HE!S12="","",HE!S12) ->  | Q84: =IF(HE!T12="","",HE!T12) ->  | R84: =IF(HE!U12="","",HE!U12) ->  | S84: =IF(HE!V12="","",HE!V12) ->  | T84: =IF(HE!W12="","",HE!W12) ->  | U84: =IF(HE!X12="","",HE!X12) ->  | V84: =IF(HE!Y12="","",HE!Y12) ->  | W84: =IF(HE!Z12="","",HE!Z12) ->  | X84: =IF(HE!AA12="","",HE!AA12) ->  | Y84: =IF(HE!AB12="","",HE!AB12) ->  | Z84: =IF(HE!AC12="","",HE!AC12) ->  | AA84: =IF(HE!AD12="","",HE!AD12) ->  | AB84: =IF(HE!AE12="","",HE!AE12) ->  | AC84: =IF(HE!AF12="","",HE!AF12) ->  | AD84: =IF(HE!AG12="","",HE!AG12) ->  | AE84: =IF(HE!AH12="","",HE!AH12) ->  | AF84: =IF(HE!AI12="","",HE!AI12) ->  | AG84: =IF(HE!AJ12="","",HE!AJ12) ->  | AH84: =IF(HE!AK12="","",HE!AK12) ->  | AI84: =IF(HE!AL12="","",HE!AL12) ->  | AJ84: =IF(HE!AM12="","",HE!AM12) ->  | AK84: =IF(HE!AN12="","",HE!AN12) ->  | AL84: =IF(HE!AO12="","",HE!AO12) ->  | AM84: =IF(HE!AP12="","",HE!AP12) -> 
C85: Comp. Esp. 5 | D85: Criterio Evaluación 5.1 | E85: =IF(HE!H13="","",HE!H13) ->  | F85: =IF(HE!I13="","",HE!I13) ->  | G85: =IF(HE!J13="","",HE!J13) ->  | H85: =IF(HE!K13="","",HE!K13) ->  | I85: =IF(HE!L13="","",HE!L13) ->  | J85: =IF(HE!M13="","",HE!M13) ->  | K85: =IF(HE!N13="","",HE!N13) ->  | L85: =IF(HE!O13="","",HE!O13) ->  | M85: =IF(HE!P13="","",HE!P13) ->  | N85: =IF(HE!Q13="","",HE!Q13) ->  | O85: =IF(HE!R13="","",HE!R13) ->  | P85: =IF(HE!S13="","",HE!S13) ->  | Q85: =IF(HE!T13="","",HE!T13) ->  | R85: =IF(HE!U13="","",HE!U13) ->  | S85: =IF(HE!V13="","",HE!V13) ->  | T85: =IF(HE!W13="","",HE!W13) ->  | U85: =IF(HE!X13="","",HE!X13) ->  | V85: =IF(HE!Y13="","",HE!Y13) ->  | W85: =IF(HE!Z13="","",HE!Z13) ->  | X85: =IF(HE!AA13="","",HE!AA13) ->  | Y85: =IF(HE!AB13="","",HE!AB13) ->  | Z85: =IF(HE!AC13="","",HE!AC13) ->  | AA85: =IF(HE!AD13="","",HE!AD13) ->  | AB85: =IF(HE!AE13="","",HE!AE13) ->  | AC85: =IF(HE!AF13="","",HE!AF13) ->  | AD85: =IF(HE!AG13="","",HE!AG13) ->  | AE85: =IF(HE!AH13="","",HE!AH13) ->  | AF85: =IF(HE!AI13="","",HE!AI13) ->  | AG85: =IF(HE!AJ13="","",HE!AJ13) ->  | AH85: =IF(HE!AK13="","",HE!AK13) ->  | AI85: =IF(HE!AL13="","",HE!AL13) ->  | AJ85: =IF(HE!AM13="","",HE!AM13) ->  | AK85: =IF(HE!AN13="","",HE!AN13) ->  | AL85: =IF(HE!AO13="","",HE!AO13) ->  | AM85: =IF(HE!AP13="","",HE!AP13) -> 
D86: Criterio Evaluación 5.2 | E86: =IF(HE!H14="","",HE!H14) ->  | F86: =IF(HE!I14="","",HE!I14) ->  | G86: =IF(HE!J14="","",HE!J14) ->  | H86: =IF(HE!K14="","",HE!K14) ->  | I86: =IF(HE!L14="","",HE!L14) ->  | J86: =IF(HE!M14="","",HE!M14) ->  | K86: =IF(HE!N14="","",HE!N14) ->  | L86: =IF(HE!O14="","",HE!O14) ->  | M86: =IF(HE!P14="","",HE!P14) ->  | N86: =IF(HE!Q14="","",HE!Q14) ->  | O86: =IF(HE!R14="","",HE!R14) ->  | P86: =IF(HE!S14="","",HE!S14) ->  | Q86: =IF(HE!T14="","",HE!T14) ->  | R86: =IF(HE!U14="","",HE!U14) ->  | S86: =IF(HE!V14="","",HE!V14) ->  | T86: =IF(HE!W14="","",HE!W14) ->  | U86: =IF(HE!X14="","",HE!X14) ->  | V86: =IF(HE!Y14="","",HE!Y14) ->  | W86: =IF(HE!Z14="","",HE!Z14) ->  | X86: =IF(HE!AA14="","",HE!AA14) ->  | Y86: =IF(HE!AB14="","",HE!AB14) ->  | Z86: =IF(HE!AC14="","",HE!AC14) ->  | AA86: =IF(HE!AD14="","",HE!AD14) ->  | AB86: =IF(HE!AE14="","",HE!AE14) ->  | AC86: =IF(HE!AF14="","",HE!AF14) ->  | AD86: =IF(HE!AG14="","",HE!AG14) ->  | AE86: =IF(HE!AH14="","",HE!AH14) ->  | AF86: =IF(HE!AI14="","",HE!AI14) ->  | AG86: =IF(HE!AJ14="","",HE!AJ14) ->  | AH86: =IF(HE!AK14="","",HE!AK14) ->  | AI86: =IF(HE!AL14="","",HE!AL14) ->  | AJ86: =IF(HE!AM14="","",HE!AM14) ->  | AK86: =IF(HE!AN14="","",HE!AN14) ->  | AL86: =IF(HE!AO14="","",HE!AO14) ->  | AM86: =IF(HE!AP14="","",HE!AP14) -> 
D87: Criterio Evaluación 5.3 | E87: =IF(HE!H15="","",HE!H15) ->  | F87: =IF(HE!I15="","",HE!I15) ->  | G87: =IF(HE!J15="","",HE!J15) ->  | H87: =IF(HE!K15="","",HE!K15) ->  | I87: =IF(HE!L15="","",HE!L15) ->  | J87: =IF(HE!M15="","",HE!M15) ->  | K87: =IF(HE!N15="","",HE!N15) ->  | L87: =IF(HE!O15="","",HE!O15) ->  | M87: =IF(HE!P15="","",HE!P15) ->  | N87: =IF(HE!Q15="","",HE!Q15) ->  | O87: =IF(HE!R15="","",HE!R15) ->  | P87: =IF(HE!S15="","",HE!S15) ->  | Q87: =IF(HE!T15="","",HE!T15) ->  | R87: =IF(HE!U15="","",HE!U15) ->  | S87: =IF(HE!V15="","",HE!V15) ->  | T87: =IF(HE!W15="","",HE!W15) ->  | U87: =IF(HE!X15="","",HE!X15) ->  | V87: =IF(HE!Y15="","",HE!Y15) ->  | W87: =IF(HE!Z15="","",HE!Z15) ->  | X87: =IF(HE!AA15="","",HE!AA15) ->  | Y87: =IF(HE!AB15="","",HE!AB15) ->  | Z87: =IF(HE!AC15="","",HE!AC15) ->  | AA87: =IF(HE!AD15="","",HE!AD15) ->  | AB87: =IF(HE!AE15="","",HE!AE15) ->  | AC87: =IF(HE!AF15="","",HE!AF15) ->  | AD87: =IF(HE!AG15="","",HE!AG15) ->  | AE87: =IF(HE!AH15="","",HE!AH15) ->  | AF87: =IF(HE!AI15="","",HE!AI15) ->  | AG87: =IF(HE!AJ15="","",HE!AJ15) ->  | AH87: =IF(HE!AK15="","",HE!AK15) ->  | AI87: =IF(HE!AL15="","",HE!AL15) ->  | AJ87: =IF(HE!AM15="","",HE!AM15) ->  | AK87: =IF(HE!AN15="","",HE!AN15) ->  | AL87: =IF(HE!AO15="","",HE!AO15) ->  | AM87: =IF(HE!AP15="","",HE!AP15) -> 
C88: Comp. Esp. 6 | D88: Criterio Evaluación 6.1 | E88: =IF(HE!H16="","",HE!H16) ->  | F88: =IF(HE!I16="","",HE!I16) ->  | G88: =IF(HE!J16="","",HE!J16) ->  | H88: =IF(HE!K16="","",HE!K16) ->  | I88: =IF(HE!L16="","",HE!L16) ->  | J88: =IF(HE!M16="","",HE!M16) ->  | K88: =IF(HE!N16="","",HE!N16) ->  | L88: =IF(HE!O16="","",HE!O16) ->  | M88: =IF(HE!P16="","",HE!P16) ->  | N88: =IF(HE!Q16="","",HE!Q16) ->  | O88: =IF(HE!R16="","",HE!R16) ->  | P88: =IF(HE!S16="","",HE!S16) ->  | Q88: =IF(HE!T16="","",HE!T16) ->  | R88: =IF(HE!U16="","",HE!U16) ->  | S88: =IF(HE!V16="","",HE!V16) ->  | T88: =IF(HE!W16="","",HE!W16) ->  | U88: =IF(HE!X16="","",HE!X16) ->  | V88: =IF(HE!Y16="","",HE!Y16) ->  | W88: =IF(HE!Z16="","",HE!Z16) ->  | X88: =IF(HE!AA16="","",HE!AA16) ->  | Y88: =IF(HE!AB16="","",HE!AB16) ->  | Z88: =IF(HE!AC16="","",HE!AC16) ->  | AA88: =IF(HE!AD16="","",HE!AD16) ->  | AB88: =IF(HE!AE16="","",HE!AE16) ->  | AC88: =IF(HE!AF16="","",HE!AF16) ->  | AD88: =IF(HE!AG16="","",HE!AG16) ->  | AE88: =IF(HE!AH16="","",HE!AH16) ->  | AF88: =IF(HE!AI16="","",HE!AI16) ->  | AG88: =IF(HE!AJ16="","",HE!AJ16) ->  | AH88: =IF(HE!AK16="","",HE!AK16) ->  | AI88: =IF(HE!AL16="","",HE!AL16) ->  | AJ88: =IF(HE!AM16="","",HE!AM16) ->  | AK88: =IF(HE!AN16="","",HE!AN16) ->  | AL88: =IF(HE!AO16="","",HE!AO16) ->  | AM88: =IF(HE!AP16="","",HE!AP16) -> 
D89: Criterio Evaluación 6.2 | E89: =IF(HE!H17="","",HE!H17) ->  | F89: =IF(HE!I17="","",HE!I17) ->  | G89: =IF(HE!J17="","",HE!J17) ->  | H89: =IF(HE!K17="","",HE!K17) ->  | I89: =IF(HE!L17="","",HE!L17) ->  | J89: =IF(HE!M17="","",HE!M17) ->  | K89: =IF(HE!N17="","",HE!N17) ->  | L89: =IF(HE!O17="","",HE!O17) ->  | M89: =IF(HE!P17="","",HE!P17) ->  | N89: =IF(HE!Q17="","",HE!Q17) ->  | O89: =IF(HE!R17="","",HE!R17) ->  | P89: =IF(HE!S17="","",HE!S17) ->  | Q89: =IF(HE!T17="","",HE!T17) ->  | R89: =IF(HE!U17="","",HE!U17) ->  | S89: =IF(HE!V17="","",HE!V17) ->  | T89: =IF(HE!W17="","",HE!W17) ->  | U89: =IF(HE!X17="","",HE!X17) ->  | V89: =IF(HE!Y17="","",HE!Y17) ->  | W89: =IF(HE!Z17="","",HE!Z17) ->  | X89: =IF(HE!AA17="","",HE!AA17) ->  | Y89: =IF(HE!AB17="","",HE!AB17) ->  | Z89: =IF(HE!AC17="","",HE!AC17) ->  | AA89: =IF(HE!AD17="","",HE!AD17) ->  | AB89: =IF(HE!AE17="","",HE!AE17) ->  | AC89: =IF(HE!AF17="","",HE!AF17) ->  | AD89: =IF(HE!AG17="","",HE!AG17) ->  | AE89: =IF(HE!AH17="","",HE!AH17) ->  | AF89: =IF(HE!AI17="","",HE!AI17) ->  | AG89: =IF(HE!AJ17="","",HE!AJ17) ->  | AH89: =IF(HE!AK17="","",HE!AK17) ->  | AI89: =IF(HE!AL17="","",HE!AL17) ->  | AJ89: =IF(HE!AM17="","",HE!AM17) ->  | AK89: =IF(HE!AN17="","",HE!AN17) ->  | AL89: =IF(HE!AO17="","",HE!AO17) ->  | AM89: =IF(HE!AP17="","",HE!AP17) -> 
C90: Comp. Esp. 7 | D90: Criterio Evaluación 7.1 | E90: =IF(HE!H18="","",HE!H18) ->  | F90: =IF(HE!I18="","",HE!I18) ->  | G90: =IF(HE!J18="","",HE!J18) ->  | H90: =IF(HE!K18="","",HE!K18) ->  | I90: =IF(HE!L18="","",HE!L18) ->  | J90: =IF(HE!M18="","",HE!M18) ->  | K90: =IF(HE!N18="","",HE!N18) ->  | L90: =IF(HE!O18="","",HE!O18) ->  | M90: =IF(HE!P18="","",HE!P18) ->  | N90: =IF(HE!Q18="","",HE!Q18) ->  | O90: =IF(HE!R18="","",HE!R18) ->  | P90: =IF(HE!S18="","",HE!S18) ->  | Q90: =IF(HE!T18="","",HE!T18) ->  | R90: =IF(HE!U18="","",HE!U18) ->  | S90: =IF(HE!V18="","",HE!V18) ->  | T90: =IF(HE!W18="","",HE!W18) ->  | U90: =IF(HE!X18="","",HE!X18) ->  | V90: =IF(HE!Y18="","",HE!Y18) ->  | W90: =IF(HE!Z18="","",HE!Z18) ->  | X90: =IF(HE!AA18="","",HE!AA18) ->  | Y90: =IF(HE!AB18="","",HE!AB18) ->  | Z90: =IF(HE!AC18="","",HE!AC18) ->  | AA90: =IF(HE!AD18="","",HE!AD18) ->  | AB90: =IF(HE!AE18="","",HE!AE18) ->  | AC90: =IF(HE!AF18="","",HE!AF18) ->  | AD90: =IF(HE!AG18="","",HE!AG18) ->  | AE90: =IF(HE!AH18="","",HE!AH18) ->  | AF90: =IF(HE!AI18="","",HE!AI18) ->  | AG90: =IF(HE!AJ18="","",HE!AJ18) ->  | AH90: =IF(HE!AK18="","",HE!AK18) ->  | AI90: =IF(HE!AL18="","",HE!AL18) ->  | AJ90: =IF(HE!AM18="","",HE!AM18) ->  | AK90: =IF(HE!AN18="","",HE!AN18) ->  | AL90: =IF(HE!AO18="","",HE!AO18) ->  | AM90: =IF(HE!AP18="","",HE!AP18) -> 
D91: Criterio Evaluación 7.2 | E91: =IF(HE!H19="","",HE!H19) ->  | F91: =IF(HE!I19="","",HE!I19) ->  | G91: =IF(HE!J19="","",HE!J19) ->  | H91: =IF(HE!K19="","",HE!K19) ->  | I91: =IF(HE!L19="","",HE!L19) ->  | J91: =IF(HE!M19="","",HE!M19) ->  | K91: =IF(HE!N19="","",HE!N19) ->  | L91: =IF(HE!O19="","",HE!O19) ->  | M91: =IF(HE!P19="","",HE!P19) ->  | N91: =IF(HE!Q19="","",HE!Q19) ->  | O91: =IF(HE!R19="","",HE!R19) ->  | P91: =IF(HE!S19="","",HE!S19) ->  | Q91: =IF(HE!T19="","",HE!T19) ->  | R91: =IF(HE!U19="","",HE!U19) ->  | S91: =IF(HE!V19="","",HE!V19) ->  | T91: =IF(HE!W19="","",HE!W19) ->  | U91: =IF(HE!X19="","",HE!X19) ->  | V91: =IF(HE!Y19="","",HE!Y19) ->  | W91: =IF(HE!Z19="","",HE!Z19) ->  | X91: =IF(HE!AA19="","",HE!AA19) ->  | Y91: =IF(HE!AB19="","",HE!AB19) ->  | Z91: =IF(HE!AC19="","",HE!AC19) ->  | AA91: =IF(HE!AD19="","",HE!AD19) ->  | AB91: =IF(HE!AE19="","",HE!AE19) ->  | AC91: =IF(HE!AF19="","",HE!AF19) ->  | AD91: =IF(HE!AG19="","",HE!AG19) ->  | AE91: =IF(HE!AH19="","",HE!AH19) ->  | AF91: =IF(HE!AI19="","",HE!AI19) ->  | AG91: =IF(HE!AJ19="","",HE!AJ19) ->  | AH91: =IF(HE!AK19="","",HE!AK19) ->  | AI91: =IF(HE!AL19="","",HE!AL19) ->  | AJ91: =IF(HE!AM19="","",HE!AM19) ->  | AK91: =IF(HE!AN19="","",HE!AN19) ->  | AL91: =IF(HE!AO19="","",HE!AO19) ->  | AM91: =IF(HE!AP19="","",HE!AP19) -> 
C92: Comp. Esp. 8 | D92: Criterio Evaluación 8.1 | E92: =IF(HE!H20="","",HE!H20) ->  | F92: =IF(HE!I20="","",HE!I20) ->  | G92: =IF(HE!J20="","",HE!J20) ->  | H92: =IF(HE!K20="","",HE!K20) ->  | I92: =IF(HE!L20="","",HE!L20) ->  | J92: =IF(HE!M20="","",HE!M20) ->  | K92: =IF(HE!N20="","",HE!N20) ->  | L92: =IF(HE!O20="","",HE!O20) ->  | M92: =IF(HE!P20="","",HE!P20) ->  | N92: =IF(HE!Q20="","",HE!Q20) ->  | O92: =IF(HE!R20="","",HE!R20) ->  | P92: =IF(HE!S20="","",HE!S20) ->  | Q92: =IF(HE!T20="","",HE!T20) ->  | R92: =IF(HE!U20="","",HE!U20) ->  | S92: =IF(HE!V20="","",HE!V20) ->  | T92: =IF(HE!W20="","",HE!W20) ->  | U92: =IF(HE!X20="","",HE!X20) ->  | V92: =IF(HE!Y20="","",HE!Y20) ->  | W92: =IF(HE!Z20="","",HE!Z20) ->  | X92: =IF(HE!AA20="","",HE!AA20) ->  | Y92: =IF(HE!AB20="","",HE!AB20) ->  | Z92: =IF(HE!AC20="","",HE!AC20) ->  | AA92: =IF(HE!AD20="","",HE!AD20) ->  | AB92: =IF(HE!AE20="","",HE!AE20) ->  | AC92: =IF(HE!AF20="","",HE!AF20) ->  | AD92: =IF(HE!AG20="","",HE!AG20) ->  | AE92: =IF(HE!AH20="","",HE!AH20) ->  | AF92: =IF(HE!AI20="","",HE!AI20) ->  | AG92: =IF(HE!AJ20="","",HE!AJ20) ->  | AH92: =IF(HE!AK20="","",HE!AK20) ->  | AI92: =IF(HE!AL20="","",HE!AL20) ->  | AJ92: =IF(HE!AM20="","",HE!AM20) ->  | AK92: =IF(HE!AN20="","",HE!AN20) ->  | AL92: =IF(HE!AO20="","",HE!AO20) ->  | AM92: =IF(HE!AP20="","",HE!AP20) -> 
B93: Historia de la Filosofía | C93: Comp. Esp. 1 | D93: Criterio Evaluación 1.1 | E93: =IF(HF!H4="","",HF!H4) ->  | F93: =IF(HF!I4="","",HF!I4) ->  | G93: =IF(HF!J4="","",HF!J4) ->  | H93: =IF(HF!K4="","",HF!K4) ->  | I93: =IF(HF!L4="","",HF!L4) ->  | J93: =IF(HF!M4="","",HF!M4) ->  | K93: =IF(HF!N4="","",HF!N4) ->  | L93: =IF(HF!O4="","",HF!O4) ->  | M93: =IF(HF!P4="","",HF!P4) ->  | N93: =IF(HF!Q4="","",HF!Q4) ->  | O93: =IF(HF!R4="","",HF!R4) ->  | P93: =IF(HF!S4="","",HF!S4) ->  | Q93: =IF(HF!T4="","",HF!T4) ->  | R93: =IF(HF!U4="","",HF!U4) ->  | S93: =IF(HF!V4="","",HF!V4) ->  | T93: =IF(HF!W4="","",HF!W4) ->  | U93: =IF(HF!X4="","",HF!X4) ->  | V93: =IF(HF!Y4="","",HF!Y4) ->  | W93: =IF(HF!Z4="","",HF!Z4) ->  | X93: =IF(HF!AA4="","",HF!AA4) ->  | Y93: =IF(HF!AB4="","",HF!AB4) ->  | Z93: =IF(HF!AC4="","",HF!AC4) ->  | AA93: =IF(HF!AD4="","",HF!AD4) ->  | AB93: =IF(HF!AE4="","",HF!AE4) ->  | AC93: =IF(HF!AF4="","",HF!AF4) ->  | AD93: =IF(HF!AG4="","",HF!AG4) ->  | AE93: =IF(HF!AH4="","",HF!AH4) ->  | AF93: =IF(HF!AI4="","",HF!AI4) ->  | AG93: =IF(HF!AJ4="","",HF!AJ4) ->  | AH93: =IF(HF!AK4="","",HF!AK4) ->  | AI93: =IF(HF!AL4="","",HF!AL4) ->  | AJ93: =IF(HF!AM4="","",HF!AM4) ->  | AK93: =IF(HF!AN4="","",HF!AN4) ->  | AL93: =IF(HF!AO4="","",HF!AO4) ->  | AM93: =IF(HF!AP4="","",HF!AP4) -> 
D94: Criterio Evaluación 1.2 | E94: =IF(HF!H5="","",HF!H5) ->  | F94: =IF(HF!I5="","",HF!I5) ->  | G94: =IF(HF!J5="","",HF!J5) ->  | H94: =IF(HF!K5="","",HF!K5) ->  | I94: =IF(HF!L5="","",HF!L5) ->  | J94: =IF(HF!M5="","",HF!M5) ->  | K94: =IF(HF!N5="","",HF!N5) ->  | L94: =IF(HF!O5="","",HF!O5) ->  | M94: =IF(HF!P5="","",HF!P5) ->  | N94: =IF(HF!Q5="","",HF!Q5) ->  | O94: =IF(HF!R5="","",HF!R5) ->  | P94: =IF(HF!S5="","",HF!S5) ->  | Q94: =IF(HF!T5="","",HF!T5) ->  | R94: =IF(HF!U5="","",HF!U5) ->  | S94: =IF(HF!V5="","",HF!V5) ->  | T94: =IF(HF!W5="","",HF!W5) ->  | U94: =IF(HF!X5="","",HF!X5) ->  | V94: =IF(HF!Y5="","",HF!Y5) ->  | W94: =IF(HF!Z5="","",HF!Z5) ->  | X94: =IF(HF!AA5="","",HF!AA5) ->  | Y94: =IF(HF!AB5="","",HF!AB5) ->  | Z94: =IF(HF!AC5="","",HF!AC5) ->  | AA94: =IF(HF!AD5="","",HF!AD5) ->  | AB94: =IF(HF!AE5="","",HF!AE5) ->  | AC94: =IF(HF!AF5="","",HF!AF5) ->  | AD94: =IF(HF!AG5="","",HF!AG5) ->  | AE94: =IF(HF!AH5="","",HF!AH5) ->  | AF94: =IF(HF!AI5="","",HF!AI5) ->  | AG94: =IF(HF!AJ5="","",HF!AJ5) ->  | AH94: =IF(HF!AK5="","",HF!AK5) ->  | AI94: =IF(HF!AL5="","",HF!AL5) ->  | AJ94: =IF(HF!AM5="","",HF!AM5) ->  | AK94: =IF(HF!AN5="","",HF!AN5) ->  | AL94: =IF(HF!AO5="","",HF!AO5) ->  | AM94: =IF(HF!AP5="","",HF!AP5) -> 
C95: Comp. Esp. 2 | D95: Criterio Evaluación 2.1 | E95: =IF(HF!H6="","",HF!H6) ->  | F95: =IF(HF!I6="","",HF!I6) ->  | G95: =IF(HF!J6="","",HF!J6) ->  | H95: =IF(HF!K6="","",HF!K6) ->  | I95: =IF(HF!L6="","",HF!L6) ->  | J95: =IF(HF!M6="","",HF!M6) ->  | K95: =IF(HF!N6="","",HF!N6) ->  | L95: =IF(HF!O6="","",HF!O6) ->  | M95: =IF(HF!P6="","",HF!P6) ->  | N95: =IF(HF!Q6="","",HF!Q6) ->  | O95: =IF(HF!R6="","",HF!R6) ->  | P95: =IF(HF!S6="","",HF!S6) ->  | Q95: =IF(HF!T6="","",HF!T6) ->  | R95: =IF(HF!U6="","",HF!U6) ->  | S95: =IF(HF!V6="","",HF!V6) ->  | T95: =IF(HF!W6="","",HF!W6) ->  | U95: =IF(HF!X6="","",HF!X6) ->  | V95: =IF(HF!Y6="","",HF!Y6) ->  | W95: =IF(HF!Z6="","",HF!Z6) ->  | X95: =IF(HF!AA6="","",HF!AA6) ->  | Y95: =IF(HF!AB6="","",HF!AB6) ->  | Z95: =IF(HF!AC6="","",HF!AC6) ->  | AA95: =IF(HF!AD6="","",HF!AD6) ->  | AB95: =IF(HF!AE6="","",HF!AE6) ->  | AC95: =IF(HF!AF6="","",HF!AF6) ->  | AD95: =IF(HF!AG6="","",HF!AG6) ->  | AE95: =IF(HF!AH6="","",HF!AH6) ->  | AF95: =IF(HF!AI6="","",HF!AI6) ->  | AG95: =IF(HF!AJ6="","",HF!AJ6) ->  | AH95: =IF(HF!AK6="","",HF!AK6) ->  | AI95: =IF(HF!AL6="","",HF!AL6) ->  | AJ95: =IF(HF!AM6="","",HF!AM6) ->  | AK95: =IF(HF!AN6="","",HF!AN6) ->  | AL95: =IF(HF!AO6="","",HF!AO6) ->  | AM95: =IF(HF!AP6="","",HF!AP6) -> 
D96: Criterio Evaluación 2.2 | E96: =IF(HF!H7="","",HF!H7) ->  | F96: =IF(HF!I7="","",HF!I7) ->  | G96: =IF(HF!J7="","",HF!J7) ->  | H96: =IF(HF!K7="","",HF!K7) ->  | I96: =IF(HF!L7="","",HF!L7) ->  | J96: =IF(HF!M7="","",HF!M7) ->  | K96: =IF(HF!N7="","",HF!N7) ->  | L96: =IF(HF!O7="","",HF!O7) ->  | M96: =IF(HF!P7="","",HF!P7) ->  | N96: =IF(HF!Q7="","",HF!Q7) ->  | O96: =IF(HF!R7="","",HF!R7) ->  | P96: =IF(HF!S7="","",HF!S7) ->  | Q96: =IF(HF!T7="","",HF!T7) ->  | R96: =IF(HF!U7="","",HF!U7) ->  | S96: =IF(HF!V7="","",HF!V7) ->  | T96: =IF(HF!W7="","",HF!W7) ->  | U96: =IF(HF!X7="","",HF!X7) ->  | V96: =IF(HF!Y7="","",HF!Y7) ->  | W96: =IF(HF!Z7="","",HF!Z7) ->  | X96: =IF(HF!AA7="","",HF!AA7) ->  | Y96: =IF(HF!AB7="","",HF!AB7) ->  | Z96: =IF(HF!AC7="","",HF!AC7) ->  | AA96: =IF(HF!AD7="","",HF!AD7) ->  | AB96: =IF(HF!AE7="","",HF!AE7) ->  | AC96: =IF(HF!AF7="","",HF!AF7) ->  | AD96: =IF(HF!AG7="","",HF!AG7) ->  | AE96: =IF(HF!AH7="","",HF!AH7) ->  | AF96: =IF(HF!AI7="","",HF!AI7) ->  | AG96: =IF(HF!AJ7="","",HF!AJ7) ->  | AH96: =IF(HF!AK7="","",HF!AK7) ->  | AI96: =IF(HF!AL7="","",HF!AL7) ->  | AJ96: =IF(HF!AM7="","",HF!AM7) ->  | AK96: =IF(HF!AN7="","",HF!AN7) ->  | AL96: =IF(HF!AO7="","",HF!AO7) ->  | AM96: =IF(HF!AP7="","",HF!AP7) -> 
C97: Comp. Esp. 3 | D97: Criterio Evaluación 3.1 | E97: =IF(HF!H8="","",HF!H8) ->  | F97: =IF(HF!I8="","",HF!I8) ->  | G97: =IF(HF!J8="","",HF!J8) ->  | H97: =IF(HF!K8="","",HF!K8) ->  | I97: =IF(HF!L8="","",HF!L8) ->  | J97: =IF(HF!M8="","",HF!M8) ->  | K97: =IF(HF!N8="","",HF!N8) ->  | L97: =IF(HF!O8="","",HF!O8) ->  | M97: =IF(HF!P8="","",HF!P8) ->  | N97: =IF(HF!Q8="","",HF!Q8) ->  | O97: =IF(HF!R8="","",HF!R8) ->  | P97: =IF(HF!S8="","",HF!S8) ->  | Q97: =IF(HF!T8="","",HF!T8) ->  | R97: =IF(HF!U8="","",HF!U8) ->  | S97: =IF(HF!V8="","",HF!V8) ->  | T97: =IF(HF!W8="","",HF!W8) ->  | U97: =IF(HF!X8="","",HF!X8) ->  | V97: =IF(HF!Y8="","",HF!Y8) ->  | W97: =IF(HF!Z8="","",HF!Z8) ->  | X97: =IF(HF!AA8="","",HF!AA8) ->  | Y97: =IF(HF!AB8="","",HF!AB8) ->  | Z97: =IF(HF!AC8="","",HF!AC8) ->  | AA97: =IF(HF!AD8="","",HF!AD8) ->  | AB97: =IF(HF!AE8="","",HF!AE8) ->  | AC97: =IF(HF!AF8="","",HF!AF8) ->  | AD97: =IF(HF!AG8="","",HF!AG8) ->  | AE97: =IF(HF!AH8="","",HF!AH8) ->  | AF97: =IF(HF!AI8="","",HF!AI8) ->  | AG97: =IF(HF!AJ8="","",HF!AJ8) ->  | AH97: =IF(HF!AK8="","",HF!AK8) ->  | AI97: =IF(HF!AL8="","",HF!AL8) ->  | AJ97: =IF(HF!AM8="","",HF!AM8) ->  | AK97: =IF(HF!AN8="","",HF!AN8) ->  | AL97: =IF(HF!AO8="","",HF!AO8) ->  | AM97: =IF(HF!AP8="","",HF!AP8) -> 
D98: Criterio Evaluación 3.2 | E98: =IF(HF!H9="","",HF!H9) ->  | F98: =IF(HF!I9="","",HF!I9) ->  | G98: =IF(HF!J9="","",HF!J9) ->  | H98: =IF(HF!K9="","",HF!K9) ->  | I98: =IF(HF!L9="","",HF!L9) ->  | J98: =IF(HF!M9="","",HF!M9) ->  | K98: =IF(HF!N9="","",HF!N9) ->  | L98: =IF(HF!O9="","",HF!O9) ->  | M98: =IF(HF!P9="","",HF!P9) ->  | N98: =IF(HF!Q9="","",HF!Q9) ->  | O98: =IF(HF!R9="","",HF!R9) ->  | P98: =IF(HF!S9="","",HF!S9) ->  | Q98: =IF(HF!T9="","",HF!T9) ->  | R98: =IF(HF!U9="","",HF!U9) ->  | S98: =IF(HF!V9="","",HF!V9) ->  | T98: =IF(HF!W9="","",HF!W9) ->  | U98: =IF(HF!X9="","",HF!X9) ->  | V98: =IF(HF!Y9="","",HF!Y9) ->  | W98: =IF(HF!Z9="","",HF!Z9) ->  | X98: =IF(HF!AA9="","",HF!AA9) ->  | Y98: =IF(HF!AB9="","",HF!AB9) ->  | Z98: =IF(HF!AC9="","",HF!AC9) ->  | AA98: =IF(HF!AD9="","",HF!AD9) ->  | AB98: =IF(HF!AE9="","",HF!AE9) ->  | AC98: =IF(HF!AF9="","",HF!AF9) ->  | AD98: =IF(HF!AG9="","",HF!AG9) ->  | AE98: =IF(HF!AH9="","",HF!AH9) ->  | AF98: =IF(HF!AI9="","",HF!AI9) ->  | AG98: =IF(HF!AJ9="","",HF!AJ9) ->  | AH98: =IF(HF!AK9="","",HF!AK9) ->  | AI98: =IF(HF!AL9="","",HF!AL9) ->  | AJ98: =IF(HF!AM9="","",HF!AM9) ->  | AK98: =IF(HF!AN9="","",HF!AN9) ->  | AL98: =IF(HF!AO9="","",HF!AO9) ->  | AM98: =IF(HF!AP9="","",HF!AP9) -> 
C99: Comp. Esp. 4 | D99: Criterio Evaluación 4.1 | E99: =IF(HF!H10="","",HF!H10) ->  | F99: =IF(HF!I10="","",HF!I10) ->  | G99: =IF(HF!J10="","",HF!J10) ->  | H99: =IF(HF!K10="","",HF!K10) ->  | I99: =IF(HF!L10="","",HF!L10) ->  | J99: =IF(HF!M10="","",HF!M10) ->  | K99: =IF(HF!N10="","",HF!N10) ->  | L99: =IF(HF!O10="","",HF!O10) ->  | M99: =IF(HF!P10="","",HF!P10) ->  | N99: =IF(HF!Q10="","",HF!Q10) ->  | O99: =IF(HF!R10="","",HF!R10) ->  | P99: =IF(HF!S10="","",HF!S10) ->  | Q99: =IF(HF!T10="","",HF!T10) ->  | R99: =IF(HF!U10="","",HF!U10) ->  | S99: =IF(HF!V10="","",HF!V10) ->  | T99: =IF(HF!W10="","",HF!W10) ->  | U99: =IF(HF!X10="","",HF!X10) ->  | V99: =IF(HF!Y10="","",HF!Y10) ->  | W99: =IF(HF!Z10="","",HF!Z10) ->  | X99: =IF(HF!AA10="","",HF!AA10) ->  | Y99: =IF(HF!AB10="","",HF!AB10) ->  | Z99: =IF(HF!AC10="","",HF!AC10) ->  | AA99: =IF(HF!AD10="","",HF!AD10) ->  | AB99: =IF(HF!AE10="","",HF!AE10) ->  | AC99: =IF(HF!AF10="","",HF!AF10) ->  | AD99: =IF(HF!AG10="","",HF!AG10) ->  | AE99: =IF(HF!AH10="","",HF!AH10) ->  | AF99: =IF(HF!AI10="","",HF!AI10) ->  | AG99: =IF(HF!AJ10="","",HF!AJ10) ->  | AH99: =IF(HF!AK10="","",HF!AK10) ->  | AI99: =IF(HF!AL10="","",HF!AL10) ->  | AJ99: =IF(HF!AM10="","",HF!AM10) ->  | AK99: =IF(HF!AN10="","",HF!AN10) ->  | AL99: =IF(HF!AO10="","",HF!AO10) ->  | AM99: =IF(HF!AP10="","",HF!AP10) -> 
D100: Criterio Evaluación 4.2 | E100: =IF(HF!H11="","",HF!H11) ->  | F100: =IF(HF!I11="","",HF!I11) ->  | G100: =IF(HF!J11="","",HF!J11) ->  | H100: =IF(HF!K11="","",HF!K11) ->  | I100: =IF(HF!L11="","",HF!L11) ->  | J100: =IF(HF!M11="","",HF!M11) ->  | K100: =IF(HF!N11="","",HF!N11) ->  | L100: =IF(HF!O11="","",HF!O11) ->  | M100: =IF(HF!P11="","",HF!P11) ->  | N100: =IF(HF!Q11="","",HF!Q11) ->  | O100: =IF(HF!R11="","",HF!R11) ->  | P100: =IF(HF!S11="","",HF!S11) ->  | Q100: =IF(HF!T11="","",HF!T11) ->  | R100: =IF(HF!U11="","",HF!U11) ->  | S100: =IF(HF!V11="","",HF!V11) ->  | T100: =IF(HF!W11="","",HF!W11) ->  | U100: =IF(HF!X11="","",HF!X11) ->  | V100: =IF(HF!Y11="","",HF!Y11) ->  | W100: =IF(HF!Z11="","",HF!Z11) ->  | X100: =IF(HF!AA11="","",HF!AA11) ->  | Y100: =IF(HF!AB11="","",HF!AB11) ->  | Z100: =IF(HF!AC11="","",HF!AC11) ->  | AA100: =IF(HF!AD11="","",HF!AD11) ->  | AB100: =IF(HF!AE11="","",HF!AE11) ->  | AC100: =IF(HF!AF11="","",HF!AF11) ->  | AD100: =IF(HF!AG11="","",HF!AG11) ->  | AE100: =IF(HF!AH11="","",HF!AH11) ->  | AF100: =IF(HF!AI11="","",HF!AI11) ->  | AG100: =IF(HF!AJ11="","",HF!AJ11) ->  | AH100: =IF(HF!AK11="","",HF!AK11) ->  | AI100: =IF(HF!AL11="","",HF!AL11) ->  | AJ100: =IF(HF!AM11="","",HF!AM11) ->  | AK100: =IF(HF!AN11="","",HF!AN11) ->  | AL100: =IF(HF!AO11="","",HF!AO11) ->  | AM100: =IF(HF!AP11="","",HF!AP11) -> 
C101: Comp. Esp. 5 | D101: Criterio Evaluación 5.1 | E101: =IF(HF!H12="","",HF!H12) ->  | F101: =IF(HF!I12="","",HF!I12) ->  | G101: =IF(HF!J12="","",HF!J12) ->  | H101: =IF(HF!K12="","",HF!K12) ->  | I101: =IF(HF!L12="","",HF!L12) ->  | J101: =IF(HF!M12="","",HF!M12) ->  | K101: =IF(HF!N12="","",HF!N12) ->  | L101: =IF(HF!O12="","",HF!O12) ->  | M101: =IF(HF!P12="","",HF!P12) ->  | N101: =IF(HF!Q12="","",HF!Q12) ->  | O101: =IF(HF!R12="","",HF!R12) ->  | P101: =IF(HF!S12="","",HF!S12) ->  | Q101: =IF(HF!T12="","",HF!T12) ->  | R101: =IF(HF!U12="","",HF!U12) ->  | S101: =IF(HF!V12="","",HF!V12) ->  | T101: =IF(HF!W12="","",HF!W12) ->  | U101: =IF(HF!X12="","",HF!X12) ->  | V101: =IF(HF!Y12="","",HF!Y12) ->  | W101: =IF(HF!Z12="","",HF!Z12) ->  | X101: =IF(HF!AA12="","",HF!AA12) ->  | Y101: =IF(HF!AB12="","",HF!AB12) ->  | Z101: =IF(HF!AC12="","",HF!AC12) ->  | AA101: =IF(HF!AD12="","",HF!AD12) ->  | AB101: =IF(HF!AE12="","",HF!AE12) ->  | AC101: =IF(HF!AF12="","",HF!AF12) ->  | AD101: =IF(HF!AG12="","",HF!AG12) ->  | AE101: =IF(HF!AH12="","",HF!AH12) ->  | AF101: =IF(HF!AI12="","",HF!AI12) ->  | AG101: =IF(HF!AJ12="","",HF!AJ12) ->  | AH101: =IF(HF!AK12="","",HF!AK12) ->  | AI101: =IF(HF!AL12="","",HF!AL12) ->  | AJ101: =IF(HF!AM12="","",HF!AM12) ->  | AK101: =IF(HF!AN12="","",HF!AN12) ->  | AL101: =IF(HF!AO12="","",HF!AO12) ->  | AM101: =IF(HF!AP12="","",HF!AP12) -> 
D102: Criterio Evaluación 5.2 | E102: =IF(HF!H13="","",HF!H13) ->  | F102: =IF(HF!I13="","",HF!I13) ->  | G102: =IF(HF!J13="","",HF!J13) ->  | H102: =IF(HF!K13="","",HF!K13) ->  | I102: =IF(HF!L13="","",HF!L13) ->  | J102: =IF(HF!M13="","",HF!M13) ->  | K102: =IF(HF!N13="","",HF!N13) ->  | L102: =IF(HF!O13="","",HF!O13) ->  | M102: =IF(HF!P13="","",HF!P13) ->  | N102: =IF(HF!Q13="","",HF!Q13) ->  | O102: =IF(HF!R13="","",HF!R13) ->  | P102: =IF(HF!S13="","",HF!S13) ->  | Q102: =IF(HF!T13="","",HF!T13) ->  | R102: =IF(HF!U13="","",HF!U13) ->  | S102: =IF(HF!V13="","",HF!V13) ->  | T102: =IF(HF!W13="","",HF!W13) ->  | U102: =IF(HF!X13="","",HF!X13) ->  | V102: =IF(HF!Y13="","",HF!Y13) ->  | W102: =IF(HF!Z13="","",HF!Z13) ->  | X102: =IF(HF!AA13="","",HF!AA13) ->  | Y102: =IF(HF!AB13="","",HF!AB13) ->  | Z102: =IF(HF!AC13="","",HF!AC13) ->  | AA102: =IF(HF!AD13="","",HF!AD13) ->  | AB102: =IF(HF!AE13="","",HF!AE13) ->  | AC102: =IF(HF!AF13="","",HF!AF13) ->  | AD102: =IF(HF!AG13="","",HF!AG13) ->  | AE102: =IF(HF!AH13="","",HF!AH13) ->  | AF102: =IF(HF!AI13="","",HF!AI13) ->  | AG102: =IF(HF!AJ13="","",HF!AJ13) ->  | AH102: =IF(HF!AK13="","",HF!AK13) ->  | AI102: =IF(HF!AL13="","",HF!AL13) ->  | AJ102: =IF(HF!AM13="","",HF!AM13) ->  | AK102: =IF(HF!AN13="","",HF!AN13) ->  | AL102: =IF(HF!AO13="","",HF!AO13) ->  | AM102: =IF(HF!AP13="","",HF!AP13) -> 
C103: Comp. Esp. 6 | D103: Criterio Evaluación 6.1 | E103: =IF(HF!H14="","",HF!H14) ->  | F103: =IF(HF!I14="","",HF!I14) ->  | G103: =IF(HF!J14="","",HF!J14) ->  | H103: =IF(HF!K14="","",HF!K14) ->  | I103: =IF(HF!L14="","",HF!L14) ->  | J103: =IF(HF!M14="","",HF!M14) ->  | K103: =IF(HF!N14="","",HF!N14) ->  | L103: =IF(HF!O14="","",HF!O14) ->  | M103: =IF(HF!P14="","",HF!P14) ->  | N103: =IF(HF!Q14="","",HF!Q14) ->  | O103: =IF(HF!R14="","",HF!R14) ->  | P103: =IF(HF!S14="","",HF!S14) ->  | Q103: =IF(HF!T14="","",HF!T14) ->  | R103: =IF(HF!U14="","",HF!U14) ->  | S103: =IF(HF!V14="","",HF!V14) ->  | T103: =IF(HF!W14="","",HF!W14) ->  | U103: =IF(HF!X14="","",HF!X14) ->  | V103: =IF(HF!Y14="","",HF!Y14) ->  | W103: =IF(HF!Z14="","",HF!Z14) ->  | X103: =IF(HF!AA14="","",HF!AA14) ->  | Y103: =IF(HF!AB14="","",HF!AB14) ->  | Z103: =IF(HF!AC14="","",HF!AC14) ->  | AA103: =IF(HF!AD14="","",HF!AD14) ->  | AB103: =IF(HF!AE14="","",HF!AE14) ->  | AC103: =IF(HF!AF14="","",HF!AF14) ->  | AD103: =IF(HF!AG14="","",HF!AG14) ->  | AE103: =IF(HF!AH14="","",HF!AH14) ->  | AF103: =IF(HF!AI14="","",HF!AI14) ->  | AG103: =IF(HF!AJ14="","",HF!AJ14) ->  | AH103: =IF(HF!AK14="","",HF!AK14) ->  | AI103: =IF(HF!AL14="","",HF!AL14) ->  | AJ103: =IF(HF!AM14="","",HF!AM14) ->  | AK103: =IF(HF!AN14="","",HF!AN14) ->  | AL103: =IF(HF!AO14="","",HF!AO14) ->  | AM103: =IF(HF!AP14="","",HF!AP14) -> 
C104: Comp. Esp. 7 | D104: Criterio Evaluación 7.1 | E104: =IF(HF!H15="","",HF!H15) ->  | F104: =IF(HF!I15="","",HF!I15) ->  | G104: =IF(HF!J15="","",HF!J15) ->  | H104: =IF(HF!K15="","",HF!K15) ->  | I104: =IF(HF!L15="","",HF!L15) ->  | J104: =IF(HF!M15="","",HF!M15) ->  | K104: =IF(HF!N15="","",HF!N15) ->  | L104: =IF(HF!O15="","",HF!O15) ->  | M104: =IF(HF!P15="","",HF!P15) ->  | N104: =IF(HF!Q15="","",HF!Q15) ->  | O104: =IF(HF!R15="","",HF!R15) ->  | P104: =IF(HF!S15="","",HF!S15) ->  | Q104: =IF(HF!T15="","",HF!T15) ->  | R104: =IF(HF!U15="","",HF!U15) ->  | S104: =IF(HF!V15="","",HF!V15) ->  | T104: =IF(HF!W15="","",HF!W15) ->  | U104: =IF(HF!X15="","",HF!X15) ->  | V104: =IF(HF!Y15="","",HF!Y15) ->  | W104: =IF(HF!Z15="","",HF!Z15) ->  | X104: =IF(HF!AA15="","",HF!AA15) ->  | Y104: =IF(HF!AB15="","",HF!AB15) ->  | Z104: =IF(HF!AC15="","",HF!AC15) ->  | AA104: =IF(HF!AD15="","",HF!AD15) ->  | AB104: =IF(HF!AE15="","",HF!AE15) ->  | AC104: =IF(HF!AF15="","",HF!AF15) ->  | AD104: =IF(HF!AG15="","",HF!AG15) ->  | AE104: =IF(HF!AH15="","",HF!AH15) ->  | AF104: =IF(HF!AI15="","",HF!AI15) ->  | AG104: =IF(HF!AJ15="","",HF!AJ15) ->  | AH104: =IF(HF!AK15="","",HF!AK15) ->  | AI104: =IF(HF!AL15="","",HF!AL15) ->  | AJ104: =IF(HF!AM15="","",HF!AM15) ->  | AK104: =IF(HF!AN15="","",HF!AN15) ->  | AL104: =IF(HF!AO15="","",HF!AO15) ->  | AM104: =IF(HF!AP15="","",HF!AP15) -> 
D105: Criterio Evaluación 7.2 | E105: =IF(HF!H16="","",HF!H16) ->  | F105: =IF(HF!I16="","",HF!I16) ->  | G105: =IF(HF!J16="","",HF!J16) ->  | H105: =IF(HF!K16="","",HF!K16) ->  | I105: =IF(HF!L16="","",HF!L16) ->  | J105: =IF(HF!M16="","",HF!M16) ->  | K105: =IF(HF!N16="","",HF!N16) ->  | L105: =IF(HF!O16="","",HF!O16) ->  | M105: =IF(HF!P16="","",HF!P16) ->  | N105: =IF(HF!Q16="","",HF!Q16) ->  | O105: =IF(HF!R16="","",HF!R16) ->  | P105: =IF(HF!S16="","",HF!S16) ->  | Q105: =IF(HF!T16="","",HF!T16) ->  | R105: =IF(HF!U16="","",HF!U16) ->  | S105: =IF(HF!V16="","",HF!V16) ->  | T105: =IF(HF!W16="","",HF!W16) ->  | U105: =IF(HF!X16="","",HF!X16) ->  | V105: =IF(HF!Y16="","",HF!Y16) ->  | W105: =IF(HF!Z16="","",HF!Z16) ->  | X105: =IF(HF!AA16="","",HF!AA16) ->  | Y105: =IF(HF!AB16="","",HF!AB16) ->  | Z105: =IF(HF!AC16="","",HF!AC16) ->  | AA105: =IF(HF!AD16="","",HF!AD16) ->  | AB105: =IF(HF!AE16="","",HF!AE16) ->  | AC105: =IF(HF!AF16="","",HF!AF16) ->  | AD105: =IF(HF!AG16="","",HF!AG16) ->  | AE105: =IF(HF!AH16="","",HF!AH16) ->  | AF105: =IF(HF!AI16="","",HF!AI16) ->  | AG105: =IF(HF!AJ16="","",HF!AJ16) ->  | AH105: =IF(HF!AK16="","",HF!AK16) ->  | AI105: =IF(HF!AL16="","",HF!AL16) ->  | AJ105: =IF(HF!AM16="","",HF!AM16) ->  | AK105: =IF(HF!AN16="","",HF!AN16) ->  | AL105: =IF(HF!AO16="","",HF!AO16) ->  | AM105: =IF(HF!AP16="","",HF!AP16) -> 
B106: Historia de la Música y de la Danza | C106: Comp. Esp. 1 | D106: Criterio Evaluación 1.1 | E106: =IF(HMD!H4="","",HMD!H4) ->  | F106: =IF(HMD!I4="","",HMD!I4) ->  | G106: =IF(HMD!J4="","",HMD!J4) ->  | H106: =IF(HMD!K4="","",HMD!K4) ->  | I106: =IF(HMD!L4="","",HMD!L4) ->  | J106: =IF(HMD!M4="","",HMD!M4) ->  | K106: =IF(HMD!N4="","",HMD!N4) ->  | L106: =IF(HMD!O4="","",HMD!O4) ->  | M106: =IF(HMD!P4="","",HMD!P4) ->  | N106: =IF(HMD!Q4="","",HMD!Q4) ->  | O106: =IF(HMD!R4="","",HMD!R4) ->  | P106: =IF(HMD!S4="","",HMD!S4) ->  | Q106: =IF(HMD!T4="","",HMD!T4) ->  | R106: =IF(HMD!U4="","",HMD!U4) ->  | S106: =IF(HMD!V4="","",HMD!V4) ->  | T106: =IF(HMD!W4="","",HMD!W4) ->  | U106: =IF(HMD!X4="","",HMD!X4) ->  | V106: =IF(HMD!Y4="","",HMD!Y4) ->  | W106: =IF(HMD!Z4="","",HMD!Z4) ->  | X106: =IF(HMD!AA4="","",HMD!AA4) ->  | Y106: =IF(HMD!AB4="","",HMD!AB4) ->  | Z106: =IF(HMD!AC4="","",HMD!AC4) ->  | AA106: =IF(HMD!AD4="","",HMD!AD4) ->  | AB106: =IF(HMD!AE4="","",HMD!AE4) ->  | AC106: =IF(HMD!AF4="","",HMD!AF4) ->  | AD106: =IF(HMD!AG4="","",HMD!AG4) ->  | AE106: =IF(HMD!AH4="","",HMD!AH4) ->  | AF106: =IF(HMD!AI4="","",HMD!AI4) ->  | AG106: =IF(HMD!AJ4="","",HMD!AJ4) ->  | AH106: =IF(HMD!AK4="","",HMD!AK4) ->  | AI106: =IF(HMD!AL4="","",HMD!AL4) ->  | AJ106: =IF(HMD!AM4="","",HMD!AM4) ->  | AK106: =IF(HMD!AN4="","",HMD!AN4) ->  | AL106: =IF(HMD!AO4="","",HMD!AO4) ->  | AM106: =IF(HMD!AP4="","",HMD!AP4) -> 
D107: Criterio Evaluación 1.2 | E107: =IF(HMD!H5="","",HMD!H5) ->  | F107: =IF(HMD!I5="","",HMD!I5) ->  | G107: =IF(HMD!J5="","",HMD!J5) ->  | H107: =IF(HMD!K5="","",HMD!K5) ->  | I107: =IF(HMD!L5="","",HMD!L5) ->  | J107: =IF(HMD!M5="","",HMD!M5) ->  | K107: =IF(HMD!N5="","",HMD!N5) ->  | L107: =IF(HMD!O5="","",HMD!O5) ->  | M107: =IF(HMD!P5="","",HMD!P5) ->  | N107: =IF(HMD!Q5="","",HMD!Q5) ->  | O107: =IF(HMD!R5="","",HMD!R5) ->  | P107: =IF(HMD!S5="","",HMD!S5) ->  | Q107: =IF(HMD!T5="","",HMD!T5) ->  | R107: =IF(HMD!U5="","",HMD!U5) ->  | S107: =IF(HMD!V5="","",HMD!V5) ->  | T107: =IF(HMD!W5="","",HMD!W5) ->  | U107: =IF(HMD!X5="","",HMD!X5) ->  | V107: =IF(HMD!Y5="","",HMD!Y5) ->  | W107: =IF(HMD!Z5="","",HMD!Z5) ->  | X107: =IF(HMD!AA5="","",HMD!AA5) ->  | Y107: =IF(HMD!AB5="","",HMD!AB5) ->  | Z107: =IF(HMD!AC5="","",HMD!AC5) ->  | AA107: =IF(HMD!AD5="","",HMD!AD5) ->  | AB107: =IF(HMD!AE5="","",HMD!AE5) ->  | AC107: =IF(HMD!AF5="","",HMD!AF5) ->  | AD107: =IF(HMD!AG5="","",HMD!AG5) ->  | AE107: =IF(HMD!AH5="","",HMD!AH5) ->  | AF107: =IF(HMD!AI5="","",HMD!AI5) ->  | AG107: =IF(HMD!AJ5="","",HMD!AJ5) ->  | AH107: =IF(HMD!AK5="","",HMD!AK5) ->  | AI107: =IF(HMD!AL5="","",HMD!AL5) ->  | AJ107: =IF(HMD!AM5="","",HMD!AM5) ->  | AK107: =IF(HMD!AN5="","",HMD!AN5) ->  | AL107: =IF(HMD!AO5="","",HMD!AO5) ->  | AM107: =IF(HMD!AP5="","",HMD!AP5) -> 
D108: Criterio Evaluación 1.3 | E108: =IF(HMD!H6="","",HMD!H6) ->  | F108: =IF(HMD!I6="","",HMD!I6) ->  | G108: =IF(HMD!J6="","",HMD!J6) ->  | H108: =IF(HMD!K6="","",HMD!K6) ->  | I108: =IF(HMD!L6="","",HMD!L6) ->  | J108: =IF(HMD!M6="","",HMD!M6) ->  | K108: =IF(HMD!N6="","",HMD!N6) ->  | L108: =IF(HMD!O6="","",HMD!O6) ->  | M108: =IF(HMD!P6="","",HMD!P6) ->  | N108: =IF(HMD!Q6="","",HMD!Q6) ->  | O108: =IF(HMD!R6="","",HMD!R6) ->  | P108: =IF(HMD!S6="","",HMD!S6) ->  | Q108: =IF(HMD!T6="","",HMD!T6) ->  | R108: =IF(HMD!U6="","",HMD!U6) ->  | S108: =IF(HMD!V6="","",HMD!V6) ->  | T108: =IF(HMD!W6="","",HMD!W6) ->  | U108: =IF(HMD!X6="","",HMD!X6) ->  | V108: =IF(HMD!Y6="","",HMD!Y6) ->  | W108: =IF(HMD!Z6="","",HMD!Z6) ->  | X108: =IF(HMD!AA6="","",HMD!AA6) ->  | Y108: =IF(HMD!AB6="","",HMD!AB6) ->  | Z108: =IF(HMD!AC6="","",HMD!AC6) ->  | AA108: =IF(HMD!AD6="","",HMD!AD6) ->  | AB108: =IF(HMD!AE6="","",HMD!AE6) ->  | AC108: =IF(HMD!AF6="","",HMD!AF6) ->  | AD108: =IF(HMD!AG6="","",HMD!AG6) ->  | AE108: =IF(HMD!AH6="","",HMD!AH6) ->  | AF108: =IF(HMD!AI6="","",HMD!AI6) ->  | AG108: =IF(HMD!AJ6="","",HMD!AJ6) ->  | AH108: =IF(HMD!AK6="","",HMD!AK6) ->  | AI108: =IF(HMD!AL6="","",HMD!AL6) ->  | AJ108: =IF(HMD!AM6="","",HMD!AM6) ->  | AK108: =IF(HMD!AN6="","",HMD!AN6) ->  | AL108: =IF(HMD!AO6="","",HMD!AO6) ->  | AM108: =IF(HMD!AP6="","",HMD!AP6) -> 
D109: Criterio Evaluación 1.4 | E109: =IF(HMD!H7="","",HMD!H7) ->  | F109: =IF(HMD!I7="","",HMD!I7) ->  | G109: =IF(HMD!J7="","",HMD!J7) ->  | H109: =IF(HMD!K7="","",HMD!K7) ->  | I109: =IF(HMD!L7="","",HMD!L7) ->  | J109: =IF(HMD!M7="","",HMD!M7) ->  | K109: =IF(HMD!N7="","",HMD!N7) ->  | L109: =IF(HMD!O7="","",HMD!O7) ->  | M109: =IF(HMD!P7="","",HMD!P7) ->  | N109: =IF(HMD!Q7="","",HMD!Q7) ->  | O109: =IF(HMD!R7="","",HMD!R7) ->  | P109: =IF(HMD!S7="","",HMD!S7) ->  | Q109: =IF(HMD!T7="","",HMD!T7) ->  | R109: =IF(HMD!U7="","",HMD!U7) ->  | S109: =IF(HMD!V7="","",HMD!V7) ->  | T109: =IF(HMD!W7="","",HMD!W7) ->  | U109: =IF(HMD!X7="","",HMD!X7) ->  | V109: =IF(HMD!Y7="","",HMD!Y7) ->  | W109: =IF(HMD!Z7="","",HMD!Z7) ->  | X109: =IF(HMD!AA7="","",HMD!AA7) ->  | Y109: =IF(HMD!AB7="","",HMD!AB7) ->  | Z109: =IF(HMD!AC7="","",HMD!AC7) ->  | AA109: =IF(HMD!AD7="","",HMD!AD7) ->  | AB109: =IF(HMD!AE7="","",HMD!AE7) ->  | AC109: =IF(HMD!AF7="","",HMD!AF7) ->  | AD109: =IF(HMD!AG7="","",HMD!AG7) ->  | AE109: =IF(HMD!AH7="","",HMD!AH7) ->  | AF109: =IF(HMD!AI7="","",HMD!AI7) ->  | AG109: =IF(HMD!AJ7="","",HMD!AJ7) ->  | AH109: =IF(HMD!AK7="","",HMD!AK7) ->  | AI109: =IF(HMD!AL7="","",HMD!AL7) ->  | AJ109: =IF(HMD!AM7="","",HMD!AM7) ->  | AK109: =IF(HMD!AN7="","",HMD!AN7) ->  | AL109: =IF(HMD!AO7="","",HMD!AO7) ->  | AM109: =IF(HMD!AP7="","",HMD!AP7) -> 
C110: Comp. Esp. 2 | D110: Criterio Evaluación 2.1 | E110: =IF(HMD!H8="","",HMD!H8) ->  | F110: =IF(HMD!I8="","",HMD!I8) ->  | G110: =IF(HMD!J8="","",HMD!J8) ->  | H110: =IF(HMD!K8="","",HMD!K8) ->  | I110: =IF(HMD!L8="","",HMD!L8) ->  | J110: =IF(HMD!M8="","",HMD!M8) ->  | K110: =IF(HMD!N8="","",HMD!N8) ->  | L110: =IF(HMD!O8="","",HMD!O8) ->  | M110: =IF(HMD!P8="","",HMD!P8) ->  | N110: =IF(HMD!Q8="","",HMD!Q8) ->  | O110: =IF(HMD!R8="","",HMD!R8) ->  | P110: =IF(HMD!S8="","",HMD!S8) ->  | Q110: =IF(HMD!T8="","",HMD!T8) ->  | R110: =IF(HMD!U8="","",HMD!U8) ->  | S110: =IF(HMD!V8="","",HMD!V8) ->  | T110: =IF(HMD!W8="","",HMD!W8) ->  | U110: =IF(HMD!X8="","",HMD!X8) ->  | V110: =IF(HMD!Y8="","",HMD!Y8) ->  | W110: =IF(HMD!Z8="","",HMD!Z8) ->  | X110: =IF(HMD!AA8="","",HMD!AA8) ->  | Y110: =IF(HMD!AB8="","",HMD!AB8) ->  | Z110: =IF(HMD!AC8="","",HMD!AC8) ->  | AA110: =IF(HMD!AD8="","",HMD!AD8) ->  | AB110: =IF(HMD!AE8="","",HMD!AE8) ->  | AC110: =IF(HMD!AF8="","",HMD!AF8) ->  | AD110: =IF(HMD!AG8="","",HMD!AG8) ->  | AE110: =IF(HMD!AH8="","",HMD!AH8) ->  | AF110: =IF(HMD!AI8="","",HMD!AI8) ->  | AG110: =IF(HMD!AJ8="","",HMD!AJ8) ->  | AH110: =IF(HMD!AK8="","",HMD!AK8) ->  | AI110: =IF(HMD!AL8="","",HMD!AL8) ->  | AJ110: =IF(HMD!AM8="","",HMD!AM8) ->  | AK110: =IF(HMD!AN8="","",HMD!AN8) ->  | AL110: =IF(HMD!AO8="","",HMD!AO8) ->  | AM110: =IF(HMD!AP8="","",HMD!AP8) -> 
D111: Criterio Evaluación 2.2 | E111: =IF(HMD!H9="","",HMD!H9) ->  | F111: =IF(HMD!I9="","",HMD!I9) ->  | G111: =IF(HMD!J9="","",HMD!J9) ->  | H111: =IF(HMD!K9="","",HMD!K9) ->  | I111: =IF(HMD!L9="","",HMD!L9) ->  | J111: =IF(HMD!M9="","",HMD!M9) ->  | K111: =IF(HMD!N9="","",HMD!N9) ->  | L111: =IF(HMD!O9="","",HMD!O9) ->  | M111: =IF(HMD!P9="","",HMD!P9) ->  | N111: =IF(HMD!Q9="","",HMD!Q9) ->  | O111: =IF(HMD!R9="","",HMD!R9) ->  | P111: =IF(HMD!S9="","",HMD!S9) ->  | Q111: =IF(HMD!T9="","",HMD!T9) ->  | R111: =IF(HMD!U9="","",HMD!U9) ->  | S111: =IF(HMD!V9="","",HMD!V9) ->  | T111: =IF(HMD!W9="","",HMD!W9) ->  | U111: =IF(HMD!X9="","",HMD!X9) ->  | V111: =IF(HMD!Y9="","",HMD!Y9) ->  | W111: =IF(HMD!Z9="","",HMD!Z9) ->  | X111: =IF(HMD!AA9="","",HMD!AA9) ->  | Y111: =IF(HMD!AB9="","",HMD!AB9) ->  | Z111: =IF(HMD!AC9="","",HMD!AC9) ->  | AA111: =IF(HMD!AD9="","",HMD!AD9) ->  | AB111: =IF(HMD!AE9="","",HMD!AE9) ->  | AC111: =IF(HMD!AF9="","",HMD!AF9) ->  | AD111: =IF(HMD!AG9="","",HMD!AG9) ->  | AE111: =IF(HMD!AH9="","",HMD!AH9) ->  | AF111: =IF(HMD!AI9="","",HMD!AI9) ->  | AG111: =IF(HMD!AJ9="","",HMD!AJ9) ->  | AH111: =IF(HMD!AK9="","",HMD!AK9) ->  | AI111: =IF(HMD!AL9="","",HMD!AL9) ->  | AJ111: =IF(HMD!AM9="","",HMD!AM9) ->  | AK111: =IF(HMD!AN9="","",HMD!AN9) ->  | AL111: =IF(HMD!AO9="","",HMD!AO9) ->  | AM111: =IF(HMD!AP9="","",HMD!AP9) -> 
D112: Criterio Evaluación 2.3 | E112: =IF(HMD!H10="","",HMD!H10) ->  | F112: =IF(HMD!I10="","",HMD!I10) ->  | G112: =IF(HMD!J10="","",HMD!J10) ->  | H112: =IF(HMD!K10="","",HMD!K10) ->  | I112: =IF(HMD!L10="","",HMD!L10) ->  | J112: =IF(HMD!M10="","",HMD!M10) ->  | K112: =IF(HMD!N10="","",HMD!N10) ->  | L112: =IF(HMD!O10="","",HMD!O10) ->  | M112: =IF(HMD!P10="","",HMD!P10) ->  | N112: =IF(HMD!Q10="","",HMD!Q10) ->  | O112: =IF(HMD!R10="","",HMD!R10) ->  | P112: =IF(HMD!S10="","",HMD!S10) ->  | Q112: =IF(HMD!T10="","",HMD!T10) ->  | R112: =IF(HMD!U10="","",HMD!U10) ->  | S112: =IF(HMD!V10="","",HMD!V10) ->  | T112: =IF(HMD!W10="","",HMD!W10) ->  | U112: =IF(HMD!X10="","",HMD!X10) ->  | V112: =IF(HMD!Y10="","",HMD!Y10) ->  | W112: =IF(HMD!Z10="","",HMD!Z10) ->  | X112: =IF(HMD!AA10="","",HMD!AA10) ->  | Y112: =IF(HMD!AB10="","",HMD!AB10) ->  | Z112: =IF(HMD!AC10="","",HMD!AC10) ->  | AA112: =IF(HMD!AD10="","",HMD!AD10) ->  | AB112: =IF(HMD!AE10="","",HMD!AE10) ->  | AC112: =IF(HMD!AF10="","",HMD!AF10) ->  | AD112: =IF(HMD!AG10="","",HMD!AG10) ->  | AE112: =IF(HMD!AH10="","",HMD!AH10) ->  | AF112: =IF(HMD!AI10="","",HMD!AI10) ->  | AG112: =IF(HMD!AJ10="","",HMD!AJ10) ->  | AH112: =IF(HMD!AK10="","",HMD!AK10) ->  | AI112: =IF(HMD!AL10="","",HMD!AL10) ->  | AJ112: =IF(HMD!AM10="","",HMD!AM10) ->  | AK112: =IF(HMD!AN10="","",HMD!AN10) ->  | AL112: =IF(HMD!AO10="","",HMD!AO10) ->  | AM112: =IF(HMD!AP10="","",HMD!AP10) -> 
D113: Criterio Evaluación 2.4 | E113: =IF(HMD!H11="","",HMD!H11) ->  | F113: =IF(HMD!I11="","",HMD!I11) ->  | G113: =IF(HMD!J11="","",HMD!J11) ->  | H113: =IF(HMD!K11="","",HMD!K11) ->  | I113: =IF(HMD!L11="","",HMD!L11) ->  | J113: =IF(HMD!M11="","",HMD!M11) ->  | K113: =IF(HMD!N11="","",HMD!N11) ->  | L113: =IF(HMD!O11="","",HMD!O11) ->  | M113: =IF(HMD!P11="","",HMD!P11) ->  | N113: =IF(HMD!Q11="","",HMD!Q11) ->  | O113: =IF(HMD!R11="","",HMD!R11) ->  | P113: =IF(HMD!S11="","",HMD!S11) ->  | Q113: =IF(HMD!T11="","",HMD!T11) ->  | R113: =IF(HMD!U11="","",HMD!U11) ->  | S113: =IF(HMD!V11="","",HMD!V11) ->  | T113: =IF(HMD!W11="","",HMD!W11) ->  | U113: =IF(HMD!X11="","",HMD!X11) ->  | V113: =IF(HMD!Y11="","",HMD!Y11) ->  | W113: =IF(HMD!Z11="","",HMD!Z11) ->  | X113: =IF(HMD!AA11="","",HMD!AA11) ->  | Y113: =IF(HMD!AB11="","",HMD!AB11) ->  | Z113: =IF(HMD!AC11="","",HMD!AC11) ->  | AA113: =IF(HMD!AD11="","",HMD!AD11) ->  | AB113: =IF(HMD!AE11="","",HMD!AE11) ->  | AC113: =IF(HMD!AF11="","",HMD!AF11) ->  | AD113: =IF(HMD!AG11="","",HMD!AG11) ->  | AE113: =IF(HMD!AH11="","",HMD!AH11) ->  | AF113: =IF(HMD!AI11="","",HMD!AI11) ->  | AG113: =IF(HMD!AJ11="","",HMD!AJ11) ->  | AH113: =IF(HMD!AK11="","",HMD!AK11) ->  | AI113: =IF(HMD!AL11="","",HMD!AL11) ->  | AJ113: =IF(HMD!AM11="","",HMD!AM11) ->  | AK113: =IF(HMD!AN11="","",HMD!AN11) ->  | AL113: =IF(HMD!AO11="","",HMD!AO11) ->  | AM113: =IF(HMD!AP11="","",HMD!AP11) -> 
C114: Comp. Esp. 3 | D114: Criterio Evaluación 3.1 | E114: =IF(HMD!H12="","",HMD!H12) ->  | F114: =IF(HMD!I12="","",HMD!I12) ->  | G114: =IF(HMD!J12="","",HMD!J12) ->  | H114: =IF(HMD!K12="","",HMD!K12) ->  | I114: =IF(HMD!L12="","",HMD!L12) ->  | J114: =IF(HMD!M12="","",HMD!M12) ->  | K114: =IF(HMD!N12="","",HMD!N12) ->  | L114: =IF(HMD!O12="","",HMD!O12) ->  | M114: =IF(HMD!P12="","",HMD!P12) ->  | N114: =IF(HMD!Q12="","",HMD!Q12) ->  | O114: =IF(HMD!R12="","",HMD!R12) ->  | P114: =IF(HMD!S12="","",HMD!S12) ->  | Q114: =IF(HMD!T12="","",HMD!T12) ->  | R114: =IF(HMD!U12="","",HMD!U12) ->  | S114: =IF(HMD!V12="","",HMD!V12) ->  | T114: =IF(HMD!W12="","",HMD!W12) ->  | U114: =IF(HMD!X12="","",HMD!X12) ->  | V114: =IF(HMD!Y12="","",HMD!Y12) ->  | W114: =IF(HMD!Z12="","",HMD!Z12) ->  | X114: =IF(HMD!AA12="","",HMD!AA12) ->  | Y114: =IF(HMD!AB12="","",HMD!AB12) ->  | Z114: =IF(HMD!AC12="","",HMD!AC12) ->  | AA114: =IF(HMD!AD12="","",HMD!AD12) ->  | AB114: =IF(HMD!AE12="","",HMD!AE12) ->  | AC114: =IF(HMD!AF12="","",HMD!AF12) ->  | AD114: =IF(HMD!AG12="","",HMD!AG12) ->  | AE114: =IF(HMD!AH12="","",HMD!AH12) ->  | AF114: =IF(HMD!AI12="","",HMD!AI12) ->  | AG114: =IF(HMD!AJ12="","",HMD!AJ12) ->  | AH114: =IF(HMD!AK12="","",HMD!AK12) ->  | AI114: =IF(HMD!AL12="","",HMD!AL12) ->  | AJ114: =IF(HMD!AM12="","",HMD!AM12) ->  | AK114: =IF(HMD!AN12="","",HMD!AN12) ->  | AL114: =IF(HMD!AO12="","",HMD!AO12) ->  | AM114: =IF(HMD!AP12="","",HMD!AP12) -> 
D115: Criterio Evaluación 3.2 | E115: =IF(HMD!H13="","",HMD!H13) ->  | F115: =IF(HMD!I13="","",HMD!I13) ->  | G115: =IF(HMD!J13="","",HMD!J13) ->  | H115: =IF(HMD!K13="","",HMD!K13) ->  | I115: =IF(HMD!L13="","",HMD!L13) ->  | J115: =IF(HMD!M13="","",HMD!M13) ->  | K115: =IF(HMD!N13="","",HMD!N13) ->  | L115: =IF(HMD!O13="","",HMD!O13) ->  | M115: =IF(HMD!P13="","",HMD!P13) ->  | N115: =IF(HMD!Q13="","",HMD!Q13) ->  | O115: =IF(HMD!R13="","",HMD!R13) ->  | P115: =IF(HMD!S13="","",HMD!S13) ->  | Q115: =IF(HMD!T13="","",HMD!T13) ->  | R115: =IF(HMD!U13="","",HMD!U13) ->  | S115: =IF(HMD!V13="","",HMD!V13) ->  | T115: =IF(HMD!W13="","",HMD!W13) ->  | U115: =IF(HMD!X13="","",HMD!X13) ->  | V115: =IF(HMD!Y13="","",HMD!Y13) ->  | W115: =IF(HMD!Z13="","",HMD!Z13) ->  | X115: =IF(HMD!AA13="","",HMD!AA13) ->  | Y115: =IF(HMD!AB13="","",HMD!AB13) ->  | Z115: =IF(HMD!AC13="","",HMD!AC13) ->  | AA115: =IF(HMD!AD13="","",HMD!AD13) ->  | AB115: =IF(HMD!AE13="","",HMD!AE13) ->  | AC115: =IF(HMD!AF13="","",HMD!AF13) ->  | AD115: =IF(HMD!AG13="","",HMD!AG13) ->  | AE115: =IF(HMD!AH13="","",HMD!AH13) ->  | AF115: =IF(HMD!AI13="","",HMD!AI13) ->  | AG115: =IF(HMD!AJ13="","",HMD!AJ13) ->  | AH115: =IF(HMD!AK13="","",HMD!AK13) ->  | AI115: =IF(HMD!AL13="","",HMD!AL13) ->  | AJ115: =IF(HMD!AM13="","",HMD!AM13) ->  | AK115: =IF(HMD!AN13="","",HMD!AN13) ->  | AL115: =IF(HMD!AO13="","",HMD!AO13) ->  | AM115: =IF(HMD!AP13="","",HMD!AP13) -> 
D116: Criterio Evaluación 3.3 | E116: =IF(HMD!H14="","",HMD!H14) ->  | F116: =IF(HMD!I14="","",HMD!I14) ->  | G116: =IF(HMD!J14="","",HMD!J14) ->  | H116: =IF(HMD!K14="","",HMD!K14) ->  | I116: =IF(HMD!L14="","",HMD!L14) ->  | J116: =IF(HMD!M14="","",HMD!M14) ->  | K116: =IF(HMD!N14="","",HMD!N14) ->  | L116: =IF(HMD!O14="","",HMD!O14) ->  | M116: =IF(HMD!P14="","",HMD!P14) ->  | N116: =IF(HMD!Q14="","",HMD!Q14) ->  | O116: =IF(HMD!R14="","",HMD!R14) ->  | P116: =IF(HMD!S14="","",HMD!S14) ->  | Q116: =IF(HMD!T14="","",HMD!T14) ->  | R116: =IF(HMD!U14="","",HMD!U14) ->  | S116: =IF(HMD!V14="","",HMD!V14) ->  | T116: =IF(HMD!W14="","",HMD!W14) ->  | U116: =IF(HMD!X14="","",HMD!X14) ->  | V116: =IF(HMD!Y14="","",HMD!Y14) ->  | W116: =IF(HMD!Z14="","",HMD!Z14) ->  | X116: =IF(HMD!AA14="","",HMD!AA14) ->  | Y116: =IF(HMD!AB14="","",HMD!AB14) ->  | Z116: =IF(HMD!AC14="","",HMD!AC14) ->  | AA116: =IF(HMD!AD14="","",HMD!AD14) ->  | AB116: =IF(HMD!AE14="","",HMD!AE14) ->  | AC116: =IF(HMD!AF14="","",HMD!AF14) ->  | AD116: =IF(HMD!AG14="","",HMD!AG14) ->  | AE116: =IF(HMD!AH14="","",HMD!AH14) ->  | AF116: =IF(HMD!AI14="","",HMD!AI14) ->  | AG116: =IF(HMD!AJ14="","",HMD!AJ14) ->  | AH116: =IF(HMD!AK14="","",HMD!AK14) ->  | AI116: =IF(HMD!AL14="","",HMD!AL14) ->  | AJ116: =IF(HMD!AM14="","",HMD!AM14) ->  | AK116: =IF(HMD!AN14="","",HMD!AN14) ->  | AL116: =IF(HMD!AO14="","",HMD!AO14) ->  | AM116: =IF(HMD!AP14="","",HMD!AP14) -> 
D117: Criterio Evaluación 3.4 | E117: =IF(HMD!H15="","",HMD!H15) ->  | F117: =IF(HMD!I15="","",HMD!I15) ->  | G117: =IF(HMD!J15="","",HMD!J15) ->  | H117: =IF(HMD!K15="","",HMD!K15) ->  | I117: =IF(HMD!L15="","",HMD!L15) ->  | J117: =IF(HMD!M15="","",HMD!M15) ->  | K117: =IF(HMD!N15="","",HMD!N15) ->  | L117: =IF(HMD!O15="","",HMD!O15) ->  | M117: =IF(HMD!P15="","",HMD!P15) ->  | N117: =IF(HMD!Q15="","",HMD!Q15) ->  | O117: =IF(HMD!R15="","",HMD!R15) ->  | P117: =IF(HMD!S15="","",HMD!S15) ->  | Q117: =IF(HMD!T15="","",HMD!T15) ->  | R117: =IF(HMD!U15="","",HMD!U15) ->  | S117: =IF(HMD!V15="","",HMD!V15) ->  | T117: =IF(HMD!W15="","",HMD!W15) ->  | U117: =IF(HMD!X15="","",HMD!X15) ->  | V117: =IF(HMD!Y15="","",HMD!Y15) ->  | W117: =IF(HMD!Z15="","",HMD!Z15) ->  | X117: =IF(HMD!AA15="","",HMD!AA15) ->  | Y117: =IF(HMD!AB15="","",HMD!AB15) ->  | Z117: =IF(HMD!AC15="","",HMD!AC15) ->  | AA117: =IF(HMD!AD15="","",HMD!AD15) ->  | AB117: =IF(HMD!AE15="","",HMD!AE15) ->  | AC117: =IF(HMD!AF15="","",HMD!AF15) ->  | AD117: =IF(HMD!AG15="","",HMD!AG15) ->  | AE117: =IF(HMD!AH15="","",HMD!AH15) ->  | AF117: =IF(HMD!AI15="","",HMD!AI15) ->  | AG117: =IF(HMD!AJ15="","",HMD!AJ15) ->  | AH117: =IF(HMD!AK15="","",HMD!AK15) ->  | AI117: =IF(HMD!AL15="","",HMD!AL15) ->  | AJ117: =IF(HMD!AM15="","",HMD!AM15) ->  | AK117: =IF(HMD!AN15="","",HMD!AN15) ->  | AL117: =IF(HMD!AO15="","",HMD!AO15) ->  | AM117: =IF(HMD!AP15="","",HMD!AP15) -> 
C118: Comp. Esp. 4 | D118: Criterio Evaluación 4.1 | E118: =IF(HMD!H16="","",HMD!H16) ->  | F118: =IF(HMD!I16="","",HMD!I16) ->  | G118: =IF(HMD!J16="","",HMD!J16) ->  | H118: =IF(HMD!K16="","",HMD!K16) ->  | I118: =IF(HMD!L16="","",HMD!L16) ->  | J118: =IF(HMD!M16="","",HMD!M16) ->  | K118: =IF(HMD!N16="","",HMD!N16) ->  | L118: =IF(HMD!O16="","",HMD!O16) ->  | M118: =IF(HMD!P16="","",HMD!P16) ->  | N118: =IF(HMD!Q16="","",HMD!Q16) ->  | O118: =IF(HMD!R16="","",HMD!R16) ->  | P118: =IF(HMD!S16="","",HMD!S16) ->  | Q118: =IF(HMD!T16="","",HMD!T16) ->  | R118: =IF(HMD!U16="","",HMD!U16) ->  | S118: =IF(HMD!V16="","",HMD!V16) ->  | T118: =IF(HMD!W16="","",HMD!W16) ->  | U118: =IF(HMD!X16="","",HMD!X16) ->  | V118: =IF(HMD!Y16="","",HMD!Y16) ->  | W118: =IF(HMD!Z16="","",HMD!Z16) ->  | X118: =IF(HMD!AA16="","",HMD!AA16) ->  | Y118: =IF(HMD!AB16="","",HMD!AB16) ->  | Z118: =IF(HMD!AC16="","",HMD!AC16) ->  | AA118: =IF(HMD!AD16="","",HMD!AD16) ->  | AB118: =IF(HMD!AE16="","",HMD!AE16) ->  | AC118: =IF(HMD!AF16="","",HMD!AF16) ->  | AD118: =IF(HMD!AG16="","",HMD!AG16) ->  | AE118: =IF(HMD!AH16="","",HMD!AH16) ->  | AF118: =IF(HMD!AI16="","",HMD!AI16) ->  | AG118: =IF(HMD!AJ16="","",HMD!AJ16) ->  | AH118: =IF(HMD!AK16="","",HMD!AK16) ->  | AI118: =IF(HMD!AL16="","",HMD!AL16) ->  | AJ118: =IF(HMD!AM16="","",HMD!AM16) ->  | AK118: =IF(HMD!AN16="","",HMD!AN16) ->  | AL118: =IF(HMD!AO16="","",HMD!AO16) ->  | AM118: =IF(HMD!AP16="","",HMD!AP16) -> 
D119: Criterio Evaluación 4.2 | E119: =IF(HMD!H17="","",HMD!H17) ->  | F119: =IF(HMD!I17="","",HMD!I17) ->  | G119: =IF(HMD!J17="","",HMD!J17) ->  | H119: =IF(HMD!K17="","",HMD!K17) ->  | I119: =IF(HMD!L17="","",HMD!L17) ->  | J119: =IF(HMD!M17="","",HMD!M17) ->  | K119: =IF(HMD!N17="","",HMD!N17) ->  | L119: =IF(HMD!O17="","",HMD!O17) ->  | M119: =IF(HMD!P17="","",HMD!P17) ->  | N119: =IF(HMD!Q17="","",HMD!Q17) ->  | O119: =IF(HMD!R17="","",HMD!R17) ->  | P119: =IF(HMD!S17="","",HMD!S17) ->  | Q119: =IF(HMD!T17="","",HMD!T17) ->  | R119: =IF(HMD!U17="","",HMD!U17) ->  | S119: =IF(HMD!V17="","",HMD!V17) ->  | T119: =IF(HMD!W17="","",HMD!W17) ->  | U119: =IF(HMD!X17="","",HMD!X17) ->  | V119: =IF(HMD!Y17="","",HMD!Y17) ->  | W119: =IF(HMD!Z17="","",HMD!Z17) ->  | X119: =IF(HMD!AA17="","",HMD!AA17) ->  | Y119: =IF(HMD!AB17="","",HMD!AB17) ->  | Z119: =IF(HMD!AC17="","",HMD!AC17) ->  | AA119: =IF(HMD!AD17="","",HMD!AD17) ->  | AB119: =IF(HMD!AE17="","",HMD!AE17) ->  | AC119: =IF(HMD!AF17="","",HMD!AF17) ->  | AD119: =IF(HMD!AG17="","",HMD!AG17) ->  | AE119: =IF(HMD!AH17="","",HMD!AH17) ->  | AF119: =IF(HMD!AI17="","",HMD!AI17) ->  | AG119: =IF(HMD!AJ17="","",HMD!AJ17) ->  | AH119: =IF(HMD!AK17="","",HMD!AK17) ->  | AI119: =IF(HMD!AL17="","",HMD!AL17) ->  | AJ119: =IF(HMD!AM17="","",HMD!AM17) ->  | AK119: =IF(HMD!AN17="","",HMD!AN17) ->  | AL119: =IF(HMD!AO17="","",HMD!AO17) ->  | AM119: =IF(HMD!AP17="","",HMD!AP17) -> 
D120: Criterio Evaluación 4.3 | E120: =IF(HMD!H18="","",HMD!H18) ->  | F120: =IF(HMD!I18="","",HMD!I18) ->  | G120: =IF(HMD!J18="","",HMD!J18) ->  | H120: =IF(HMD!K18="","",HMD!K18) ->  | I120: =IF(HMD!L18="","",HMD!L18) ->  | J120: =IF(HMD!M18="","",HMD!M18) ->  | K120: =IF(HMD!N18="","",HMD!N18) ->  | L120: =IF(HMD!O18="","",HMD!O18) ->  | M120: =IF(HMD!P18="","",HMD!P18) ->  | N120: =IF(HMD!Q18="","",HMD!Q18) ->  | O120: =IF(HMD!R18="","",HMD!R18) ->  | P120: =IF(HMD!S18="","",HMD!S18) ->  | Q120: =IF(HMD!T18="","",HMD!T18) ->  | R120: =IF(HMD!U18="","",HMD!U18) ->  | S120: =IF(HMD!V18="","",HMD!V18) ->  | T120: =IF(HMD!W18="","",HMD!W18) ->  | U120: =IF(HMD!X18="","",HMD!X18) ->  | V120: =IF(HMD!Y18="","",HMD!Y18) ->  | W120: =IF(HMD!Z18="","",HMD!Z18) ->  | X120: =IF(HMD!AA18="","",HMD!AA18) ->  | Y120: =IF(HMD!AB18="","",HMD!AB18) ->  | Z120: =IF(HMD!AC18="","",HMD!AC18) ->  | AA120: =IF(HMD!AD18="","",HMD!AD18) ->  | AB120: =IF(HMD!AE18="","",HMD!AE18) ->  | AC120: =IF(HMD!AF18="","",HMD!AF18) ->  | AD120: =IF(HMD!AG18="","",HMD!AG18) ->  | AE120: =IF(HMD!AH18="","",HMD!AH18) ->  | AF120: =IF(HMD!AI18="","",HMD!AI18) ->  | AG120: =IF(HMD!AJ18="","",HMD!AJ18) ->  | AH120: =IF(HMD!AK18="","",HMD!AK18) ->  | AI120: =IF(HMD!AL18="","",HMD!AL18) ->  | AJ120: =IF(HMD!AM18="","",HMD!AM18) ->  | AK120: =IF(HMD!AN18="","",HMD!AN18) ->  | AL120: =IF(HMD!AO18="","",HMD!AO18) ->  | AM120: =IF(HMD!AP18="","",HMD!AP18) -> 
D121: Criterio Evaluación 4.4 | E121: =IF(HMD!H19="","",HMD!H19) ->  | F121: =IF(HMD!I19="","",HMD!I19) ->  | G121: =IF(HMD!J19="","",HMD!J19) ->  | H121: =IF(HMD!K19="","",HMD!K19) ->  | I121: =IF(HMD!L19="","",HMD!L19) ->  | J121: =IF(HMD!M19="","",HMD!M19) ->  | K121: =IF(HMD!N19="","",HMD!N19) ->  | L121: =IF(HMD!O19="","",HMD!O19) ->  | M121: =IF(HMD!P19="","",HMD!P19) ->  | N121: =IF(HMD!Q19="","",HMD!Q19) ->  | O121: =IF(HMD!R19="","",HMD!R19) ->  | P121: =IF(HMD!S19="","",HMD!S19) ->  | Q121: =IF(HMD!T19="","",HMD!T19) ->  | R121: =IF(HMD!U19="","",HMD!U19) ->  | S121: =IF(HMD!V19="","",HMD!V19) ->  | T121: =IF(HMD!W19="","",HMD!W19) ->  | U121: =IF(HMD!X19="","",HMD!X19) ->  | V121: =IF(HMD!Y19="","",HMD!Y19) ->  | W121: =IF(HMD!Z19="","",HMD!Z19) ->  | X121: =IF(HMD!AA19="","",HMD!AA19) ->  | Y121: =IF(HMD!AB19="","",HMD!AB19) ->  | Z121: =IF(HMD!AC19="","",HMD!AC19) ->  | AA121: =IF(HMD!AD19="","",HMD!AD19) ->  | AB121: =IF(HMD!AE19="","",HMD!AE19) ->  | AC121: =IF(HMD!AF19="","",HMD!AF19) ->  | AD121: =IF(HMD!AG19="","",HMD!AG19) ->  | AE121: =IF(HMD!AH19="","",HMD!AH19) ->  | AF121: =IF(HMD!AI19="","",HMD!AI19) ->  | AG121: =IF(HMD!AJ19="","",HMD!AJ19) ->  | AH121: =IF(HMD!AK19="","",HMD!AK19) ->  | AI121: =IF(HMD!AL19="","",HMD!AL19) ->  | AJ121: =IF(HMD!AM19="","",HMD!AM19) ->  | AK121: =IF(HMD!AN19="","",HMD!AN19) ->  | AL121: =IF(HMD!AO19="","",HMD!AO19) ->  | AM121: =IF(HMD!AP19="","",HMD!AP19) -> 
D122: Criterio Evaluación 4.5 | E122: =IF(HMD!H20="","",HMD!H20) ->  | F122: =IF(HMD!I20="","",HMD!I20) ->  | G122: =IF(HMD!J20="","",HMD!J20) ->  | H122: =IF(HMD!K20="","",HMD!K20) ->  | I122: =IF(HMD!L20="","",HMD!L20) ->  | J122: =IF(HMD!M20="","",HMD!M20) ->  | K122: =IF(HMD!N20="","",HMD!N20) ->  | L122: =IF(HMD!O20="","",HMD!O20) ->  | M122: =IF(HMD!P20="","",HMD!P20) ->  | N122: =IF(HMD!Q20="","",HMD!Q20) ->  | O122: =IF(HMD!R20="","",HMD!R20) ->  | P122: =IF(HMD!S20="","",HMD!S20) ->  | Q122: =IF(HMD!T20="","",HMD!T20) ->  | R122: =IF(HMD!U20="","",HMD!U20) ->  | S122: =IF(HMD!V20="","",HMD!V20) ->  | T122: =IF(HMD!W20="","",HMD!W20) ->  | U122: =IF(HMD!X20="","",HMD!X20) ->  | V122: =IF(HMD!Y20="","",HMD!Y20) ->  | W122: =IF(HMD!Z20="","",HMD!Z20) ->  | X122: =IF(HMD!AA20="","",HMD!AA20) ->  | Y122: =IF(HMD!AB20="","",HMD!AB20) ->  | Z122: =IF(HMD!AC20="","",HMD!AC20) ->  | AA122: =IF(HMD!AD20="","",HMD!AD20) ->  | AB122: =IF(HMD!AE20="","",HMD!AE20) ->  | AC122: =IF(HMD!AF20="","",HMD!AF20) ->  | AD122: =IF(HMD!AG20="","",HMD!AG20) ->  | AE122: =IF(HMD!AH20="","",HMD!AH20) ->  | AF122: =IF(HMD!AI20="","",HMD!AI20) ->  | AG122: =IF(HMD!AJ20="","",HMD!AJ20) ->  | AH122: =IF(HMD!AK20="","",HMD!AK20) ->  | AI122: =IF(HMD!AL20="","",HMD!AL20) ->  | AJ122: =IF(HMD!AM20="","",HMD!AM20) ->  | AK122: =IF(HMD!AN20="","",HMD!AN20) ->  | AL122: =IF(HMD!AO20="","",HMD!AO20) ->  | AM122: =IF(HMD!AP20="","",HMD!AP20) -> 
C123: Comp. Esp. 5 | D123: Criterio Evaluación 5.1 | E123: =IF(HMD!H21="","",HMD!H21) ->  | F123: =IF(HMD!I21="","",HMD!I21) ->  | G123: =IF(HMD!J21="","",HMD!J21) ->  | H123: =IF(HMD!K21="","",HMD!K21) ->  | I123: =IF(HMD!L21="","",HMD!L21) ->  | J123: =IF(HMD!M21="","",HMD!M21) ->  | K123: =IF(HMD!N21="","",HMD!N21) ->  | L123: =IF(HMD!O21="","",HMD!O21) ->  | M123: =IF(HMD!P21="","",HMD!P21) ->  | N123: =IF(HMD!Q21="","",HMD!Q21) ->  | O123: =IF(HMD!R21="","",HMD!R21) ->  | P123: =IF(HMD!S21="","",HMD!S21) ->  | Q123: =IF(HMD!T21="","",HMD!T21) ->  | R123: =IF(HMD!U21="","",HMD!U21) ->  | S123: =IF(HMD!V21="","",HMD!V21) ->  | T123: =IF(HMD!W21="","",HMD!W21) ->  | U123: =IF(HMD!X21="","",HMD!X21) ->  | V123: =IF(HMD!Y21="","",HMD!Y21) ->  | W123: =IF(HMD!Z21="","",HMD!Z21) ->  | X123: =IF(HMD!AA21="","",HMD!AA21) ->  | Y123: =IF(HMD!AB21="","",HMD!AB21) ->  | Z123: =IF(HMD!AC21="","",HMD!AC21) ->  | AA123: =IF(HMD!AD21="","",HMD!AD21) ->  | AB123: =IF(HMD!AE21="","",HMD!AE21) ->  | AC123: =IF(HMD!AF21="","",HMD!AF21) ->  | AD123: =IF(HMD!AG21="","",HMD!AG21) ->  | AE123: =IF(HMD!AH21="","",HMD!AH21) ->  | AF123: =IF(HMD!AI21="","",HMD!AI21) ->  | AG123: =IF(HMD!AJ21="","",HMD!AJ21) ->  | AH123: =IF(HMD!AK21="","",HMD!AK21) ->  | AI123: =IF(HMD!AL21="","",HMD!AL21) ->  | AJ123: =IF(HMD!AM21="","",HMD!AM21) ->  | AK123: =IF(HMD!AN21="","",HMD!AN21) ->  | AL123: =IF(HMD!AO21="","",HMD!AO21) ->  | AM123: =IF(HMD!AP21="","",HMD!AP21) -> 
D124: Criterio Evaluación 5.2 | E124: =IF(HMD!H22="","",HMD!H22) ->  | F124: =IF(HMD!I22="","",HMD!I22) ->  | G124: =IF(HMD!J22="","",HMD!J22) ->  | H124: =IF(HMD!K22="","",HMD!K22) ->  | I124: =IF(HMD!L22="","",HMD!L22) ->  | J124: =IF(HMD!M22="","",HMD!M22) ->  | K124: =IF(HMD!N22="","",HMD!N22) ->  | L124: =IF(HMD!O22="","",HMD!O22) ->  | M124: =IF(HMD!P22="","",HMD!P22) ->  | N124: =IF(HMD!Q22="","",HMD!Q22) ->  | O124: =IF(HMD!R22="","",HMD!R22) ->  | P124: =IF(HMD!S22="","",HMD!S22) ->  | Q124: =IF(HMD!T22="","",HMD!T22) ->  | R124: =IF(HMD!U22="","",HMD!U22) ->  | S124: =IF(HMD!V22="","",HMD!V22) ->  | T124: =IF(HMD!W22="","",HMD!W22) ->  | U124: =IF(HMD!X22="","",HMD!X22) ->  | V124: =IF(HMD!Y22="","",HMD!Y22) ->  | W124: =IF(HMD!Z22="","",HMD!Z22) ->  | X124: =IF(HMD!AA22="","",HMD!AA22) ->  | Y124: =IF(HMD!AB22="","",HMD!AB22) ->  | Z124: =IF(HMD!AC22="","",HMD!AC22) ->  | AA124: =IF(HMD!AD22="","",HMD!AD22) ->  | AB124: =IF(HMD!AE22="","",HMD!AE22) ->  | AC124: =IF(HMD!AF22="","",HMD!AF22) ->  | AD124: =IF(HMD!AG22="","",HMD!AG22) ->  | AE124: =IF(HMD!AH22="","",HMD!AH22) ->  | AF124: =IF(HMD!AI22="","",HMD!AI22) ->  | AG124: =IF(HMD!AJ22="","",HMD!AJ22) ->  | AH124: =IF(HMD!AK22="","",HMD!AK22) ->  | AI124: =IF(HMD!AL22="","",HMD!AL22) ->  | AJ124: =IF(HMD!AM22="","",HMD!AM22) ->  | AK124: =IF(HMD!AN22="","",HMD!AN22) ->  | AL124: =IF(HMD!AO22="","",HMD!AO22) ->  | AM124: =IF(HMD!AP22="","",HMD!AP22) -> 
D125: Criterio Evaluación 5.3 | E125: =IF(HMD!H23="","",HMD!H23) ->  | F125: =IF(HMD!I23="","",HMD!I23) ->  | G125: =IF(HMD!J23="","",HMD!J23) ->  | H125: =IF(HMD!K23="","",HMD!K23) ->  | I125: =IF(HMD!L23="","",HMD!L23) ->  | J125: =IF(HMD!M23="","",HMD!M23) ->  | K125: =IF(HMD!N23="","",HMD!N23) ->  | L125: =IF(HMD!O23="","",HMD!O23) ->  | M125: =IF(HMD!P23="","",HMD!P23) ->  | N125: =IF(HMD!Q23="","",HMD!Q23) ->  | O125: =IF(HMD!R23="","",HMD!R23) ->  | P125: =IF(HMD!S23="","",HMD!S23) ->  | Q125: =IF(HMD!T23="","",HMD!T23) ->  | R125: =IF(HMD!U23="","",HMD!U23) ->  | S125: =IF(HMD!V23="","",HMD!V23) ->  | T125: =IF(HMD!W23="","",HMD!W23) ->  | U125: =IF(HMD!X23="","",HMD!X23) ->  | V125: =IF(HMD!Y23="","",HMD!Y23) ->  | W125: =IF(HMD!Z23="","",HMD!Z23) ->  | X125: =IF(HMD!AA23="","",HMD!AA23) ->  | Y125: =IF(HMD!AB23="","",HMD!AB23) ->  | Z125: =IF(HMD!AC23="","",HMD!AC23) ->  | AA125: =IF(HMD!AD23="","",HMD!AD23) ->  | AB125: =IF(HMD!AE23="","",HMD!AE23) ->  | AC125: =IF(HMD!AF23="","",HMD!AF23) ->  | AD125: =IF(HMD!AG23="","",HMD!AG23) ->  | AE125: =IF(HMD!AH23="","",HMD!AH23) ->  | AF125: =IF(HMD!AI23="","",HMD!AI23) ->  | AG125: =IF(HMD!AJ23="","",HMD!AJ23) ->  | AH125: =IF(HMD!AK23="","",HMD!AK23) ->  | AI125: =IF(HMD!AL23="","",HMD!AL23) ->  | AJ125: =IF(HMD!AM23="","",HMD!AM23) ->  | AK125: =IF(HMD!AN23="","",HMD!AN23) ->  | AL125: =IF(HMD!AO23="","",HMD!AO23) ->  | AM125: =IF(HMD!AP23="","",HMD!AP23) -> 
B126: Historia del Arte | C126: Comp. Esp. 1 | D126: Criterio Evaluación 1.1 | E126: =IF(HA!H4="","",HA!H4) ->  | F126: =IF(HA!I4="","",HA!I4) ->  | G126: =IF(HA!J4="","",HA!J4) ->  | H126: =IF(HA!K4="","",HA!K4) ->  | I126: =IF(HA!L4="","",HA!L4) ->  | J126: =IF(HA!M4="","",HA!M4) ->  | K126: =IF(HA!N4="","",HA!N4) ->  | L126: =IF(HA!O4="","",HA!O4) ->  | M126: =IF(HA!P4="","",HA!P4) ->  | N126: =IF(HA!Q4="","",HA!Q4) ->  | O126: =IF(HA!R4="","",HA!R4) ->  | P126: =IF(HA!S4="","",HA!S4) ->  | Q126: =IF(HA!T4="","",HA!T4) ->  | R126: =IF(HA!U4="","",HA!U4) ->  | S126: =IF(HA!V4="","",HA!V4) ->  | T126: =IF(HA!W4="","",HA!W4) ->  | U126: =IF(HA!X4="","",HA!X4) ->  | V126: =IF(HA!Y4="","",HA!Y4) ->  | W126: =IF(HA!Z4="","",HA!Z4) ->  | X126: =IF(HA!AA4="","",HA!AA4) ->  | Y126: =IF(HA!AB4="","",HA!AB4) ->  | Z126: =IF(HA!AC4="","",HA!AC4) ->  | AA126: =IF(HA!AD4="","",HA!AD4) ->  | AB126: =IF(HA!AE4="","",HA!AE4) ->  | AC126: =IF(HA!AF4="","",HA!AF4) ->  | AD126: =IF(HA!AG4="","",HA!AG4) ->  | AE126: =IF(HA!AH4="","",HA!AH4) ->  | AF126: =IF(HA!AI4="","",HA!AI4) ->  | AG126: =IF(HA!AJ4="","",HA!AJ4) ->  | AH126: =IF(HA!AK4="","",HA!AK4) ->  | AI126: =IF(HA!AL4="","",HA!AL4) ->  | AJ126: =IF(HA!AM4="","",HA!AM4) ->  | AK126: =IF(HA!AN4="","",HA!AN4) ->  | AL126: =IF(HA!AO4="","",HA!AO4) ->  | AM126: =IF(HA!AP4="","",HA!AP4) -> 
C127: Comp. Esp. 2 | D127: Criterio Evaluación 2.1 | E127: =IF(HA!H5="","",HA!H5) ->  | F127: =IF(HA!I5="","",HA!I5) ->  | G127: =IF(HA!J5="","",HA!J5) ->  | H127: =IF(HA!K5="","",HA!K5) ->  | I127: =IF(HA!L5="","",HA!L5) ->  | J127: =IF(HA!M5="","",HA!M5) ->  | K127: =IF(HA!N5="","",HA!N5) ->  | L127: =IF(HA!O5="","",HA!O5) ->  | M127: =IF(HA!P5="","",HA!P5) ->  | N127: =IF(HA!Q5="","",HA!Q5) ->  | O127: =IF(HA!R5="","",HA!R5) ->  | P127: =IF(HA!S5="","",HA!S5) ->  | Q127: =IF(HA!T5="","",HA!T5) ->  | R127: =IF(HA!U5="","",HA!U5) ->  | S127: =IF(HA!V5="","",HA!V5) ->  | T127: =IF(HA!W5="","",HA!W5) ->  | U127: =IF(HA!X5="","",HA!X5) ->  | V127: =IF(HA!Y5="","",HA!Y5) ->  | W127: =IF(HA!Z5="","",HA!Z5) ->  | X127: =IF(HA!AA5="","",HA!AA5) ->  | Y127: =IF(HA!AB5="","",HA!AB5) ->  | Z127: =IF(HA!AC5="","",HA!AC5) ->  | AA127: =IF(HA!AD5="","",HA!AD5) ->  | AB127: =IF(HA!AE5="","",HA!AE5) ->  | AC127: =IF(HA!AF5="","",HA!AF5) ->  | AD127: =IF(HA!AG5="","",HA!AG5) ->  | AE127: =IF(HA!AH5="","",HA!AH5) ->  | AF127: =IF(HA!AI5="","",HA!AI5) ->  | AG127: =IF(HA!AJ5="","",HA!AJ5) ->  | AH127: =IF(HA!AK5="","",HA!AK5) ->  | AI127: =IF(HA!AL5="","",HA!AL5) ->  | AJ127: =IF(HA!AM5="","",HA!AM5) ->  | AK127: =IF(HA!AN5="","",HA!AN5) ->  | AL127: =IF(HA!AO5="","",HA!AO5) ->  | AM127: =IF(HA!AP5="","",HA!AP5) -> 
C128: Comp. Esp. 3 | D128: Criterio Evaluación 3.1 | E128: =IF(HA!H6="","",HA!H6) ->  | F128: =IF(HA!I6="","",HA!I6) ->  | G128: =IF(HA!J6="","",HA!J6) ->  | H128: =IF(HA!K6="","",HA!K6) ->  | I128: =IF(HA!L6="","",HA!L6) ->  | J128: =IF(HA!M6="","",HA!M6) ->  | K128: =IF(HA!N6="","",HA!N6) ->  | L128: =IF(HA!O6="","",HA!O6) ->  | M128: =IF(HA!P6="","",HA!P6) ->  | N128: =IF(HA!Q6="","",HA!Q6) ->  | O128: =IF(HA!R6="","",HA!R6) ->  | P128: =IF(HA!S6="","",HA!S6) ->  | Q128: =IF(HA!T6="","",HA!T6) ->  | R128: =IF(HA!U6="","",HA!U6) ->  | S128: =IF(HA!V6="","",HA!V6) ->  | T128: =IF(HA!W6="","",HA!W6) ->  | U128: =IF(HA!X6="","",HA!X6) ->  | V128: =IF(HA!Y6="","",HA!Y6) ->  | W128: =IF(HA!Z6="","",HA!Z6) ->  | X128: =IF(HA!AA6="","",HA!AA6) ->  | Y128: =IF(HA!AB6="","",HA!AB6) ->  | Z128: =IF(HA!AC6="","",HA!AC6) ->  | AA128: =IF(HA!AD6="","",HA!AD6) ->  | AB128: =IF(HA!AE6="","",HA!AE6) ->  | AC128: =IF(HA!AF6="","",HA!AF6) ->  | AD128: =IF(HA!AG6="","",HA!AG6) ->  | AE128: =IF(HA!AH6="","",HA!AH6) ->  | AF128: =IF(HA!AI6="","",HA!AI6) ->  | AG128: =IF(HA!AJ6="","",HA!AJ6) ->  | AH128: =IF(HA!AK6="","",HA!AK6) ->  | AI128: =IF(HA!AL6="","",HA!AL6) ->  | AJ128: =IF(HA!AM6="","",HA!AM6) ->  | AK128: =IF(HA!AN6="","",HA!AN6) ->  | AL128: =IF(HA!AO6="","",HA!AO6) ->  | AM128: =IF(HA!AP6="","",HA!AP6) -> 
C129: Comp. Esp. 4 | D129: Criterio Evaluación 4.1 | E129: =IF(HA!H7="","",HA!H7) ->  | F129: =IF(HA!I7="","",HA!I7) ->  | G129: =IF(HA!J7="","",HA!J7) ->  | H129: =IF(HA!K7="","",HA!K7) ->  | I129: =IF(HA!L7="","",HA!L7) ->  | J129: =IF(HA!M7="","",HA!M7) ->  | K129: =IF(HA!N7="","",HA!N7) ->  | L129: =IF(HA!O7="","",HA!O7) ->  | M129: =IF(HA!P7="","",HA!P7) ->  | N129: =IF(HA!Q7="","",HA!Q7) ->  | O129: =IF(HA!R7="","",HA!R7) ->  | P129: =IF(HA!S7="","",HA!S7) ->  | Q129: =IF(HA!T7="","",HA!T7) ->  | R129: =IF(HA!U7="","",HA!U7) ->  | S129: =IF(HA!V7="","",HA!V7) ->  | T129: =IF(HA!W7="","",HA!W7) ->  | U129: =IF(HA!X7="","",HA!X7) ->  | V129: =IF(HA!Y7="","",HA!Y7) ->  | W129: =IF(HA!Z7="","",HA!Z7) ->  | X129: =IF(HA!AA7="","",HA!AA7) ->  | Y129: =IF(HA!AB7="","",HA!AB7) ->  | Z129: =IF(HA!AC7="","",HA!AC7) ->  | AA129: =IF(HA!AD7="","",HA!AD7) ->  | AB129: =IF(HA!AE7="","",HA!AE7) ->  | AC129: =IF(HA!AF7="","",HA!AF7) ->  | AD129: =IF(HA!AG7="","",HA!AG7) ->  | AE129: =IF(HA!AH7="","",HA!AH7) ->  | AF129: =IF(HA!AI7="","",HA!AI7) ->  | AG129: =IF(HA!AJ7="","",HA!AJ7) ->  | AH129: =IF(HA!AK7="","",HA!AK7) ->  | AI129: =IF(HA!AL7="","",HA!AL7) ->  | AJ129: =IF(HA!AM7="","",HA!AM7) ->  | AK129: =IF(HA!AN7="","",HA!AN7) ->  | AL129: =IF(HA!AO7="","",HA!AO7) ->  | AM129: =IF(HA!AP7="","",HA!AP7) -> 
D130: Criterio Evaluación 4.2 | E130: =IF(HA!H8="","",HA!H8) ->  | F130: =IF(HA!I8="","",HA!I8) ->  | G130: =IF(HA!J8="","",HA!J8) ->  | H130: =IF(HA!K8="","",HA!K8) ->  | I130: =IF(HA!L8="","",HA!L8) ->  | J130: =IF(HA!M8="","",HA!M8) ->  | K130: =IF(HA!N8="","",HA!N8) ->  | L130: =IF(HA!O8="","",HA!O8) ->  | M130: =IF(HA!P8="","",HA!P8) ->  | N130: =IF(HA!Q8="","",HA!Q8) ->  | O130: =IF(HA!R8="","",HA!R8) ->  | P130: =IF(HA!S8="","",HA!S8) ->  | Q130: =IF(HA!T8="","",HA!T8) ->  | R130: =IF(HA!U8="","",HA!U8) ->  | S130: =IF(HA!V8="","",HA!V8) ->  | T130: =IF(HA!W8="","",HA!W8) ->  | U130: =IF(HA!X8="","",HA!X8) ->  | V130: =IF(HA!Y8="","",HA!Y8) ->  | W130: =IF(HA!Z8="","",HA!Z8) ->  | X130: =IF(HA!AA8="","",HA!AA8) ->  | Y130: =IF(HA!AB8="","",HA!AB8) ->  | Z130: =IF(HA!AC8="","",HA!AC8) ->  | AA130: =IF(HA!AD8="","",HA!AD8) ->  | AB130: =IF(HA!AE8="","",HA!AE8) ->  | AC130: =IF(HA!AF8="","",HA!AF8) ->  | AD130: =IF(HA!AG8="","",HA!AG8) ->  | AE130: =IF(HA!AH8="","",HA!AH8) ->  | AF130: =IF(HA!AI8="","",HA!AI8) ->  | AG130: =IF(HA!AJ8="","",HA!AJ8) ->  | AH130: =IF(HA!AK8="","",HA!AK8) ->  | AI130: =IF(HA!AL8="","",HA!AL8) ->  | AJ130: =IF(HA!AM8="","",HA!AM8) ->  | AK130: =IF(HA!AN8="","",HA!AN8) ->  | AL130: =IF(HA!AO8="","",HA!AO8) ->  | AM130: =IF(HA!AP8="","",HA!AP8) -> 
C131: Comp. Esp. 5 | D131: Criterio Evaluación 5.1 | E131: =IF(HA!H9="","",HA!H9) ->  | F131: =IF(HA!I9="","",HA!I9) ->  | G131: =IF(HA!J9="","",HA!J9) ->  | H131: =IF(HA!K9="","",HA!K9) ->  | I131: =IF(HA!L9="","",HA!L9) ->  | J131: =IF(HA!M9="","",HA!M9) ->  | K131: =IF(HA!N9="","",HA!N9) ->  | L131: =IF(HA!O9="","",HA!O9) ->  | M131: =IF(HA!P9="","",HA!P9) ->  | N131: =IF(HA!Q9="","",HA!Q9) ->  | O131: =IF(HA!R9="","",HA!R9) ->  | P131: =IF(HA!S9="","",HA!S9) ->  | Q131: =IF(HA!T9="","",HA!T9) ->  | R131: =IF(HA!U9="","",HA!U9) ->  | S131: =IF(HA!V9="","",HA!V9) ->  | T131: =IF(HA!W9="","",HA!W9) ->  | U131: =IF(HA!X9="","",HA!X9) ->  | V131: =IF(HA!Y9="","",HA!Y9) ->  | W131: =IF(HA!Z9="","",HA!Z9) ->  | X131: =IF(HA!AA9="","",HA!AA9) ->  | Y131: =IF(HA!AB9="","",HA!AB9) ->  | Z131: =IF(HA!AC9="","",HA!AC9) ->  | AA131: =IF(HA!AD9="","",HA!AD9) ->  | AB131: =IF(HA!AE9="","",HA!AE9) ->  | AC131: =IF(HA!AF9="","",HA!AF9) ->  | AD131: =IF(HA!AG9="","",HA!AG9) ->  | AE131: =IF(HA!AH9="","",HA!AH9) ->  | AF131: =IF(HA!AI9="","",HA!AI9) ->  | AG131: =IF(HA!AJ9="","",HA!AJ9) ->  | AH131: =IF(HA!AK9="","",HA!AK9) ->  | AI131: =IF(HA!AL9="","",HA!AL9) ->  | AJ131: =IF(HA!AM9="","",HA!AM9) ->  | AK131: =IF(HA!AN9="","",HA!AN9) ->  | AL131: =IF(HA!AO9="","",HA!AO9) ->  | AM131: =IF(HA!AP9="","",HA!AP9) -> 
D132: Criterio Evaluación 5.2 | E132: =IF(HA!H10="","",HA!H10) ->  | F132: =IF(HA!I10="","",HA!I10) ->  | G132: =IF(HA!J10="","",HA!J10) ->  | H132: =IF(HA!K10="","",HA!K10) ->  | I132: =IF(HA!L10="","",HA!L10) ->  | J132: =IF(HA!M10="","",HA!M10) ->  | K132: =IF(HA!N10="","",HA!N10) ->  | L132: =IF(HA!O10="","",HA!O10) ->  | M132: =IF(HA!P10="","",HA!P10) ->  | N132: =IF(HA!Q10="","",HA!Q10) ->  | O132: =IF(HA!R10="","",HA!R10) ->  | P132: =IF(HA!S10="","",HA!S10) ->  | Q132: =IF(HA!T10="","",HA!T10) ->  | R132: =IF(HA!U10="","",HA!U10) ->  | S132: =IF(HA!V10="","",HA!V10) ->  | T132: =IF(HA!W10="","",HA!W10) ->  | U132: =IF(HA!X10="","",HA!X10) ->  | V132: =IF(HA!Y10="","",HA!Y10) ->  | W132: =IF(HA!Z10="","",HA!Z10) ->  | X132: =IF(HA!AA10="","",HA!AA10) ->  | Y132: =IF(HA!AB10="","",HA!AB10) ->  | Z132: =IF(HA!AC10="","",HA!AC10) ->  | AA132: =IF(HA!AD10="","",HA!AD10) ->  | AB132: =IF(HA!AE10="","",HA!AE10) ->  | AC132: =IF(HA!AF10="","",HA!AF10) ->  | AD132: =IF(HA!AG10="","",HA!AG10) ->  | AE132: =IF(HA!AH10="","",HA!AH10) ->  | AF132: =IF(HA!AI10="","",HA!AI10) ->  | AG132: =IF(HA!AJ10="","",HA!AJ10) ->  | AH132: =IF(HA!AK10="","",HA!AK10) ->  | AI132: =IF(HA!AL10="","",HA!AL10) ->  | AJ132: =IF(HA!AM10="","",HA!AM10) ->  | AK132: =IF(HA!AN10="","",HA!AN10) ->  | AL132: =IF(HA!AO10="","",HA!AO10) ->  | AM132: =IF(HA!AP10="","",HA!AP10) -> 
C133: Comp. Esp. 6 | D133: Criterio Evaluación 6.1 | E133: =IF(HA!H11="","",HA!H11) ->  | F133: =IF(HA!I11="","",HA!I11) ->  | G133: =IF(HA!J11="","",HA!J11) ->  | H133: =IF(HA!K11="","",HA!K11) ->  | I133: =IF(HA!L11="","",HA!L11) ->  | J133: =IF(HA!M11="","",HA!M11) ->  | K133: =IF(HA!N11="","",HA!N11) ->  | L133: =IF(HA!O11="","",HA!O11) ->  | M133: =IF(HA!P11="","",HA!P11) ->  | N133: =IF(HA!Q11="","",HA!Q11) ->  | O133: =IF(HA!R11="","",HA!R11) ->  | P133: =IF(HA!S11="","",HA!S11) ->  | Q133: =IF(HA!T11="","",HA!T11) ->  | R133: =IF(HA!U11="","",HA!U11) ->  | S133: =IF(HA!V11="","",HA!V11) ->  | T133: =IF(HA!W11="","",HA!W11) ->  | U133: =IF(HA!X11="","",HA!X11) ->  | V133: =IF(HA!Y11="","",HA!Y11) ->  | W133: =IF(HA!Z11="","",HA!Z11) ->  | X133: =IF(HA!AA11="","",HA!AA11) ->  | Y133: =IF(HA!AB11="","",HA!AB11) ->  | Z133: =IF(HA!AC11="","",HA!AC11) ->  | AA133: =IF(HA!AD11="","",HA!AD11) ->  | AB133: =IF(HA!AE11="","",HA!AE11) ->  | AC133: =IF(HA!AF11="","",HA!AF11) ->  | AD133: =IF(HA!AG11="","",HA!AG11) ->  | AE133: =IF(HA!AH11="","",HA!AH11) ->  | AF133: =IF(HA!AI11="","",HA!AI11) ->  | AG133: =IF(HA!AJ11="","",HA!AJ11) ->  | AH133: =IF(HA!AK11="","",HA!AK11) ->  | AI133: =IF(HA!AL11="","",HA!AL11) ->  | AJ133: =IF(HA!AM11="","",HA!AM11) ->  | AK133: =IF(HA!AN11="","",HA!AN11) ->  | AL133: =IF(HA!AO11="","",HA!AO11) ->  | AM133: =IF(HA!AP11="","",HA!AP11) -> 
D134: Criterio Evaluación 6.2 | E134: =IF(HA!H12="","",HA!H12) ->  | F134: =IF(HA!I12="","",HA!I12) ->  | G134: =IF(HA!J12="","",HA!J12) ->  | H134: =IF(HA!K12="","",HA!K12) ->  | I134: =IF(HA!L12="","",HA!L12) ->  | J134: =IF(HA!M12="","",HA!M12) ->  | K134: =IF(HA!N12="","",HA!N12) ->  | L134: =IF(HA!O12="","",HA!O12) ->  | M134: =IF(HA!P12="","",HA!P12) ->  | N134: =IF(HA!Q12="","",HA!Q12) ->  | O134: =IF(HA!R12="","",HA!R12) ->  | P134: =IF(HA!S12="","",HA!S12) ->  | Q134: =IF(HA!T12="","",HA!T12) ->  | R134: =IF(HA!U12="","",HA!U12) ->  | S134: =IF(HA!V12="","",HA!V12) ->  | T134: =IF(HA!W12="","",HA!W12) ->  | U134: =IF(HA!X12="","",HA!X12) ->  | V134: =IF(HA!Y12="","",HA!Y12) ->  | W134: =IF(HA!Z12="","",HA!Z12) ->  | X134: =IF(HA!AA12="","",HA!AA12) ->  | Y134: =IF(HA!AB12="","",HA!AB12) ->  | Z134: =IF(HA!AC12="","",HA!AC12) ->  | AA134: =IF(HA!AD12="","",HA!AD12) ->  | AB134: =IF(HA!AE12="","",HA!AE12) ->  | AC134: =IF(HA!AF12="","",HA!AF12) ->  | AD134: =IF(HA!AG12="","",HA!AG12) ->  | AE134: =IF(HA!AH12="","",HA!AH12) ->  | AF134: =IF(HA!AI12="","",HA!AI12) ->  | AG134: =IF(HA!AJ12="","",HA!AJ12) ->  | AH134: =IF(HA!AK12="","",HA!AK12) ->  | AI134: =IF(HA!AL12="","",HA!AL12) ->  | AJ134: =IF(HA!AM12="","",HA!AM12) ->  | AK134: =IF(HA!AN12="","",HA!AN12) ->  | AL134: =IF(HA!AO12="","",HA!AO12) ->  | AM134: =IF(HA!AP12="","",HA!AP12) -> 
C135: Comp. Esp. 7 | D135: Criterio Evaluación 7.1 | E135: =IF(HA!H13="","",HA!H13) ->  | F135: =IF(HA!I13="","",HA!I13) ->  | G135: =IF(HA!J13="","",HA!J13) ->  | H135: =IF(HA!K13="","",HA!K13) ->  | I135: =IF(HA!L13="","",HA!L13) ->  | J135: =IF(HA!M13="","",HA!M13) ->  | K135: =IF(HA!N13="","",HA!N13) ->  | L135: =IF(HA!O13="","",HA!O13) ->  | M135: =IF(HA!P13="","",HA!P13) ->  | N135: =IF(HA!Q13="","",HA!Q13) ->  | O135: =IF(HA!R13="","",HA!R13) ->  | P135: =IF(HA!S13="","",HA!S13) ->  | Q135: =IF(HA!T13="","",HA!T13) ->  | R135: =IF(HA!U13="","",HA!U13) ->  | S135: =IF(HA!V13="","",HA!V13) ->  | T135: =IF(HA!W13="","",HA!W13) ->  | U135: =IF(HA!X13="","",HA!X13) ->  | V135: =IF(HA!Y13="","",HA!Y13) ->  | W135: =IF(HA!Z13="","",HA!Z13) ->  | X135: =IF(HA!AA13="","",HA!AA13) ->  | Y135: =IF(HA!AB13="","",HA!AB13) ->  | Z135: =IF(HA!AC13="","",HA!AC13) ->  | AA135: =IF(HA!AD13="","",HA!AD13) ->  | AB135: =IF(HA!AE13="","",HA!AE13) ->  | AC135: =IF(HA!AF13="","",HA!AF13) ->  | AD135: =IF(HA!AG13="","",HA!AG13) ->  | AE135: =IF(HA!AH13="","",HA!AH13) ->  | AF135: =IF(HA!AI13="","",HA!AI13) ->  | AG135: =IF(HA!AJ13="","",HA!AJ13) ->  | AH135: =IF(HA!AK13="","",HA!AK13) ->  | AI135: =IF(HA!AL13="","",HA!AL13) ->  | AJ135: =IF(HA!AM13="","",HA!AM13) ->  | AK135: =IF(HA!AN13="","",HA!AN13) ->  | AL135: =IF(HA!AO13="","",HA!AO13) ->  | AM135: =IF(HA!AP13="","",HA!AP13) -> 
C136: Comp. Esp. 8 | D136: Criterio Evaluación 8.1 | E136: =IF(HA!H14="","",HA!H14) ->  | F136: =IF(HA!I14="","",HA!I14) ->  | G136: =IF(HA!J14="","",HA!J14) ->  | H136: =IF(HA!K14="","",HA!K14) ->  | I136: =IF(HA!L14="","",HA!L14) ->  | J136: =IF(HA!M14="","",HA!M14) ->  | K136: =IF(HA!N14="","",HA!N14) ->  | L136: =IF(HA!O14="","",HA!O14) ->  | M136: =IF(HA!P14="","",HA!P14) ->  | N136: =IF(HA!Q14="","",HA!Q14) ->  | O136: =IF(HA!R14="","",HA!R14) ->  | P136: =IF(HA!S14="","",HA!S14) ->  | Q136: =IF(HA!T14="","",HA!T14) ->  | R136: =IF(HA!U14="","",HA!U14) ->  | S136: =IF(HA!V14="","",HA!V14) ->  | T136: =IF(HA!W14="","",HA!W14) ->  | U136: =IF(HA!X14="","",HA!X14) ->  | V136: =IF(HA!Y14="","",HA!Y14) ->  | W136: =IF(HA!Z14="","",HA!Z14) ->  | X136: =IF(HA!AA14="","",HA!AA14) ->  | Y136: =IF(HA!AB14="","",HA!AB14) ->  | Z136: =IF(HA!AC14="","",HA!AC14) ->  | AA136: =IF(HA!AD14="","",HA!AD14) ->  | AB136: =IF(HA!AE14="","",HA!AE14) ->  | AC136: =IF(HA!AF14="","",HA!AF14) ->  | AD136: =IF(HA!AG14="","",HA!AG14) ->  | AE136: =IF(HA!AH14="","",HA!AH14) ->  | AF136: =IF(HA!AI14="","",HA!AI14) ->  | AG136: =IF(HA!AJ14="","",HA!AJ14) ->  | AH136: =IF(HA!AK14="","",HA!AK14) ->  | AI136: =IF(HA!AL14="","",HA!AL14) ->  | AJ136: =IF(HA!AM14="","",HA!AM14) ->  | AK136: =IF(HA!AN14="","",HA!AN14) ->  | AL136: =IF(HA!AO14="","",HA!AO14) ->  | AM136: =IF(HA!AP14="","",HA!AP14) -> 
D137: Criterio Evaluación 8.2 | E137: =IF(HA!H15="","",HA!H15) ->  | F137: =IF(HA!I15="","",HA!I15) ->  | G137: =IF(HA!J15="","",HA!J15) ->  | H137: =IF(HA!K15="","",HA!K15) ->  | I137: =IF(HA!L15="","",HA!L15) ->  | J137: =IF(HA!M15="","",HA!M15) ->  | K137: =IF(HA!N15="","",HA!N15) ->  | L137: =IF(HA!O15="","",HA!O15) ->  | M137: =IF(HA!P15="","",HA!P15) ->  | N137: =IF(HA!Q15="","",HA!Q15) ->  | O137: =IF(HA!R15="","",HA!R15) ->  | P137: =IF(HA!S15="","",HA!S15) ->  | Q137: =IF(HA!T15="","",HA!T15) ->  | R137: =IF(HA!U15="","",HA!U15) ->  | S137: =IF(HA!V15="","",HA!V15) ->  | T137: =IF(HA!W15="","",HA!W15) ->  | U137: =IF(HA!X15="","",HA!X15) ->  | V137: =IF(HA!Y15="","",HA!Y15) ->  | W137: =IF(HA!Z15="","",HA!Z15) ->  | X137: =IF(HA!AA15="","",HA!AA15) ->  | Y137: =IF(HA!AB15="","",HA!AB15) ->  | Z137: =IF(HA!AC15="","",HA!AC15) ->  | AA137: =IF(HA!AD15="","",HA!AD15) ->  | AB137: =IF(HA!AE15="","",HA!AE15) ->  | AC137: =IF(HA!AF15="","",HA!AF15) ->  | AD137: =IF(HA!AG15="","",HA!AG15) ->  | AE137: =IF(HA!AH15="","",HA!AH15) ->  | AF137: =IF(HA!AI15="","",HA!AI15) ->  | AG137: =IF(HA!AJ15="","",HA!AJ15) ->  | AH137: =IF(HA!AK15="","",HA!AK15) ->  | AI137: =IF(HA!AL15="","",HA!AL15) ->  | AJ137: =IF(HA!AM15="","",HA!AM15) ->  | AK137: =IF(HA!AN15="","",HA!AN15) ->  | AL137: =IF(HA!AO15="","",HA!AO15) ->  | AM137: =IF(HA!AP15="","",HA!AP15) -> 
B138: Latín II | C138: Comp. Esp. 1 | D138: Criterio Evaluación 1.1 | E138: =IF(Latin!H4="","",Latin!H4) ->  | F138: =IF(Latin!I4="","",Latin!I4) ->  | G138: =IF(Latin!J4="","",Latin!J4) ->  | H138: =IF(Latin!K4="","",Latin!K4) ->  | I138: =IF(Latin!L4="","",Latin!L4) ->  | J138: =IF(Latin!M4="","",Latin!M4) ->  | K138: =IF(Latin!N4="","",Latin!N4) ->  | L138: =IF(Latin!O4="","",Latin!O4) ->  | M138: =IF(Latin!P4="","",Latin!P4) ->  | N138: =IF(Latin!Q4="","",Latin!Q4) ->  | O138: =IF(Latin!R4="","",Latin!R4) ->  | P138: =IF(Latin!S4="","",Latin!S4) ->  | Q138: =IF(Latin!T4="","",Latin!T4) ->  | R138: =IF(Latin!U4="","",Latin!U4) ->  | S138: =IF(Latin!V4="","",Latin!V4) ->  | T138: =IF(Latin!W4="","",Latin!W4) ->  | U138: =IF(Latin!X4="","",Latin!X4) ->  | V138: =IF(Latin!Y4="","",Latin!Y4) ->  | W138: =IF(Latin!Z4="","",Latin!Z4) ->  | X138: =IF(Latin!AA4="","",Latin!AA4) ->  | Y138: =IF(Latin!AB4="","",Latin!AB4) ->  | Z138: =IF(Latin!AC4="","",Latin!AC4) ->  | AA138: =IF(Latin!AD4="","",Latin!AD4) ->  | AB138: =IF(Latin!AE4="","",Latin!AE4) ->  | AC138: =IF(Latin!AF4="","",Latin!AF4) ->  | AD138: =IF(Latin!AG4="","",Latin!AG4) ->  | AE138: =IF(Latin!AH4="","",Latin!AH4) ->  | AF138: =IF(Latin!AI4="","",Latin!AI4) ->  | AG138: =IF(Latin!AJ4="","",Latin!AJ4) ->  | AH138: =IF(Latin!AK4="","",Latin!AK4) ->  | AI138: =IF(Latin!AL4="","",Latin!AL4) ->  | AJ138: =IF(Latin!AM4="","",Latin!AM4) ->  | AK138: =IF(Latin!AN4="","",Latin!AN4) ->  | AL138: =IF(Latin!AO4="","",Latin!AO4) ->  | AM138: =IF(Latin!AP4="","",Latin!AP4) -> 
D139: Criterio Evaluación 1.2 | E139: =IF(Latin!H5="","",Latin!H5) ->  | F139: =IF(Latin!I5="","",Latin!I5) ->  | G139: =IF(Latin!J5="","",Latin!J5) ->  | H139: =IF(Latin!K5="","",Latin!K5) ->  | I139: =IF(Latin!L5="","",Latin!L5) ->  | J139: =IF(Latin!M5="","",Latin!M5) ->  | K139: =IF(Latin!N5="","",Latin!N5) ->  | L139: =IF(Latin!O5="","",Latin!O5) ->  | M139: =IF(Latin!P5="","",Latin!P5) ->  | N139: =IF(Latin!Q5="","",Latin!Q5) ->  | O139: =IF(Latin!R5="","",Latin!R5) ->  | P139: =IF(Latin!S5="","",Latin!S5) ->  | Q139: =IF(Latin!T5="","",Latin!T5) ->  | R139: =IF(Latin!U5="","",Latin!U5) ->  | S139: =IF(Latin!V5="","",Latin!V5) ->  | T139: =IF(Latin!W5="","",Latin!W5) ->  | U139: =IF(Latin!X5="","",Latin!X5) ->  | V139: =IF(Latin!Y5="","",Latin!Y5) ->  | W139: =IF(Latin!Z5="","",Latin!Z5) ->  | X139: =IF(Latin!AA5="","",Latin!AA5) ->  | Y139: =IF(Latin!AB5="","",Latin!AB5) ->  | Z139: =IF(Latin!AC5="","",Latin!AC5) ->  | AA139: =IF(Latin!AD5="","",Latin!AD5) ->  | AB139: =IF(Latin!AE5="","",Latin!AE5) ->  | AC139: =IF(Latin!AF5="","",Latin!AF5) ->  | AD139: =IF(Latin!AG5="","",Latin!AG5) ->  | AE139: =IF(Latin!AH5="","",Latin!AH5) ->  | AF139: =IF(Latin!AI5="","",Latin!AI5) ->  | AG139: =IF(Latin!AJ5="","",Latin!AJ5) ->  | AH139: =IF(Latin!AK5="","",Latin!AK5) ->  | AI139: =IF(Latin!AL5="","",Latin!AL5) ->  | AJ139: =IF(Latin!AM5="","",Latin!AM5) ->  | AK139: =IF(Latin!AN5="","",Latin!AN5) ->  | AL139: =IF(Latin!AO5="","",Latin!AO5) ->  | AM139: =IF(Latin!AP5="","",Latin!AP5) -> 
D140: Criterio Evaluación 1.3 | E140: =IF(Latin!H6="","",Latin!H6) ->  | F140: =IF(Latin!I6="","",Latin!I6) ->  | G140: =IF(Latin!J6="","",Latin!J6) ->  | H140: =IF(Latin!K6="","",Latin!K6) ->  | I140: =IF(Latin!L6="","",Latin!L6) ->  | J140: =IF(Latin!M6="","",Latin!M6) ->  | K140: =IF(Latin!N6="","",Latin!N6) ->  | L140: =IF(Latin!O6="","",Latin!O6) ->  | M140: =IF(Latin!P6="","",Latin!P6) ->  | N140: =IF(Latin!Q6="","",Latin!Q6) ->  | O140: =IF(Latin!R6="","",Latin!R6) ->  | P140: =IF(Latin!S6="","",Latin!S6) ->  | Q140: =IF(Latin!T6="","",Latin!T6) ->  | R140: =IF(Latin!U6="","",Latin!U6) ->  | S140: =IF(Latin!V6="","",Latin!V6) ->  | T140: =IF(Latin!W6="","",Latin!W6) ->  | U140: =IF(Latin!X6="","",Latin!X6) ->  | V140: =IF(Latin!Y6="","",Latin!Y6) ->  | W140: =IF(Latin!Z6="","",Latin!Z6) ->  | X140: =IF(Latin!AA6="","",Latin!AA6) ->  | Y140: =IF(Latin!AB6="","",Latin!AB6) ->  | Z140: =IF(Latin!AC6="","",Latin!AC6) ->  | AA140: =IF(Latin!AD6="","",Latin!AD6) ->  | AB140: =IF(Latin!AE6="","",Latin!AE6) ->  | AC140: =IF(Latin!AF6="","",Latin!AF6) ->  | AD140: =IF(Latin!AG6="","",Latin!AG6) ->  | AE140: =IF(Latin!AH6="","",Latin!AH6) ->  | AF140: =IF(Latin!AI6="","",Latin!AI6) ->  | AG140: =IF(Latin!AJ6="","",Latin!AJ6) ->  | AH140: =IF(Latin!AK6="","",Latin!AK6) ->  | AI140: =IF(Latin!AL6="","",Latin!AL6) ->  | AJ140: =IF(Latin!AM6="","",Latin!AM6) ->  | AK140: =IF(Latin!AN6="","",Latin!AN6) ->  | AL140: =IF(Latin!AO6="","",Latin!AO6) ->  | AM140: =IF(Latin!AP6="","",Latin!AP6) -> 
D141: Criterio Evaluación 1.4 | E141: =IF(Latin!H7="","",Latin!H7) ->  | F141: =IF(Latin!I7="","",Latin!I7) ->  | G141: =IF(Latin!J7="","",Latin!J7) ->  | H141: =IF(Latin!K7="","",Latin!K7) ->  | I141: =IF(Latin!L7="","",Latin!L7) ->  | J141: =IF(Latin!M7="","",Latin!M7) ->  | K141: =IF(Latin!N7="","",Latin!N7) ->  | L141: =IF(Latin!O7="","",Latin!O7) ->  | M141: =IF(Latin!P7="","",Latin!P7) ->  | N141: =IF(Latin!Q7="","",Latin!Q7) ->  | O141: =IF(Latin!R7="","",Latin!R7) ->  | P141: =IF(Latin!S7="","",Latin!S7) ->  | Q141: =IF(Latin!T7="","",Latin!T7) ->  | R141: =IF(Latin!U7="","",Latin!U7) ->  | S141: =IF(Latin!V7="","",Latin!V7) ->  | T141: =IF(Latin!W7="","",Latin!W7) ->  | U141: =IF(Latin!X7="","",Latin!X7) ->  | V141: =IF(Latin!Y7="","",Latin!Y7) ->  | W141: =IF(Latin!Z7="","",Latin!Z7) ->  | X141: =IF(Latin!AA7="","",Latin!AA7) ->  | Y141: =IF(Latin!AB7="","",Latin!AB7) ->  | Z141: =IF(Latin!AC7="","",Latin!AC7) ->  | AA141: =IF(Latin!AD7="","",Latin!AD7) ->  | AB141: =IF(Latin!AE7="","",Latin!AE7) ->  | AC141: =IF(Latin!AF7="","",Latin!AF7) ->  | AD141: =IF(Latin!AG7="","",Latin!AG7) ->  | AE141: =IF(Latin!AH7="","",Latin!AH7) ->  | AF141: =IF(Latin!AI7="","",Latin!AI7) ->  | AG141: =IF(Latin!AJ7="","",Latin!AJ7) ->  | AH141: =IF(Latin!AK7="","",Latin!AK7) ->  | AI141: =IF(Latin!AL7="","",Latin!AL7) ->  | AJ141: =IF(Latin!AM7="","",Latin!AM7) ->  | AK141: =IF(Latin!AN7="","",Latin!AN7) ->  | AL141: =IF(Latin!AO7="","",Latin!AO7) ->  | AM141: =IF(Latin!AP7="","",Latin!AP7) -> 
D142: Criterio Evaluación 1.5 | E142: =IF(Latin!H8="","",Latin!H8) ->  | F142: =IF(Latin!I8="","",Latin!I8) ->  | G142: =IF(Latin!J8="","",Latin!J8) ->  | H142: =IF(Latin!K8="","",Latin!K8) ->  | I142: =IF(Latin!L8="","",Latin!L8) ->  | J142: =IF(Latin!M8="","",Latin!M8) ->  | K142: =IF(Latin!N8="","",Latin!N8) ->  | L142: =IF(Latin!O8="","",Latin!O8) ->  | M142: =IF(Latin!P8="","",Latin!P8) ->  | N142: =IF(Latin!Q8="","",Latin!Q8) ->  | O142: =IF(Latin!R8="","",Latin!R8) ->  | P142: =IF(Latin!S8="","",Latin!S8) ->  | Q142: =IF(Latin!T8="","",Latin!T8) ->  | R142: =IF(Latin!U8="","",Latin!U8) ->  | S142: =IF(Latin!V8="","",Latin!V8) ->  | T142: =IF(Latin!W8="","",Latin!W8) ->  | U142: =IF(Latin!X8="","",Latin!X8) ->  | V142: =IF(Latin!Y8="","",Latin!Y8) ->  | W142: =IF(Latin!Z8="","",Latin!Z8) ->  | X142: =IF(Latin!AA8="","",Latin!AA8) ->  | Y142: =IF(Latin!AB8="","",Latin!AB8) ->  | Z142: =IF(Latin!AC8="","",Latin!AC8) ->  | AA142: =IF(Latin!AD8="","",Latin!AD8) ->  | AB142: =IF(Latin!AE8="","",Latin!AE8) ->  | AC142: =IF(Latin!AF8="","",Latin!AF8) ->  | AD142: =IF(Latin!AG8="","",Latin!AG8) ->  | AE142: =IF(Latin!AH8="","",Latin!AH8) ->  | AF142: =IF(Latin!AI8="","",Latin!AI8) ->  | AG142: =IF(Latin!AJ8="","",Latin!AJ8) ->  | AH142: =IF(Latin!AK8="","",Latin!AK8) ->  | AI142: =IF(Latin!AL8="","",Latin!AL8) ->  | AJ142: =IF(Latin!AM8="","",Latin!AM8) ->  | AK142: =IF(Latin!AN8="","",Latin!AN8) ->  | AL142: =IF(Latin!AO8="","",Latin!AO8) ->  | AM142: =IF(Latin!AP8="","",Latin!AP8) -> 
C143: Comp. Esp. 2 | D143: Criterio Evaluación 2.1 | E143: =IF(Latin!H9="","",Latin!H9) ->  | F143: =IF(Latin!I9="","",Latin!I9) ->  | G143: =IF(Latin!J9="","",Latin!J9) ->  | H143: =IF(Latin!K9="","",Latin!K9) ->  | I143: =IF(Latin!L9="","",Latin!L9) ->  | J143: =IF(Latin!M9="","",Latin!M9) ->  | K143: =IF(Latin!N9="","",Latin!N9) ->  | L143: =IF(Latin!O9="","",Latin!O9) ->  | M143: =IF(Latin!P9="","",Latin!P9) ->  | N143: =IF(Latin!Q9="","",Latin!Q9) ->  | O143: =IF(Latin!R9="","",Latin!R9) ->  | P143: =IF(Latin!S9="","",Latin!S9) ->  | Q143: =IF(Latin!T9="","",Latin!T9) ->  | R143: =IF(Latin!U9="","",Latin!U9) ->  | S143: =IF(Latin!V9="","",Latin!V9) ->  | T143: =IF(Latin!W9="","",Latin!W9) ->  | U143: =IF(Latin!X9="","",Latin!X9) ->  | V143: =IF(Latin!Y9="","",Latin!Y9) ->  | W143: =IF(Latin!Z9="","",Latin!Z9) ->  | X143: =IF(Latin!AA9="","",Latin!AA9) ->  | Y143: =IF(Latin!AB9="","",Latin!AB9) ->  | Z143: =IF(Latin!AC9="","",Latin!AC9) ->  | AA143: =IF(Latin!AD9="","",Latin!AD9) ->  | AB143: =IF(Latin!AE9="","",Latin!AE9) ->  | AC143: =IF(Latin!AF9="","",Latin!AF9) ->  | AD143: =IF(Latin!AG9="","",Latin!AG9) ->  | AE143: =IF(Latin!AH9="","",Latin!AH9) ->  | AF143: =IF(Latin!AI9="","",Latin!AI9) ->  | AG143: =IF(Latin!AJ9="","",Latin!AJ9) ->  | AH143: =IF(Latin!AK9="","",Latin!AK9) ->  | AI143: =IF(Latin!AL9="","",Latin!AL9) ->  | AJ143: =IF(Latin!AM9="","",Latin!AM9) ->  | AK143: =IF(Latin!AN9="","",Latin!AN9) ->  | AL143: =IF(Latin!AO9="","",Latin!AO9) ->  | AM143: =IF(Latin!AP9="","",Latin!AP9) -> 
D144: Criterio Evaluación 2.2 | E144: =IF(Latin!H10="","",Latin!H10) ->  | F144: =IF(Latin!I10="","",Latin!I10) ->  | G144: =IF(Latin!J10="","",Latin!J10) ->  | H144: =IF(Latin!K10="","",Latin!K10) ->  | I144: =IF(Latin!L10="","",Latin!L10) ->  | J144: =IF(Latin!M10="","",Latin!M10) ->  | K144: =IF(Latin!N10="","",Latin!N10) ->  | L144: =IF(Latin!O10="","",Latin!O10) ->  | M144: =IF(Latin!P10="","",Latin!P10) ->  | N144: =IF(Latin!Q10="","",Latin!Q10) ->  | O144: =IF(Latin!R10="","",Latin!R10) ->  | P144: =IF(Latin!S10="","",Latin!S10) ->  | Q144: =IF(Latin!T10="","",Latin!T10) ->  | R144: =IF(Latin!U10="","",Latin!U10) ->  | S144: =IF(Latin!V10="","",Latin!V10) ->  | T144: =IF(Latin!W10="","",Latin!W10) ->  | U144: =IF(Latin!X10="","",Latin!X10) ->  | V144: =IF(Latin!Y10="","",Latin!Y10) ->  | W144: =IF(Latin!Z10="","",Latin!Z10) ->  | X144: =IF(Latin!AA10="","",Latin!AA10) ->  | Y144: =IF(Latin!AB10="","",Latin!AB10) ->  | Z144: =IF(Latin!AC10="","",Latin!AC10) ->  | AA144: =IF(Latin!AD10="","",Latin!AD10) ->  | AB144: =IF(Latin!AE10="","",Latin!AE10) ->  | AC144: =IF(Latin!AF10="","",Latin!AF10) ->  | AD144: =IF(Latin!AG10="","",Latin!AG10) ->  | AE144: =IF(Latin!AH10="","",Latin!AH10) ->  | AF144: =IF(Latin!AI10="","",Latin!AI10) ->  | AG144: =IF(Latin!AJ10="","",Latin!AJ10) ->  | AH144: =IF(Latin!AK10="","",Latin!AK10) ->  | AI144: =IF(Latin!AL10="","",Latin!AL10) ->  | AJ144: =IF(Latin!AM10="","",Latin!AM10) ->  | AK144: =IF(Latin!AN10="","",Latin!AN10) ->  | AL144: =IF(Latin!AO10="","",Latin!AO10) ->  | AM144: =IF(Latin!AP10="","",Latin!AP10) -> 
D145: Criterio Evaluación 2.3 | E145: =IF(Latin!H11="","",Latin!H11) ->  | F145: =IF(Latin!I11="","",Latin!I11) ->  | G145: =IF(Latin!J11="","",Latin!J11) ->  | H145: =IF(Latin!K11="","",Latin!K11) ->  | I145: =IF(Latin!L11="","",Latin!L11) ->  | J145: =IF(Latin!M11="","",Latin!M11) ->  | K145: =IF(Latin!N11="","",Latin!N11) ->  | L145: =IF(Latin!O11="","",Latin!O11) ->  | M145: =IF(Latin!P11="","",Latin!P11) ->  | N145: =IF(Latin!Q11="","",Latin!Q11) ->  | O145: =IF(Latin!R11="","",Latin!R11) ->  | P145: =IF(Latin!S11="","",Latin!S11) ->  | Q145: =IF(Latin!T11="","",Latin!T11) ->  | R145: =IF(Latin!U11="","",Latin!U11) ->  | S145: =IF(Latin!V11="","",Latin!V11) ->  | T145: =IF(Latin!W11="","",Latin!W11) ->  | U145: =IF(Latin!X11="","",Latin!X11) ->  | V145: =IF(Latin!Y11="","",Latin!Y11) ->  | W145: =IF(Latin!Z11="","",Latin!Z11) ->  | X145: =IF(Latin!AA11="","",Latin!AA11) ->  | Y145: =IF(Latin!AB11="","",Latin!AB11) ->  | Z145: =IF(Latin!AC11="","",Latin!AC11) ->  | AA145: =IF(Latin!AD11="","",Latin!AD11) ->  | AB145: =IF(Latin!AE11="","",Latin!AE11) ->  | AC145: =IF(Latin!AF11="","",Latin!AF11) ->  | AD145: =IF(Latin!AG11="","",Latin!AG11) ->  | AE145: =IF(Latin!AH11="","",Latin!AH11) ->  | AF145: =IF(Latin!AI11="","",Latin!AI11) ->  | AG145: =IF(Latin!AJ11="","",Latin!AJ11) ->  | AH145: =IF(Latin!AK11="","",Latin!AK11) ->  | AI145: =IF(Latin!AL11="","",Latin!AL11) ->  | AJ145: =IF(Latin!AM11="","",Latin!AM11) ->  | AK145: =IF(Latin!AN11="","",Latin!AN11) ->  | AL145: =IF(Latin!AO11="","",Latin!AO11) ->  | AM145: =IF(Latin!AP11="","",Latin!AP11) -> 
D146: Criterio Evaluación 2.4 | E146: =IF(Latin!H12="","",Latin!H12) ->  | F146: =IF(Latin!I12="","",Latin!I12) ->  | G146: =IF(Latin!J12="","",Latin!J12) ->  | H146: =IF(Latin!K12="","",Latin!K12) ->  | I146: =IF(Latin!L12="","",Latin!L12) ->  | J146: =IF(Latin!M12="","",Latin!M12) ->  | K146: =IF(Latin!N12="","",Latin!N12) ->  | L146: =IF(Latin!O12="","",Latin!O12) ->  | M146: =IF(Latin!P12="","",Latin!P12) ->  | N146: =IF(Latin!Q12="","",Latin!Q12) ->  | O146: =IF(Latin!R12="","",Latin!R12) ->  | P146: =IF(Latin!S12="","",Latin!S12) ->  | Q146: =IF(Latin!T12="","",Latin!T12) ->  | R146: =IF(Latin!U12="","",Latin!U12) ->  | S146: =IF(Latin!V12="","",Latin!V12) ->  | T146: =IF(Latin!W12="","",Latin!W12) ->  | U146: =IF(Latin!X12="","",Latin!X12) ->  | V146: =IF(Latin!Y12="","",Latin!Y12) ->  | W146: =IF(Latin!Z12="","",Latin!Z12) ->  | X146: =IF(Latin!AA12="","",Latin!AA12) ->  | Y146: =IF(Latin!AB12="","",Latin!AB12) ->  | Z146: =IF(Latin!AC12="","",Latin!AC12) ->  | AA146: =IF(Latin!AD12="","",Latin!AD12) ->  | AB146: =IF(Latin!AE12="","",Latin!AE12) ->  | AC146: =IF(Latin!AF12="","",Latin!AF12) ->  | AD146: =IF(Latin!AG12="","",Latin!AG12) ->  | AE146: =IF(Latin!AH12="","",Latin!AH12) ->  | AF146: =IF(Latin!AI12="","",Latin!AI12) ->  | AG146: =IF(Latin!AJ12="","",Latin!AJ12) ->  | AH146: =IF(Latin!AK12="","",Latin!AK12) ->  | AI146: =IF(Latin!AL12="","",Latin!AL12) ->  | AJ146: =IF(Latin!AM12="","",Latin!AM12) ->  | AK146: =IF(Latin!AN12="","",Latin!AN12) ->  | AL146: =IF(Latin!AO12="","",Latin!AO12) ->  | AM146: =IF(Latin!AP12="","",Latin!AP12) -> 
D147: Criterio Evaluación 2.5 | E147: =IF(Latin!H13="","",Latin!H13) ->  | F147: =IF(Latin!I13="","",Latin!I13) ->  | G147: =IF(Latin!J13="","",Latin!J13) ->  | H147: =IF(Latin!K13="","",Latin!K13) ->  | I147: =IF(Latin!L13="","",Latin!L13) ->  | J147: =IF(Latin!M13="","",Latin!M13) ->  | K147: =IF(Latin!N13="","",Latin!N13) ->  | L147: =IF(Latin!O13="","",Latin!O13) ->  | M147: =IF(Latin!P13="","",Latin!P13) ->  | N147: =IF(Latin!Q13="","",Latin!Q13) ->  | O147: =IF(Latin!R13="","",Latin!R13) ->  | P147: =IF(Latin!S13="","",Latin!S13) ->  | Q147: =IF(Latin!T13="","",Latin!T13) ->  | R147: =IF(Latin!U13="","",Latin!U13) ->  | S147: =IF(Latin!V13="","",Latin!V13) ->  | T147: =IF(Latin!W13="","",Latin!W13) ->  | U147: =IF(Latin!X13="","",Latin!X13) ->  | V147: =IF(Latin!Y13="","",Latin!Y13) ->  | W147: =IF(Latin!Z13="","",Latin!Z13) ->  | X147: =IF(Latin!AA13="","",Latin!AA13) ->  | Y147: =IF(Latin!AB13="","",Latin!AB13) ->  | Z147: =IF(Latin!AC13="","",Latin!AC13) ->  | AA147: =IF(Latin!AD13="","",Latin!AD13) ->  | AB147: =IF(Latin!AE13="","",Latin!AE13) ->  | AC147: =IF(Latin!AF13="","",Latin!AF13) ->  | AD147: =IF(Latin!AG13="","",Latin!AG13) ->  | AE147: =IF(Latin!AH13="","",Latin!AH13) ->  | AF147: =IF(Latin!AI13="","",Latin!AI13) ->  | AG147: =IF(Latin!AJ13="","",Latin!AJ13) ->  | AH147: =IF(Latin!AK13="","",Latin!AK13) ->  | AI147: =IF(Latin!AL13="","",Latin!AL13) ->  | AJ147: =IF(Latin!AM13="","",Latin!AM13) ->  | AK147: =IF(Latin!AN13="","",Latin!AN13) ->  | AL147: =IF(Latin!AO13="","",Latin!AO13) ->  | AM147: =IF(Latin!AP13="","",Latin!AP13) -> 
D148: Criterio Evaluación 2.6 | E148: =IF(Latin!H14="","",Latin!H14) ->  | F148: =IF(Latin!I14="","",Latin!I14) ->  | G148: =IF(Latin!J14="","",Latin!J14) ->  | H148: =IF(Latin!K14="","",Latin!K14) ->  | I148: =IF(Latin!L14="","",Latin!L14) ->  | J148: =IF(Latin!M14="","",Latin!M14) ->  | K148: =IF(Latin!N14="","",Latin!N14) ->  | L148: =IF(Latin!O14="","",Latin!O14) ->  | M148: =IF(Latin!P14="","",Latin!P14) ->  | N148: =IF(Latin!Q14="","",Latin!Q14) ->  | O148: =IF(Latin!R14="","",Latin!R14) ->  | P148: =IF(Latin!S14="","",Latin!S14) ->  | Q148: =IF(Latin!T14="","",Latin!T14) ->  | R148: =IF(Latin!U14="","",Latin!U14) ->  | S148: =IF(Latin!V14="","",Latin!V14) ->  | T148: =IF(Latin!W14="","",Latin!W14) ->  | U148: =IF(Latin!X14="","",Latin!X14) ->  | V148: =IF(Latin!Y14="","",Latin!Y14) ->  | W148: =IF(Latin!Z14="","",Latin!Z14) ->  | X148: =IF(Latin!AA14="","",Latin!AA14) ->  | Y148: =IF(Latin!AB14="","",Latin!AB14) ->  | Z148: =IF(Latin!AC14="","",Latin!AC14) ->  | AA148: =IF(Latin!AD14="","",Latin!AD14) ->  | AB148: =IF(Latin!AE14="","",Latin!AE14) ->  | AC148: =IF(Latin!AF14="","",Latin!AF14) ->  | AD148: =IF(Latin!AG14="","",Latin!AG14) ->  | AE148: =IF(Latin!AH14="","",Latin!AH14) ->  | AF148: =IF(Latin!AI14="","",Latin!AI14) ->  | AG148: =IF(Latin!AJ14="","",Latin!AJ14) ->  | AH148: =IF(Latin!AK14="","",Latin!AK14) ->  | AI148: =IF(Latin!AL14="","",Latin!AL14) ->  | AJ148: =IF(Latin!AM14="","",Latin!AM14) ->  | AK148: =IF(Latin!AN14="","",Latin!AN14) ->  | AL148: =IF(Latin!AO14="","",Latin!AO14) ->  | AM148: =IF(Latin!AP14="","",Latin!AP14) -> 
C149: Comp. Esp. 3 | D149: Criterio Evaluación 3.1 | E149: =IF(Latin!H15="","",Latin!H15) ->  | F149: =IF(Latin!I15="","",Latin!I15) ->  | G149: =IF(Latin!J15="","",Latin!J15) ->  | H149: =IF(Latin!K15="","",Latin!K15) ->  | I149: =IF(Latin!L15="","",Latin!L15) ->  | J149: =IF(Latin!M15="","",Latin!M15) ->  | K149: =IF(Latin!N15="","",Latin!N15) ->  | L149: =IF(Latin!O15="","",Latin!O15) ->  | M149: =IF(Latin!P15="","",Latin!P15) ->  | N149: =IF(Latin!Q15="","",Latin!Q15) ->  | O149: =IF(Latin!R15="","",Latin!R15) ->  | P149: =IF(Latin!S15="","",Latin!S15) ->  | Q149: =IF(Latin!T15="","",Latin!T15) ->  | R149: =IF(Latin!U15="","",Latin!U15) ->  | S149: =IF(Latin!V15="","",Latin!V15) ->  | T149: =IF(Latin!W15="","",Latin!W15) ->  | U149: =IF(Latin!X15="","",Latin!X15) ->  | V149: =IF(Latin!Y15="","",Latin!Y15) ->  | W149: =IF(Latin!Z15="","",Latin!Z15) ->  | X149: =IF(Latin!AA15="","",Latin!AA15) ->  | Y149: =IF(Latin!AB15="","",Latin!AB15) ->  | Z149: =IF(Latin!AC15="","",Latin!AC15) ->  | AA149: =IF(Latin!AD15="","",Latin!AD15) ->  | AB149: =IF(Latin!AE15="","",Latin!AE15) ->  | AC149: =IF(Latin!AF15="","",Latin!AF15) ->  | AD149: =IF(Latin!AG15="","",Latin!AG15) ->  | AE149: =IF(Latin!AH15="","",Latin!AH15) ->  | AF149: =IF(Latin!AI15="","",Latin!AI15) ->  | AG149: =IF(Latin!AJ15="","",Latin!AJ15) ->  | AH149: =IF(Latin!AK15="","",Latin!AK15) ->  | AI149: =IF(Latin!AL15="","",Latin!AL15) ->  | AJ149: =IF(Latin!AM15="","",Latin!AM15) ->  | AK149: =IF(Latin!AN15="","",Latin!AN15) ->  | AL149: =IF(Latin!AO15="","",Latin!AO15) ->  | AM149: =IF(Latin!AP15="","",Latin!AP15) -> 
D150: Criterio Evaluación 3.2 | E150: =IF(Latin!H16="","",Latin!H16) ->  | F150: =IF(Latin!I16="","",Latin!I16) ->  | G150: =IF(Latin!J16="","",Latin!J16) ->  | H150: =IF(Latin!K16="","",Latin!K16) ->  | I150: =IF(Latin!L16="","",Latin!L16) ->  | J150: =IF(Latin!M16="","",Latin!M16) ->  | K150: =IF(Latin!N16="","",Latin!N16) ->  | L150: =IF(Latin!O16="","",Latin!O16) ->  | M150: =IF(Latin!P16="","",Latin!P16) ->  | N150: =IF(Latin!Q16="","",Latin!Q16) ->  | O150: =IF(Latin!R16="","",Latin!R16) ->  | P150: =IF(Latin!S16="","",Latin!S16) ->  | Q150: =IF(Latin!T16="","",Latin!T16) ->  | R150: =IF(Latin!U16="","",Latin!U16) ->  | S150: =IF(Latin!V16="","",Latin!V16) ->  | T150: =IF(Latin!W16="","",Latin!W16) ->  | U150: =IF(Latin!X16="","",Latin!X16) ->  | V150: =IF(Latin!Y16="","",Latin!Y16) ->  | W150: =IF(Latin!Z16="","",Latin!Z16) ->  | X150: =IF(Latin!AA16="","",Latin!AA16) ->  | Y150: =IF(Latin!AB16="","",Latin!AB16) ->  | Z150: =IF(Latin!AC16="","",Latin!AC16) ->  | AA150: =IF(Latin!AD16="","",Latin!AD16) ->  | AB150: =IF(Latin!AE16="","",Latin!AE16) ->  | AC150: =IF(Latin!AF16="","",Latin!AF16) ->  | AD150: =IF(Latin!AG16="","",Latin!AG16) ->  | AE150: =IF(Latin!AH16="","",Latin!AH16) ->  | AF150: =IF(Latin!AI16="","",Latin!AI16) ->  | AG150: =IF(Latin!AJ16="","",Latin!AJ16) ->  | AH150: =IF(Latin!AK16="","",Latin!AK16) ->  | AI150: =IF(Latin!AL16="","",Latin!AL16) ->  | AJ150: =IF(Latin!AM16="","",Latin!AM16) ->  | AK150: =IF(Latin!AN16="","",Latin!AN16) ->  | AL150: =IF(Latin!AO16="","",Latin!AO16) ->  | AM150: =IF(Latin!AP16="","",Latin!AP16) -> 
D151: Criterio Evaluación 3.3 | E151: =IF(Latin!H17="","",Latin!H17) ->  | F151: =IF(Latin!I17="","",Latin!I17) ->  | G151: =IF(Latin!J17="","",Latin!J17) ->  | H151: =IF(Latin!K17="","",Latin!K17) ->  | I151: =IF(Latin!L17="","",Latin!L17) ->  | J151: =IF(Latin!M17="","",Latin!M17) ->  | K151: =IF(Latin!N17="","",Latin!N17) ->  | L151: =IF(Latin!O17="","",Latin!O17) ->  | M151: =IF(Latin!P17="","",Latin!P17) ->  | N151: =IF(Latin!Q17="","",Latin!Q17) ->  | O151: =IF(Latin!R17="","",Latin!R17) ->  | P151: =IF(Latin!S17="","",Latin!S17) ->  | Q151: =IF(Latin!T17="","",Latin!T17) ->  | R151: =IF(Latin!U17="","",Latin!U17) ->  | S151: =IF(Latin!V17="","",Latin!V17) ->  | T151: =IF(Latin!W17="","",Latin!W17) ->  | U151: =IF(Latin!X17="","",Latin!X17) ->  | V151: =IF(Latin!Y17="","",Latin!Y17) ->  | W151: =IF(Latin!Z17="","",Latin!Z17) ->  | X151: =IF(Latin!AA17="","",Latin!AA17) ->  | Y151: =IF(Latin!AB17="","",Latin!AB17) ->  | Z151: =IF(Latin!AC17="","",Latin!AC17) ->  | AA151: =IF(Latin!AD17="","",Latin!AD17) ->  | AB151: =IF(Latin!AE17="","",Latin!AE17) ->  | AC151: =IF(Latin!AF17="","",Latin!AF17) ->  | AD151: =IF(Latin!AG17="","",Latin!AG17) ->  | AE151: =IF(Latin!AH17="","",Latin!AH17) ->  | AF151: =IF(Latin!AI17="","",Latin!AI17) ->  | AG151: =IF(Latin!AJ17="","",Latin!AJ17) ->  | AH151: =IF(Latin!AK17="","",Latin!AK17) ->  | AI151: =IF(Latin!AL17="","",Latin!AL17) ->  | AJ151: =IF(Latin!AM17="","",Latin!AM17) ->  | AK151: =IF(Latin!AN17="","",Latin!AN17) ->  | AL151: =IF(Latin!AO17="","",Latin!AO17) ->  | AM151: =IF(Latin!AP17="","",Latin!AP17) -> 
D152: Criterio Evaluación 3.4 | E152: =IF(Latin!H18="","",Latin!H18) ->  | F152: =IF(Latin!I18="","",Latin!I18) ->  | G152: =IF(Latin!J18="","",Latin!J18) ->  | H152: =IF(Latin!K18="","",Latin!K18) ->  | I152: =IF(Latin!L18="","",Latin!L18) ->  | J152: =IF(Latin!M18="","",Latin!M18) ->  | K152: =IF(Latin!N18="","",Latin!N18) ->  | L152: =IF(Latin!O18="","",Latin!O18) ->  | M152: =IF(Latin!P18="","",Latin!P18) ->  | N152: =IF(Latin!Q18="","",Latin!Q18) ->  | O152: =IF(Latin!R18="","",Latin!R18) ->  | P152: =IF(Latin!S18="","",Latin!S18) ->  | Q152: =IF(Latin!T18="","",Latin!T18) ->  | R152: =IF(Latin!U18="","",Latin!U18) ->  | S152: =IF(Latin!V18="","",Latin!V18) ->  | T152: =IF(Latin!W18="","",Latin!W18) ->  | U152: =IF(Latin!X18="","",Latin!X18) ->  | V152: =IF(Latin!Y18="","",Latin!Y18) ->  | W152: =IF(Latin!Z18="","",Latin!Z18) ->  | X152: =IF(Latin!AA18="","",Latin!AA18) ->  | Y152: =IF(Latin!AB18="","",Latin!AB18) ->  | Z152: =IF(Latin!AC18="","",Latin!AC18) ->  | AA152: =IF(Latin!AD18="","",Latin!AD18) ->  | AB152: =IF(Latin!AE18="","",Latin!AE18) ->  | AC152: =IF(Latin!AF18="","",Latin!AF18) ->  | AD152: =IF(Latin!AG18="","",Latin!AG18) ->  | AE152: =IF(Latin!AH18="","",Latin!AH18) ->  | AF152: =IF(Latin!AI18="","",Latin!AI18) ->  | AG152: =IF(Latin!AJ18="","",Latin!AJ18) ->  | AH152: =IF(Latin!AK18="","",Latin!AK18) ->  | AI152: =IF(Latin!AL18="","",Latin!AL18) ->  | AJ152: =IF(Latin!AM18="","",Latin!AM18) ->  | AK152: =IF(Latin!AN18="","",Latin!AN18) ->  | AL152: =IF(Latin!AO18="","",Latin!AO18) ->  | AM152: =IF(Latin!AP18="","",Latin!AP18) -> 
C153: Comp. Esp. 4 | D153: Criterio Evaluación 4.1 | E153: =IF(Latin!H19="","",Latin!H19) ->  | F153: =IF(Latin!I19="","",Latin!I19) ->  | G153: =IF(Latin!J19="","",Latin!J19) ->  | H153: =IF(Latin!K19="","",Latin!K19) ->  | I153: =IF(Latin!L19="","",Latin!L19) ->  | J153: =IF(Latin!M19="","",Latin!M19) ->  | K153: =IF(Latin!N19="","",Latin!N19) ->  | L153: =IF(Latin!O19="","",Latin!O19) ->  | M153: =IF(Latin!P19="","",Latin!P19) ->  | N153: =IF(Latin!Q19="","",Latin!Q19) ->  | O153: =IF(Latin!R19="","",Latin!R19) ->  | P153: =IF(Latin!S19="","",Latin!S19) ->  | Q153: =IF(Latin!T19="","",Latin!T19) ->  | R153: =IF(Latin!U19="","",Latin!U19) ->  | S153: =IF(Latin!V19="","",Latin!V19) ->  | T153: =IF(Latin!W19="","",Latin!W19) ->  | U153: =IF(Latin!X19="","",Latin!X19) ->  | V153: =IF(Latin!Y19="","",Latin!Y19) ->  | W153: =IF(Latin!Z19="","",Latin!Z19) ->  | X153: =IF(Latin!AA19="","",Latin!AA19) ->  | Y153: =IF(Latin!AB19="","",Latin!AB19) ->  | Z153: =IF(Latin!AC19="","",Latin!AC19) ->  | AA153: =IF(Latin!AD19="","",Latin!AD19) ->  | AB153: =IF(Latin!AE19="","",Latin!AE19) ->  | AC153: =IF(Latin!AF19="","",Latin!AF19) ->  | AD153: =IF(Latin!AG19="","",Latin!AG19) ->  | AE153: =IF(Latin!AH19="","",Latin!AH19) ->  | AF153: =IF(Latin!AI19="","",Latin!AI19) ->  | AG153: =IF(Latin!AJ19="","",Latin!AJ19) ->  | AH153: =IF(Latin!AK19="","",Latin!AK19) ->  | AI153: =IF(Latin!AL19="","",Latin!AL19) ->  | AJ153: =IF(Latin!AM19="","",Latin!AM19) ->  | AK153: =IF(Latin!AN19="","",Latin!AN19) ->  | AL153: =IF(Latin!AO19="","",Latin!AO19) ->  | AM153: =IF(Latin!AP19="","",Latin!AP19) -> 
D154: Criterio Evaluación 4.2 | E154: =IF(Latin!H20="","",Latin!H20) ->  | F154: =IF(Latin!I20="","",Latin!I20) ->  | G154: =IF(Latin!J20="","",Latin!J20) ->  | H154: =IF(Latin!K20="","",Latin!K20) ->  | I154: =IF(Latin!L20="","",Latin!L20) ->  | J154: =IF(Latin!M20="","",Latin!M20) ->  | K154: =IF(Latin!N20="","",Latin!N20) ->  | L154: =IF(Latin!O20="","",Latin!O20) ->  | M154: =IF(Latin!P20="","",Latin!P20) ->  | N154: =IF(Latin!Q20="","",Latin!Q20) ->  | O154: =IF(Latin!R20="","",Latin!R20) ->  | P154: =IF(Latin!S20="","",Latin!S20) ->  | Q154: =IF(Latin!T20="","",Latin!T20) ->  | R154: =IF(Latin!U20="","",Latin!U20) ->  | S154: =IF(Latin!V20="","",Latin!V20) ->  | T154: =IF(Latin!W20="","",Latin!W20) ->  | U154: =IF(Latin!X20="","",Latin!X20) ->  | V154: =IF(Latin!Y20="","",Latin!Y20) ->  | W154: =IF(Latin!Z20="","",Latin!Z20) ->  | X154: =IF(Latin!AA20="","",Latin!AA20) ->  | Y154: =IF(Latin!AB20="","",Latin!AB20) ->  | Z154: =IF(Latin!AC20="","",Latin!AC20) ->  | AA154: =IF(Latin!AD20="","",Latin!AD20) ->  | AB154: =IF(Latin!AE20="","",Latin!AE20) ->  | AC154: =IF(Latin!AF20="","",Latin!AF20) ->  | AD154: =IF(Latin!AG20="","",Latin!AG20) ->  | AE154: =IF(Latin!AH20="","",Latin!AH20) ->  | AF154: =IF(Latin!AI20="","",Latin!AI20) ->  | AG154: =IF(Latin!AJ20="","",Latin!AJ20) ->  | AH154: =IF(Latin!AK20="","",Latin!AK20) ->  | AI154: =IF(Latin!AL20="","",Latin!AL20) ->  | AJ154: =IF(Latin!AM20="","",Latin!AM20) ->  | AK154: =IF(Latin!AN20="","",Latin!AN20) ->  | AL154: =IF(Latin!AO20="","",Latin!AO20) ->  | AM154: =IF(Latin!AP20="","",Latin!AP20) -> 
D155: Criterio Evaluación 4.3 | E155: =IF(Latin!H21="","",Latin!H21) ->  | F155: =IF(Latin!I21="","",Latin!I21) ->  | G155: =IF(Latin!J21="","",Latin!J21) ->  | H155: =IF(Latin!K21="","",Latin!K21) ->  | I155: =IF(Latin!L21="","",Latin!L21) ->  | J155: =IF(Latin!M21="","",Latin!M21) ->  | K155: =IF(Latin!N21="","",Latin!N21) ->  | L155: =IF(Latin!O21="","",Latin!O21) ->  | M155: =IF(Latin!P21="","",Latin!P21) ->  | N155: =IF(Latin!Q21="","",Latin!Q21) ->  | O155: =IF(Latin!R21="","",Latin!R21) ->  | P155: =IF(Latin!S21="","",Latin!S21) ->  | Q155: =IF(Latin!T21="","",Latin!T21) ->  | R155: =IF(Latin!U21="","",Latin!U21) ->  | S155: =IF(Latin!V21="","",Latin!V21) ->  | T155: =IF(Latin!W21="","",Latin!W21) ->  | U155: =IF(Latin!X21="","",Latin!X21) ->  | V155: =IF(Latin!Y21="","",Latin!Y21) ->  | W155: =IF(Latin!Z21="","",Latin!Z21) ->  | X155: =IF(Latin!AA21="","",Latin!AA21) ->  | Y155: =IF(Latin!AB21="","",Latin!AB21) ->  | Z155: =IF(Latin!AC21="","",Latin!AC21) ->  | AA155: =IF(Latin!AD21="","",Latin!AD21) ->  | AB155: =IF(Latin!AE21="","",Latin!AE21) ->  | AC155: =IF(Latin!AF21="","",Latin!AF21) ->  | AD155: =IF(Latin!AG21="","",Latin!AG21) ->  | AE155: =IF(Latin!AH21="","",Latin!AH21) ->  | AF155: =IF(Latin!AI21="","",Latin!AI21) ->  | AG155: =IF(Latin!AJ21="","",Latin!AJ21) ->  | AH155: =IF(Latin!AK21="","",Latin!AK21) ->  | AI155: =IF(Latin!AL21="","",Latin!AL21) ->  | AJ155: =IF(Latin!AM21="","",Latin!AM21) ->  | AK155: =IF(Latin!AN21="","",Latin!AN21) ->  | AL155: =IF(Latin!AO21="","",Latin!AO21) ->  | AM155: =IF(Latin!AP21="","",Latin!AP21) -> 
D156: Criterio Evaluación 4.4 | E156: =IF(Latin!H22="","",Latin!H22) ->  | F156: =IF(Latin!I22="","",Latin!I22) ->  | G156: =IF(Latin!J22="","",Latin!J22) ->  | H156: =IF(Latin!K22="","",Latin!K22) ->  | I156: =IF(Latin!L22="","",Latin!L22) ->  | J156: =IF(Latin!M22="","",Latin!M22) ->  | K156: =IF(Latin!N22="","",Latin!N22) ->  | L156: =IF(Latin!O22="","",Latin!O22) ->  | M156: =IF(Latin!P22="","",Latin!P22) ->  | N156: =IF(Latin!Q22="","",Latin!Q22) ->  | O156: =IF(Latin!R22="","",Latin!R22) ->  | P156: =IF(Latin!S22="","",Latin!S22) ->  | Q156: =IF(Latin!T22="","",Latin!T22) ->  | R156: =IF(Latin!U22="","",Latin!U22) ->  | S156: =IF(Latin!V22="","",Latin!V22) ->  | T156: =IF(Latin!W22="","",Latin!W22) ->  | U156: =IF(Latin!X22="","",Latin!X22) ->  | V156: =IF(Latin!Y22="","",Latin!Y22) ->  | W156: =IF(Latin!Z22="","",Latin!Z22) ->  | X156: =IF(Latin!AA22="","",Latin!AA22) ->  | Y156: =IF(Latin!AB22="","",Latin!AB22) ->  | Z156: =IF(Latin!AC22="","",Latin!AC22) ->  | AA156: =IF(Latin!AD22="","",Latin!AD22) ->  | AB156: =IF(Latin!AE22="","",Latin!AE22) ->  | AC156: =IF(Latin!AF22="","",Latin!AF22) ->  | AD156: =IF(Latin!AG22="","",Latin!AG22) ->  | AE156: =IF(Latin!AH22="","",Latin!AH22) ->  | AF156: =IF(Latin!AI22="","",Latin!AI22) ->  | AG156: =IF(Latin!AJ22="","",Latin!AJ22) ->  | AH156: =IF(Latin!AK22="","",Latin!AK22) ->  | AI156: =IF(Latin!AL22="","",Latin!AL22) ->  | AJ156: =IF(Latin!AM22="","",Latin!AM22) ->  | AK156: =IF(Latin!AN22="","",Latin!AN22) ->  | AL156: =IF(Latin!AO22="","",Latin!AO22) ->  | AM156: =IF(Latin!AP22="","",Latin!AP22) -> 
D157: Criterio Evaluación 4.5 | E157: =IF(Latin!H23="","",Latin!H23) ->  | F157: =IF(Latin!I23="","",Latin!I23) ->  | G157: =IF(Latin!J23="","",Latin!J23) ->  | H157: =IF(Latin!K23="","",Latin!K23) ->  | I157: =IF(Latin!L23="","",Latin!L23) ->  | J157: =IF(Latin!M23="","",Latin!M23) ->  | K157: =IF(Latin!N23="","",Latin!N23) ->  | L157: =IF(Latin!O23="","",Latin!O23) ->  | M157: =IF(Latin!P23="","",Latin!P23) ->  | N157: =IF(Latin!Q23="","",Latin!Q23) ->  | O157: =IF(Latin!R23="","",Latin!R23) ->  | P157: =IF(Latin!S23="","",Latin!S23) ->  | Q157: =IF(Latin!T23="","",Latin!T23) ->  | R157: =IF(Latin!U23="","",Latin!U23) ->  | S157: =IF(Latin!V23="","",Latin!V23) ->  | T157: =IF(Latin!W23="","",Latin!W23) ->  | U157: =IF(Latin!X23="","",Latin!X23) ->  | V157: =IF(Latin!Y23="","",Latin!Y23) ->  | W157: =IF(Latin!Z23="","",Latin!Z23) ->  | X157: =IF(Latin!AA23="","",Latin!AA23) ->  | Y157: =IF(Latin!AB23="","",Latin!AB23) ->  | Z157: =IF(Latin!AC23="","",Latin!AC23) ->  | AA157: =IF(Latin!AD23="","",Latin!AD23) ->  | AB157: =IF(Latin!AE23="","",Latin!AE23) ->  | AC157: =IF(Latin!AF23="","",Latin!AF23) ->  | AD157: =IF(Latin!AG23="","",Latin!AG23) ->  | AE157: =IF(Latin!AH23="","",Latin!AH23) ->  | AF157: =IF(Latin!AI23="","",Latin!AI23) ->  | AG157: =IF(Latin!AJ23="","",Latin!AJ23) ->  | AH157: =IF(Latin!AK23="","",Latin!AK23) ->  | AI157: =IF(Latin!AL23="","",Latin!AL23) ->  | AJ157: =IF(Latin!AM23="","",Latin!AM23) ->  | AK157: =IF(Latin!AN23="","",Latin!AN23) ->  | AL157: =IF(Latin!AO23="","",Latin!AO23) ->  | AM157: =IF(Latin!AP23="","",Latin!AP23) -> 
C158: Comp. Esp. 5 | D158: Criterio Evaluación 5.1 | E158: =IF(Latin!H24="","",Latin!H24) ->  | F158: =IF(Latin!I24="","",Latin!I24) ->  | G158: =IF(Latin!J24="","",Latin!J24) ->  | H158: =IF(Latin!K24="","",Latin!K24) ->  | I158: =IF(Latin!L24="","",Latin!L24) ->  | J158: =IF(Latin!M24="","",Latin!M24) ->  | K158: =IF(Latin!N24="","",Latin!N24) ->  | L158: =IF(Latin!O24="","",Latin!O24) ->  | M158: =IF(Latin!P24="","",Latin!P24) ->  | N158: =IF(Latin!Q24="","",Latin!Q24) ->  | O158: =IF(Latin!R24="","",Latin!R24) ->  | P158: =IF(Latin!S24="","",Latin!S24) ->  | Q158: =IF(Latin!T24="","",Latin!T24) ->  | R158: =IF(Latin!U24="","",Latin!U24) ->  | S158: =IF(Latin!V24="","",Latin!V24) ->  | T158: =IF(Latin!W24="","",Latin!W24) ->  | U158: =IF(Latin!X24="","",Latin!X24) ->  | V158: =IF(Latin!Y24="","",Latin!Y24) ->  | W158: =IF(Latin!Z24="","",Latin!Z24) ->  | X158: =IF(Latin!AA24="","",Latin!AA24) ->  | Y158: =IF(Latin!AB24="","",Latin!AB24) ->  | Z158: =IF(Latin!AC24="","",Latin!AC24) ->  | AA158: =IF(Latin!AD24="","",Latin!AD24) ->  | AB158: =IF(Latin!AE24="","",Latin!AE24) ->  | AC158: =IF(Latin!AF24="","",Latin!AF24) ->  | AD158: =IF(Latin!AG24="","",Latin!AG24) ->  | AE158: =IF(Latin!AH24="","",Latin!AH24) ->  | AF158: =IF(Latin!AI24="","",Latin!AI24) ->  | AG158: =IF(Latin!AJ24="","",Latin!AJ24) ->  | AH158: =IF(Latin!AK24="","",Latin!AK24) ->  | AI158: =IF(Latin!AL24="","",Latin!AL24) ->  | AJ158: =IF(Latin!AM24="","",Latin!AM24) ->  | AK158: =IF(Latin!AN24="","",Latin!AN24) ->  | AL158: =IF(Latin!AO24="","",Latin!AO24) ->  | AM158: =IF(Latin!AP24="","",Latin!AP24) -> 
D159: Criterio Evaluación 5.2 | E159: =IF(Latin!H25="","",Latin!H25) ->  | F159: =IF(Latin!I25="","",Latin!I25) ->  | G159: =IF(Latin!J25="","",Latin!J25) ->  | H159: =IF(Latin!K25="","",Latin!K25) ->  | I159: =IF(Latin!L25="","",Latin!L25) ->  | J159: =IF(Latin!M25="","",Latin!M25) ->  | K159: =IF(Latin!N25="","",Latin!N25) ->  | L159: =IF(Latin!O25="","",Latin!O25) ->  | M159: =IF(Latin!P25="","",Latin!P25) ->  | N159: =IF(Latin!Q25="","",Latin!Q25) ->  | O159: =IF(Latin!R25="","",Latin!R25) ->  | P159: =IF(Latin!S25="","",Latin!S25) ->  | Q159: =IF(Latin!T25="","",Latin!T25) ->  | R159: =IF(Latin!U25="","",Latin!U25) ->  | S159: =IF(Latin!V25="","",Latin!V25) ->  | T159: =IF(Latin!W25="","",Latin!W25) ->  | U159: =IF(Latin!X25="","",Latin!X25) ->  | V159: =IF(Latin!Y25="","",Latin!Y25) ->  | W159: =IF(Latin!Z25="","",Latin!Z25) ->  | X159: =IF(Latin!AA25="","",Latin!AA25) ->  | Y159: =IF(Latin!AB25="","",Latin!AB25) ->  | Z159: =IF(Latin!AC25="","",Latin!AC25) ->  | AA159: =IF(Latin!AD25="","",Latin!AD25) ->  | AB159: =IF(Latin!AE25="","",Latin!AE25) ->  | AC159: =IF(Latin!AF25="","",Latin!AF25) ->  | AD159: =IF(Latin!AG25="","",Latin!AG25) ->  | AE159: =IF(Latin!AH25="","",Latin!AH25) ->  | AF159: =IF(Latin!AI25="","",Latin!AI25) ->  | AG159: =IF(Latin!AJ25="","",Latin!AJ25) ->  | AH159: =IF(Latin!AK25="","",Latin!AK25) ->  | AI159: =IF(Latin!AL25="","",Latin!AL25) ->  | AJ159: =IF(Latin!AM25="","",Latin!AM25) ->  | AK159: =IF(Latin!AN25="","",Latin!AN25) ->  | AL159: =IF(Latin!AO25="","",Latin!AO25) ->  | AM159: =IF(Latin!AP25="","",Latin!AP25) -> 
D160: Criterio Evaluación 5.3 | E160: =IF(Latin!H26="","",Latin!H26) ->  | F160: =IF(Latin!I26="","",Latin!I26) ->  | G160: =IF(Latin!J26="","",Latin!J26) ->  | H160: =IF(Latin!K26="","",Latin!K26) ->  | I160: =IF(Latin!L26="","",Latin!L26) ->  | J160: =IF(Latin!M26="","",Latin!M26) ->  | K160: =IF(Latin!N26="","",Latin!N26) ->  | L160: =IF(Latin!O26="","",Latin!O26) ->  | M160: =IF(Latin!P26="","",Latin!P26) ->  | N160: =IF(Latin!Q26="","",Latin!Q26) ->  | O160: =IF(Latin!R26="","",Latin!R26) ->  | P160: =IF(Latin!S26="","",Latin!S26) ->  | Q160: =IF(Latin!T26="","",Latin!T26) ->  | R160: =IF(Latin!U26="","",Latin!U26) ->  | S160: =IF(Latin!V26="","",Latin!V26) ->  | T160: =IF(Latin!W26="","",Latin!W26) ->  | U160: =IF(Latin!X26="","",Latin!X26) ->  | V160: =IF(Latin!Y26="","",Latin!Y26) ->  | W160: =IF(Latin!Z26="","",Latin!Z26) ->  | X160: =IF(Latin!AA26="","",Latin!AA26) ->  | Y160: =IF(Latin!AB26="","",Latin!AB26) ->  | Z160: =IF(Latin!AC26="","",Latin!AC26) ->  | AA160: =IF(Latin!AD26="","",Latin!AD26) ->  | AB160: =IF(Latin!AE26="","",Latin!AE26) ->  | AC160: =IF(Latin!AF26="","",Latin!AF26) ->  | AD160: =IF(Latin!AG26="","",Latin!AG26) ->  | AE160: =IF(Latin!AH26="","",Latin!AH26) ->  | AF160: =IF(Latin!AI26="","",Latin!AI26) ->  | AG160: =IF(Latin!AJ26="","",Latin!AJ26) ->  | AH160: =IF(Latin!AK26="","",Latin!AK26) ->  | AI160: =IF(Latin!AL26="","",Latin!AL26) ->  | AJ160: =IF(Latin!AM26="","",Latin!AM26) ->  | AK160: =IF(Latin!AN26="","",Latin!AN26) ->  | AL160: =IF(Latin!AO26="","",Latin!AO26) ->  | AM160: =IF(Latin!AP26="","",Latin!AP26) -> 
B161: Lengua Castellana y Literatura II | C161: Comp. Esp. 1 | D161: Criterio Evaluación 1.1 | E161: =IF(LCL!H4="","",LCL!H4) ->  | F161: =IF(LCL!I4="","",LCL!I4) ->  | G161: =IF(LCL!J4="","",LCL!J4) ->  | H161: =IF(LCL!K4="","",LCL!K4) ->  | I161: =IF(LCL!L4="","",LCL!L4) ->  | J161: =IF(LCL!M4="","",LCL!M4) ->  | K161: =IF(LCL!N4="","",LCL!N4) ->  | L161: =IF(LCL!O4="","",LCL!O4) ->  | M161: =IF(LCL!P4="","",LCL!P4) ->  | N161: =IF(LCL!Q4="","",LCL!Q4) ->  | O161: =IF(LCL!R4="","",LCL!R4) ->  | P161: =IF(LCL!S4="","",LCL!S4) ->  | Q161: =IF(LCL!T4="","",LCL!T4) ->  | R161: =IF(LCL!U4="","",LCL!U4) ->  | S161: =IF(LCL!V4="","",LCL!V4) ->  | T161: =IF(LCL!W4="","",LCL!W4) ->  | U161: =IF(LCL!X4="","",LCL!X4) ->  | V161: =IF(LCL!Y4="","",LCL!Y4) ->  | W161: =IF(LCL!Z4="","",LCL!Z4) ->  | X161: =IF(LCL!AA4="","",LCL!AA4) ->  | Y161: =IF(LCL!AB4="","",LCL!AB4) ->  | Z161: =IF(LCL!AC4="","",LCL!AC4) ->  | AA161: =IF(LCL!AD4="","",LCL!AD4) ->  | AB161: =IF(LCL!AE4="","",LCL!AE4) ->  | AC161: =IF(LCL!AF4="","",LCL!AF4) ->  | AD161: =IF(LCL!AG4="","",LCL!AG4) ->  | AE161: =IF(LCL!AH4="","",LCL!AH4) ->  | AF161: =IF(LCL!AI4="","",LCL!AI4) ->  | AG161: =IF(LCL!AJ4="","",LCL!AJ4) ->  | AH161: =IF(LCL!AK4="","",LCL!AK4) ->  | AI161: =IF(LCL!AL4="","",LCL!AL4) ->  | AJ161: =IF(LCL!AM4="","",LCL!AM4) ->  | AK161: =IF(LCL!AN4="","",LCL!AN4) ->  | AL161: =IF(LCL!AO4="","",LCL!AO4) ->  | AM161: =IF(LCL!AP4="","",LCL!AP4) -> 
D162: Criterio Evaluación 1.2 | E162: =IF(LCL!H5="","",LCL!H5) ->  | F162: =IF(LCL!I5="","",LCL!I5) ->  | G162: =IF(LCL!J5="","",LCL!J5) ->  | H162: =IF(LCL!K5="","",LCL!K5) ->  | I162: =IF(LCL!L5="","",LCL!L5) ->  | J162: =IF(LCL!M5="","",LCL!M5) ->  | K162: =IF(LCL!N5="","",LCL!N5) ->  | L162: =IF(LCL!O5="","",LCL!O5) ->  | M162: =IF(LCL!P5="","",LCL!P5) ->  | N162: =IF(LCL!Q5="","",LCL!Q5) ->  | O162: =IF(LCL!R5="","",LCL!R5) ->  | P162: =IF(LCL!S5="","",LCL!S5) ->  | Q162: =IF(LCL!T5="","",LCL!T5) ->  | R162: =IF(LCL!U5="","",LCL!U5) ->  | S162: =IF(LCL!V5="","",LCL!V5) ->  | T162: =IF(LCL!W5="","",LCL!W5) ->  | U162: =IF(LCL!X5="","",LCL!X5) ->  | V162: =IF(LCL!Y5="","",LCL!Y5) ->  | W162: =IF(LCL!Z5="","",LCL!Z5) ->  | X162: =IF(LCL!AA5="","",LCL!AA5) ->  | Y162: =IF(LCL!AB5="","",LCL!AB5) ->  | Z162: =IF(LCL!AC5="","",LCL!AC5) ->  | AA162: =IF(LCL!AD5="","",LCL!AD5) ->  | AB162: =IF(LCL!AE5="","",LCL!AE5) ->  | AC162: =IF(LCL!AF5="","",LCL!AF5) ->  | AD162: =IF(LCL!AG5="","",LCL!AG5) ->  | AE162: =IF(LCL!AH5="","",LCL!AH5) ->  | AF162: =IF(LCL!AI5="","",LCL!AI5) ->  | AG162: =IF(LCL!AJ5="","",LCL!AJ5) ->  | AH162: =IF(LCL!AK5="","",LCL!AK5) ->  | AI162: =IF(LCL!AL5="","",LCL!AL5) ->  | AJ162: =IF(LCL!AM5="","",LCL!AM5) ->  | AK162: =IF(LCL!AN5="","",LCL!AN5) ->  | AL162: =IF(LCL!AO5="","",LCL!AO5) ->  | AM162: =IF(LCL!AP5="","",LCL!AP5) -> 
C163: Comp. Esp. 2 | D163: Criterio Evaluación 2.1 | E163: =IF(LCL!H6="","",LCL!H6) ->  | F163: =IF(LCL!I6="","",LCL!I6) ->  | G163: =IF(LCL!J6="","",LCL!J6) ->  | H163: =IF(LCL!K6="","",LCL!K6) ->  | I163: =IF(LCL!L6="","",LCL!L6) ->  | J163: =IF(LCL!M6="","",LCL!M6) ->  | K163: =IF(LCL!N6="","",LCL!N6) ->  | L163: =IF(LCL!O6="","",LCL!O6) ->  | M163: =IF(LCL!P6="","",LCL!P6) ->  | N163: =IF(LCL!Q6="","",LCL!Q6) ->  | O163: =IF(LCL!R6="","",LCL!R6) ->  | P163: =IF(LCL!S6="","",LCL!S6) ->  | Q163: =IF(LCL!T6="","",LCL!T6) ->  | R163: =IF(LCL!U6="","",LCL!U6) ->  | S163: =IF(LCL!V6="","",LCL!V6) ->  | T163: =IF(LCL!W6="","",LCL!W6) ->  | U163: =IF(LCL!X6="","",LCL!X6) ->  | V163: =IF(LCL!Y6="","",LCL!Y6) ->  | W163: =IF(LCL!Z6="","",LCL!Z6) ->  | X163: =IF(LCL!AA6="","",LCL!AA6) ->  | Y163: =IF(LCL!AB6="","",LCL!AB6) ->  | Z163: =IF(LCL!AC6="","",LCL!AC6) ->  | AA163: =IF(LCL!AD6="","",LCL!AD6) ->  | AB163: =IF(LCL!AE6="","",LCL!AE6) ->  | AC163: =IF(LCL!AF6="","",LCL!AF6) ->  | AD163: =IF(LCL!AG6="","",LCL!AG6) ->  | AE163: =IF(LCL!AH6="","",LCL!AH6) ->  | AF163: =IF(LCL!AI6="","",LCL!AI6) ->  | AG163: =IF(LCL!AJ6="","",LCL!AJ6) ->  | AH163: =IF(LCL!AK6="","",LCL!AK6) ->  | AI163: =IF(LCL!AL6="","",LCL!AL6) ->  | AJ163: =IF(LCL!AM6="","",LCL!AM6) ->  | AK163: =IF(LCL!AN6="","",LCL!AN6) ->  | AL163: =IF(LCL!AO6="","",LCL!AO6) ->  | AM163: =IF(LCL!AP6="","",LCL!AP6) -> 
D164: Criterio Evaluación 2.2 | E164: =IF(LCL!H7="","",LCL!H7) ->  | F164: =IF(LCL!I7="","",LCL!I7) ->  | G164: =IF(LCL!J7="","",LCL!J7) ->  | H164: =IF(LCL!K7="","",LCL!K7) ->  | I164: =IF(LCL!L7="","",LCL!L7) ->  | J164: =IF(LCL!M7="","",LCL!M7) ->  | K164: =IF(LCL!N7="","",LCL!N7) ->  | L164: =IF(LCL!O7="","",LCL!O7) ->  | M164: =IF(LCL!P7="","",LCL!P7) ->  | N164: =IF(LCL!Q7="","",LCL!Q7) ->  | O164: =IF(LCL!R7="","",LCL!R7) ->  | P164: =IF(LCL!S7="","",LCL!S7) ->  | Q164: =IF(LCL!T7="","",LCL!T7) ->  | R164: =IF(LCL!U7="","",LCL!U7) ->  | S164: =IF(LCL!V7="","",LCL!V7) ->  | T164: =IF(LCL!W7="","",LCL!W7) ->  | U164: =IF(LCL!X7="","",LCL!X7) ->  | V164: =IF(LCL!Y7="","",LCL!Y7) ->  | W164: =IF(LCL!Z7="","",LCL!Z7) ->  | X164: =IF(LCL!AA7="","",LCL!AA7) ->  | Y164: =IF(LCL!AB7="","",LCL!AB7) ->  | Z164: =IF(LCL!AC7="","",LCL!AC7) ->  | AA164: =IF(LCL!AD7="","",LCL!AD7) ->  | AB164: =IF(LCL!AE7="","",LCL!AE7) ->  | AC164: =IF(LCL!AF7="","",LCL!AF7) ->  | AD164: =IF(LCL!AG7="","",LCL!AG7) ->  | AE164: =IF(LCL!AH7="","",LCL!AH7) ->  | AF164: =IF(LCL!AI7="","",LCL!AI7) ->  | AG164: =IF(LCL!AJ7="","",LCL!AJ7) ->  | AH164: =IF(LCL!AK7="","",LCL!AK7) ->  | AI164: =IF(LCL!AL7="","",LCL!AL7) ->  | AJ164: =IF(LCL!AM7="","",LCL!AM7) ->  | AK164: =IF(LCL!AN7="","",LCL!AN7) ->  | AL164: =IF(LCL!AO7="","",LCL!AO7) ->  | AM164: =IF(LCL!AP7="","",LCL!AP7) -> 
C165: Comp. Esp. 3 | D165: Criterio Evaluación 3.1 | E165: =IF(LCL!H8="","",LCL!H8) ->  | F165: =IF(LCL!I8="","",LCL!I8) ->  | G165: =IF(LCL!J8="","",LCL!J8) ->  | H165: =IF(LCL!K8="","",LCL!K8) ->  | I165: =IF(LCL!L8="","",LCL!L8) ->  | J165: =IF(LCL!M8="","",LCL!M8) ->  | K165: =IF(LCL!N8="","",LCL!N8) ->  | L165: =IF(LCL!O8="","",LCL!O8) ->  | M165: =IF(LCL!P8="","",LCL!P8) ->  | N165: =IF(LCL!Q8="","",LCL!Q8) ->  | O165: =IF(LCL!R8="","",LCL!R8) ->  | P165: =IF(LCL!S8="","",LCL!S8) ->  | Q165: =IF(LCL!T8="","",LCL!T8) ->  | R165: =IF(LCL!U8="","",LCL!U8) ->  | S165: =IF(LCL!V8="","",LCL!V8) ->  | T165: =IF(LCL!W8="","",LCL!W8) ->  | U165: =IF(LCL!X8="","",LCL!X8) ->  | V165: =IF(LCL!Y8="","",LCL!Y8) ->  | W165: =IF(LCL!Z8="","",LCL!Z8) ->  | X165: =IF(LCL!AA8="","",LCL!AA8) ->  | Y165: =IF(LCL!AB8="","",LCL!AB8) ->  | Z165: =IF(LCL!AC8="","",LCL!AC8) ->  | AA165: =IF(LCL!AD8="","",LCL!AD8) ->  | AB165: =IF(LCL!AE8="","",LCL!AE8) ->  | AC165: =IF(LCL!AF8="","",LCL!AF8) ->  | AD165: =IF(LCL!AG8="","",LCL!AG8) ->  | AE165: =IF(LCL!AH8="","",LCL!AH8) ->  | AF165: =IF(LCL!AI8="","",LCL!AI8) ->  | AG165: =IF(LCL!AJ8="","",LCL!AJ8) ->  | AH165: =IF(LCL!AK8="","",LCL!AK8) ->  | AI165: =IF(LCL!AL8="","",LCL!AL8) ->  | AJ165: =IF(LCL!AM8="","",LCL!AM8) ->  | AK165: =IF(LCL!AN8="","",LCL!AN8) ->  | AL165: =IF(LCL!AO8="","",LCL!AO8) ->  | AM165: =IF(LCL!AP8="","",LCL!AP8) -> 
D166: Criterio Evaluación 3.2 | E166: =IF(LCL!H9="","",LCL!H9) ->  | F166: =IF(LCL!I9="","",LCL!I9) ->  | G166: =IF(LCL!J9="","",LCL!J9) ->  | H166: =IF(LCL!K9="","",LCL!K9) ->  | I166: =IF(LCL!L9="","",LCL!L9) ->  | J166: =IF(LCL!M9="","",LCL!M9) ->  | K166: =IF(LCL!N9="","",LCL!N9) ->  | L166: =IF(LCL!O9="","",LCL!O9) ->  | M166: =IF(LCL!P9="","",LCL!P9) ->  | N166: =IF(LCL!Q9="","",LCL!Q9) ->  | O166: =IF(LCL!R9="","",LCL!R9) ->  | P166: =IF(LCL!S9="","",LCL!S9) ->  | Q166: =IF(LCL!T9="","",LCL!T9) ->  | R166: =IF(LCL!U9="","",LCL!U9) ->  | S166: =IF(LCL!V9="","",LCL!V9) ->  | T166: =IF(LCL!W9="","",LCL!W9) ->  | U166: =IF(LCL!X9="","",LCL!X9) ->  | V166: =IF(LCL!Y9="","",LCL!Y9) ->  | W166: =IF(LCL!Z9="","",LCL!Z9) ->  | X166: =IF(LCL!AA9="","",LCL!AA9) ->  | Y166: =IF(LCL!AB9="","",LCL!AB9) ->  | Z166: =IF(LCL!AC9="","",LCL!AC9) ->  | AA166: =IF(LCL!AD9="","",LCL!AD9) ->  | AB166: =IF(LCL!AE9="","",LCL!AE9) ->  | AC166: =IF(LCL!AF9="","",LCL!AF9) ->  | AD166: =IF(LCL!AG9="","",LCL!AG9) ->  | AE166: =IF(LCL!AH9="","",LCL!AH9) ->  | AF166: =IF(LCL!AI9="","",LCL!AI9) ->  | AG166: =IF(LCL!AJ9="","",LCL!AJ9) ->  | AH166: =IF(LCL!AK9="","",LCL!AK9) ->  | AI166: =IF(LCL!AL9="","",LCL!AL9) ->  | AJ166: =IF(LCL!AM9="","",LCL!AM9) ->  | AK166: =IF(LCL!AN9="","",LCL!AN9) ->  | AL166: =IF(LCL!AO9="","",LCL!AO9) ->  | AM166: =IF(LCL!AP9="","",LCL!AP9) -> 
C167: Comp. Esp. 4 | D167: Criterio Evaluación 4.1 | E167: =IF(LCL!H10="","",LCL!H10) ->  | F167: =IF(LCL!I10="","",LCL!I10) ->  | G167: =IF(LCL!J10="","",LCL!J10) ->  | H167: =IF(LCL!K10="","",LCL!K10) ->  | I167: =IF(LCL!L10="","",LCL!L10) ->  | J167: =IF(LCL!M10="","",LCL!M10) ->  | K167: =IF(LCL!N10="","",LCL!N10) ->  | L167: =IF(LCL!O10="","",LCL!O10) ->  | M167: =IF(LCL!P10="","",LCL!P10) ->  | N167: =IF(LCL!Q10="","",LCL!Q10) ->  | O167: =IF(LCL!R10="","",LCL!R10) ->  | P167: =IF(LCL!S10="","",LCL!S10) ->  | Q167: =IF(LCL!T10="","",LCL!T10) ->  | R167: =IF(LCL!U10="","",LCL!U10) ->  | S167: =IF(LCL!V10="","",LCL!V10) ->  | T167: =IF(LCL!W10="","",LCL!W10) ->  | U167: =IF(LCL!X10="","",LCL!X10) ->  | V167: =IF(LCL!Y10="","",LCL!Y10) ->  | W167: =IF(LCL!Z10="","",LCL!Z10) ->  | X167: =IF(LCL!AA10="","",LCL!AA10) ->  | Y167: =IF(LCL!AB10="","",LCL!AB10) ->  | Z167: =IF(LCL!AC10="","",LCL!AC10) ->  | AA167: =IF(LCL!AD10="","",LCL!AD10) ->  | AB167: =IF(LCL!AE10="","",LCL!AE10) ->  | AC167: =IF(LCL!AF10="","",LCL!AF10) ->  | AD167: =IF(LCL!AG10="","",LCL!AG10) ->  | AE167: =IF(LCL!AH10="","",LCL!AH10) ->  | AF167: =IF(LCL!AI10="","",LCL!AI10) ->  | AG167: =IF(LCL!AJ10="","",LCL!AJ10) ->  | AH167: =IF(LCL!AK10="","",LCL!AK10) ->  | AI167: =IF(LCL!AL10="","",LCL!AL10) ->  | AJ167: =IF(LCL!AM10="","",LCL!AM10) ->  | AK167: =IF(LCL!AN10="","",LCL!AN10) ->  | AL167: =IF(LCL!AO10="","",LCL!AO10) ->  | AM167: =IF(LCL!AP10="","",LCL!AP10) -> 
D168: Criterio Evaluación 4.2 | E168: =IF(LCL!H11="","",LCL!H11) ->  | F168: =IF(LCL!I11="","",LCL!I11) ->  | G168: =IF(LCL!J11="","",LCL!J11) ->  | H168: =IF(LCL!K11="","",LCL!K11) ->  | I168: =IF(LCL!L11="","",LCL!L11) ->  | J168: =IF(LCL!M11="","",LCL!M11) ->  | K168: =IF(LCL!N11="","",LCL!N11) ->  | L168: =IF(LCL!O11="","",LCL!O11) ->  | M168: =IF(LCL!P11="","",LCL!P11) ->  | N168: =IF(LCL!Q11="","",LCL!Q11) ->  | O168: =IF(LCL!R11="","",LCL!R11) ->  | P168: =IF(LCL!S11="","",LCL!S11) ->  | Q168: =IF(LCL!T11="","",LCL!T11) ->  | R168: =IF(LCL!U11="","",LCL!U11) ->  | S168: =IF(LCL!V11="","",LCL!V11) ->  | T168: =IF(LCL!W11="","",LCL!W11) ->  | U168: =IF(LCL!X11="","",LCL!X11) ->  | V168: =IF(LCL!Y11="","",LCL!Y11) ->  | W168: =IF(LCL!Z11="","",LCL!Z11) ->  | X168: =IF(LCL!AA11="","",LCL!AA11) ->  | Y168: =IF(LCL!AB11="","",LCL!AB11) ->  | Z168: =IF(LCL!AC11="","",LCL!AC11) ->  | AA168: =IF(LCL!AD11="","",LCL!AD11) ->  | AB168: =IF(LCL!AE11="","",LCL!AE11) ->  | AC168: =IF(LCL!AF11="","",LCL!AF11) ->  | AD168: =IF(LCL!AG11="","",LCL!AG11) ->  | AE168: =IF(LCL!AH11="","",LCL!AH11) ->  | AF168: =IF(LCL!AI11="","",LCL!AI11) ->  | AG168: =IF(LCL!AJ11="","",LCL!AJ11) ->  | AH168: =IF(LCL!AK11="","",LCL!AK11) ->  | AI168: =IF(LCL!AL11="","",LCL!AL11) ->  | AJ168: =IF(LCL!AM11="","",LCL!AM11) ->  | AK168: =IF(LCL!AN11="","",LCL!AN11) ->  | AL168: =IF(LCL!AO11="","",LCL!AO11) ->  | AM168: =IF(LCL!AP11="","",LCL!AP11) -> 
C169: Comp. Esp. 5 | D169: Criterio Evaluación 5.1 | E169: =IF(LCL!H12="","",LCL!H12) ->  | F169: =IF(LCL!I12="","",LCL!I12) ->  | G169: =IF(LCL!J12="","",LCL!J12) ->  | H169: =IF(LCL!K12="","",LCL!K12) ->  | I169: =IF(LCL!L12="","",LCL!L12) ->  | J169: =IF(LCL!M12="","",LCL!M12) ->  | K169: =IF(LCL!N12="","",LCL!N12) ->  | L169: =IF(LCL!O12="","",LCL!O12) ->  | M169: =IF(LCL!P12="","",LCL!P12) ->  | N169: =IF(LCL!Q12="","",LCL!Q12) ->  | O169: =IF(LCL!R12="","",LCL!R12) ->  | P169: =IF(LCL!S12="","",LCL!S12) ->  | Q169: =IF(LCL!T12="","",LCL!T12) ->  | R169: =IF(LCL!U12="","",LCL!U12) ->  | S169: =IF(LCL!V12="","",LCL!V12) ->  | T169: =IF(LCL!W12="","",LCL!W12) ->  | U169: =IF(LCL!X12="","",LCL!X12) ->  | V169: =IF(LCL!Y12="","",LCL!Y12) ->  | W169: =IF(LCL!Z12="","",LCL!Z12) ->  | X169: =IF(LCL!AA12="","",LCL!AA12) ->  | Y169: =IF(LCL!AB12="","",LCL!AB12) ->  | Z169: =IF(LCL!AC12="","",LCL!AC12) ->  | AA169: =IF(LCL!AD12="","",LCL!AD12) ->  | AB169: =IF(LCL!AE12="","",LCL!AE12) ->  | AC169: =IF(LCL!AF12="","",LCL!AF12) ->  | AD169: =IF(LCL!AG12="","",LCL!AG12) ->  | AE169: =IF(LCL!AH12="","",LCL!AH12) ->  | AF169: =IF(LCL!AI12="","",LCL!AI12) ->  | AG169: =IF(LCL!AJ12="","",LCL!AJ12) ->  | AH169: =IF(LCL!AK12="","",LCL!AK12) ->  | AI169: =IF(LCL!AL12="","",LCL!AL12) ->  | AJ169: =IF(LCL!AM12="","",LCL!AM12) ->  | AK169: =IF(LCL!AN12="","",LCL!AN12) ->  | AL169: =IF(LCL!AO12="","",LCL!AO12) ->  | AM169: =IF(LCL!AP12="","",LCL!AP12) -> 
D170: Criterio Evaluación 5.2 | E170: =IF(LCL!H13="","",LCL!H13) ->  | F170: =IF(LCL!I13="","",LCL!I13) ->  | G170: =IF(LCL!J13="","",LCL!J13) ->  | H170: =IF(LCL!K13="","",LCL!K13) ->  | I170: =IF(LCL!L13="","",LCL!L13) ->  | J170: =IF(LCL!M13="","",LCL!M13) ->  | K170: =IF(LCL!N13="","",LCL!N13) ->  | L170: =IF(LCL!O13="","",LCL!O13) ->  | M170: =IF(LCL!P13="","",LCL!P13) ->  | N170: =IF(LCL!Q13="","",LCL!Q13) ->  | O170: =IF(LCL!R13="","",LCL!R13) ->  | P170: =IF(LCL!S13="","",LCL!S13) ->  | Q170: =IF(LCL!T13="","",LCL!T13) ->  | R170: =IF(LCL!U13="","",LCL!U13) ->  | S170: =IF(LCL!V13="","",LCL!V13) ->  | T170: =IF(LCL!W13="","",LCL!W13) ->  | U170: =IF(LCL!X13="","",LCL!X13) ->  | V170: =IF(LCL!Y13="","",LCL!Y13) ->  | W170: =IF(LCL!Z13="","",LCL!Z13) ->  | X170: =IF(LCL!AA13="","",LCL!AA13) ->  | Y170: =IF(LCL!AB13="","",LCL!AB13) ->  | Z170: =IF(LCL!AC13="","",LCL!AC13) ->  | AA170: =IF(LCL!AD13="","",LCL!AD13) ->  | AB170: =IF(LCL!AE13="","",LCL!AE13) ->  | AC170: =IF(LCL!AF13="","",LCL!AF13) ->  | AD170: =IF(LCL!AG13="","",LCL!AG13) ->  | AE170: =IF(LCL!AH13="","",LCL!AH13) ->  | AF170: =IF(LCL!AI13="","",LCL!AI13) ->  | AG170: =IF(LCL!AJ13="","",LCL!AJ13) ->  | AH170: =IF(LCL!AK13="","",LCL!AK13) ->  | AI170: =IF(LCL!AL13="","",LCL!AL13) ->  | AJ170: =IF(LCL!AM13="","",LCL!AM13) ->  | AK170: =IF(LCL!AN13="","",LCL!AN13) ->  | AL170: =IF(LCL!AO13="","",LCL!AO13) ->  | AM170: =IF(LCL!AP13="","",LCL!AP13) -> 
C171: Comp. Esp. 6 | D171: Criterio Evaluación 6.1 | E171: =IF(LCL!H14="","",LCL!H14) ->  | F171: =IF(LCL!I14="","",LCL!I14) ->  | G171: =IF(LCL!J14="","",LCL!J14) ->  | H171: =IF(LCL!K14="","",LCL!K14) ->  | I171: =IF(LCL!L14="","",LCL!L14) ->  | J171: =IF(LCL!M14="","",LCL!M14) ->  | K171: =IF(LCL!N14="","",LCL!N14) ->  | L171: =IF(LCL!O14="","",LCL!O14) ->  | M171: =IF(LCL!P14="","",LCL!P14) ->  | N171: =IF(LCL!Q14="","",LCL!Q14) ->  | O171: =IF(LCL!R14="","",LCL!R14) ->  | P171: =IF(LCL!S14="","",LCL!S14) ->  | Q171: =IF(LCL!T14="","",LCL!T14) ->  | R171: =IF(LCL!U14="","",LCL!U14) ->  | S171: =IF(LCL!V14="","",LCL!V14) ->  | T171: =IF(LCL!W14="","",LCL!W14) ->  | U171: =IF(LCL!X14="","",LCL!X14) ->  | V171: =IF(LCL!Y14="","",LCL!Y14) ->  | W171: =IF(LCL!Z14="","",LCL!Z14) ->  | X171: =IF(LCL!AA14="","",LCL!AA14) ->  | Y171: =IF(LCL!AB14="","",LCL!AB14) ->  | Z171: =IF(LCL!AC14="","",LCL!AC14) ->  | AA171: =IF(LCL!AD14="","",LCL!AD14) ->  | AB171: =IF(LCL!AE14="","",LCL!AE14) ->  | AC171: =IF(LCL!AF14="","",LCL!AF14) ->  | AD171: =IF(LCL!AG14="","",LCL!AG14) ->  | AE171: =IF(LCL!AH14="","",LCL!AH14) ->  | AF171: =IF(LCL!AI14="","",LCL!AI14) ->  | AG171: =IF(LCL!AJ14="","",LCL!AJ14) ->  | AH171: =IF(LCL!AK14="","",LCL!AK14) ->  | AI171: =IF(LCL!AL14="","",LCL!AL14) ->  | AJ171: =IF(LCL!AM14="","",LCL!AM14) ->  | AK171: =IF(LCL!AN14="","",LCL!AN14) ->  | AL171: =IF(LCL!AO14="","",LCL!AO14) ->  | AM171: =IF(LCL!AP14="","",LCL!AP14) -> 
D172: Criterio Evaluación 6.2 | E172: =IF(LCL!H15="","",LCL!H15) ->  | F172: =IF(LCL!I15="","",LCL!I15) ->  | G172: =IF(LCL!J15="","",LCL!J15) ->  | H172: =IF(LCL!K15="","",LCL!K15) ->  | I172: =IF(LCL!L15="","",LCL!L15) ->  | J172: =IF(LCL!M15="","",LCL!M15) ->  | K172: =IF(LCL!N15="","",LCL!N15) ->  | L172: =IF(LCL!O15="","",LCL!O15) ->  | M172: =IF(LCL!P15="","",LCL!P15) ->  | N172: =IF(LCL!Q15="","",LCL!Q15) ->  | O172: =IF(LCL!R15="","",LCL!R15) ->  | P172: =IF(LCL!S15="","",LCL!S15) ->  | Q172: =IF(LCL!T15="","",LCL!T15) ->  | R172: =IF(LCL!U15="","",LCL!U15) ->  | S172: =IF(LCL!V15="","",LCL!V15) ->  | T172: =IF(LCL!W15="","",LCL!W15) ->  | U172: =IF(LCL!X15="","",LCL!X15) ->  | V172: =IF(LCL!Y15="","",LCL!Y15) ->  | W172: =IF(LCL!Z15="","",LCL!Z15) ->  | X172: =IF(LCL!AA15="","",LCL!AA15) ->  | Y172: =IF(LCL!AB15="","",LCL!AB15) ->  | Z172: =IF(LCL!AC15="","",LCL!AC15) ->  | AA172: =IF(LCL!AD15="","",LCL!AD15) ->  | AB172: =IF(LCL!AE15="","",LCL!AE15) ->  | AC172: =IF(LCL!AF15="","",LCL!AF15) ->  | AD172: =IF(LCL!AG15="","",LCL!AG15) ->  | AE172: =IF(LCL!AH15="","",LCL!AH15) ->  | AF172: =IF(LCL!AI15="","",LCL!AI15) ->  | AG172: =IF(LCL!AJ15="","",LCL!AJ15) ->  | AH172: =IF(LCL!AK15="","",LCL!AK15) ->  | AI172: =IF(LCL!AL15="","",LCL!AL15) ->  | AJ172: =IF(LCL!AM15="","",LCL!AM15) ->  | AK172: =IF(LCL!AN15="","",LCL!AN15) ->  | AL172: =IF(LCL!AO15="","",LCL!AO15) ->  | AM172: =IF(LCL!AP15="","",LCL!AP15) -> 
C173: Comp. Esp. 7 | D173: Criterio Evaluación 7.1 | E173: =IF(LCL!H16="","",LCL!H16) ->  | F173: =IF(LCL!I16="","",LCL!I16) ->  | G173: =IF(LCL!J16="","",LCL!J16) ->  | H173: =IF(LCL!K16="","",LCL!K16) ->  | I173: =IF(LCL!L16="","",LCL!L16) ->  | J173: =IF(LCL!M16="","",LCL!M16) ->  | K173: =IF(LCL!N16="","",LCL!N16) ->  | L173: =IF(LCL!O16="","",LCL!O16) ->  | M173: =IF(LCL!P16="","",LCL!P16) ->  | N173: =IF(LCL!Q16="","",LCL!Q16) ->  | O173: =IF(LCL!R16="","",LCL!R16) ->  | P173: =IF(LCL!S16="","",LCL!S16) ->  | Q173: =IF(LCL!T16="","",LCL!T16) ->  | R173: =IF(LCL!U16="","",LCL!U16) ->  | S173: =IF(LCL!V16="","",LCL!V16) ->  | T173: =IF(LCL!W16="","",LCL!W16) ->  | U173: =IF(LCL!X16="","",LCL!X16) ->  | V173: =IF(LCL!Y16="","",LCL!Y16) ->  | W173: =IF(LCL!Z16="","",LCL!Z16) ->  | X173: =IF(LCL!AA16="","",LCL!AA16) ->  | Y173: =IF(LCL!AB16="","",LCL!AB16) ->  | Z173: =IF(LCL!AC16="","",LCL!AC16) ->  | AA173: =IF(LCL!AD16="","",LCL!AD16) ->  | AB173: =IF(LCL!AE16="","",LCL!AE16) ->  | AC173: =IF(LCL!AF16="","",LCL!AF16) ->  | AD173: =IF(LCL!AG16="","",LCL!AG16) ->  | AE173: =IF(LCL!AH16="","",LCL!AH16) ->  | AF173: =IF(LCL!AI16="","",LCL!AI16) ->  | AG173: =IF(LCL!AJ16="","",LCL!AJ16) ->  | AH173: =IF(LCL!AK16="","",LCL!AK16) ->  | AI173: =IF(LCL!AL16="","",LCL!AL16) ->  | AJ173: =IF(LCL!AM16="","",LCL!AM16) ->  | AK173: =IF(LCL!AN16="","",LCL!AN16) ->  | AL173: =IF(LCL!AO16="","",LCL!AO16) ->  | AM173: =IF(LCL!AP16="","",LCL!AP16) -> 
D174: Criterio Evaluación 7.2 | E174: =IF(LCL!H17="","",LCL!H17) ->  | F174: =IF(LCL!I17="","",LCL!I17) ->  | G174: =IF(LCL!J17="","",LCL!J17) ->  | H174: =IF(LCL!K17="","",LCL!K17) ->  | I174: =IF(LCL!L17="","",LCL!L17) ->  | J174: =IF(LCL!M17="","",LCL!M17) ->  | K174: =IF(LCL!N17="","",LCL!N17) ->  | L174: =IF(LCL!O17="","",LCL!O17) ->  | M174: =IF(LCL!P17="","",LCL!P17) ->  | N174: =IF(LCL!Q17="","",LCL!Q17) ->  | O174: =IF(LCL!R17="","",LCL!R17) ->  | P174: =IF(LCL!S17="","",LCL!S17) ->  | Q174: =IF(LCL!T17="","",LCL!T17) ->  | R174: =IF(LCL!U17="","",LCL!U17) ->  | S174: =IF(LCL!V17="","",LCL!V17) ->  | T174: =IF(LCL!W17="","",LCL!W17) ->  | U174: =IF(LCL!X17="","",LCL!X17) ->  | V174: =IF(LCL!Y17="","",LCL!Y17) ->  | W174: =IF(LCL!Z17="","",LCL!Z17) ->  | X174: =IF(LCL!AA17="","",LCL!AA17) ->  | Y174: =IF(LCL!AB17="","",LCL!AB17) ->  | Z174: =IF(LCL!AC17="","",LCL!AC17) ->  | AA174: =IF(LCL!AD17="","",LCL!AD17) ->  | AB174: =IF(LCL!AE17="","",LCL!AE17) ->  | AC174: =IF(LCL!AF17="","",LCL!AF17) ->  | AD174: =IF(LCL!AG17="","",LCL!AG17) ->  | AE174: =IF(LCL!AH17="","",LCL!AH17) ->  | AF174: =IF(LCL!AI17="","",LCL!AI17) ->  | AG174: =IF(LCL!AJ17="","",LCL!AJ17) ->  | AH174: =IF(LCL!AK17="","",LCL!AK17) ->  | AI174: =IF(LCL!AL17="","",LCL!AL17) ->  | AJ174: =IF(LCL!AM17="","",LCL!AM17) ->  | AK174: =IF(LCL!AN17="","",LCL!AN17) ->  | AL174: =IF(LCL!AO17="","",LCL!AO17) ->  | AM174: =IF(LCL!AP17="","",LCL!AP17) -> 
D175: Criterio Evaluación 7.3 | E175: =IF(LCL!H18="","",LCL!H18) ->  | F175: =IF(LCL!I18="","",LCL!I18) ->  | G175: =IF(LCL!J18="","",LCL!J18) ->  | H175: =IF(LCL!K18="","",LCL!K18) ->  | I175: =IF(LCL!L18="","",LCL!L18) ->  | J175: =IF(LCL!M18="","",LCL!M18) ->  | K175: =IF(LCL!N18="","",LCL!N18) ->  | L175: =IF(LCL!O18="","",LCL!O18) ->  | M175: =IF(LCL!P18="","",LCL!P18) ->  | N175: =IF(LCL!Q18="","",LCL!Q18) ->  | O175: =IF(LCL!R18="","",LCL!R18) ->  | P175: =IF(LCL!S18="","",LCL!S18) ->  | Q175: =IF(LCL!T18="","",LCL!T18) ->  | R175: =IF(LCL!U18="","",LCL!U18) ->  | S175: =IF(LCL!V18="","",LCL!V18) ->  | T175: =IF(LCL!W18="","",LCL!W18) ->  | U175: =IF(LCL!X18="","",LCL!X18) ->  | V175: =IF(LCL!Y18="","",LCL!Y18) ->  | W175: =IF(LCL!Z18="","",LCL!Z18) ->  | X175: =IF(LCL!AA18="","",LCL!AA18) ->  | Y175: =IF(LCL!AB18="","",LCL!AB18) ->  | Z175: =IF(LCL!AC18="","",LCL!AC18) ->  | AA175: =IF(LCL!AD18="","",LCL!AD18) ->  | AB175: =IF(LCL!AE18="","",LCL!AE18) ->  | AC175: =IF(LCL!AF18="","",LCL!AF18) ->  | AD175: =IF(LCL!AG18="","",LCL!AG18) ->  | AE175: =IF(LCL!AH18="","",LCL!AH18) ->  | AF175: =IF(LCL!AI18="","",LCL!AI18) ->  | AG175: =IF(LCL!AJ18="","",LCL!AJ18) ->  | AH175: =IF(LCL!AK18="","",LCL!AK18) ->  | AI175: =IF(LCL!AL18="","",LCL!AL18) ->  | AJ175: =IF(LCL!AM18="","",LCL!AM18) ->  | AK175: =IF(LCL!AN18="","",LCL!AN18) ->  | AL175: =IF(LCL!AO18="","",LCL!AO18) ->  | AM175: =IF(LCL!AP18="","",LCL!AP18) -> 
D176: Criterio Evaluación 7.4 | E176: =IF(LCL!H19="","",LCL!H19) ->  | F176: =IF(LCL!I19="","",LCL!I19) ->  | G176: =IF(LCL!J19="","",LCL!J19) ->  | H176: =IF(LCL!K19="","",LCL!K19) ->  | I176: =IF(LCL!L19="","",LCL!L19) ->  | J176: =IF(LCL!M19="","",LCL!M19) ->  | K176: =IF(LCL!N19="","",LCL!N19) ->  | L176: =IF(LCL!O19="","",LCL!O19) ->  | M176: =IF(LCL!P19="","",LCL!P19) ->  | N176: =IF(LCL!Q19="","",LCL!Q19) ->  | O176: =IF(LCL!R19="","",LCL!R19) ->  | P176: =IF(LCL!S19="","",LCL!S19) ->  | Q176: =IF(LCL!T19="","",LCL!T19) ->  | R176: =IF(LCL!U19="","",LCL!U19) ->  | S176: =IF(LCL!V19="","",LCL!V19) ->  | T176: =IF(LCL!W19="","",LCL!W19) ->  | U176: =IF(LCL!X19="","",LCL!X19) ->  | V176: =IF(LCL!Y19="","",LCL!Y19) ->  | W176: =IF(LCL!Z19="","",LCL!Z19) ->  | X176: =IF(LCL!AA19="","",LCL!AA19) ->  | Y176: =IF(LCL!AB19="","",LCL!AB19) ->  | Z176: =IF(LCL!AC19="","",LCL!AC19) ->  | AA176: =IF(LCL!AD19="","",LCL!AD19) ->  | AB176: =IF(LCL!AE19="","",LCL!AE19) ->  | AC176: =IF(LCL!AF19="","",LCL!AF19) ->  | AD176: =IF(LCL!AG19="","",LCL!AG19) ->  | AE176: =IF(LCL!AH19="","",LCL!AH19) ->  | AF176: =IF(LCL!AI19="","",LCL!AI19) ->  | AG176: =IF(LCL!AJ19="","",LCL!AJ19) ->  | AH176: =IF(LCL!AK19="","",LCL!AK19) ->  | AI176: =IF(LCL!AL19="","",LCL!AL19) ->  | AJ176: =IF(LCL!AM19="","",LCL!AM19) ->  | AK176: =IF(LCL!AN19="","",LCL!AN19) ->  | AL176: =IF(LCL!AO19="","",LCL!AO19) ->  | AM176: =IF(LCL!AP19="","",LCL!AP19) -> 
C177: Comp. Esp. 8 | D177: Criterio Evaluación 8.1 | E177: =IF(LCL!H20="","",LCL!H20) ->  | F177: =IF(LCL!I20="","",LCL!I20) ->  | G177: =IF(LCL!J20="","",LCL!J20) ->  | H177: =IF(LCL!K20="","",LCL!K20) ->  | I177: =IF(LCL!L20="","",LCL!L20) ->  | J177: =IF(LCL!M20="","",LCL!M20) ->  | K177: =IF(LCL!N20="","",LCL!N20) ->  | L177: =IF(LCL!O20="","",LCL!O20) ->  | M177: =IF(LCL!P20="","",LCL!P20) ->  | N177: =IF(LCL!Q20="","",LCL!Q20) ->  | O177: =IF(LCL!R20="","",LCL!R20) ->  | P177: =IF(LCL!S20="","",LCL!S20) ->  | Q177: =IF(LCL!T20="","",LCL!T20) ->  | R177: =IF(LCL!U20="","",LCL!U20) ->  | S177: =IF(LCL!V20="","",LCL!V20) ->  | T177: =IF(LCL!W20="","",LCL!W20) ->  | U177: =IF(LCL!X20="","",LCL!X20) ->  | V177: =IF(LCL!Y20="","",LCL!Y20) ->  | W177: =IF(LCL!Z20="","",LCL!Z20) ->  | X177: =IF(LCL!AA20="","",LCL!AA20) ->  | Y177: =IF(LCL!AB20="","",LCL!AB20) ->  | Z177: =IF(LCL!AC20="","",LCL!AC20) ->  | AA177: =IF(LCL!AD20="","",LCL!AD20) ->  | AB177: =IF(LCL!AE20="","",LCL!AE20) ->  | AC177: =IF(LCL!AF20="","",LCL!AF20) ->  | AD177: =IF(LCL!AG20="","",LCL!AG20) ->  | AE177: =IF(LCL!AH20="","",LCL!AH20) ->  | AF177: =IF(LCL!AI20="","",LCL!AI20) ->  | AG177: =IF(LCL!AJ20="","",LCL!AJ20) ->  | AH177: =IF(LCL!AK20="","",LCL!AK20) ->  | AI177: =IF(LCL!AL20="","",LCL!AL20) ->  | AJ177: =IF(LCL!AM20="","",LCL!AM20) ->  | AK177: =IF(LCL!AN20="","",LCL!AN20) ->  | AL177: =IF(LCL!AO20="","",LCL!AO20) ->  | AM177: =IF(LCL!AP20="","",LCL!AP20) -> 
D178: Criterio Evaluación 8.2 | E178: =IF(LCL!H21="","",LCL!H21) ->  | F178: =IF(LCL!I21="","",LCL!I21) ->  | G178: =IF(LCL!J21="","",LCL!J21) ->  | H178: =IF(LCL!K21="","",LCL!K21) ->  | I178: =IF(LCL!L21="","",LCL!L21) ->  | J178: =IF(LCL!M21="","",LCL!M21) ->  | K178: =IF(LCL!N21="","",LCL!N21) ->  | L178: =IF(LCL!O21="","",LCL!O21) ->  | M178: =IF(LCL!P21="","",LCL!P21) ->  | N178: =IF(LCL!Q21="","",LCL!Q21) ->  | O178: =IF(LCL!R21="","",LCL!R21) ->  | P178: =IF(LCL!S21="","",LCL!S21) ->  | Q178: =IF(LCL!T21="","",LCL!T21) ->  | R178: =IF(LCL!U21="","",LCL!U21) ->  | S178: =IF(LCL!V21="","",LCL!V21) ->  | T178: =IF(LCL!W21="","",LCL!W21) ->  | U178: =IF(LCL!X21="","",LCL!X21) ->  | V178: =IF(LCL!Y21="","",LCL!Y21) ->  | W178: =IF(LCL!Z21="","",LCL!Z21) ->  | X178: =IF(LCL!AA21="","",LCL!AA21) ->  | Y178: =IF(LCL!AB21="","",LCL!AB21) ->  | Z178: =IF(LCL!AC21="","",LCL!AC21) ->  | AA178: =IF(LCL!AD21="","",LCL!AD21) ->  | AB178: =IF(LCL!AE21="","",LCL!AE21) ->  | AC178: =IF(LCL!AF21="","",LCL!AF21) ->  | AD178: =IF(LCL!AG21="","",LCL!AG21) ->  | AE178: =IF(LCL!AH21="","",LCL!AH21) ->  | AF178: =IF(LCL!AI21="","",LCL!AI21) ->  | AG178: =IF(LCL!AJ21="","",LCL!AJ21) ->  | AH178: =IF(LCL!AK21="","",LCL!AK21) ->  | AI178: =IF(LCL!AL21="","",LCL!AL21) ->  | AJ178: =IF(LCL!AM21="","",LCL!AM21) ->  | AK178: =IF(LCL!AN21="","",LCL!AN21) ->  | AL178: =IF(LCL!AO21="","",LCL!AO21) ->  | AM178: =IF(LCL!AP21="","",LCL!AP21) -> 
